Workbook

Sheet County Overview
A1: Medicare fee-for-service (FFS) calculations: MA ratebook CY2012
K2: Match
A3: Select State and County from Drop Down menu or enter County Code Directly in Yellow Box | K3: =MATCH( G5,FFS2012_DATA!B:B,0) -> 
A4: State | D4: County | G4: Enter Code
D5: =INDIRECT("FFS2012_DATA!A"&K3) -> 
H6: FFS1_GME | I6: =A8 -> 
A7: FFS1_GME | B7: USPCC | C7: CTYAGA(stnd) | D7: AGA(5yr avg) | E7: NATAGA | F7: AVGGME | H7: DoD_FAC | I7: =INDIRECT("FFS2012_DATA!DG"&K3) -> 
A8: =ROUND(B8*C8*(1-F8),2) ->  | B8: 743.54 | C8: =D8/E8 ->  | D8: =AVERAGE(B12:B16)/G53 ->  | E8: =INDIRECT("FFS2012_DATA!CQ"&K3) ->  | F8: =INDIRECT("FFS2012_DATA!DE"&K3) ->  | H8: FFS2_DOD | I8: =ROUND(I7*I6,2) -> 
C10: COUNTY PER CAPITA COSTS | H10: FFS3_CBSA | I10: =ROUND(INDIRECT("FFS2012_DATA!DM"&K3),2) -> 
A11: Year | B11: Geo Index GEOINYR | C11: Pt A PCC CPCCYRA | D11: Pt B PCC CPCCYRB | E11: Parts A&B CPCCYRAB | F11: Natl PCC NPCCYRAB | H11: CRED_FAC | I11: =INDIRECT("FFS2012_DATA!DJ"&K3) -> 
A12: 2005 | B12: =E12/F12 ->  | C12: =ROUND(D28/D20/12,2) ->  | D12: =ROUND(D44/D36/12,2) ->  | E12: =C12+D12 ->  | F12: =INDIRECT("FFS2012_DATA!CE"&K3) ->  | H12: FFS4_CRED | I12: =ROUND(I11*I8+(1-I11)*I10,2) -> 
A13: 2006 | B13: =E13/F13 ->  | C13: =ROUND(D29/D21/12,2) ->  | D13: =ROUND(D45/D37/12,2) ->  | E13: =C13+D13 ->  | F13: =INDIRECT("FFS2012_DATA!CF"&K3) ->  | H13: BN_FAC_C | I13: =INDIRECT("FFS2012_DATA!DL"&K3) -> 
A14: 2007 | C14: =ROUND(D30/D22/12,2) ->  | D14: =ROUND(D46/D38/12,2) ->  | F14: =INDIRECT("FFS2012_DATA!CG"&K3) ->  | H14: FFS5_CRED_BN | I14: =ROUND(I13*I12,2) -> 
A15: 2008 | C15: =ROUND(D31/D23/12,2) ->  | D15: =ROUND(D47/D39/12,2) ->  | F15: =INDIRECT("FFS2012_DATA!CH"&K3) -> 
A16: 2009 | C16: =ROUND(D32/D24/12,2) ->  | D16: =ROUND(D48/D40/12,2) ->  | F16: =INDIRECT("FFS2012_DATA!CI"&K3) ->  | H16: AVGIME | I16: =INDIRECT("FFS2012_DATA!DO"&K3) -> 
H17: PHINPCT | I17: =INDIRECT("FFS2012_DATA!DN"&K3) -> 
B18: PART A ENROLLEES | H18: PHINDOLR | I18: =ROUND(I14*I16*I17,2) -> 
A19: Year | B19: Aged AANUMYR | C19: Disabled DANUMYR | D19: Total ADNUMYRA | E19: PT_A_PCT | F19: CTYNUMYR | H19: FFS6_IME | I19: =I14-I18 -> 
A20: 2005 | B20: =INDIRECT("FFS2012_DATA!C"&K3) ->  | C20: =INDIRECT("FFS2012_DATA!G"&K3) ->  | D20: =B20+C20 ->  | E20: =absplits!H16 -> 0.5475 | F20: =ROUND(E20*D20+E36*D36,0) -> 
A21: 2006 | B21: =INDIRECT("FFS2012_DATA!K"&K3) ->  | C21: =INDIRECT("FFS2012_DATA!O"&K3) ->  | D21: =B21+C21 ->  | E21: =absplits!H17 -> 0.5234 | F21: =ROUND(E21*D21+E37*D37,0) -> 
A22: 2007 | B22: =INDIRECT("FFS2012_DATA!S"&K3) ->  | C22: =INDIRECT("FFS2012_DATA!W"&K3) ->  | D22: =B22+C22 ->  | E22: =absplits!H18 -> 0.5191 | F22: =ROUND(E22*D22+E38*D38,0) -> 
A23: 2008 | B23: =INDIRECT("FFS2012_DATA!AA"&K3) ->  | C23: =INDIRECT("FFS2012_DATA!AE"&K3) ->  | D23: =B23+C23 ->  | E23: =absplits!H19 -> 0.5179 | F23: =ROUND(E23*D23+E39*D39,0) -> 
A24: 2009 | B24: =INDIRECT("FFS2012_DATA!AI"&K3) ->  | C24: =INDIRECT("FFS2012_DATA!AM"&K3) ->  | D24: =B24+C24 ->  | E24: =absplits!H20 -> 0.5253 | F24: =ROUND(E24*D24+E40*D40,0) -> 
B26: PART A PAYMENTS
A27: Year | B27: Aged AACOSTYR | C27: Disabled DACOSTYR | D27: Total ADCOSYRA
A28: 2005 | B28: =INDIRECT("FFS2012_DATA!D"&K3) ->  | C28: =INDIRECT("FFS2012_DATA!H"&K3) ->  | D28: =B28+C28 -> 
A29: 2006 | B29: =INDIRECT("FFS2012_DATA!L"&K3) ->  | C29: =INDIRECT("FFS2012_DATA!P"&K3) ->  | D29: =B29+C29 -> 
A30: 2007 | B30: =INDIRECT("FFS2012_DATA!T"&K3) ->  | C30: =INDIRECT("FFS2012_DATA!X"&K3) ->  | D30: =B30+C30 -> 
A31: 2008 | B31: =INDIRECT("FFS2012_DATA!AB"&K3) ->  | C31: =INDIRECT("FFS2012_DATA!AF"&K3) ->  | D31: =B31+C31 -> 
A32: 2009 | B32: =INDIRECT("FFS2012_DATA!AJ"&K3) ->  | C32: =INDIRECT("FFS2012_DATA!AN"&K3) ->  | D32: =B32+C32 -> 
B34: PART B ENROLLEES
A35: Year | B35: Aged ABNUMYR | C35: Disabled DBNUMYR | D35: Total ADNUMYRB | E35: PT_B_PCT
A36: 2005 | B36: =INDIRECT("FFS2012_DATA!E"&K3) ->  | C36: =INDIRECT("FFS2012_DATA!I"&K3) ->  | D36: =B36+C36 ->  | E36: =absplits!I16 -> 0.4525
A37: 2006 | B37: =INDIRECT("FFS2012_DATA!M"&K3) ->  | C37: =INDIRECT("FFS2012_DATA!Q"&K3) ->  | D37: =B37+C37 ->  | E37: =absplits!I17 -> 0.4766
A38: 2007 | B38: =INDIRECT("FFS2012_DATA!U"&K3) ->  | C38: =INDIRECT("FFS2012_DATA!Y"&K3) ->  | D38: =B38+C38 ->  | E38: =absplits!I18 -> 0.4809
A39: 2008 | B39: =INDIRECT("FFS2012_DATA!AC"&K3) ->  | C39: =INDIRECT("FFS2012_DATA!AG"&K3) ->  | D39: =B39+C39 ->  | E39: =absplits!I19 -> 0.4821
A40: 2009 | B40: =INDIRECT("FFS2012_DATA!Ak"&K3) ->  | C40: =INDIRECT("FFS2012_DATA!AO"&K3) ->  | D40: =B40+C40 ->  | E40: =absplits!I20 -> 0.4747
B42: PART B PAYMENTS
A43: Year | B43: Aged ABCOSTYR | C43: Disabled DBCOSTYR | D43: Total ADCOSYRB
A44: 2005 | B44: =INDIRECT("FFS2012_DATA!F"&K3) ->  | C44: =INDIRECT("FFS2012_DATA!J"&K3) ->  | D44: =B44+C44 -> 
A45: 2006 | B45: =INDIRECT("FFS2012_DATA!N"&K3) ->  | C45: =INDIRECT("FFS2012_DATA!R"&K3) ->  | D45: =B45+C45 -> 
A46: 2007 | B46: =INDIRECT("FFS2012_DATA!V"&K3) ->  | C46: =INDIRECT("FFS2012_DATA!Z"&K3) ->  | D46: =B46+C46 -> 
A47: 2008 | B47: =INDIRECT("FFS2012_DATA!AD"&K3) ->  | C47: =INDIRECT("FFS2012_DATA!AH"&K3) ->  | D47: =B47+C47 -> 
A48: 2009 | B48: =INDIRECT("FFS2012_DATA!AL"&K3) ->  | C48: =INDIRECT("FFS2012_DATA!AP"&K3) ->  | D48: =B48+C48 -> 
A50: Average Risk Score For Payment Year
A51: Year | B51: 2005 | C51: 2006 | D51: 2007 | E51: 2008 | F51: 2009 | G51: AVG5SCOR
A52: RISNUMYR | B52: =INDIRECT("FFS2012_DATA!CS"&K3) ->  | C52: =INDIRECT("FFS2012_DATA!CT"&K3) ->  | D52: =INDIRECT("FFS2012_DATA!CU"&K3) ->  | E52: =INDIRECT("FFS2012_DATA!CV"&K3) ->  | F52: =INDIRECT("FFS2012_DATA!CW"&K3) -> 
A53: RISCORYR | B53: =INDIRECT("FFS2012_DATA!CX"&K3) ->  | C53: =INDIRECT("FFS2012_DATA!CY"&K3) ->  | D53: =INDIRECT("FFS2012_DATA!CZ"&K3) ->  | E53: =INDIRECT("FFS2012_DATA!DA"&K3) ->  | F53: =INDIRECT("FFS2012_DATA!DB"&K3) ->  | G53: =((B52*B53)+(C52*C53)+(D52*D53)+(E52*E53)+(F52*F53))/SUM(B52:F52) -> 

Sheet FFS2012_DATA
A1: NAME | C1: AANUM05 | D1: AACOST05 | E1: ABNUM05 | F1: ABCOST05 | G1: DANUM05 | H1: DACOST05 | I1: DBNUM05 | J1: DBCOST05 | K1: AANUM06 | L1: AACOST06 | M1: ABNUM06 | N1: ABCOST06 | O1: DANUM06 | P1: DACOST06 | Q1: DBNUM06 | R1: DBCOST06 | S1: AANUM07 | T1: AACOST07 | U1: ABNUM07 | V1: ABCOST07 | W1: DANUM07 | X1: DACOST07 | Y1: DBNUM07 | Z1: DBCOST07 | AA1: AANUM08 | AB1: AACOST08 | AC1: ABNUM08 | AD1: ABCOST08 | AE1: DANUM08 | AF1: DACOST08 | AG1: DBNUM08 | AH1: DBCOST08 | AI1: AANUM09 | AJ1: AACOST09 | AK1: ABNUM09 | AL1: ABCOST09 | AM1: DANUM09 | AN1: DACOST09 | AO1: DBNUM09 | AP1: DBCOST09 | AQ1: CPCC05A | AR1: CPCC05B | AS1: CPCC05AB | AT1: ADCOS05A | AU1: ADCOS05B | AV1: ADNUM05A | AW1: ADNUM05B | AX1: CPCC06A | AY1: CPCC06B | AZ1: CPCC06AB | BA1: ADCOS06A | BB1: ADCOS06B | BC1: ADNUM06A | BD1: ADNUM06B | BE1: CPCC07A | BF1: CPCC07B | BG1: CPCC07AB | BH1: ADCOS07A | BI1: ADCOS07B | BJ1: ADNUM07A | BK1: ADNUM07B | BL1: CPCC08A | BM1: CPCC08B | BN1: CPCC08AB | BO1: ADCOS08A | BP1: ADCOS08B | BQ1: ADNUM08A | BR1: ADNUM08B | BS1: CPCC09A | BT1: CPCC09B | BU1: CPCC09AB | BV1: ADCOS09A | BW1: ADCOS09B | BX1: ADNUM09A | BY1: ADNUM09B | BZ1: CTYNUM05 | CA1: CTYNUM06 | CB1: CTYNUM07 | CC1: CTYNUM08 | CD1: CTYNUM09 | CE1: NPCC05AB | CF1: NPCC06AB | CG1: NPCC07AB | CH1: NPCC08AB | CI1: NPCC09AB | CJ1: GEOIN05 | CK1: GEOIN06 | CL1: GEOIN07 | CM1: GEOIN08 | CN1: GEOIN09 | CO1: AVG5SCOR | CP1: AGA | CQ1: NATAGA | CR1: CTYAGA | CS1: RISNUM05 | CT1: RISNUM06 | CU1: RISNUM07 | CV1: RISNUM08 | CW1: RISNUM09 | CX1: RISCOR05 | CY1: RISCOR06 | CZ1: RISCOR07 | DA1: RISCOR08 | DB1: RISCOR09 | DC1: CYR | DD1: ADNUMAVG | DE1: AVGGME | DF1: FFS1_GME | DG1: DoD_FAC | DH1: FFS2_DOD | DI1: FFS3_CBSA | DJ1: CRED_FAC | DK1: FFS4_CRED | DL1: BN_FAC_C | DM1: FFS5_CRED_BN | DN1: PHINPCT | DO1: AVGIME | DP1: PHINDOLR | DQ1: FFS6_IME | DR1: NAME | DT1: STATE
C2: 1 | D2: =C2+1 -> 2 | E2: =D2+1 -> 3 | F2: 4 | G2: 5 | H2: 6 | I2: 7 | J2: 8 | K2: 9 | L2: 10 | M2: 11 | N2: 12 | O2: 13 | P2: 14 | Q2: 15 | R2: 16 | S2: 17 | T2: 18 | U2: 19 | V2: 20 | W2: 21 | X2: 22 | Y2: 23 | Z2: 24 | AA2: 25 | AB2: 26 | AC2: 27 | AD2: 28 | AE2: 29 | AF2: 30 | AG2: 31 | AH2: 32 | AI2: 33 | AJ2: 34 | AK2: 35 | AL2: 36 | AM2: 37 | AN2: 38 | AO2: 39 | AP2: 40 | AQ2: 41 | AR2: 42 | AS2: 43 | AT2: 44 | AU2: 45 | AV2: 46 | AW2: 47 | AX2: 48 | AY2: 49 | AZ2: 50 | BA2: 51 | BB2: 52 | BC2: 53 | BD2: 54 | BE2: 55 | BF2: 56 | BG2: 57 | BH2: 58 | BI2: 59 | BJ2: 60 | BK2: 61 | BL2: 62 | BM2: 63 | BN2: 64 | BO2: 65 | BP2: 66 | BQ2: =BP2+1 -> 67 | BR2: 68 | BS2: 69 | BT2: 70 | BU2: 71 | BV2: 72 | BW2: 73 | BX2: 74 | BY2: 75 | BZ2: 76 | CA2: 77 | CB2: 78 | CC2: 79 | CD2: 80 | CE2: 81 | CF2: 82 | CG2: 83 | CH2: 84 | CI2: 85 | CJ2: 86 | CK2: 87 | CL2: 88 | CM2: 89 | CN2: 90 | CO2: 91 | CP2: 92 | CQ2: 93 | CR2: 94 | CS2: 95 | CT2: 96 | CU2: 97 | CV2: 98 | CW2: 99 | CX2: 100 | CY2: 101 | CZ2: 102 | DA2: 103 | DB2: 104 | DC2: 105 | DD2: 106 | DE2: =DD2+1 -> 107 | DF2: =DE2+1 -> 108 | DG2: =DF2+1 -> 109 | DH2: =DG2+1 -> 110 | DI2: =DH2+1 -> 111 | DJ2: =DI2+1 -> 112 | DK2: =DJ2+1 -> 113 | DL2: =DK2+1 -> 114 | DM2: =DL2+1 -> 115 | DN2: =DM2+1 -> 116 | DO2: =DN2+1 -> 117 | DP2: =DO2+1 -> 118 | DQ2: =DP2+1 -> 119 | DR2: =DQ2+1 -> 120 | DT2: =DR2+1 -> 121
C3: 2005 | K3: 2006 | S3: 2007 | AA3: 2008 | AI3: 2009 | AQ3: Combined Aged and Disabled | AX3: Combined Aged and Disabled | BE3: Combined Aged and Disabled | BL3: Combined Aged and Disabled | BS3: Combined Aged and Disabled | CR3: Standardized | DD3: Enrollment | DE3: Direct Med | DF3: FFS Rate | DG3: D.O.D | DH3: D.O.D. | DI3: Avg FFS | DK3: Credibility | DL3: Credibility | DM3: Budget Neutral | DN3: IME | DO3: Indirect Med | DP3: Total
A4: County | B4: County | C4: aged parta | E4: aged partb | G4: disabled parta | I4: disabled partb | K4: aged parta | M4: aged partb | O4: disabled parta | Q4: disabled partb | S4: aged parta | U4: aged partb | W4: disabled parta | Y4: disabled partb | AA4: aged parta | AC4: aged partb | AE4: disabled parta | AG4: disabled partb | AI4: aged parta | AK4: aged partb | AM4: disabled parta | AO4: disabled partb | AQ4: 2005 Per Capita Costs | AT4: 2005 Payments and Enrollments | AX4: 2006 Per Capita Costs | BA4: 2006 Payments and Enrollments | BE4: 2007 Per Capita Costs | BH4: 2007 Payments and Enrollments | BL4: 2008 Per Capita Costs | BO4: 2008 Payments and Enrollments | BS4: 2009 Per Capita Costs | BV4: 2009 Payments and Enrollments | BZ4: Parts A&B Average Enrollment | CE4: Parts A&B National Per Capita Cost | CJ4: Standardized Geographic Index | CO4: 5 YR Avg | CP4: 5 YR Avg | CQ4: National | CR4: Geographic | CS4: Risk Score Enrollments | CX4: Average Risk Score | DC4: Rate | DD4: Used for | DE4: Education as % | DF4: Less Direct | DG4: Adjustmnt | DH4: Adjusted | DI4: Rate in | DJ4: Credibility | DK4: Blended | DL4: Budget Neutral | DM4: Credibility | DN4: Phase-In | DO4: Education as % | DP4: IME | DQ4: Final FFS | DR4: County | DT4: State
A5: Name | B5: Code | C5: enroll | D5: reimb | E5: enroll | F5: reimb | G5: enroll | H5: reimb | I5: enroll | J5: reimb | K5: enroll | L5: reimb | M5: enroll | N5: reimb | O5: enroll | P5: reimb | Q5: enroll | R5: reimb | S5: enroll | T5: reimb | U5: enroll | V5: reimb | W5: enroll | X5: reimb | Y5: enroll | Z5: reimb | AA5: enroll | AB5: reimb | AC5: enroll | AD5: reimb | AE5: enroll | AF5: reimb | AG5: enroll | AH5: reimb | AI5: enroll | AJ5: reimb | AK5: enroll | AL5: reimb | AM5: enroll | AN5: reimb | AO5: enroll | AP5: reimb | AQ5: Part A | AR5: Part B | AS5: Parts A&B | AT5: Part A | AU5: Part B | AV5: Part A | AW5: Part B | AX5: Part A | AY5: Part B | AZ5: Parts A&B | BA5: Part A | BB5: Part B | BC5: Part A | BD5: Part B | BE5: Part A | BF5: Part B | BG5: Parts A&B | BH5: Part A | BI5: Part B | BJ5: Part A | BK5: Part B | BL5: Part A | BM5: Part B | BN5: Parts A&B | BO5: Part A | BP5: Part B | BQ5: Part A | BR5: Part B | BS5: Part A | BT5: Part B | BU5: Parts A&B | BV5: Part A | BW5: Part B | BX5: Part A | BY5: Part B | BZ5: 2005 | CA5: 2006 | CB5: 2007 | CC5: 2008 | CD5: 2009 | CE5: 2005 | CF5: 2006 | CG5: 2007 | CH5: 2008 | CI5: 2009 | CJ5: 2005 | CK5: 2006 | CL5: 2007 | CM5: 2008 | CN5: 2009 | CO5: Risk Score | CP5: Index | CQ5: Index | CR5: Adjustment | CS5: 2005 | CT5: 2006 | CU5: 2007 | CV5: 2008 | CW5: 2009 | CX5: 2005 | CY5: 2006 | CZ5: 2007 | DA5: 2008 | DB5: 2009 | DC5: Year | DD5: Credibility | DE5: of FFS Costs | DF5: Med. Educ. | DG5: Factor | DH5: FFS Rate | DI5: CBSA | DJ5: Factor | DK5: FFS Rate | DL5: Factor | DM5: Blended FFS Rate | DN5: Percent | DO5: of FFS Costs | DP5: Deduction | DQ5: Rate | DR5: Name | DT5: Name
A6: AUTAUGA | B6: 1000 | C6: 4845 | D6: 17219161 | E6: 4630 | F6: 16969054 | G6: 1282 | H6: 3283185 | I6: 1144 | J6: 3540847 | K6: 4684 | L6: 18443591 | M6: 4463 | N6: 16784189 | O6: 1208 | P6: 3623644 | Q6: 1069 | R6: 3597650 | S6: 4579 | T6: 18053515 | U6: 4323 | V6: 16652361 | W6: 1188 | X6: 3862080 | Y6: 1028 | Z6: 3922569 | AA6: 4214 | AB6: 17189714 | AC6: 3936 | AD6: 15933305 | AE6: 1160 | AF6: 3870259 | AG6: 976 | AH6: 3487386 | AI6: 4125 | AJ6: 15537187 | AK6: 3814 | AL6: 15010384 | AM6: 1155 | AN6: 3366228 | AO6: 972 | AP6: 3569286 | AQ6: 278.85 | AR6: 296.01 | AS6: 574.86 | AT6: 20502346 | AU6: 20509901 | AV6: 6127 | AW6: 5774 | AX6: 312.11 | AY6: 307.03 | AZ6: 619.14 | BA6: 22067235 | BB6: 20381839 | BC6: 5892 | BD6: 5532 | BE6: 316.68 | BF6: 320.42 | BG6: 637.1 | BH6: 21915595 | BI6: 20574930 | BJ6: 5767 | BK6: 5351 | BL6: 326.57 | BM6: 329.48 | BN6: 656.05 | BO6: 21059973 | BP6: 19420691 | BQ6: 5374 | BR6: 4912 | BS6: 298.35 | BT6: 323.51 | BU6: 621.86 | BV6: 18903415 | BW6: 18579670 | BX6: 5280 | BY6: 4786 | BZ6: 5967 | CA6: 5720 | CB6: 5566 | CC6: 5151 | CD6: 5045 | CE6: 621.8109623 | CF6: 650.773103 | CG6: 676.6194692 | CH6: 712.4345037 | CI6: 716.4999321 | CJ6: 0.9244931898 | CK6: 0.9513915021 | CL6: 0.9415927696 | CM6: 0.9208565792 | CN6: 0.8679135505 | CO6: 0.9072635997 | CP6: 1.015415496 | CQ6: 0.9966011523 | CR6: 1.018878509 | CS6: 5751 | CT6: 5487 | CU6: 5452 | CV6: 4949 | CW6: 4855 | CX6: 0.927310912 | CY6: 0.906174681 | CZ6: 0.898239495 | DA6: 0.898128035 | DB6: 0.90419339 | DC6: 2012 | DD6: 5271 | DE6: 0.0024997058 | DF6: 755.68 | DG6: 1 | DH6: 755.68 | DI6: 716.116343 | DJ6: 1 | DK6: 755.68 | DL6: 1 | DM6: 755.68 | DN6: 1 | DO6: 0.007509 | DP6: 5.67 | DQ6: 750.01 | DR6: AUTAUGA | DT6: ALABAMA
A7: BALDWIN | B7: 1010 | C7: 22866 | D7: 79620772 | E7: 22173 | F7: 71620928 | G7: 3960 | H7: 11498912 | I7: 3580 | J7: 11376770 | K7: 22352 | L7: 81822003 | M7: 21562 | N7: 73289501 | O7: 3877 | P7: 11815435 | Q7: 3474 | R7: 12216540 | S7: 22130 | T7: 84948302 | U7: 21210 | V7: 76422234 | W7: 3902 | X7: 11549936 | Y7: 3473 | Z7: 12271468 | AA7: 21839 | AB7: 81293450 | AC7: 20795 | AD7: 81262086 | AE7: 3892 | AF7: 10939407 | AG7: 3436 | AH7: 13251600 | AI7: 21461 | AJ7: 66459254 | AK7: 20288 | AL7: 85617778 | AM7: 3936 | AN7: 11077730 | AO7: 3468 | AP7: 15034067 | AQ7: 283.06 | AR7: 268.57 | AS7: 551.63 | AT7: 91119684 | AU7: 82997698 | AV7: 26826 | AW7: 25753 | AX7: 297.5 | AY7: 284.61 | AZ7: 582.11 | BA7: 93637438 | BB7: 85506041 | BC7: 26229 | BD7: 25036 | BE7: 308.91 | BF7: 299.44 | BG7: 608.35 | BH7: 96498238 | BI7: 88693702 | BJ7: 26032 | BK7: 24683 | BL7: 298.71 | BM7: 325.04 | BN7: 623.75 | BO7: 92232857 | BP7: 94513686 | BQ7: 25731 | BR7: 24231 | BS7: 254.42 | BT7: 353.08 | BU7: 607.5 | BV7: 77536984 | BW7: 100651845 | BX7: 25397 | BY7: 23756 | BZ7: 26340 | CA7: 25660 | CB7: 25381 | CC7: 25008 | CD7: 24618 | CE7: 621.8109623 | CF7: 650.773103 | CG7: 676.6194692 | CH7: 712.4345037 | CI7: 716.4999321 | CJ7: 0.8871345689 | CK7: 0.8944899494 | CL7: 0.8991021212 | CM7: 0.8755190782 | CN7: 0.8478716784 | CO7: 0.9330842183 | CP7: 0.9439914018 | CQ7: 0.9966011523 | CR7: 0.9472108271 | CS7: 24930 | CT7: 24350 | CU7: 24242 | CV7: 23643 | CW7: 23075 | CX7: 0.939489175 | CY7: 0.939499898 | CZ7: 0.937950238 | DA7: 0.927651544 | DB7: 0.919848478 | DC7: 2012 | DD7: 24691.8 | DE7: 0.0015256033 | DF7: 703.21 | DG7: 1 | DH7: 703.21 | DI7: 716.116343 | DJ7: 1 | DK7: 703.21 | DL7: 1 | DM7: 703.21 | DN7: 1 | DO7: 0.003261 | DP7: 2.29 | DQ7: 700.92 | DR7: BALDWIN | DT7: ALABAMA
A8: BARBOUR | B8: 1020 | C8: 3211 | D8: 13257781 | E8: 3171 | F8: 8950559 | G8: 1177 | H8: 2938955 | I8: 1093 | J8: 2991471 | K8: 2953 | L8: 12979435 | M8: 2907 | N8: 9086320 | O8: 1086 | P8: 3054118 | Q8: 1004 | R8: 2888142 | S8: 2859 | T8: 11565606 | U8: 2800 | V8: 9727886 | W8: 1013 | X8: 2294250 | Y8: 925 | Z8: 2747704 | AA8: 2779 | AB8: 11818209 | AC8: 2703 | AD8: 9776229 | AE8: 1003 | AF8: 2515564 | AG8: 902 | AH8: 2877086 | AI8: 2769 | AJ8: 11279998 | AK8: 2668 | AL8: 10778350 | AM8: 1024 | AN8: 2467636 | AO8: 929 | AP8: 3033697 | AQ8: 307.6 | AR8: 233.39 | AS8: 540.99 | AT8: 16196736 | AU8: 11942030 | AV8: 4388 | AW8: 4264 | AX8: 330.81 | AY8: 255.14 | AZ8: 585.95 | BA8: 16033553 | BB8: 11974462 | BC8: 4039 | BD8: 3911 | BE8: 298.29 | BF8: 279.1 | BG8: 577.39 | BH8: 13859856 | BI8: 12475590 | BJ8: 3872 | BK8: 3725 | BL8: 315.83 | BM8: 292.49 | BN8: 608.32 | BO8: 14333773 | BP8: 12653315 | BQ8: 3782 | BR8: 3605 | BS8: 302.04 | BT8: 319.99 | BU8: 622.03 | BV8: 13747634 | BW8: 13812047 | BX8: 3793 | BY8: 3597 | BZ8: 4332 | CA8: 3978 | CB8: 3801 | CC8: 3697 | CD8: 3700 | CE8: 621.8109623 | CF8: 650.773103 | CG8: 676.6194692 | CH8: 712.4345037 | CI8: 716.4999321 | CJ8: 0.8700232591 | CK8: 0.9003906235 | CL8: 0.853345235 | CM8: 0.8538609469 | CN8: 0.868150815 | CO8: 0.9785487706 | CP8: 0.8882073148 | CQ8: 0.9966011523 | CR8: 0.8912364919 | CS8: 4383 | CT8: 4004 | CU8: 3930 | CV8: 3788 | CW8: 3848 | CX8: 0.952429605 | CY8: 0.979696857 | CZ8: 1.002484867 | DA8: 0.984115923 | DB8: 0.977178223 | DC8: 2012 | DD8: 3820.4 | DE8: 0.0010928782 | DF8: 661.95 | DG8: 1 | DH8: 661.95 | DI8: 716.116343 | DJ8: 1 | DK8: 661.95 | DL8: 1 | DM8: 661.95 | DN8: 1 | DO8: 0.002942 | DP8: 1.95 | DQ8: 660 | DR8: BARBOUR | DT8: ALABAMA
A9: BIBB | B9: 1030 | C9: 2137 | D9: 8957922 | E9: 2076 | F9: 6863765 | G9: 936 | H9: 3198571 | I9: 840 | J9: 2453946 | K9: 2016 | L9: 9689248 | M9: 1941 | N9: 6745744 | O9: 891 | P9: 2555994 | Q9: 786 | R9: 2306756 | S9: 2044 | T9: 10453847 | U9: 1955 | V9: 7389636 | W9: 870 | X9: 2951843 | Y9: 770 | Z9: 2497635 | AA9: 1932 | AB9: 10836928 | AC9: 1843 | AD9: 7155232 | AE9: 865 | AF9: 2740910 | AG9: 764 | AH9: 2528378 | AI9: 1848 | AJ9: 8053699 | AK9: 1769 | AL9: 7435199 | AM9: 836 | AN9: 2359285 | AO9: 734 | AP9: 2708231 | AQ9: 329.66 | AR9: 266.28 | AS9: 595.94 | AT9: 12156493 | AU9: 9317711 | AV9: 3073 | AW9: 2916 | AX9: 351.03 | AY9: 276.63 | AZ9: 627.66 | BA9: 12245242 | BB9: 9052500 | BC9: 2907 | BD9: 2727 | BE9: 383.37 | BF9: 302.36 | BG9: 685.73 | BH9: 13405690 | BI9: 9887271 | BJ9: 2914 | BK9: 2725 | BL9: 404.54 | BM9: 309.54 | BN9: 714.08 | BO9: 13577838 | BP9: 9683610 | BQ9: 2797 | BR9: 2607 | BS9: 323.3 | BT9: 337.71 | BU9: 661.01 | BV9: 10412984 | BW9: 10143430 | BX9: 2684 | BY9: 2503 | BZ9: 3002 | CA9: 2821 | CB9: 2823 | CC9: 2705 | CD9: 2598 | CE9: 621.8109623 | CF9: 650.773103 | CG9: 676.6194692 | CH9: 712.4345037 | CI9: 716.4999321 | CJ9: 0.9583941682 | CK9: 0.9644836228 | CL9: 1.013464778 | CM9: 1.002309681 | CN9: 0.9225541698 | CO9: 0.9869178722 | CP9: 0.9851288656 | CQ9: 0.9966011523 | CR9: 0.9884885877 | CS9: 2688 | CT9: 2490 | CU9: 2559 | CV9: 2446 | CW9: 2372 | CX9: 0.959008323 | CY9: 0.947956819 | CZ9: 0.982066643 | DA9: 1.020197047 | DB9: 1.030361095 | DC9: 2012 | DD9: 2695.6 | DE9: 0.004224666 | DF9: 731.88 | DG9: 1 | DH9: 731.88 | DI9: 716.116343 | DJ9: 1 | DK9: 731.88 | DL9: 1 | DM9: 731.88 | DN9: 1 | DO9: 0.010502 | DP9: 7.69 | DQ9: 724.19 | DR9: BIBB | DT9: ALABAMA
A10: BLOUNT | B10: 1040 | C10: 4253 | D10: 20343147 | E10: 4089 | F10: 12620564 | G10: 1145 | H10: 3694908 | I10: 981 | J10: 2700445 | K10: 4053 | L10: 19226824 | M10: 3876 | N10: 12948188 | O10: 1120 | P10: 2943258 | Q10: 950 | R10: 2720606 | S10: 4086 | T10: 19736686 | U10: 3887 | V10: 13405269 | W10: 1130 | X10: 3091354 | Y10: 949 | Z10: 2832821 | AA10: 3955 | AB10: 19287692 | AC10: 3722 | AD10: 13993327 | AE10: 1117 | AF10: 2828771 | AG10: 933 | AH10: 2929146 | AI10: 3827 | AJ10: 16205906 | AK10: 3588 | AL10: 15043734 | AM10: 1106 | AN10: 2789618 | AO10: 925 | AP10: 3317438 | AQ10: 371.1 | AR10: 251.82 | AS10: 622.92 | AT10: 24038055 | AU10: 15321009 | AV10: 5398 | AW10: 5070 | AX10: 357.14 | AY10: 270.56 | AZ10: 627.7 | BA10: 22170082 | BB10: 15668794 | BC10: 5173 | BD10: 4826 | BE10: 364.71 | BF10: 279.81 | BG10: 644.52 | BH10: 22828040 | BI10: 16238090 | BJ10: 5216 | BK10: 4836 | BL10: 363.38 | BM10: 302.94 | BN10: 666.32 | BO10: 22116463 | BP10: 16922473 | BQ10: 5072 | BR10: 4655 | BS10: 320.89 | BT10: 339.04 | BU10: 659.93 | BV10: 18995524 | BW10: 18361172 | BX10: 4933 | BY10: 4513 | BZ10: 5250 | CA10: 5008 | CB10: 5033 | CC10: 4871 | CD10: 4734 | CE10: 621.8109623 | CF10: 650.773103 | CG10: 676.6194692 | CH10: 712.4345037 | CI10: 716.4999321 | CJ10: 1.001783561 | CK10: 0.9645450881 | CL10: 0.9525590517 | CM10: 0.9352719394 | CN10: 0.9210468424 | CO10: 0.9620829767 | CP10: 0.9926807975 | CQ10: 0.9966011523 | CR10: 0.996066275 | CS10: 5901 | CT10: 5520 | CU10: 5629 | CV10: 5460 | CW10: 5291 | CX10: 0.952652163 | CY10: 0.956671384 | CZ10: 0.993662752 | DA10: 0.979321024 | DB10: 0.926861077 | DC10: 2012 | DD10: 4780 | DE10: 0.0062622541 | DF10: 735.98 | DG10: 1 | DH10: 735.98 | DI10: 716.116343 | DJ10: 1 | DK10: 735.98 | DL10: 1 | DM10: 735.98 | DN10: 1 | DO10: 0.010234 | DP10: 7.53 | DQ10: 728.45 | DR10: BLOUNT | DT10: ALABAMA
A11: BULLOCK | B11: 1050 | C11: 1234 | D11: 5735642 | E11: 1200 | F11: 3495426 | G11: 478 | H11: 1541129 | I11: 443 | J11: 1171053 | K11: 1065 | L11: 5285849 | M11: 1023 | N11: 3206246 | O11: 408 | P11: 743465 | Q11: 368 | R11: 1156246 | S11: 983 | T11: 4461273 | U11: 939 | V11: 3004798 | W11: 361 | X11: 939405 | Y11: 323 | Z11: 1103123 | AA11: 934 | AB11: 4805763 | AC11: 890 | AD11: 3128031 | AE11: 331 | AF11: 1035498 | AG11: 295 | AH11: 760976 | AI11: 871 | AJ11: 4286501 | AK11: 824 | AL11: 2709909 | AM11: 307 | AN11: 1040632 | AO11: 273 | AP11: 834588 | AQ11: 354.2 | AR11: 236.68 | AS11: 590.88 | AT11: 7276771 | AU11: 4666479 | AV11: 1712 | AW11: 1643 | AX11: 341.1 | AY11: 261.35 | AZ11: 602.45 | BA11: 6029314 | BB11: 4362492 | BC11: 1473 | BD11: 1391 | BE11: 334.86 | BF11: 271.26 | BG11: 606.12 | BH11: 5400678 | BI11: 4107921 | BJ11: 1344 | BK11: 1262 | BL11: 384.8 | BM11: 273.49 | BN11: 658.29 | BO11: 5841261 | BP11: 3889007 | BQ11: 1265 | BR11: 1185 | BS11: 376.85 | BT11: 269.26 | BU11: 646.11 | BV11: 5327133 | BW11: 3544497 | BX11: 1178 | BY11: 1097 | BZ11: 1681 | CA11: 1434 | CB11: 1304 | CC11: 1226 | CD11: 1140 | CE11: 621.8109623 | CF11: 650.773103 | CG11: 676.6194692 | CH11: 712.4345037 | CI11: 716.4999321 | CJ11: 0.9502566468 | CK11: 0.9257450826 | CL11: 0.8958063248 | CM11: 0.9240007278 | CN11: 0.901758634 | CO11: 0.93650768 | CP11: 0.9818536493 | CQ11: 0.9966011523 | CR11: 0.9852022015 | CS11: 1559 | CT11: 1321 | CU11: 1285 | CV11: 1250 | CW11: 1197 | CX11: 0.936864145 | CY11: 0.929326488 | CZ11: 0.924814044 | DA11: 0.925775576 | DB11: 0.967729132 | DC11: 2012 | DD11: 1315.6 | DE11: 0.0020814322 | DF11: 731.01 | DG11: 1 | DH11: 731.01 | DI11: 716.116343 | DJ11: 1 | DK11: 731.01 | DL11: 1 | DM11: 731.01 | DN11: 1 | DO11: 0.00653 | DP11: 4.77 | DQ11: 726.24 | DR11: BULLOCK | DT11: ALABAMA
A12: BUTLER | B12: 1060 | C12: 3024 | D12: 16757611 | E12: 2965 | F12: 9974208 | G12: 987 | H12: 4170549 | I12: 925 | J12: 2929084 | K12: 3006 | L12: 16833201 | M12: 2943 | N12: 10275636 | O12: 993 | P12: 4362993 | Q12: 928 | R12: 2806033 | S12: 2979 | T12: 16700847 | U12: 2904 | V12: 10609633 | W12: 1006 | X12: 4714377 | Y12: 929 | Z12: 2739888 | AA12: 2807 | AB12: 15917674 | AC12: 2730 | AD12: 11108731 | AE12: 1004 | AF12: 3849888 | AG12: 923 | AH12: 3229992 | AI12: 2608 | AJ12: 13970870 | AK12: 2526 | AL12: 11174342 | AM12: 966 | AN12: 3900196 | AO12: 888 | AP12: 3314645 | AQ12: 434.81 | AR12: 276.42 | AS12: 711.23 | AT12: 20928160 | AU12: 12903292 | AV12: 4011 | AW12: 3890 | AX12: 441.7 | AY12: 281.62 | AZ12: 723.32 | BA12: 21196194 | BB12: 13081669 | BC12: 3999 | BD12: 3871 | BE12: 447.83 | BF12: 290.23 | BG12: 738.06 | BH12: 21415224 | BI12: 13349521 | BJ12: 3985 | BK12: 3833 | BL12: 432.25 | BM12: 327.1 | BN12: 759.35 | BO12: 19767562 | BP12: 14338723 | BQ12: 3811 | BR12: 3653 | BS12: 416.69 | BT12: 353.67 | BU12: 770.36 | BV12: 17871066 | BW12: 14488987 | BX12: 3574 | BY12: 3414 | BZ12: 3956 | CA12: 3938 | CB12: 3912 | CC12: 3735 | CD12: 3498 | CE12: 621.8109623 | CF12: 650.773103 | CG12: 676.6194692 | CH12: 712.4345037 | CI12: 716.4999321 | CJ12: 1.143804216 | CK12: 1.11147802 | CL12: 1.090805148 | CM12: 1.065852364 | CN12: 1.075171072 | CO12: 1.025210399 | CP12: 1.070436044 | CQ12: 0.9966011523 | CR12: 1.074086701 | CS12: 3867 | CT12: 3833 | CU12: 3871 | CV12: 3667 | CW12: 3420 | CX12: 1.049036392 | CY12: 1.014015358 | CZ12: 1.00957748 | DA12: 1.023867154 | DB12: 1.029951975 | DC12: 2012 | DD12: 3732.2 | DE12: 0.0020331534 | DF12: 797 | DG12: 1 | DH12: 797 | DI12: 716.116343 | DJ12: 1 | DK12: 797 | DL12: 1 | DM12: 797 | DN12: 1 | DO12: 0.006154 | DP12: 4.9 | DQ12: 792.1 | DR12: BUTLER | DT12: ALABAMA
A13: CALHOUN | B13: 1070 | C13: 16164 | D13: 76583059 | E13: 15588 | F13: 52291832 | G13: 5527 | H13: 18182754 | I13: 4940 | J13: 14636575 | K13: 15915 | L13: 78536713 | M13: 15288 | N13: 53366702 | O13: 5588 | P13: 18078343 | Q13: 4971 | R13: 15444969 | S13: 15936 | T13: 79021641 | U13: 15213 | V13: 55161275 | W13: 5593 | X13: 18793118 | Y13: 4931 | Z13: 16215052 | AA13: 15988 | AB13: 84153712 | AC13: 15164 | AD13: 58202352 | AE13: 5786 | AF13: 19320010 | AG13: 5121 | AH13: 17057241 | AI13: 15614 | AJ13: 72908127 | AK13: 14692 | AL13: 62186670 | AM13: 5727 | AN13: 18596682 | AO13: 5064 | AP13: 18726850 | AQ13: 364.08 | AR13: 271.7 | AS13: 635.78 | AT13: 94765813 | AU13: 66928407 | AV13: 21691 | AW13: 20528 | AX13: 374.42 | AY13: 283.05 | AZ13: 657.47 | BA13: 96615056 | BB13: 68811671 | BC13: 21503 | BD13: 20259 | BE13: 378.62 | BF13: 295.28 | BG13: 673.9 | BH13: 97814759 | BI13: 71376327 | BJ13: 21529 | BK13: 20144 | BL13: 396.01 | BM13: 309.18 | BN13: 705.19 | BO13: 103473722 | BP13: 75259593 | BQ13: 21774 | BR13: 20285 | BS13: 357.31 | BT13: 341.3 | BU13: 698.61 | BV13: 91504809 | BW13: 80913520 | BX13: 21341 | BY13: 19756 | BZ13: 21165 | CA13: 20910 | CB13: 20861 | CC13: 21056 | CD13: 20589 | CE13: 621.8109623 | CF13: 650.773103 | CG13: 676.6194692 | CH13: 712.4345037 | CI13: 716.4999321 | CJ13: 1.022465088 | CK13: 1.010290679 | CL13: 0.9959807996 | CM13: 0.9898313407 | CN13: 0.9750314951 | CO13: 1.015148742 | CP13: 0.9838163008 | CQ13: 0.9966011523 | CR13: 0.9871715465 | CS13: 19462 | CT13: 19291 | CU13: 19146 | CV13: 19196 | CW13: 18549 | CX13: 1.014901517 | CY13: 1.008408936 | CZ13: 1.009447227 | DA13: 1.024751702 | DB13: 1.018364651 | DC13: 2012 | DD13: 20194.4 | DE13: 0.0035820402 | DF13: 731.37 | DG13: 1 | DH13: 731.37 | DI13: 716.116343 | DJ13: 1 | DK13: 731.37 | DL13: 1 | DM13: 731.37 | DN13: 1 | DO13: 0.008915 | DP13: 6.52 | DQ13: 724.85 | DR13: CALHOUN | DT13: ALABAMA
A14: CHAMBERS | B14: 1080 | C14: 5349 | D14: 21879490 | E14: 5240 | F14: 14365085 | G14: 1638 | H14: 4883523 | I14: 1507 | J14: 3890702 | K14: 5270 | L14: 22542579 | M14: 5157 | N14: 15386614 | O14: 1660 | P14: 4515517 | Q14: 1529 | R14: 4299251 | S14: 4945 | T14: 21174638 | U14: 4809 | V14: 15234556 | W14: 1601 | X14: 5360178 | Y14: 1458 | Z14: 4623535 | AA14: 4827 | AB14: 22105900 | AC14: 4691 | AD14: 15673553 | AE14: 1660 | AF14: 5647013 | AG14: 1522 | AH14: 4726305 | AI14: 4682 | AJ14: 18730724 | AK14: 4535 | AL14: 15739671 | AM14: 1704 | AN14: 5098774 | AO14: 1572 | AP14: 5469154 | AQ14: 319.2 | AR14: 225.48 | AS14: 544.68 | AT14: 26763013 | AU14: 18255787 | AV14: 6987 | AW14: 6747 | AX14: 325.37 | AY14: 245.36 | AZ14: 570.73 | BA14: 27058096 | BB14: 19685865 | BC14: 6930 | BD14: 6686 | BE14: 337.8 | BF14: 264.06 | BG14: 601.86 | BH14: 26534816 | BI14: 19858091 | BJ14: 6546 | BK14: 6267 | BL14: 356.52 | BM14: 273.62 | BN14: 630.14 | BO14: 27752913 | BP14: 20399858 | BQ14: 6487 | BR14: 6213 | BS14: 310.96 | BT14: 289.41 | BU14: 600.37 | BV14: 23829498 | BW14: 21208825 | BX14: 6386 | BY14: 6107 | BZ14: 6878 | CA14: 6814 | CB14: 6411 | CC14: 6355 | CD14: 6254 | CE14: 621.8109623 | CF14: 650.773103 | CG14: 676.6194692 | CH14: 712.4345037 | CI14: 716.4999321 | CJ14: 0.8759575386 | CK14: 0.8770030558 | CL14: 0.8895103191 | CM14: 0.8844883237 | CN14: 0.8379205261 | CO14: 1.040805103 | CP14: 0.838750646 | CQ14: 0.9966011523 | CR14: 0.8416111541 | CS14: 6354 | CT14: 6362 | CU14: 5998 | CV14: 5944 | CW14: 5846 | CX14: 1.06565822 | CY14: 1.063178931 | CZ14: 1.043477162 | DA14: 1.018245644 | DB14: 1.009639763 | DC14: 2012 | DD14: 6404 | DE14: 0.001349109 | DF14: 624.93 | DG14: 1 | DH14: 624.93 | DI14: 716.116343 | DJ14: 1 | DK14: 624.93 | DL14: 1 | DM14: 624.93 | DN14: 1 | DO14: 0.004342 | DP14: 2.71 | DQ14: 622.22 | DR14: CHAMBERS | DT14: ALABAMA
A15: CHEROKEE | B15: 1090 | C15: 3261 | D15: 11523953 | E15: 3206 | F15: 8959779 | G15: 985 | H15: 3106664 | I15: 903 | J15: 2476071 | K15: 3277 | L15: 13525900 | M15: 3213 | N15: 9775806 | O15: 1002 | P15: 2630946 | Q15: 916 | R15: 2557805 | S15: 3233 | T15: 14780893 | U15: 3154 | V15: 10698446 | W15: 1001 | X15: 2590626 | Y15: 899 | Z15: 2543875 | AA15: 3099 | AB15: 14517704 | AC15: 3002 | AD15: 10908531 | AE15: 1013 | AF15: 3394213 | AG15: 907 | AH15: 3015662 | AI15: 3077 | AJ15: 13462174 | AK15: 2968 | AL15: 11414634 | AM15: 1035 | AN15: 3858267 | AO15: 929 | AP15: 3506616 | AQ15: 287.15 | AR15: 231.93 | AS15: 519.08 | AT15: 14630617 | AU15: 11435850 | AV15: 4246 | AW15: 4109 | AX15: 314.65 | AY15: 248.92 | AZ15: 563.57 | BA15: 16156846 | BB15: 12333611 | BC15: 4279 | BD15: 4129 | BE15: 341.91 | BF15: 272.27 | BG15: 614.18 | BH15: 17371519 | BI15: 13242321 | BJ15: 4234 | BK15: 4053 | BL15: 363 | BM15: 296.84 | BN15: 659.84 | BO15: 17911917 | BP15: 13924193 | BQ15: 4112 | BR15: 3909 | BS15: 351.01 | BT15: 319.08 | BU15: 670.09 | BV15: 17320441 | BW15: 14921250 | BX15: 4112 | BY15: 3897 | BZ15: 4184 | CA15: 4208 | CB15: 4147 | CC15: 4014 | CD15: 4010 | CE15: 621.8109623 | CF15: 650.773103 | CG15: 676.6194692 | CH15: 712.4345037 | CI15: 716.4999321 | CJ15: 0.8347874699 | CK15: 0.8660007572 | CL15: 0.9077184857 | CM15: 0.9261763664 | CN15: 0.9352268856 | CO15: 0.9525655411 | CP15: 0.9384991944 | CQ15: 0.9966011523 | CR15: 0.9416998889 | CS15: 4449 | CT15: 4584 | CU15: 4512 | CV15: 4358 | CW15: 4329 | CX15: 0.949096398 | CY15: 0.962586062 | CZ15: 0.949831 | DA15: 0.949039252 | DB15: 0.951920119 | DC15: 2012 | DD15: 4019.4 | DE15: 0.0022650737 | DF15: 698.61 | DG15: 1 | DH15: 698.61 | DI15: 716.116343 | DJ15: 1 | DK15: 698.61 | DL15: 1 | DM15: 698.61 | DN15: 1 | DO15: 0.004948 | DP15: 3.46 | DQ15: 695.15 | DR15: CHEROKEE | DT15: ALABAMA
A16: CHILTON | B16: 1100 | C16: 3643 | D16: 18243545 | E16: 3530 | F16: 13082189 | G16: 1082 | H16: 3202307 | I16: 956 | J16: 3066551 | K16: 3530 | L16: 18597336 | M16: 3419 | N16: 13112521 | O16: 1045 | P16: 4647538 | Q16: 913 | R16: 3412500 | S16: 3494 | T16: 17926472 | U16: 3374 | V16: 13934840 | W16: 1039 | X16: 4084255 | Y16: 879 | Z16: 3423215 | AA16: 3344 | AB16: 18146614 | AC16: 3189 | AD16: 13491890 | AE16: 1033 | AF16: 3917257 | AG16: 861 | AH16: 3407081 | AI16: 3141 | AJ16: 14329712 | AK16: 2987 | AL16: 13605302 | AM16: 990 | AN16: 3433215 | AO16: 838 | AP16: 3581533 | AQ16: 378.23 | AR16: 299.98 | AS16: 678.21 | AT16: 21445852 | AU16: 16148740 | AV16: 4725 | AW16: 4486 | AX16: 423.4 | AY16: 317.89 | AZ16: 741.29 | BA16: 23244874 | BB16: 16525021 | BC16: 4575 | BD16: 4332 | BE16: 404.64 | BF16: 340.11 | BG16: 744.75 | BH16: 22010727 | BI16: 17358055 | BJ16: 4533 | BK16: 4253 | BL16: 420.07 | BM16: 347.72 | BN16: 767.79 | BO16: 22063871 | BP16: 16898971 | BQ16: 4377 | BR16: 4050 | BS16: 358.33 | BT16: 374.44 | BU16: 732.77 | BV16: 17762927 | BW16: 17186835 | BX16: 4131 | BY16: 3825 | BZ16: 4617 | CA16: 4459 | CB16: 4398 | CC16: 4219 | CD16: 3986 | CE16: 621.8109623 | CF16: 650.773103 | CG16: 676.6194692 | CH16: 712.4345037 | CI16: 716.4999321 | CJ16: 1.09070126 | CK16: 1.139091331 | CL16: 1.100692537 | CM16: 1.077699067 | CN16: 1.022707703 | CO16: 0.9917572168 | CP16: 1.095205925 | CQ16: 0.9966011523 | CR16: 1.098941058 | CS16: 4522 | CT16: 4327 | CU16: 4344 | CV16: 4142 | CW16: 3941 | CX16: 1.001198396 | CY16: 0.989906033 | CZ16: 0.994292891 | DA16: 0.985592994 | DB16: 0.986640318 | DC16: 2012 | DD16: 4189.2 | DE16: 0.0024691644 | DF16: 815.09 | DG16: 1 | DH16: 815.09 | DI16: 716.116343 | DJ16: 1 | DK16: 815.09 | DL16: 1 | DM16: 815.09 | DN16: 1 | DO16: 0.005358 | DP16: 4.37 | DQ16: 810.72 | DR16: CHILTON | DT16: ALABAMA
A17: CHOCTAW | B17: 1110 | C17: 2126 | D17: 9823755 | E17: 2113 | F17: 5765098 | G17: 864 | H17: 2295048 | I17: 825 | J17: 2173293 | K17: 2145 | L17: 10647411 | M17: 2123 | N17: 6525877 | O17: 892 | P17: 3241190 | Q17: 850 | R17: 2311397 | S17: 1972 | T17: 9287770 | U17: 1953 | V17: 6489982 | W17: 784 | X17: 1673144 | Y17: 744 | Z17: 1888777 | AA17: 2014 | AB17: 9618507 | AC17: 1987 | AD17: 6784030 | AE17: 791 | AF17: 2443698 | AG17: 748 | AH17: 2117670 | AI17: 2001 | AJ17: 7321260 | AK17: 1978 | AL17: 7251976 | AM17: 768 | AN17: 1560596 | AO17: 724 | AP17: 2147505 | AQ17: 337.76 | AR17: 225.16 | AS17: 562.92 | AT17: 12118803 | AU17: 7938391 | AV17: 2990 | AW17: 2938 | AX17: 381.09 | AY17: 247.71 | AZ17: 628.8 | BA17: 13888601 | BB17: 8837274 | BC17: 3037 | BD17: 2973 | BE17: 331.43 | BF17: 258.89 | BG17: 590.32 | BH17: 10960914 | BI17: 8378759 | BJ17: 2756 | BK17: 2697 | BL17: 358.35 | BM17: 271.23 | BN17: 629.58 | BO17: 12062205 | BP17: 8901700 | BQ17: 2805 | BR17: 2735 | BS17: 267.3 | BT17: 289.89 | BU17: 557.19 | BV17: 8881856 | BW17: 9399481 | BX17: 2769 | BY17: 2702 | BZ17: 2966 | CA17: 3006 | CB17: 2727 | CC17: 2771 | CD17: 2737 | CE17: 621.8109623 | CF17: 650.773103 | CG17: 676.6194692 | CH17: 712.4345037 | CI17: 716.4999321 | CJ17: 0.9052912125 | CK17: 0.9662353854 | CL17: 0.8724549423 | CM17: 0.8837022866 | CN17: 0.7776553424 | CO17: 0.9150936615 | CP17: 0.9628171092 | CQ17: 0.9966011523 | CR17: 0.9661007385 | CS17: 2960 | CT17: 3027 | CU17: 2794 | CV17: 2829 | CW17: 2780 | CX17: 0.919551546 | CY17: 0.921967214 | CZ17: 0.91516363 | DA17: 0.914639979 | DB17: 0.903254235 | DC17: 2012 | DD17: 2809 | DE17: 0.0012914038 | DF17: 717.41 | DG17: 1 | DH17: 717.41 | DI17: 716.116343 | DJ17: 1 | DK17: 717.41 | DL17: 1 | DM17: 717.41 | DN17: 1 | DO17: 0.002751 | DP17: 1.97 | DQ17: 715.44 | DR17: CHOCTAW | DT17: ALABAMA
A18: CLARKE | B18: 1120 | C18: 3869 | D18: 18141947 | E18: 3795 | F18: 10814027 | G18: 1235 | H18: 3310760 | I18: 1149 | J18: 2607610 | K18: 3916 | L18: 18199990 | M18: 3817 | N18: 11311601 | O18: 1278 | P18: 4111170 | Q18: 1190 | R18: 2732191 | S18: 3747 | T18: 18680841 | U18: 3629 | V18: 12112326 | W18: 1229 | X18: 3089222 | Y18: 1122 | Z18: 2476162 | AA18: 3625 | AB18: 18209711 | AC18: 3498 | AD18: 12329952 | AE18: 1272 | AF18: 3397041 | AG18: 1156 | AH18: 3001402 | AI18: 3612 | AJ18: 14402790 | AK18: 3487 | AL18: 13212753 | AM18: 1316 | AN18: 4115119 | AO18: 1193 | AP18: 3411314 | AQ18: 350.26 | AR18: 226.23 | AS18: 576.49 | AT18: 21452707 | AU18: 13421637 | AV18: 5104 | AW18: 4944 | AX18: 357.96 | AY18: 233.74 | AZ18: 591.7 | BA18: 22311160 | BB18: 14043792 | BC18: 5194 | BD18: 5007 | BE18: 364.58 | BF18: 255.88 | BG18: 620.46 | BH18: 21770063 | BI18: 14588488 | BJ18: 4976 | BK18: 4751 | BL18: 367.69 | BM18: 274.52 | BN18: 642.21 | BO18: 21606752 | BP18: 15331354 | BQ18: 4897 | BR18: 4654 | BS18: 313.14 | BT18: 296.01 | BU18: 609.15 | BV18: 18517909 | BW18: 16624067 | BX18: 4928 | BY18: 4680 | BZ18: 5032 | CA18: 5105 | CB18: 4867 | CC18: 4780 | CD18: 4810 | CE18: 621.8109623 | CF18: 650.773103 | CG18: 676.6194692 | CH18: 712.4345037 | CI18: 716.4999321 | CJ18: 0.9271145653 | CK18: 0.9092262684 | CL18: 0.9169999212 | CM18: 0.901430232 | CN18: 0.8501745398 | CO18: 0.9046052952 | CP18: 0.9960024667 | CQ18: 0.9966011523 | CR18: 0.9993992725 | CS18: 4524 | CT18: 4588 | CU18: 4432 | CV18: 4339 | CW18: 4302 | CX18: 0.914053822 | CY18: 0.888610507 | CZ18: 0.895861712 | DA18: 0.918502937 | DB18: 0.906717951 | DC18: 2012 | DD18: 4807.2 | DE18: 0.002740695 | DF18: 741.06 | DG18: 1 | DH18: 741.06 | DI18: 716.116343 | DJ18: 1 | DK18: 741.06 | DL18: 1 | DM18: 741.06 | DN18: 1 | DO18: 0.005377 | DP18: 3.98 | DQ18: 737.08 | DR18: CLARKE | DT18: ALABAMA
A19: CLAY | B19: 1130 | C19: 2181 | D19: 9974319 | E19: 2130 | F19: 6451894 | G19: 651 | H19: 2119404 | I19: 597 | J19: 1601174 | K19: 2175 | L19: 9921686 | M19: 2124 | N19: 6550325 | O19: 675 | P19: 2031619 | Q19: 613 | R19: 1687939 | S19: 2182 | T19: 10451451 | U19: 2131 | V19: 6993852 | W19: 696 | X19: 2547822 | Y19: 632 | Z19: 1834646 | AA19: 2099 | AB19: 9809634 | AC19: 2039 | AD19: 7299711 | AE19: 684 | AF19: 2056628 | AG19: 623 | AH19: 1844446 | AI19: 1980 | AJ19: 9701560 | AK19: 1912 | AL19: 7771307 | AM19: 660 | AN19: 1907455 | AO19: 600 | AP19: 2005831 | AQ19: 355.87 | AR19: 246.09 | AS19: 601.96 | AT19: 12093723 | AU19: 8053068 | AV19: 2832 | AW19: 2727 | AX19: 349.51 | AY19: 250.83 | AZ19: 600.34 | BA19: 11953305 | BB19: 8238264 | BC19: 2850 | BD19: 2737 | BE19: 376.4 | BF19: 266.27 | BG19: 642.67 | BH19: 12999273 | BI19: 8828498 | BJ19: 2878 | BK19: 2763 | BL19: 355.32 | BM19: 286.26 | BN19: 641.58 | BO19: 11866262 | BP19: 9144157 | BQ19: 2783 | BR19: 2662 | BS19: 366.45 | BT19: 324.35 | BU19: 690.8 | BV19: 11609015 | BW19: 9777138 | BX19: 2640 | BY19: 2512 | BZ19: 2784 | CA19: 2796 | CB19: 2822 | CC19: 2725 | CD19: 2579 | CE19: 621.8109623 | CF19: 650.773103 | CG19: 676.6194692 | CH19: 712.4345037 | CI19: 716.4999321 | CJ19: 0.9680755672 | CK19: 0.9225027851 | CL19: 0.9498248709 | CM19: 0.9005459402 | CN19: 0.9641312847 | CO19: 1.000712641 | CP19: 0.9403459601 | CQ19: 0.9966011523 | CR19: 0.9435529529 | CS19: 2745 | CT19: 2735 | CU19: 2793 | CV19: 2648 | CW19: 2511 | CX19: 0.988349105 | CY19: 0.996085003 | CZ19: 1.017679921 | DA19: 1.003624372 | DB19: 0.997325395 | DC19: 2012 | DD19: 2680.2 | DE19: 0.0050778144 | DF19: 698.01 | DG19: 1 | DH19: 698.01 | DI19: 716.116343 | DJ19: 1 | DK19: 698.01 | DL19: 1 | DM19: 698.01 | DN19: 1 | DO19: 0.010424 | DP19: 7.28 | DQ19: 690.73 | DR19: CLAY | DT19: ALABAMA
A20: CLEBURNE | B20: 1140 | C20: 1892 | D20: 8368416 | E20: 1861 | F20: 5850626 | G20: 652 | H20: 2102605 | I20: 615 | J20: 1689658 | K20: 1921 | L20: 8270974 | M20: 1888 | N20: 6164508 | O20: 662 | P20: 2119542 | Q20: 619 | R20: 1724445 | S20: 1957 | T20: 8552235 | U20: 1920 | V20: 6320111 | W20: 654 | X20: 2239839 | Y20: 607 | Z20: 1825548 | AA20: 1948 | AB20: 9586434 | AC20: 1898 | AD20: 6800162 | AE20: 669 | AF20: 2492443 | AG20: 615 | AH20: 2020490 | AI20: 1903 | AJ20: 8042953 | AK20: 1838 | AL20: 7052461 | AM20: 632 | AN20: 2302028 | AO20: 577 | AP20: 2255423 | AQ20: 343 | AR20: 253.78 | AS20: 596.78 | AT20: 10471021 | AU20: 7540284 | AV20: 2544 | AW20: 2476 | AX20: 335.22 | AY20: 262.23 | AZ20: 597.45 | BA20: 10390516 | BB20: 7888953 | BC20: 2583 | BD20: 2507 | BE20: 344.44 | BF20: 268.62 | BG20: 613.06 | BH20: 10792074 | BI20: 8145659 | BJ20: 2611 | BK20: 2527 | BL20: 384.63 | BM20: 292.5 | BN20: 677.13 | BO20: 12078877 | BP20: 8820652 | BQ20: 2617 | BR20: 2513 | BS20: 340.07 | BT20: 321.18 | BU20: 661.25 | BV20: 10344981 | BW20: 9307884 | BX20: 2535 | BY20: 2415 | BZ20: 2513 | CA20: 2547 | CB20: 2570 | CC20: 2567 | CD20: 2478 | CE20: 621.8109623 | CF20: 650.773103 | CG20: 676.6194692 | CH20: 712.4345037 | CI20: 716.4999321 | CJ20: 0.9597450611 | CK20: 0.9180619132 | CL20: 0.9060631978 | CM20: 0.950445264 | CN20: 0.9228891315 | CO20: 0.9672756489 | CP20: 0.9629529231 | CQ20: 0.9966011523 | CR20: 0.9662370155 | CS20: 2491 | CT20: 2515 | CU20: 2551 | CV20: 2530 | CW20: 2473 | CX20: 0.966864944 | CY20: 0.978088502 | CZ20: 0.976873115 | DA20: 0.961488623 | DB20: 0.952713085 | DC20: 2012 | DD20: 2487.6 | DE20: 0.0031688363 | DF20: 716.16 | DG20: 1 | DH20: 716.16 | DI20: 716.116343 | DJ20: 1 | DK20: 716.16 | DL20: 1 | DM20: 716.16 | DN20: 1 | DO20: 0.008374 | DP20: 6 | DQ20: 710.16 | DR20: CLEBURNE | DT20: ALABAMA
A21: COFFEE | B21: 1150 | C21: 6232 | D21: 23759980 | E21: 6116 | F21: 16944271 | G21: 1507 | H21: 4287377 | I21: 1392 | J21: 3623698 | K21: 6268 | L21: 26333847 | M21: 6149 | N21: 18769666 | O21: 1574 | P21: 4712615 | Q21: 1458 | R21: 4288932 | S21: 6291 | T21: 24566726 | U21: 6136 | V21: 18910388 | W21: 1569 | X21: 5346003 | Y21: 1440 | Z21: 4667109 | AA21: 6135 | AB21: 24976965 | AC21: 5949 | AD21: 20118795 | AE21: 1552 | AF21: 4998197 | AG21: 1421 | AH21: 4539848 | AI21: 5976 | AJ21: 21712032 | AK21: 5767 | AL21: 21241067 | AM21: 1485 | AN21: 4107104 | AO21: 1354 | AP21: 4568356 | AQ21: 302.01 | AR21: 228.29 | AS21: 530.3 | AT21: 28047357 | AU21: 20567969 | AV21: 7739 | AW21: 7508 | AX21: 329.92 | AY21: 252.6 | AZ21: 582.52 | BA21: 31046462 | BB21: 23058598 | BC21: 7842 | BD21: 7607 | BE21: 317.14 | BF21: 259.34 | BG21: 576.48 | BH21: 29912729 | BI21: 23577497 | BJ21: 7860 | BK21: 7576 | BL21: 324.96 | BM21: 278.82 | BN21: 603.78 | BO21: 29975162 | BP21: 24658643 | BQ21: 7687 | BR21: 7370 | BS21: 288.38 | BT21: 302.03 | BU21: 590.41 | BV21: 25819136 | BW21: 25809423 | BX21: 7461 | BY21: 7121 | BZ21: 7634 | CA21: 7730 | CB21: 7723 | CC21: 7534 | CD21: 7300 | CE21: 621.8109623 | CF21: 650.773103 | CG21: 676.6194692 | CH21: 712.4345037 | CI21: 716.4999321 | CJ21: 0.8528315391 | CK21: 0.8951199693 | CL21: 0.8520003136 | CM21: 0.8474884313 | CN21: 0.8240196176 | CO21: 0.9672625045 | CP21: 0.8832059242 | CQ21: 0.9966011523 | CR21: 0.8862180443 | CS21: 7325 | CT21: 7492 | CU21: 7533 | CV21: 7338 | CW21: 7172 | CX21: 0.970832839 | CY21: 0.968792487 | CZ21: 0.965472994 | DA21: 0.969629229 | DB21: 0.961475838 | DC21: 2012 | DD21: 7436.4 | DE21: 0.0010109726 | DF21: 658.27 | DG21: 1 | DH21: 658.27 | DI21: 716.116343 | DJ21: 1 | DK21: 658.27 | DL21: 1 | DM21: 658.27 | DN21: 1 | DO21: 0.002652 | DP21: 1.75 | DQ21: 656.52 | DR21: COFFEE | DT21: ALABAMA
A22: COLBERT | B22: 1160 | C22: 8364 | D22: 37680847 | E22: 8230 | F22: 28724517 | G22: 2479 | H22: 7298323 | I22: 2294 | J22: 7619726 | K22: 8492 | L22: 38251922 | M22: 8336 | N22: 30420491 | O22: 2568 | P22: 7490890 | Q22: 2380 | R22: 8754389 | S22: 8549 | T22: 39689939 | U22: 8362 | V22: 31478032 | W22: 2589 | X22: 7664246 | Y22: 2374 | Z22: 8910815 | AA22: 8357 | AB22: 38935784 | AC22: 8145 | AD22: 31995806 | AE22: 2544 | AF22: 6997021 | AG22: 2335 | AH22: 9296926 | AI22: 8006 | AJ22: 29430620 | AK22: 7777 | AL22: 34380404 | AM22: 2467 | AN22: 7057470 | AO22: 2253 | AP22: 10157674 | AQ22: 345.69 | AR22: 287.79 | AS22: 633.48 | AT22: 44979170 | AU22: 36344243 | AV22: 10843 | AW22: 10524 | AX22: 344.66 | AY22: 304.64 | AZ22: 649.3 | BA22: 45742812 | BB22: 39174880 | BC22: 11060 | BD22: 10716 | BE22: 354.3 | BF22: 313.5 | BG22: 667.8 | BH22: 47354185 | BI22: 40388847 | BJ22: 11138 | BK22: 10736 | BL22: 351.14 | BM22: 328.35 | BN22: 679.49 | BO22: 45932805 | BP22: 41292732 | BQ22: 10901 | BR22: 10480 | BS22: 290.33 | BT22: 370.04 | BU22: 660.37 | BV22: 36488090 | BW22: 44538078 | BX22: 10473 | BY22: 10030 | BZ22: 10699 | CA22: 10896 | CB22: 10944 | CC22: 10698 | CD22: 10263 | CE22: 621.8109623 | CF22: 650.773103 | CG22: 676.6194692 | CH22: 712.4345037 | CI22: 716.4999321 | CJ22: 1.018766214 | CK22: 0.99773638 | CL22: 0.9869653925 | CM22: 0.9537578492 | CN22: 0.9216609387 | CO22: 0.9854093561 | CP22: 0.9902253809 | CQ22: 0.9966011523 | CR22: 0.9936024843 | CS22: 10420 | CT22: 10654 | CU22: 10836 | CV22: 10588 | CW22: 10244 | CX22: 0.982724621 | CY22: 0.988375655 | CZ22: 0.975923955 | DA22: 0.982533632 | DB22: 0.998061051 | DC22: 2012 | DD22: 10497.2 | DE22: 0.0012515304 | DF22: 737.86 | DG22: 1 | DH22: 737.86 | DI22: 716.116343 | DJ22: 1 | DK22: 737.86 | DL22: 1 | DM22: 737.86 | DN22: 1 | DO22: 0.00354 | DP22: 2.61 | DQ22: 735.25 | DR22: COLBERT | DT22: ALABAMA
A23: CONECUH | B23: 1170 | C23: 1882 | D23: 10191835 | E23: 1843 | F23: 6329159 | G23: 733 | H23: 2817798 | I23: 689 | J23: 2189160 | K23: 1913 | L23: 9656128 | M23: 1860 | N23: 6382841 | O23: 775 | P23: 2664925 | Q23: 729 | R23: 2317719 | S23: 1921 | T23: 9540461 | U23: 1864 | V23: 6982199 | W23: 800 | X23: 3244371 | Y23: 751 | Z23: 2843085 | AA23: 1869 | AB23: 10278133 | AC23: 1805 | AD23: 7092765 | AE23: 768 | AF23: 3330361 | AG23: 719 | AH23: 2706421 | AI23: 1786 | AJ23: 8571441 | AK23: 1724 | AL23: 7176650 | AM23: 754 | AN23: 2821188 | AO23: 706 | AP23: 2705079 | AQ23: 414.58 | AR23: 280.36 | AS23: 694.94 | AT23: 13009633 | AU23: 8518319 | AV23: 2615 | AW23: 2532 | AX23: 381.98 | AY23: 280.05 | AZ23: 662.03 | BA23: 12321053 | BB23: 8700560 | BC23: 2688 | BD23: 2589 | BE23: 391.55 | BF23: 313.11 | BG23: 704.66 | BH23: 12784832 | BI23: 9825284 | BJ23: 2721 | BK23: 2615 | BL23: 430.05 | BM23: 323.53 | BN23: 753.58 | BO23: 13608494 | BP23: 9799186 | BQ23: 2637 | BR23: 2524 | BS23: 373.77 | BT23: 338.88 | BU23: 712.65 | BV23: 11392629 | BW23: 9881729 | BX23: 2540 | BY23: 2430 | BZ23: 2577 | CA23: 2641 | CB23: 2670 | CC23: 2583 | CD23: 2488 | CE23: 621.8109623 | CF23: 650.773103 | CG23: 676.6194692 | CH23: 712.4345037 | CI23: 716.4999321 | CJ23: 1.117606543 | CK23: 1.017297729 | CL23: 1.041442099 | CM23: 1.057753374 | CN23: 0.9946267517 | CO23: 0.9833375378 | CP23: 1.063465249 | CQ23: 0.9966011523 | CR23: 1.067092132 | CS23: 2548 | CT23: 2588 | CU23: 2581 | CV23: 2485 | CW23: 2401 | CX23: 0.992225963 | CY23: 0.991644735 | CZ23: 0.975579003 | DA23: 0.983981209 | DB23: 0.972624719 | DC23: 2012 | DD23: 2538 | DE23: 0.0013697073 | DF23: 792.34 | DG23: 1 | DH23: 792.34 | DI23: 716.116343 | DJ23: 1 | DK23: 792.34 | DL23: 1 | DM23: 792.34 | DN23: 1 | DO23: 0.003429 | DP23: 2.72 | DQ23: 789.62 | DR23: CONECUH | DT23: ALABAMA
A24: COOSA | B24: 1180 | C24: 1521 | D24: 7799283 | E24: 1480 | F24: 5282022 | G24: 658 | H24: 1558588 | I24: 594 | J24: 1659241 | K24: 1522 | L24: 7779255 | M24: 1477 | N24: 5287494 | O24: 671 | P24: 1440208 | Q24: 605 | R24: 1727016 | S24: 1473 | T24: 6325286 | U24: 1423 | V24: 4808524 | W24: 636 | X24: 1576005 | Y24: 566 | Z24: 1668834 | AA24: 1434 | AB24: 7575683 | AC24: 1374 | AD24: 5751470 | AE24: 632 | AF24: 1949031 | AG24: 565 | AH24: 1959253 | AI24: 1394 | AJ24: 5908042 | AK24: 1336 | AL24: 5961299 | AM24: 628 | AN24: 1434202 | AO24: 560 | AP24: 2156405 | AQ24: 357.88 | AR24: 278.9 | AS24: 636.78 | AT24: 9357871 | AU24: 6941263 | AV24: 2179 | AW24: 2074 | AX24: 350.34 | AY24: 280.76 | AZ24: 631.1 | BA24: 9219463 | BB24: 7014510 | BC24: 2193 | BD24: 2082 | BE24: 312.21 | BF24: 271.38 | BG24: 583.59 | BH24: 7901291 | BI24: 6477358 | BJ24: 2109 | BK24: 1989 | BL24: 384.18 | BM24: 331.39 | BN24: 715.57 | BO24: 9524714 | BP24: 7710723 | BQ24: 2066 | BR24: 1939 | BS24: 302.6 | BT24: 356.79 | BU24: 659.39 | BV24: 7342244 | BW24: 8117704 | BX24: 2022 | BY24: 1896 | BZ24: 2131 | CA24: 2140 | CB24: 2051 | CC24: 2005 | CD24: 1962 | CE24: 621.8109623 | CF24: 650.773103 | CG24: 676.6194692 | CH24: 712.4345037 | CI24: 716.4999321 | CJ24: 1.024073293 | CK24: 0.9697696433 | CL24: 0.8625084357 | CM24: 1.004401101 | CN24: 0.9202931787 | CO24: 0.9832682267 | CP24: 0.9724804529 | CQ24: 0.9966011523 | CR24: 0.9757970384 | CS24: 2118 | CT24: 2096 | CU24: 2034 | CV24: 1992 | CW24: 1944 | CX24: 0.997061811 | CY24: 0.985436288 | CZ24: 0.987215236 | DA24: 0.978195139 | DB24: 0.966971059 | DC24: 2012 | DD24: 1996 | DE24: 0.0028220709 | DF24: 723.5 | DG24: 1 | DH24: 723.5 | DI24: 716.116343 | DJ24: 1 | DK24: 723.5 | DL24: 1 | DM24: 723.5 | DN24: 1 | DO24: 0.006104 | DP24: 4.42 | DQ24: 719.08 | DR24: COOSA | DT24: ALABAMA
A25: COVINGTON | B25: 1190 | C25: 6400 | D25: 30832041 | E25: 6254 | F25: 19940943 | G25: 1650 | H25: 5856778 | I25: 1528 | J25: 4553327 | K25: 6403 | L25: 29519121 | M25: 6240 | N25: 21060615 | O25: 1767 | P25: 6302453 | Q25: 1621 | R25: 4736370 | S25: 6411 | T25: 30766789 | U25: 6250 | V25: 22163707 | W25: 1857 | X25: 6637532 | Y25: 1699 | Z25: 5272188 | AA25: 6267 | AB25: 29696617 | AC25: 6090 | AD25: 24021952 | AE25: 1821 | AF25: 6354978 | AG25: 1659 | AH25: 5778505 | AI25: 6133 | AJ25: 27559587 | AK25: 5941 | AL25: 24625760 | AM25: 1815 | AN25: 6084481 | AO25: 1644 | AP25: 5940589 | AQ25: 379.8 | AR25: 262.3 | AS25: 642.1 | AT25: 36688819 | AU25: 24494270 | AV25: 8050 | AW25: 7782 | AX25: 365.38 | AY25: 273.47 | AZ25: 638.85 | BA25: 35821574 | BB25: 25796985 | BC25: 8170 | BD25: 7861 | BE25: 377 | BF25: 287.62 | BG25: 664.62 | BH25: 37404321 | BI25: 27435895 | BJ25: 8268 | BK25: 7949 | BL25: 371.45 | BM25: 320.48 | BN25: 691.93 | BO25: 36051595 | BP25: 29800457 | BQ25: 8088 | BR25: 7749 | BS25: 352.75 | BT25: 335.82 | BU25: 688.57 | BV25: 33644068 | BW25: 30566349 | BX25: 7948 | BY25: 7585 | BZ25: 7929 | CA25: 8023 | CB25: 8114 | CC25: 7925 | CD25: 7776 | CE25: 621.8109623 | CF25: 650.773103 | CG25: 676.6194692 | CH25: 712.4345037 | CI25: 716.4999321 | CJ25: 1.032628948 | CK25: 0.9816785559 | CL25: 0.9822655573 | CM25: 0.9712191035 | CN25: 0.9610189327 | CO25: 1.021568415 | CP25: 0.9649497824 | CQ25: 0.9966011523 | CR25: 0.9682406849 | CS25: 7494 | CT25: 7619 | CU25: 7705 | CV25: 7505 | CW25: 7312 | CX25: 1.048537668 | CY25: 1.02376589 | CZ25: 1.024519701 | DA25: 1.012924534 | DB25: 0.997400269 | DC25: 2012 | DD25: 7785.2 | DE25: 0.0011268465 | DF25: 719.11 | DG25: 1 | DH25: 719.11 | DI25: 716.116343 | DJ25: 1 | DK25: 719.11 | DL25: 1 | DM25: 719.11 | DN25: 1 | DO25: 0.003229 | DP25: 2.32 | DQ25: 716.79 | DR25: COVINGTON | DT25: ALABAMA
A26: CRENSHAW | B26: 1200 | C26: 2215 | D26: 10781423 | E26: 2170 | F26: 6863802 | G26: 619 | H26: 2054919 | I26: 586 | J26: 1510118 | K26: 2185 | L26: 9713139 | M26: 2147 | N26: 6772315 | O26: 611 | P26: 2281195 | Q26: 574 | R26: 1482662 | S26: 2069 | T26: 10097268 | U26: 2021 | V26: 6500922 | W26: 631 | X26: 1876967 | Y26: 590 | Z26: 1523148 | AA26: 1904 | AB26: 9527147 | AC26: 1847 | AD26: 6542433 | AE26: 620 | AF26: 2163396 | AG26: 582 | AH26: 1675018 | AI26: 1793 | AJ26: 7853301 | AK26: 1728 | AL26: 6411576 | AM26: 591 | AN26: 2026690 | AO26: 548 | AP26: 1772521 | AQ26: 377.45 | AR26: 253.2 | AS26: 630.65 | AT26: 12836342 | AU26: 8373920 | AV26: 2834 | AW26: 2756 | AX26: 357.48 | AY26: 252.82 | AZ26: 610.3 | BA26: 11994334 | BB26: 8254977 | BC26: 2796 | BD26: 2721 | BE26: 369.58 | BF26: 256.1 | BG26: 625.68 | BH26: 11974235 | BI26: 8024070 | BJ26: 2700 | BK26: 2611 | BL26: 385.98 | BM26: 281.92 | BN26: 667.9 | BO26: 11690543 | BP26: 8217451 | BQ26: 2524 | BR26: 2429 | BS26: 345.36 | BT26: 299.65 | BU26: 645.01 | BV26: 9879991 | BW26: 8184097 | BX26: 2384 | BY26: 2276 | BZ26: 2799 | CA26: 2760 | CB26: 2657 | CC26: 2478 | CD26: 2333 | CE26: 621.8109623 | CF26: 650.773103 | CG26: 676.6194692 | CH26: 712.4345037 | CI26: 716.4999321 | CJ26: 1.014214992 | CK26: 0.9378076586 | CL26: 0.9247147451 | CM26: 0.9374896871 | CN26: 0.9002233931 | CO26: 0.9483680544 | CP26: 0.9942238045 | CQ26: 0.9966011523 | CR26: 0.9976145444 | CS26: 2655 | CT26: 2619 | CU26: 2507 | CV26: 2316 | CW26: 2223 | CX26: 0.955920199 | CY26: 0.954655102 | CZ26: 0.94618886 | DA26: 0.949812752 | DB26: 0.93289374 | DC26: 2012 | DD26: 2558.6 | DE26: 0.0017883342 | DF26: 740.44 | DG26: 1 | DH26: 740.44 | DI26: 716.116343 | DJ26: 1 | DK26: 740.44 | DL26: 1 | DM26: 740.44 | DN26: 1 | DO26: 0.006062 | DP26: 4.49 | DQ26: 735.95 | DR26: CRENSHAW | DT26: ALABAMA
A27: CULLMAN | B27: 1210 | C27: 11240 | D27: 50205312 | E27: 10974 | F27: 37607094 | G27: 2625 | H27: 8678054 | I27: 2381 | J27: 7693758 | K27: 11062 | L27: 50636235 | M27: 10739 | N27: 40122924 | O27: 2703 | P27: 9394707 | Q27: 2455 | R27: 8188958 | S27: 11111 | T27: 49735738 | U27: 10733 | V27: 40807042 | W27: 2734 | X27: 8257984 | Y27: 2466 | Z27: 8862064 | AA27: 10797 | AB27: 50978491 | AC27: 10376 | AD27: 41066969 | AE27: 2733 | AF27: 8005167 | AG27: 2438 | AH27: 8890035 | AI27: 10398 | AJ27: 39197220 | AK27: 9945 | AL27: 42450875 | AM27: 2733 | AN27: 8453948 | AO27: 2413 | AP27: 9848855 | AQ27: 353.91 | AR27: 282.67 | AS27: 636.58 | AT27: 58883366 | AU27: 45300852 | AV27: 13865 | AW27: 13355 | AX27: 363.43 | AY27: 305.14 | AZ27: 668.57 | BA27: 60030942 | BB27: 48311882 | BC27: 13765 | BD27: 13194 | BE27: 349.07 | BF27: 313.59 | BG27: 662.66 | BH27: 57993722 | BI27: 49669106 | BJ27: 13845 | BK27: 13199 | BL27: 363.29 | BM27: 324.89 | BN27: 688.18 | BO27: 58983658 | BP27: 49957004 | BQ27: 13530 | BR27: 12814 | BS27: 302.41 | BT27: 352.67 | BU27: 655.08 | BV27: 47651168 | BW27: 52299730 | BX27: 13131 | BY27: 12358 | BZ27: 13634 | CA27: 13493 | CB27: 13533 | CC27: 13185 | CD27: 12764 | CE27: 621.8109623 | CF27: 650.773103 | CG27: 676.6194692 | CH27: 712.4345037 | CI27: 716.4999321 | CJ27: 1.023751652 | CK27: 1.027347315 | CL27: 0.9793688035 | CM27: 0.9659554617 | CN27: 0.9142778257 | CO27: 1.024914471 | CP27: 0.958265533 | CQ27: 0.9966011523 | CR27: 0.9615336394 | CS27: 13086 | CT27: 12978 | CU27: 13106 | CV27: 12622 | CW27: 12084 | CX27: 1.010269625 | CY27: 1.009985004 | CZ27: 1.018215853 | DA27: 1.04046758 | DB27: 1.047827232 | DC27: 2012 | DD27: 12984 | DE27: 0.0034803603 | DF27: 712.45 | DG27: 1 | DH27: 712.45 | DI27: 716.116343 | DJ27: 1 | DK27: 712.45 | DL27: 1 | DM27: 712.45 | DN27: 1 | DO27: 0.008044 | DP27: 5.73 | DQ27: 706.72 | DR27: CULLMAN | DT27: ALABAMA
A28: DALE | B28: 1220 | C28: 7911 | D28: 34324034 | E28: 7729 | F28: 22328095 | G28: 2347 | H28: 6254449 | I28: 2150 | J28: 5865581 | K28: 7840 | L28: 33248597 | M28: 7646 | N28: 23712070 | O28: 2338 | P28: 6145207 | Q28: 2152 | R28: 6225435 | S28: 7817 | T28: 35409268 | U28: 7613 | V28: 24761630 | W28: 2318 | X28: 6563818 | Y28: 2122 | Z28: 6309387 | AA28: 7582 | AB28: 33057676 | AC28: 7363 | AD28: 25233379 | AE28: 2283 | AF28: 6250188 | AG28: 2102 | AH28: 6753242 | AI28: 7292 | AJ28: 29304914 | AK28: 7054 | AL28: 27514583 | AM28: 2212 | AN28: 6633357 | AO28: 2014 | AP28: 7332839 | AQ28: 329.65 | AR28: 237.82 | AS28: 567.47 | AT28: 40578483 | AU28: 28193676 | AV28: 10258 | AW28: 9879 | AX28: 322.54 | AY28: 254.62 | AZ28: 577.16 | BA28: 39393804 | BB28: 29937505 | BC28: 10178 | BD28: 9798 | BE28: 345.12 | BF28: 265.97 | BG28: 611.09 | BH28: 41973086 | BI28: 31071017 | BJ28: 10135 | BK28: 9735 | BL28: 332.05 | BM28: 281.62 | BN28: 613.67 | BO28: 39307864 | BP28: 31986621 | BQ28: 9865 | BR28: 9465 | BS28: 315.12 | BT28: 320.24 | BU28: 635.36 | BV28: 35938271 | BW28: 34847422 | BX28: 9504 | BY28: 9068 | BZ28: 10087 | CA28: 9997 | CB28: 9942 | CC28: 9672 | CD28: 9297 | CE28: 621.8109623 | CF28: 650.773103 | CG28: 676.6194692 | CH28: 712.4345037 | CI28: 716.4999321 | CJ28: 0.9126085489 | CK28: 0.8868836117 | CL28: 0.9031516647 | CM28: 0.8613704092 | CN28: 0.8867551434 | CO28: 0.9512085267 | CP28: 0.9358135998 | CQ28: 0.9966011523 | CR28: 0.9390051352 | CS28: 6981 | CT28: 7073 | CU28: 7241 | CV28: 7160 | CW28: 7082 | CX28: 0.948788698 | CY28: 0.944222245 | CZ28: 0.953105688 | DA28: 0.95482482 | DB28: 0.954975371 | DC28: 2012 | DD28: 9589 | DE28: 0.0010027468 | DF28: 697.49 | DG28: 1 | DH28: 697.49 | DI28: 716.116343 | DJ28: 1 | DK28: 697.49 | DL28: 1 | DM28: 697.49 | DN28: 1 | DO28: 0.002552 | DP28: 1.78 | DQ28: 695.71 | DR28: DALE | DT28: ALABAMA
A29: DALLAS | B29: 1230 | C29: 6037 | D29: 28837710 | E29: 5913 | F29: 19670633 | G29: 2415 | H29: 7188724 | I29: 2269 | J29: 5918088 | K29: 5791 | L29: 27787412 | M29: 5662 | N29: 20086025 | O29: 2424 | P29: 6302258 | Q29: 2263 | R29: 6077011 | S29: 5488 | T29: 27508114 | U29: 5352 | V29: 19450678 | W29: 2427 | X29: 8358400 | Y29: 2260 | Z29: 6339059 | AA29: 5309 | AB29: 27757555 | AC29: 5156 | AD29: 19847806 | AE29: 2417 | AF29: 8101209 | AG29: 2242 | AH29: 6705821 | AI29: 5258 | AJ29: 27417026 | AK29: 5102 | AL29: 20033576 | AM29: 2412 | AN29: 8386812 | AO29: 2247 | AP29: 6877063 | AQ29: 355.21 | AR29: 260.62 | AS29: 615.83 | AT29: 36026434 | AU29: 25588721 | AV29: 8452 | AW29: 8182 | AX29: 345.81 | AY29: 275.11 | AZ29: 620.92 | BA29: 34089670 | BB29: 26163036 | BC29: 8215 | BD29: 7925 | BE29: 377.62 | BF29: 282.34 | BG29: 659.96 | BH29: 35866514 | BI29: 25789737 | BJ29: 7915 | BK29: 7612 | BL29: 386.78 | BM29: 299.11 | BN29: 685.89 | BO29: 35858764 | BP29: 26553627 | BQ29: 7726 | BR29: 7398 | BS29: 389 | BT29: 305.15 | BU29: 694.15 | BV29: 35803838 | BW29: 26910639 | BX29: 7670 | BY29: 7349 | BZ29: 8330 | CA29: 8077 | CB29: 7769 | CC29: 7568 | CD29: 7518 | CE29: 621.8109623 | CF29: 650.773103 | CG29: 676.6194692 | CH29: 712.4345037 | CI29: 716.4999321 | CJ29: 0.9903813817 | CK29: 0.9541267104 | CL29: 0.9753783774 | CM29: 0.9627411311 | CN29: 0.9688067911 | CO29: 1.025152424 | CP29: 0.9464805974 | CQ29: 0.9966011523 | CR29: 0.949708512 | CS29: 7654 | CT29: 7408 | CU29: 6954 | CV29: 6718 | CW29: 6595 | CX29: 1.025572646 | CY29: 1.023582569 | CZ29: 1.01931187 | DA29: 1.032206449 | DB29: 1.025401001 | DC29: 2012 | DD29: 7693.2 | DE29: 0.005981575 | DF29: 701.92 | DG29: 1 | DH29: 701.92 | DI29: 716.116343 | DJ29: 1 | DK29: 701.92 | DL29: 1 | DM29: 701.92 | DN29: 1 | DO29: 0.013629 | DP29: 9.57 | DQ29: 692.35 | DR29: DALLAS | DT29: ALABAMA
A30: DE KALB | B30: 1240 | C30: 8553 | D30: 32890330 | E30: 8364 | F30: 26383461 | G30: 2596 | H30: 7637583 | I30: 2395 | J30: 7424366 | K30: 8591 | L30: 35533026 | M30: 8387 | N30: 27444476 | O30: 2702 | P30: 8236920 | Q30: 2494 | R30: 8383883 | S30: 8560 | T30: 37172951 | U30: 8313 | V30: 28233110 | W30: 2683 | X30: 9086066 | Y30: 2473 | Z30: 8113289 | AA30: 8313 | AB30: 39052149 | AC30: 8017 | AD30: 28832880 | AE30: 2648 | AF30: 8893276 | AG30: 2421 | AH30: 8561988 | AI30: 7984 | AJ30: 32559553 | AK30: 7651 | AL30: 28874725 | AM30: 2523 | AN30: 8315894 | AO30: 2309 | AP30: 8942858 | AQ30: 302.93 | AR30: 261.86 | AS30: 564.79 | AT30: 40527913 | AU30: 33807827 | AV30: 11149 | AW30: 10759 | AX30: 322.99 | AY30: 274.4 | AZ30: 597.39 | BA30: 43769946 | BB30: 35828359 | BC30: 11293 | BD30: 10881 | BE30: 342.87 | BF30: 280.81 | BG30: 623.68 | BH30: 46259017 | BI30: 36346399 | BJ30: 11243 | BK30: 10786 | BL30: 364.52 | BM30: 298.55 | BN30: 663.07 | BO30: 47945425 | BP30: 37394868 | BQ30: 10961 | BR30: 10438 | BS30: 324.19 | BT30: 316.41 | BU30: 640.6 | BV30: 40875447 | BW30: 37817583 | BX30: 10507 | BY30: 9960 | BZ30: 10973 | CA30: 11097 | CB30: 11022 | CC30: 10709 | CD30: 10247 | CE30: 621.8109623 | CF30: 650.773103 | CG30: 676.6194692 | CH30: 712.4345037 | CI30: 716.4999321 | CJ30: 0.9082985573 | CK30: 0.9179697152 | CL30: 0.9217588739 | CM30: 0.9307101165 | CN30: 0.8940684728 | CO30: 0.9572770126 | CP30: 0.9553777382 | CQ30: 0.9966011523 | CR30: 0.958635996 | CS30: 10893 | CT30: 11013 | CU30: 10932 | CV30: 10584 | CW30: 10155 | CX30: 0.950464718 | CY30: 0.968589346 | CZ30: 0.953126595 | DA30: 0.954091565 | DB30: 0.960104264 | DC30: 2012 | DD30: 10564.8 | DE30: 0.0025503954 | DF30: 710.97 | DG30: 1 | DH30: 710.97 | DI30: 716.116343 | DJ30: 1 | DK30: 710.97 | DL30: 1 | DM30: 710.97 | DN30: 1 | DO30: 0.006477 | DP30: 4.6 | DQ30: 706.37 | DR30: DE KALB | DT30: ALABAMA
A31: ELMORE | B31: 1250 | C31: 7724 | D31: 33308541 | E31: 7410 | F31: 24898767 | G31: 2147 | H31: 6250402 | I31: 1901 | J31: 6229643 | K31: 7672 | L31: 31582742 | M31: 7321 | N31: 24622771 | O31: 2107 | P31: 6426952 | Q31: 1843 | R31: 5625172 | S31: 7660 | T31: 33675724 | U31: 7248 | V31: 26855464 | W31: 2067 | X31: 6407150 | Y31: 1792 | Z31: 5559975 | AA31: 7047 | AB31: 32931206 | AC31: 6594 | AD31: 24997491 | AE31: 1954 | AF31: 5984327 | AG31: 1668 | AH31: 5617793 | AI31: 6842 | AJ31: 26714812 | AK31: 6358 | AL31: 25818977 | AM31: 1890 | AN31: 4758519 | AO31: 1610 | AP31: 5638634 | AQ31: 333.97 | AR31: 278.6 | AS31: 612.57 | AT31: 39558943 | AU31: 31128410 | AV31: 9871 | AW31: 9311 | AX31: 323.91 | AY31: 275.06 | AZ31: 598.97 | BA31: 38009694 | BB31: 30247943 | BC31: 9779 | BD31: 9164 | BE31: 343.4 | BF31: 298.81 | BG31: 642.21 | BH31: 40082874 | BI31: 32415439 | BJ31: 9727 | BK31: 9040 | BL31: 360.29 | BM31: 308.8 | BN31: 669.09 | BO31: 38915533 | BP31: 30615284 | BQ31: 9001 | BR31: 8262 | BS31: 300.36 | BT31: 329 | BU31: 629.36 | BV31: 31473331 | BW31: 31457611 | BX31: 8732 | BY31: 7968 | BZ31: 9618 | CA31: 9486 | CB31: 9396 | CC31: 8645 | CD31: 8369 | CE31: 621.8109623 | CF31: 650.773103 | CG31: 676.6194692 | CH31: 712.4345037 | CI31: 716.4999321 | CJ31: 0.9851386308 | CK31: 0.9203975967 | CL31: 0.9491450205 | CM31: 0.9391600161 | CN31: 0.8783811021 | CO31: 0.923449656 | CP31: 1.011906244 | CQ31: 0.9966011523 | CR31: 1.015357289 | CS31: 8570 | CT31: 8403 | CU31: 8498 | CV31: 7661 | CW31: 7518 | CX31: 0.925120609 | CY31: 0.924439835 | CZ31: 0.92129922 | DA31: 0.922319968 | DB31: 0.924020074 | DC31: 2012 | DD31: 8749 | DE31: 0.0022291094 | DF31: 753.28 | DG31: 1 | DH31: 753.28 | DI31: 716.116343 | DJ31: 1 | DK31: 753.28 | DL31: 1 | DM31: 753.28 | DN31: 1 | DO31: 0.006692 | DP31: 5.04 | DQ31: 748.24 | DR31: ELMORE | DT31: ALABAMA
A32: ESCAMBIA | B32: 1260 | C32: 5020 | D32: 20637206 | E32: 4874 | F32: 15196148 | G32: 1566 | H32: 5033653 | I32: 1452 | J32: 4111993 | K32: 5061 | L32: 21368091 | M32: 4907 | N32: 16947354 | O32: 1585 | P32: 4478564 | Q32: 1470 | R32: 4307382 | S32: 5172 | T32: 22351543 | U32: 5023 | V32: 18992462 | W32: 1636 | X32: 5149975 | Y32: 1510 | Z32: 4778909 | AA32: 5028 | AB32: 22949348 | AC32: 4868 | AD32: 20430912 | AE32: 1634 | AF32: 4954983 | AG32: 1518 | AH32: 5375461 | AI32: 4930 | AJ32: 21593803 | AK32: 4752 | AL32: 21776990 | AM32: 1636 | AN32: 5959200 | AO32: 1512 | AP32: 6265326 | AQ32: 324.82 | AR32: 254.35 | AS32: 579.17 | AT32: 25670859 | AU32: 19308141 | AV32: 6586 | AW32: 6326 | AX32: 324.09 | AY32: 277.75 | AZ32: 601.84 | BA32: 25846655 | BB32: 21254736 | BC32: 6646 | BD32: 6377 | BE32: 336.63 | BF32: 303.22 | BG32: 639.85 | BH32: 27501518 | BI32: 23771371 | BJ32: 6808 | BK32: 6533 | BL32: 349.05 | BM32: 336.76 | BN32: 685.81 | BO32: 27904331 | BP32: 25806373 | BQ32: 6662 | BR32: 6386 | BS32: 349.69 | BT32: 373.06 | BU32: 722.75 | BV32: 27553003 | BW32: 28042316 | BX32: 6566 | BY32: 6264 | BZ32: 6468 | CA32: 6518 | CB32: 6675 | CC32: 6529 | CD32: 6423 | CE32: 621.8109623 | CF32: 650.773103 | CG32: 676.6194692 | CH32: 712.4345037 | CI32: 716.4999321 | CJ32: 0.9314245568 | CK32: 0.9248077359 | CL32: 0.9456570925 | CM32: 0.9626288401 | CN32: 1.008723055 | CO32: 0.9823031742 | CP32: 0.9718468606 | CQ32: 0.9966011523 | CR32: 0.9751612852 | CS32: 6226 | CT32: 6375 | CU32: 6585 | CV32: 6418 | CW32: 6330 | CX32: 0.970659676 | CY32: 0.977571631 | CZ32: 0.987075014 | DA32: 0.985310193 | DB32: 0.99050766 | DC32: 2012 | DD32: 6377.2 | DE32: 0.0013330085 | DF32: 724.1 | DG32: 1 | DH32: 724.1 | DI32: 716.116343 | DJ32: 1 | DK32: 724.1 | DL32: 1 | DM32: 724.1 | DN32: 1 | DO32: 0.00386 | DP32: 2.8 | DQ32: 721.3 | DR32: ESCAMBIA | DT32: ALABAMA
A33: ETOWAH | B33: 1270 | C33: 15046 | D33: 72239423 | E33: 14642 | F33: 48411135 | G33: 4745 | H33: 14036167 | I33: 4394 | J33: 13220524 | K33: 14708 | L33: 74726115 | M33: 14314 | N33: 50166997 | O33: 4774 | P33: 14991123 | Q33: 4370 | R33: 13944039 | S33: 14310 | T33: 71466345 | U33: 13893 | V33: 50495990 | W33: 4673 | X33: 15783215 | Y33: 4241 | Z33: 14270005 | AA33: 13748 | AB33: 74516768 | AC33: 13289 | AD33: 52650829 | AE33: 4579 | AF33: 15475257 | AG33: 4123 | AH33: 14112082 | AI33: 13073 | AJ33: 65177382 | AK33: 12590 | AL33: 52911831 | AM33: 4555 | AN33: 15600119 | AO33: 4092 | AP33: 15148104 | AQ33: 363.28 | AR33: 269.8 | AS33: 633.08 | AT33: 86275590 | AU33: 61631659 | AV33: 19791 | AW33: 19036 | AX33: 383.76 | AY33: 285.94 | AZ33: 669.7 | BA33: 89717238 | BB33: 64111036 | BC33: 19482 | BD33: 18684 | BE33: 383.02 | BF33: 297.63 | BG33: 680.65 | BH33: 87249560 | BI33: 64765995 | BJ33: 18983 | BK33: 18134 | BL33: 409.2 | BM33: 319.53 | BN33: 728.73 | BO33: 89992025 | BP33: 66762911 | BQ33: 18327 | BR33: 17412 | BS33: 381.86 | BT33: 339.99 | BU33: 721.85 | BV33: 80777501 | BW33: 68059935 | BX33: 17628 | BY33: 16682 | BZ33: 19449 | CA33: 19102 | CB33: 18573 | CC33: 17886 | CD33: 17179 | CE33: 621.8109623 | CF33: 650.773103 | CG33: 676.6194692 | CH33: 712.4345037 | CI33: 716.4999321 | CJ33: 1.018122932 | CK33: 1.029083711 | CL33: 1.005956865 | CM33: 1.022872975 | CN33: 1.007466948 | CO33: 1.023488888 | CP33: 0.9933675865 | CQ33: 0.9966011523 | CR33: 0.9967554063 | CS33: 19140 | CT33: 18853 | CU33: 18310 | CV33: 17492 | CW33: 16561 | CX33: 1.025176612 | CY33: 1.041863675 | CZ33: 1.019377398 | DA33: 1.014394204 | DB33: 1.014772184 | DC33: 2012 | DD33: 17989.6 | DE33: 0.0019193528 | DF33: 739.71 | DG33: 1 | DH33: 739.71 | DI33: 716.116343 | DJ33: 1 | DK33: 739.71 | DL33: 1 | DM33: 739.71 | DN33: 1 | DO33: 0.004292 | DP33: 3.17 | DQ33: 736.54 | DR33: ETOWAH | DT33: ALABAMA
A34: FAYETTE | B34: 1280 | C34: 2475 | D34: 8725727 | E34: 2435 | F34: 6836114 | G34: 821 | H34: 1918431 | I34: 755 | J34: 1852646 | K34: 2484 | L34: 9671012 | M34: 2434 | N34: 6730398 | O34: 869 | P34: 2246414 | Q34: 801 | R34: 2107534 | S34: 2451 | T34: 10640664 | U34: 2393 | V34: 7670618 | W34: 870 | X34: 2344027 | Y34: 799 | Z34: 2377349 | AA34: 2276 | AB34: 10124051 | AC34: 2200 | AD34: 7473263 | AE34: 823 | AF34: 2485231 | AG34: 751 | AH34: 2523723 | AI34: 2161 | AJ34: 8515435 | AK34: 2067 | AL34: 7521036 | AM34: 803 | AN34: 3025804 | AO34: 729 | AP34: 2944055 | AQ34: 269.12 | AR34: 226.98 | AS34: 496.1 | AT34: 10644158 | AU34: 8688760 | AV34: 3296 | AW34: 3190 | AX34: 296.19 | AY34: 227.66 | AZ34: 523.85 | BA34: 11917426 | BB34: 8837932 | BC34: 3353 | BD34: 3235 | BE34: 325.82 | BF34: 262.32 | BG34: 588.14 | BH34: 12984691 | BI34: 10047967 | BJ34: 3321 | BK34: 3192 | BL34: 339.07 | BM34: 282.31 | BN34: 621.38 | BO34: 12609282 | BP34: 9996986 | BQ34: 3099 | BR34: 2951 | BS34: 324.48 | BT34: 311.91 | BU34: 636.39 | BV34: 11541239 | BW34: 10465091 | BX34: 2964 | BY34: 2796 | BZ34: 3248 | CA34: 3297 | CB34: 3259 | CC34: 3028 | CD34: 2884 | CE34: 621.8109623 | CF34: 650.773103 | CG34: 676.6194692 | CH34: 712.4345037 | CI34: 716.4999321 | CJ34: 0.7978309005 | CK34: 0.8049656594 | CL34: 0.8692330427 | CM34: 0.8721924566 | CN34: 0.8881926871 | CO34: 0.9877647462 | CP34: 0.8569681723 | CQ34: 0.9966011523 | CR34: 0.8598908102 | CS34: 3551 | CT34: 3600 | CU34: 3582 | CV34: 3347 | CW34: 3217 | CX34: 1.020975178 | CY34: 0.995802098 | CZ34: 0.977061912 | DA34: 0.981910047 | DB34: 0.960120519 | DC34: 2012 | DD34: 3072.8 | DE34: 0.0031167269 | DF34: 637.37 | DG34: 1 | DH34: 637.37 | DI34: 716.116343 | DJ34: 1 | DK34: 637.37 | DL34: 1 | DM34: 637.37 | DN34: 1 | DO34: 0.009234 | DP34: 5.89 | DQ34: 631.48 | DR34: FAYETTE | DT34: ALABAMA
A35: FRANKLIN | B35: 1290 | C35: 4831 | D35: 20881197 | E35: 4747 | F35: 16505631 | G35: 1407 | H35: 4478617 | I35: 1322 | J35: 4185678 | K35: 4826 | L35: 23051032 | M35: 4730 | N35: 17581534 | O35: 1442 | P35: 4864275 | Q35: 1354 | R35: 4852406 | S35: 4766 | T35: 24233499 | U35: 4650 | V35: 17890534 | W35: 1426 | X35: 5471557 | Y35: 1335 | Z35: 5268239 | AA35: 4547 | AB35: 24212377 | AC35: 4408 | AD35: 17644774 | AE35: 1401 | AF35: 4782952 | AG35: 1308 | AH35: 4982870 | AI35: 4452 | AJ35: 18425872 | AK35: 4294 | AL35: 18315572 | AM35: 1403 | AN35: 4394442 | AO35: 1310 | AP35: 5434519 | AQ35: 338.78 | AR35: 284.11 | AS35: 622.89 | AT35: 25359814 | AU35: 20691309 | AV35: 6238 | AW35: 6069 | AX35: 371.14 | AY35: 307.28 | AZ35: 678.42 | BA35: 27915307 | BB35: 22433940 | BC35: 6268 | BD35: 6084 | BE35: 399.78 | BF35: 322.46 | BG35: 722.24 | BH35: 29705056 | BI35: 23158773 | BJ35: 6192 | BK35: 5985 | BL35: 406.23 | BM35: 329.89 | BN35: 736.12 | BO35: 28995329 | BP35: 22627644 | BQ35: 5948 | BR35: 5716 | BS35: 324.8 | BT35: 353.17 | BU35: 677.97 | BV35: 22820314 | BW35: 23750091 | BX35: 5855 | BY35: 5604 | BZ35: 6162 | CA35: 6180 | CB35: 6092 | CC35: 5836 | CD35: 5736 | CE35: 621.8109623 | CF35: 650.773103 | CG35: 676.6194692 | CH35: 712.4345037 | CI35: 716.4999321 | CJ35: 1.001735315 | CK35: 1.042483159 | CL35: 1.067424206 | CM35: 1.033245858 | CN35: 0.9462247931 | CO35: 0.9803568856 | CP35: 1.038624486 | CQ35: 0.9966011523 | CR35: 1.042166651 | CS35: 5576 | CT35: 5647 | CU35: 5558 | CV35: 5329 | CW35: 5233 | CX35: 0.9771998 | CY35: 0.966573314 | CZ35: 0.977581652 | DA35: 0.983998648 | DB35: 0.997833961 | DC35: 2012 | DD35: 5891.6 | DE35: 0.0014401216 | DF35: 773.78 | DG35: 1 | DH35: 773.78 | DI35: 716.116343 | DJ35: 1 | DK35: 773.78 | DL35: 1 | DM35: 773.78 | DN35: 1 | DO35: 0.003735 | DP35: 2.89 | DQ35: 770.89 | DR35: FRANKLIN | DT35: ALABAMA
A36: GENEVA | B36: 1300 | C36: 4239 | D36: 20865355 | E36: 4168 | F36: 12449077 | G36: 1185 | H36: 3587852 | I36: 1115 | J36: 3171163 | K36: 4215 | L36: 20684721 | M36: 4134 | N36: 13381339 | O36: 1220 | P36: 3390917 | Q36: 1155 | R36: 3333999 | S36: 4212 | T36: 19324432 | U36: 4103 | V36: 13602964 | W36: 1273 | X36: 3764101 | Y36: 1199 | Z36: 3525050 | AA36: 4125 | AB36: 18999982 | AC36: 4001 | AD36: 13690247 | AE36: 1270 | AF36: 3785810 | AG36: 1175 | AH36: 3687967 | AI36: 4023 | AJ36: 16623268 | AK36: 3896 | AL36: 14627282 | AM36: 1234 | AN36: 3296389 | AO36: 1135 | AP36: 3825311 | AQ36: 375.69 | AR36: 246.39 | AS36: 622.08 | AT36: 24453207 | AU36: 15620240 | AV36: 5424 | AW36: 5283 | AX36: 369.15 | AY36: 263.37 | AZ36: 632.52 | BA36: 24075638 | BB36: 16715338 | BC36: 5435 | BD36: 5289 | BE36: 350.78 | BF36: 269.21 | BG36: 619.99 | BH36: 23088533 | BI36: 17128014 | BJ36: 5485 | BK36: 5302 | BL36: 351.96 | BM36: 279.79 | BN36: 631.75 | BO36: 22785792 | BP36: 17378214 | BQ36: 5395 | BR36: 5176 | BS36: 315.76 | BT36: 305.65 | BU36: 621.41 | BV36: 19919657 | BW36: 18452593 | BX36: 5257 | BY36: 5031 | BZ36: 5360 | CA36: 5365 | CB36: 5396 | CC36: 5289 | CD36: 5150 | CE36: 621.8109623 | CF36: 650.773103 | CG36: 676.6194692 | CH36: 712.4345037 | CI36: 716.4999321 | CJ36: 1.000432668 | CK36: 0.9719516634 | CL36: 0.9163052915 | CM36: 0.8867481806 | CN36: 0.8672854974 | CO36: 0.9814889493 | CP36: 0.9460571724 | CQ36: 0.9966011523 | CR36: 0.9492836429 | CS36: 4985 | CT36: 5073 | CU36: 5192 | CV36: 5119 | CW36: 4984 | CX36: 0.978233962 | CY36: 0.972209888 | CZ36: 0.979053841 | DA36: 1.003062914 | DB36: 0.974567751 | DC36: 2012 | DD36: 5216.2 | DE36: 0.0008453128 | DF36: 705.23 | DG36: 1 | DH36: 705.23 | DI36: 716.116343 | DJ36: 1 | DK36: 705.23 | DL36: 1 | DM36: 705.23 | DN36: 1 | DO36: 0.002332 | DP36: 1.64 | DQ36: 703.59 | DR36: GENEVA | DT36: ALABAMA
A37: GREENE | B37: 1310 | C37: 1243 | D37: 5379702 | E37: 1226 | F37: 4065108 | G37: 500 | H37: 1555275 | I37: 469 | J37: 1265238 | K37: 1249 | L37: 6365707 | M37: 1227 | N37: 4389110 | O37: 534 | P37: 1649951 | Q37: 495 | R37: 1355462 | S37: 1217 | T37: 6554064 | U37: 1192 | V37: 4779297 | W37: 550 | X37: 1757919 | Y37: 502 | Z37: 1558812 | AA37: 1179 | AB37: 5591251 | AC37: 1149 | AD37: 4540679 | AE37: 563 | AF37: 2135688 | AG37: 521 | AH37: 1579545 | AI37: 1137 | AJ37: 5861044 | AK37: 1107 | AL37: 4797090 | AM37: 566 | AN37: 1643706 | AO37: 525 | AP37: 1573504 | AQ37: 331.56 | AR37: 262.06 | AS37: 593.62 | AT37: 6934977 | AU37: 5330346 | AV37: 1743 | AW37: 1695 | AX37: 374.63 | AY37: 278 | AZ37: 652.63 | BA37: 8015658 | BB37: 5744572 | BC37: 1783 | BD37: 1722 | BE37: 392 | BF37: 311.79 | BG37: 703.79 | BH37: 8311983 | BI37: 6338109 | BJ37: 1767 | BK37: 1694 | BL37: 369.64 | BM37: 305.4 | BN37: 675.04 | BO37: 7726939 | BP37: 6120224 | BQ37: 1742 | BR37: 1670 | BS37: 367.23 | BT37: 325.3 | BU37: 692.53 | BV37: 7504750 | BW37: 6370594 | BX37: 1703 | BY37: 1632 | BZ37: 1721 | CA37: 1754 | CB37: 1732 | CC37: 1707 | CD37: 1669 | CE37: 621.8109623 | CF37: 650.773103 | CG37: 676.6194692 | CH37: 712.4345037 | CI37: 716.4999321 | CJ37: 0.9546631307 | CK37: 1.002853371 | CL37: 1.040156295 | CM37: 0.947511661 | CN37: 0.9665457999 | CO37: 1.018826201 | CP37: 0.9641939427 | CQ37: 0.9966011523 | CR37: 0.9674822675 | CS37: 1663 | CT37: 1705 | CU37: 1695 | CV37: 1651 | CW37: 1610 | CX37: 0.992516569 | CY37: 0.986459336 | CZ37: 1.008634874 | DA37: 1.050947848 | DB37: 1.058068363 | DC37: 2012 | DD37: 1682.6 | DE37: 0.0036461219 | DF37: 716.74 | DG37: 1 | DH37: 716.74 | DI37: 716.116343 | DJ37: 1 | DK37: 716.74 | DL37: 1 | DM37: 716.74 | DN37: 1 | DO37: 0.010589 | DP37: 7.59 | DQ37: 709.15 | DR37: GREENE | DT37: ALABAMA
A38: HALE | B38: 1320 | C38: 2333 | D38: 11077172 | E38: 2292 | F38: 7417778 | G38: 946 | H38: 3200344 | I38: 882 | J38: 2352207 | K38: 2356 | L38: 10812858 | M38: 2305 | N38: 7265418 | O38: 1004 | P38: 2616203 | Q38: 928 | R38: 2448446 | S38: 2373 | T38: 12792082 | U38: 2318 | V38: 8127648 | W38: 1066 | X38: 2834794 | Y38: 972 | Z38: 2573133 | AA38: 2296 | AB38: 12490024 | AC38: 2230 | AD38: 7975581 | AE38: 1096 | AF38: 3001997 | AG38: 1005 | AH38: 3031488 | AI38: 2206 | AJ38: 10585158 | AK38: 2137 | AL38: 8355181 | AM38: 1125 | AN38: 2980455 | AO38: 1020 | AP38: 3288615 | AQ38: 362.85 | AR38: 256.51 | AS38: 619.36 | AT38: 14277516 | AU38: 9769985 | AV38: 3279 | AW38: 3174 | AX38: 333.06 | AY38: 250.38 | AZ38: 583.44 | BA38: 13429061 | BB38: 9713864 | BC38: 3360 | BD38: 3233 | BE38: 378.67 | BF38: 271.04 | BG38: 649.71 | BH38: 15626876 | BI38: 10700781 | BJ38: 3439 | BK38: 3290 | BL38: 380.6 | BM38: 283.54 | BN38: 664.14 | BO38: 15492021 | BP38: 11007069 | BQ38: 3392 | BR38: 3235 | BS38: 339.38 | BT38: 307.35 | BU38: 646.73 | BV38: 13565613 | BW38: 11643796 | BX38: 3331 | BY38: 3157 | BZ38: 3231 | CA38: 3299 | CB38: 3367 | CC38: 3316 | CD38: 3248 | CE38: 621.8109623 | CF38: 650.773103 | CG38: 676.6194692 | CH38: 712.4345037 | CI38: 716.4999321 | CJ38: 0.9960583482 | CK38: 0.8965336725 | CL38: 0.9602295375 | CM38: 0.932212009 | CN38: 0.9026239516 | CO38: 0.9550175903 | CP38: 0.981690299 | CQ38: 0.9966011523 | CR38: 0.9850382941 | CS38: 2594 | CT38: 2676 | CU38: 2755 | CV38: 2671 | CW38: 2655 | CX38: 0.96904591 | CY38: 0.971591796 | CZ38: 0.948079316 | DA38: 0.945671601 | DB38: 0.941208192 | DC38: 2012 | DD38: 3217.8 | DE38: 0.0042287827 | DF38: 729.32 | DG38: 1 | DH38: 729.32 | DI38: 716.116343 | DJ38: 1 | DK38: 729.32 | DL38: 1 | DM38: 729.32 | DN38: 1 | DO38: 0.011931 | DP38: 8.7 | DQ38: 720.62 | DR38: HALE | DT38: ALABAMA
A39: HENRY | B39: 1330 | C39: 2543 | D39: 9471833 | E39: 2489 | F39: 6959505 | G39: 685 | H39: 1979934 | I39: 644 | J39: 1698407 | K39: 2417 | L39: 9968347 | M39: 2341 | N39: 7232084 | O39: 709 | P39: 1851672 | Q39: 656 | R39: 1770019 | S39: 2384 | T39: 9082036 | U39: 2294 | V39: 7090873 | W39: 702 | X39: 1809652 | Y39: 644 | Z39: 1842514 | AA39: 2268 | AB39: 9051299 | AC39: 2170 | AD39: 6914407 | AE39: 708 | AF39: 1924305 | AG39: 647 | AH39: 2071909 | AI39: 2230 | AJ39: 8126569 | AK39: 2124 | AL39: 7903706 | AM39: 699 | AN39: 1638682 | AO39: 637 | AP39: 2119018 | AQ39: 295.64 | AR39: 230.29 | AS39: 525.93 | AT39: 11451767 | AU39: 8657912 | AV39: 3228 | AW39: 3133 | AX39: 315.1 | AY39: 250.31 | AZ39: 565.41 | BA39: 11820019 | BB39: 9002103 | BC39: 3126 | BD39: 2997 | BE39: 294.12 | BF39: 253.39 | BG39: 547.51 | BH39: 10891688 | BI39: 8933387 | BJ39: 3086 | BK39: 2938 | BL39: 307.34 | BM39: 265.84 | BN39: 573.18 | BO39: 10975604 | BP39: 8986316 | BQ39: 2976 | BR39: 2817 | BS39: 277.83 | BT39: 302.51 | BU39: 580.34 | BV39: 9765251 | BW39: 10022724 | BX39: 2929 | BY39: 2761 | BZ39: 3185 | CA39: 3065 | CB39: 3015 | CC39: 2899 | CD39: 2849 | CE39: 621.8109623 | CF39: 650.773103 | CG39: 676.6194692 | CH39: 712.4345037 | CI39: 716.4999321 | CJ39: 0.8458036797 | CK39: 0.8688281636 | CL39: 0.8091845194 | CM39: 0.8045371146 | CN39: 0.809965185 | CO39: 0.9511977039 | CP39: 0.8701279755 | CQ39: 0.9966011523 | CR39: 0.8730954941 | CS39: 3031 | CT39: 2870 | CU39: 2865 | CV39: 2785 | CW39: 2749 | CX39: 0.925227678 | CY39: 0.94587608 | CZ39: 0.965060122 | DA39: 0.96877668 | DB39: 0.95313111 | DC39: 2012 | DD39: 2929.2 | DE39: 0.0007678488 | DF39: 648.68 | DG39: 1 | DH39: 648.68 | DI39: 716.116343 | DJ39: 1 | DK39: 648.68 | DL39: 1 | DM39: 648.68 | DN39: 1 | DO39: 0.002164 | DP39: 1.4 | DQ39: 647.28 | DR39: HENRY | DT39: ALABAMA
A40: HOUSTON | B40: 1340 | C40: 10438 | D40: 39272461 | E40: 10196 | F40: 28451105 | G40: 2848 | H40: 8297583 | I40: 2649 | J40: 7535413 | K40: 10815 | L40: 40141212 | M40: 10518 | N40: 31222559 | O40: 3117 | P40: 9147907 | Q40: 2892 | R40: 8719169 | S40: 11057 | T40: 41643509 | U40: 10694 | V40: 33294240 | W40: 3336 | X40: 9761451 | Y40: 3059 | Z40: 9388794 | AA40: 11103 | AB40: 44002675 | AC40: 10674 | AD40: 35401587 | AE40: 3394 | AF40: 10195235 | AG40: 3112 | AH40: 9929480 | AI40: 10987 | AJ40: 39025530 | AK40: 10519 | AL40: 39400398 | AM40: 3508 | AN40: 10699389 | AO40: 3223 | AP40: 11418152 | AQ40: 298.37 | AR40: 233.47 | AS40: 531.84 | AT40: 47570044 | AU40: 35986518 | AV40: 13286 | AW40: 12845 | AX40: 294.82 | AY40: 248.21 | AZ40: 543.03 | BA40: 49289119 | BB40: 39941728 | BC40: 13932 | BD40: 13410 | BE40: 297.63 | BF40: 258.63 | BG40: 556.26 | BH40: 51404960 | BI40: 42683034 | BJ40: 14393 | BK40: 13753 | BL40: 311.55 | BM40: 274.02 | BN40: 585.57 | BO40: 54197910 | BP40: 45331067 | BQ40: 14497 | BR40: 13786 | BS40: 285.87 | BT40: 308.17 | BU40: 594.04 | BV40: 49724919 | BW40: 50818550 | BX40: 14495 | BY40: 13742 | BZ40: 13086 | CA40: 13683 | CB40: 14084 | CC40: 14154 | CD40: 14138 | CE40: 621.8109623 | CF40: 650.773103 | CG40: 676.6194692 | CH40: 712.4345037 | CI40: 716.4999321 | CJ40: 0.855308176 | CK40: 0.8344382973 | CL40: 0.8221164558 | CM40: 0.821928187 | CN40: 0.8290859125 | CO40: 0.9465531431 | CP40: 0.8795865418 | CQ40: 0.9966011523 | CR40: 0.8825863182 | CS40: 14850 | CT40: 15425 | CU40: 15596 | CV40: 15402 | CW40: 14939 | CX40: 0.941128071 | CY40: 0.948586459 | CZ40: 0.942558043 | DA40: 0.949637116 | DB40: 0.950837677 | DC40: 2012 | DD40: 13507.2 | DE40: 0.0008503733 | DF40: 655.68 | DG40: 1 | DH40: 655.68 | DI40: 716.116343 | DJ40: 1 | DK40: 655.68 | DL40: 1 | DM40: 655.68 | DN40: 1 | DO40: 0.002043 | DP40: 1.34 | DQ40: 654.34 | DR40: HOUSTON | DT40: ALABAMA
A41: JACKSON | B41: 1350 | C41: 7946 | D41: 31772994 | E41: 7764 | F41: 25006305 | G41: 2136 | H41: 7059046 | I41: 1968 | J41: 6109835 | K41: 8092 | L41: 35323209 | M41: 7862 | N41: 26701474 | O41: 2224 | P41: 7505526 | Q41: 2051 | R41: 6455403 | S41: 8175 | T41: 37726622 | U41: 7904 | V41: 27710589 | W41: 2274 | X41: 8946374 | Y41: 2108 | Z41: 7232716 | AA41: 8031 | AB41: 37328344 | AC41: 7714 | AD41: 29244953 | AE41: 2287 | AF41: 8775121 | AG41: 2107 | AH41: 8124168 | AI41: 7644 | AJ41: 32193650 | AK41: 7313 | AL41: 29530210 | AM41: 2214 | AN41: 8208699 | AO41: 2034 | AP41: 9413052 | AQ41: 320.97 | AR41: 266.44 | AS41: 587.41 | AT41: 38832040 | AU41: 31116140 | AV41: 10082 | AW41: 9732 | AX41: 345.97 | AY41: 278.73 | AZ41: 624.7 | BA41: 42828735 | BB41: 33156877 | BC41: 10316 | BD41: 9913 | BE41: 372.23 | BF41: 290.85 | BG41: 663.08 | BH41: 46672996 | BI41: 34943305 | BJ41: 10449 | BK41: 10012 | BL41: 372.35 | BM41: 317.09 | BN41: 689.44 | BO41: 46103465 | BP41: 37369121 | BQ41: 10318 | BR41: 9821 | BS41: 341.54 | BT41: 347.2 | BU41: 688.74 | BV41: 40402349 | BW41: 38943262 | BX41: 9858 | BY41: 9347 | BZ41: 9924 | CA41: 10124 | CB41: 10238 | CC41: 10078 | CD41: 9615 | CE41: 621.8109623 | CF41: 650.773103 | CG41: 676.6194692 | CH41: 712.4345037 | CI41: 716.4999321 | CJ41: 0.9446761727 | CK41: 0.9599351865 | CL41: 0.9799895364 | CM41: 0.9677240453 | CN41: 0.9612561972 | CO41: 0.9716113103 | CP41: 0.9908450194 | CQ41: 0.9966011523 | CR41: 0.9942242362 | CS41: 9071 | CT41: 9217 | CU41: 9383 | CV41: 9243 | CW41: 8773 | CX41: 0.974689769 | CY41: 0.96972596 | CZ41: 0.96557282 | DA41: 0.965481362 | DB41: 0.983325757 | DC41: 2012 | DD41: 9765 | DE41: 0.0020617376 | DF41: 737.72 | DG41: 1 | DH41: 737.72 | DI41: 716.116343 | DJ41: 1 | DK41: 737.72 | DL41: 1 | DM41: 737.72 | DN41: 1 | DO41: 0.007283 | DP41: 5.37 | DQ41: 732.35 | DR41: JACKSON | DT41: ALABAMA
A42: JEFFERSON | B42: 1360 | C42: 62687 | D42: 284315034 | E42: 59585 | F42: 191872830 | G42: 16284 | H42: 48821461 | I42: 13777 | J42: 36320665 | K42: 60024 | L42: 281505559 | M42: 56733 | N42: 187349524 | O42: 16210 | P42: 54924900 | Q42: 13621 | R42: 38889191 | S42: 58772 | T42: 280161880 | U42: 55100 | V42: 191472876 | W42: 16146 | X42: 53426959 | Y42: 13371 | Z42: 38993863 | AA42: 57105 | AB42: 275440050 | AC42: 52925 | AD42: 195604459 | AE42: 16001 | AF42: 55506074 | AG42: 13149 | AH42: 39861201 | AI42: 55551 | AJ42: 211034405 | AK42: 51026 | AL42: 199561068 | AM42: 15983 | AN42: 53367047 | AO42: 13027 | AP42: 43302975 | AQ42: 351.54 | AR42: 259.21 | AS42: 610.75 | AT42: 333136495 | AU42: 228193495 | AV42: 78971 | AW42: 73362 | AX42: 367.76 | AY42: 267.98 | AZ42: 635.74 | BA42: 336430459 | BB42: 226238715 | BC42: 76234 | BD42: 70354 | BE42: 371.06 | BF42: 280.49 | BG42: 651.55 | BH42: 333588839 | BI42: 230466739 | BJ42: 74918 | BK42: 68471 | BL42: 377.24 | BM42: 296.97 | BN42: 674.21 | BO42: 330946124 | BP42: 235465660 | BQ42: 73106 | BR42: 66074 | BS42: 308.01 | BT42: 315.97 | BU42: 623.98 | BV42: 264401452 | BW42: 242864043 | BX42: 71534 | BY42: 64053 | BZ42: 76433 | CA42: 73432 | CB42: 71811 | CC42: 69717 | CD42: 67983 | CE42: 621.8109623 | CF42: 650.773103 | CG42: 676.6194692 | CH42: 712.4345037 | CI42: 716.4999321 | CJ42: 0.9822116962 | CK42: 0.9768996246 | CL42: 0.962948939 | CM42: 0.9463466416 | CN42: 0.8708723784 | CO42: 0.9616414503 | CP42: 0.9856645174 | CQ42: 0.9966011523 | CR42: 0.9890260663 | CS42: 65458 | CT42: 62513 | CU42: 61041 | CV42: 58468 | CW42: 56391 | CX42: 0.959948871 | CY42: 0.959901566 | CZ42: 0.963102196 | DA42: 0.965931449 | DB42: 0.959505741 | DC42: 2012 | DD42: 68462.8 | DE42: 0.0092530911 | DF42: 728.58 | DG42: 1 | DH42: 728.58 | DI42: 716.116343 | DJ42: 1 | DK42: 728.58 | DL42: 1 | DM42: 728.58 | DN42: 1 | DO42: 0.014269 | DP42: 10.4 | DQ42: 718.18 | DR42: JEFFERSON | DT42: ALABAMA
A43: LAMAR | B43: 1370 | C43: 2653 | D43: 11237952 | E43: 2620 | F43: 7705070 | G43: 751 | H43: 2132948 | I43: 691 | J43: 1976322 | K43: 2618 | L43: 10467531 | M43: 2577 | N43: 7886887 | O43: 783 | P43: 2362992 | Q43: 725 | R43: 2266985 | S43: 2589 | T43: 12509938 | U43: 2542 | V43: 8695555 | W43: 774 | X43: 2698604 | Y43: 711 | Z43: 2276625 | AA43: 2549 | AB43: 12338499 | AC43: 2495 | AD43: 9352049 | AE43: 763 | AF43: 2451368 | AG43: 709 | AH43: 2402630 | AI43: 2508 | AJ43: 10756759 | AK43: 2449 | AL43: 9924286 | AM43: 793 | AN43: 2181585 | AO43: 735 | AP43: 2856547 | AQ43: 327.33 | AR43: 243.67 | AS43: 571 | AT43: 13370900 | AU43: 9681392 | AV43: 3404 | AW43: 3311 | AX43: 314.38 | AY43: 256.26 | AZ43: 570.64 | BA43: 12830523 | BB43: 10153872 | BC43: 3401 | BD43: 3302 | BE43: 376.86 | BF43: 281.08 | BG43: 657.94 | BH43: 15208542 | BI43: 10972180 | BJ43: 3363 | BK43: 3253 | BL43: 372.13 | BM43: 305.73 | BN43: 677.86 | BO43: 14789867 | BP43: 11754679 | BQ43: 3312 | BR43: 3204 | BS43: 326.63 | BT43: 334.51 | BU43: 661.14 | BV43: 12938344 | BW43: 12780833 | BX43: 3301 | BY43: 3184 | BZ43: 3362 | CA43: 3354 | CB43: 3310 | CC43: 3260 | CD43: 3245 | CE43: 621.8109623 | CF43: 650.773103 | CG43: 676.6194692 | CH43: 712.4345037 | CI43: 716.4999321 | CJ43: 0.9182855154 | CK43: 0.8768647588 | CL43: 0.9723929475 | CM43: 0.9514699196 | CN43: 0.9227356074 | CO43: 0.9706865927 | CP43: 0.9563846423 | CQ43: 0.9966011523 | CR43: 0.959646334 | CS43: 3133 | CT43: 3134 | CU43: 3074 | CV43: 3034 | CW43: 3050 | CX43: 0.962666994 | CY43: 0.95901529 | CZ43: 0.952884884 | DA43: 0.979154385 | DB43: 1.000435588 | DC43: 2012 | DD43: 3250.8 | DE43: 0.0027219225 | DF43: 711.59 | DG43: 1 | DH43: 711.59 | DI43: 716.116343 | DJ43: 1 | DK43: 711.59 | DL43: 1 | DM43: 711.59 | DN43: 1 | DO43: 0.007907 | DP43: 5.63 | DQ43: 705.96 | DR43: LAMAR | DT43: ALABAMA
A44: LAUDERDALE | B44: 1380 | C44: 13533 | D44: 49130768 | E44: 13246 | F44: 40085492 | G44: 3387 | H44: 9032295 | I44: 3110 | J44: 9596909 | K44: 13781 | L44: 53802203 | M44: 13449 | N44: 43257263 | O44: 3549 | P44: 10029199 | Q44: 3261 | R44: 10411991 | S44: 13991 | T44: 50826806 | U44: 13627 | V44: 43858084 | W44: 3689 | X44: 10579788 | Y44: 3384 | Z44: 11296886 | AA44: 13726 | AB44: 50782092 | AC44: 13298 | AD44: 45517638 | AE44: 3630 | AF44: 9917529 | AG44: 3318 | AH44: 11822386 | AI44: 13322 | AJ44: 42570145 | AK44: 12862 | AL44: 48695394 | AM44: 3633 | AN44: 10050901 | AO44: 3304 | AP44: 13249856 | AQ44: 286.46 | AR44: 253.13 | AS44: 539.59 | AT44: 58163063 | AU44: 49682401 | AV44: 16920 | AW44: 16356 | AX44: 306.94 | AY44: 267.65 | AZ44: 574.59 | BA44: 63831402 | BB44: 53669254 | BC44: 17330 | BD44: 16710 | BE44: 289.44 | BF44: 270.19 | BG44: 559.63 | BH44: 61406594 | BI44: 55154970 | BJ44: 17680 | BK44: 17011 | BL44: 291.44 | BM44: 287.57 | BN44: 579.01 | BO44: 60699621 | BP44: 57340024 | BQ44: 17356 | BR44: 16616 | BS44: 258.63 | BT44: 319.32 | BU44: 577.95 | BV44: 52621046 | BW44: 61945250 | BX44: 16955 | BY44: 16166 | BZ44: 16665 | CA44: 17035 | CB44: 17357 | CC44: 16999 | CD44: 16580 | CE44: 621.8109623 | CF44: 650.773103 | CG44: 676.6194692 | CH44: 712.4345037 | CI44: 716.4999321 | CJ44: 0.867771771 | CK44: 0.8829344626 | CL44: 0.8270970988 | CM44: 0.812720323 | CN44: 0.8066295252 | CO44: 0.9651435159 | CP44: 0.8697469571 | CQ44: 0.9966011523 | CR44: 0.8727131763 | CS44: 15766 | CT44: 16162 | CU44: 16450 | CV44: 16035 | CW44: 15475 | CX44: 0.978141207 | CY44: 0.969876902 | CZ44: 0.967493405 | DA44: 0.959124975 | DB44: 0.950696281 | DC44: 2012 | DD44: 16571.8 | DE44: 0.0013464746 | DF44: 648.02 | DG44: 1 | DH44: 648.02 | DI44: 716.116343 | DJ44: 1 | DK44: 648.02 | DL44: 1 | DM44: 648.02 | DN44: 1 | DO44: 0.003719 | DP44: 2.41 | DQ44: 645.61 | DR44: LAUDERDALE | DT44: ALABAMA
A45: LAWRENCE | B45: 1390 | C45: 3588 | D45: 15629466 | E45: 3541 | F45: 12762212 | G45: 1140 | H45: 3396892 | I45: 1043 | J45: 3567569 | K45: 3600 | L45: 18526935 | M45: 3540 | N45: 13113260 | O45: 1172 | P45: 4180101 | Q45: 1072 | R45: 3680105 | S45: 3609 | T45: 18451186 | U45: 3537 | V45: 12987909 | W45: 1226 | X45: 4434291 | Y45: 1121 | Z45: 4060008 | AA45: 3569 | AB45: 18697918 | AC45: 3482 | AD45: 12631956 | AE45: 1245 | AF45: 4686952 | AG45: 1129 | AH45: 4468776 | AI45: 3497 | AJ45: 15736440 | AK45: 3407 | AL45: 14087096 | AM45: 1215 | AN45: 3700316 | AO45: 1096 | AP45: 4503425 | AQ45: 335.35 | AR45: 296.86 | AS45: 632.21 | AT45: 19026358 | AU45: 16329781 | AV45: 4728 | AW45: 4584 | AX45: 396.53 | AY45: 303.44 | AZ45: 699.97 | BA45: 22707036 | BB45: 16793365 | BC45: 4772 | BD45: 4612 | BE45: 394.44 | BF45: 304.99 | BG45: 699.43 | BH45: 22885477 | BI45: 17047917 | BJ45: 4835 | BK45: 4658 | BL45: 404.81 | BM45: 309.06 | BN45: 713.87 | BO45: 23384870 | BP45: 17100732 | BQ45: 4814 | BR45: 4611 | BS45: 343.75 | BT45: 344.04 | BU45: 687.79 | BV45: 19436756 | BW45: 18590521 | BX45: 4712 | BY45: 4503 | BZ45: 4663 | CA45: 4696 | CB45: 4749 | CC45: 4716 | CD45: 4613 | CE45: 621.8109623 | CF45: 650.773103 | CG45: 676.6194692 | CH45: 712.4345037 | CI45: 716.4999321 | CJ45: 1.016723793 | CK45: 1.075597619 | CL45: 1.033712495 | CM45: 1.002014917 | CN45: 0.9599303073 | CO45: 1.039332194 | CP45: 0.9790862175 | CQ45: 0.9966011523 | CR45: 0.9824253316 | CS45: 5299 | CT45: 5388 | CU45: 5449 | CV45: 5411 | CW45: 5319 | CX45: 1.03744135 | CY45: 1.052912965 | CZ45: 1.046277261 | DA45: 1.025514852 | DB45: 1.034400505 | DC45: 2012 | DD45: 4593.6 | DE45: 0.0015774576 | DF45: 729.32 | DG45: 1 | DH45: 729.32 | DI45: 716.116343 | DJ45: 1 | DK45: 729.32 | DL45: 1 | DM45: 729.32 | DN45: 1 | DO45: 0.004498 | DP45: 3.28 | DQ45: 726.04 | DR45: LAWRENCE | DT45: ALABAMA
A46: LEE | B46: 1400 | C46: 9542 | D46: 32424596 | E46: 9221 | F46: 24411143 | G46: 2704 | H46: 7151909 | I46: 2447 | J46: 6028292 | K46: 9420 | L46: 33121694 | M46: 9051 | N46: 26381590 | O46: 2740 | P46: 8118751 | Q46: 2477 | R46: 6789995 | S46: 9442 | T46: 33958276 | U46: 9034 | V46: 27110760 | W46: 2729 | X46: 8325894 | Y46: 2442 | Z46: 7324230 | AA46: 9449 | AB46: 34778799 | AC46: 8993 | AD46: 29024931 | AE46: 2751 | AF46: 8546018 | AG46: 2465 | AH46: 7666416 | AI46: 9554 | AJ46: 30008286 | AK46: 9027 | AL46: 31522428 | AM46: 2848 | AN46: 7598086 | AO46: 2544 | AP46: 8736158 | AQ46: 269.32 | AR46: 217.4 | AS46: 486.72 | AT46: 39576505 | AU46: 30439435 | AV46: 12246 | AW46: 11668 | AX46: 282.62 | AY46: 239.79 | AZ46: 522.41 | BA46: 41240445 | BB46: 33171585 | BC46: 12160 | BD46: 11528 | BE46: 289.51 | BF46: 250.05 | BG46: 539.56 | BH46: 42284170 | BI46: 34434990 | BJ46: 12171 | BK46: 11476 | BL46: 295.93 | BM46: 266.85 | BN46: 562.78 | BO46: 43324817 | BP46: 36691347 | BQ46: 12200 | BR46: 11458 | BS46: 252.69 | BT46: 289.94 | BU46: 542.63 | BV46: 37606372 | BW46: 40258586 | BX46: 12402 | BY46: 11571 | BZ46: 11984 | CA46: 11859 | CB46: 11836 | CC46: 11842 | CD46: 12008 | CE46: 621.8109623 | CF46: 650.773103 | CG46: 676.6194692 | CH46: 712.4345037 | CI46: 716.4999321 | CJ46: 0.78274593 | CK46: 0.8027529066 | CL46: 0.7974349314 | CM46: 0.7899392815 | CN46: 0.7573343356 | CO46: 0.9256585256 | CP46: 0.8491700289 | CQ46: 0.9966011523 | CR46: 0.8520660717 | CS46: 12069 | CT46: 11859 | CU46: 11953 | CV46: 12024 | CW46: 12176 | CX46: 0.931135464 | CY46: 0.925433901 | CZ46: 0.928128471 | DA46: 0.917884018 | DB46: 0.925701239 | DC46: 2012 | DD46: 11540.2 | DE46: 0.0013618774 | DF46: 632.68 | DG46: 1 | DH46: 632.68 | DI46: 716.116343 | DJ46: 1 | DK46: 632.68 | DL46: 1 | DM46: 632.68 | DN46: 1 | DO46: 0.003502 | DP46: 2.22 | DQ46: 630.46 | DR46: LEE | DT46: ALABAMA
A47: LIMESTONE | B47: 1410 | C47: 7379 | D47: 25720659 | E47: 7155 | F47: 23036271 | G47: 1917 | H47: 5752642 | I47: 1759 | J47: 5335466 | K47: 7408 | L47: 26829545 | M47: 7161 | N47: 24160240 | O47: 1935 | P47: 6033684 | Q47: 1769 | R47: 5918166 | S47: 7379 | T47: 29437359 | U47: 7105 | V47: 26028460 | W47: 1919 | X47: 6639519 | Y47: 1756 | Z47: 6368836 | AA47: 7356 | AB47: 30275209 | AC47: 7027 | AD47: 27963237 | AE47: 1903 | AF47: 6804894 | AG47: 1735 | AH47: 7544406 | AI47: 7416 | AJ47: 27152562 | AK47: 7052 | AL47: 31253056 | AM47: 1966 | AN47: 7427987 | AO47: 1787 | AP47: 8633133 | AQ47: 282.14 | AR47: 265.24 | AS47: 547.38 | AT47: 31473301 | AU47: 28371737 | AV47: 9296 | AW47: 8914 | AX47: 293.12 | AY47: 280.69 | AZ47: 573.81 | BA47: 32863229 | BB47: 30078406 | BC47: 9343 | BD47: 8930 | BE47: 323.34 | BF47: 304.68 | BG47: 628.02 | BH47: 36076878 | BI47: 32397296 | BJ47: 9298 | BK47: 8861 | BL47: 333.73 | BM47: 337.7 | BN47: 671.43 | BO47: 37080103 | BP47: 35507643 | BQ47: 9259 | BR47: 8762 | BS47: 307.15 | BT47: 376.04 | BU47: 683.19 | BV47: 34580549 | BW47: 39886189 | BX47: 9382 | BY47: 8839 | BZ47: 9123 | CA47: 9146 | CB47: 9087 | CC47: 9019 | CD47: 9124 | CE47: 621.8109623 | CF47: 650.773103 | CG47: 676.6194692 | CH47: 712.4345037 | CI47: 716.4999321 | CJ47: 0.8802996942 | CK47: 0.8817358882 | CL47: 0.9281731144 | CM47: 0.9424445285 | CN47: 0.953510209 | CO47: 0.9532030951 | CP47: 0.9622636472 | CQ47: 0.9966011523 | CR47: 0.9655453889 | CS47: 9501 | CT47: 9510 | CU47: 9614 | CV47: 9587 | CW47: 9650 | CX47: 0.931633863 | CY47: 0.931975026 | CZ47: 0.949905395 | DA47: 0.968046714 | DB47: 0.983898072 | DC47: 2012 | DD47: 8861.2 | DE47: 0.0016836778 | DF47: 716.71 | DG47: 1 | DH47: 716.71 | DI47: 716.116343 | DJ47: 1 | DK47: 716.71 | DL47: 1 | DM47: 716.71 | DN47: 1 | DO47: 0.005594 | DP47: 4.01 | DQ47: 712.7 | DR47: LIMESTONE | DT47: ALABAMA
A48: LOWNDES | B48: 1420 | C48: 1132 | D48: 4598768 | E48: 1089 | F48: 4046111 | G48: 491 | H48: 1123773 | I48: 454 | J48: 1218246 | K48: 994 | L48: 4259838 | M48: 960 | N48: 3431618 | O48: 456 | P48: 1441543 | Q48: 420 | R48: 1192861 | S48: 967 | T48: 4776657 | U48: 935 | V48: 3584064 | W48: 445 | X48: 1090458 | Y48: 398 | Z48: 1129769 | AA48: 877 | AB48: 3570027 | AC48: 846 | AD48: 3453696 | AE48: 419 | AF48: 1369208 | AG48: 374 | AH48: 1233450 | AI48: 858 | AJ48: 4061880 | AK48: 822 | AL48: 3537685 | AM48: 407 | AN48: 1164668 | AO48: 360 | AP48: 1142257 | AQ48: 293.83 | AR48: 284.31 | AS48: 578.14 | AT48: 5722541 | AU48: 5264357 | AV48: 1623 | AW48: 1543 | AX48: 327.67 | AY48: 279.26 | AZ48: 606.93 | BA48: 5701381 | BB48: 4624479 | BC48: 1450 | BD48: 1380 | BE48: 346.27 | BF48: 294.69 | BG48: 640.96 | BH48: 5867115 | BI48: 4713833 | BJ48: 1412 | BK48: 1333 | BL48: 317.59 | BM48: 320.16 | BN48: 637.75 | BO48: 4939235 | BP48: 4687146 | BQ48: 1296 | BR48: 1220 | BS48: 344.3 | BT48: 329.95 | BU48: 674.25 | BV48: 5226548 | BW48: 4679942 | BX48: 1265 | BY48: 1182 | BZ48: 1587 | CA48: 1417 | CB48: 1374 | CC48: 1259 | CD48: 1226 | CE48: 621.8109623 | CF48: 650.773103 | CG48: 676.6194692 | CH48: 712.4345037 | CI48: 716.4999321 | CJ48: 0.9297681049 | CK48: 0.9326292024 | CL48: 0.947297601 | CM48: 0.8951700074 | CN48: 0.9410328875 | CO48: 0.9571556492 | CP48: 0.9707716414 | CQ48: 0.9966011523 | CR48: 0.9740823991 | CS48: 1694 | CT48: 1486 | CU48: 1453 | CV48: 1326 | CW48: 1283 | CX48: 0.941691372 | CY48: 0.952349064 | CZ48: 0.94410694 | DA48: 0.981081796 | DB48: 0.973190548 | DC48: 2012 | DD48: 1331.6 | DE48: 0.003220786 | DF48: 721.94 | DG48: 1 | DH48: 721.94 | DI48: 716.116343 | DJ48: 1 | DK48: 721.94 | DL48: 1 | DM48: 721.94 | DN48: 1 | DO48: 0.009503 | DP48: 6.86 | DQ48: 715.08 | DR48: LOWNDES | DT48: ALABAMA
A49: MACON | B49: 1430 | C49: 2576 | D49: 9461134 | E49: 2309 | F49: 5900088 | G49: 811 | H49: 1857550 | I49: 727 | J49: 1460166 | K49: 2398 | L49: 10878940 | M49: 2140 | N49: 6212836 | O49: 795 | P49: 2173601 | Q49: 712 | R49: 1506774 | S49: 2309 | T49: 10290971 | U49: 2023 | V49: 6448826 | W49: 768 | X49: 2294496 | Y49: 676 | Z49: 1584451 | AA49: 2248 | AB49: 9311766 | AC49: 1946 | AD49: 5755094 | AE49: 805 | AF49: 2215576 | AG49: 706 | AH49: 1680245 | AI49: 2278 | AJ49: 8168721 | AK49: 1974 | AL49: 6484569 | AM49: 809 | AN49: 2377399 | AO49: 712 | AP49: 1871262 | AQ49: 278.48 | AR49: 202.03 | AS49: 480.51 | AT49: 11318684 | AU49: 7360254 | AV49: 3387 | AW49: 3036 | AX49: 340.66 | AY49: 225.56 | AZ49: 566.22 | BA49: 13052541 | BB49: 7719610 | BC49: 3193 | BD49: 2852 | BE49: 340.85 | BF49: 248.03 | BG49: 588.88 | BH49: 12585467 | BI49: 8033277 | BJ49: 3077 | BK49: 2699 | BL49: 314.65 | BM49: 233.64 | BN49: 548.29 | BO49: 11527342 | BP49: 7435339 | BQ49: 3053 | BR49: 2652 | BS49: 284.69 | BT49: 259.24 | BU49: 543.93 | BV49: 10546120 | BW49: 8355831 | BX49: 3087 | BY49: 2686 | BZ49: 3228 | CA49: 3030 | CB49: 2895 | CC49: 2860 | CD49: 2897 | CE49: 621.8109623 | CF49: 650.773103 | CG49: 676.6194692 | CH49: 712.4345037 | CI49: 716.4999321 | CJ49: 0.772758972 | CK49: 0.870072837 | CL49: 0.8703267151 | CM49: 0.7696005698 | CN49: 0.7591487112 | CO49: 0.93066093 | CP49: 0.8686101833 | CQ49: 0.9966011523 | CR49: 0.8715725255 | CS49: 2921 | CT49: 2641 | CU49: 2497 | CV49: 2468 | CW49: 2481 | CX49: 0.941896433 | CY49: 0.938027339 | CZ49: 0.920875538 | DA49: 0.931240663 | DB49: 0.918863168 | DC49: 2012 | DD49: 2785 | DE49: 0.0014225125 | DF49: 647.13 | DG49: 1 | DH49: 647.13 | DI49: 716.116343 | DJ49: 1 | DK49: 647.13 | DL49: 1 | DM49: 647.13 | DN49: 1 | DO49: 0.004424 | DP49: 2.86 | DQ49: 644.27 | DR49: MACON | DT49: ALABAMA
A50: MADISON | B50: 1440 | C50: 34492 | D50: 110987718 | E50: 32513 | F50: 107033329 | G50: 6019 | H50: 17603105 | I50: 5392 | J50: 18726859 | K50: 34538 | L50: 118820318 | M50: 32457 | N50: 109502732 | O50: 6107 | P50: 19707293 | Q50: 5438 | R50: 19749333 | S50: 34840 | T50: 127896241 | U50: 32541 | V50: 115285893 | W50: 6267 | X50: 19848126 | Y50: 5544 | Z50: 21336324 | AA50: 35125 | AB50: 129176344 | AC50: 32518 | AD50: 123240982 | AE50: 6323 | AF50: 20101495 | AG50: 5529 | AH50: 21807967 | AI50: 35336 | AJ50: 123171059 | AK50: 32512 | AL50: 134373750 | AM50: 6535 | AN50: 18946149 | AO50: 5713 | AP50: 24739232 | AQ50: 264.52 | AR50: 276.48 | AS50: 541 | AT50: 128590823 | AU50: 125760188 | AV50: 40511 | AW50: 37905 | AX50: 284.02 | AY50: 284.23 | AZ50: 568.25 | BA50: 138527611 | BB50: 129252065 | BC50: 40645 | BD50: 37895 | BE50: 299.51 | BF50: 298.94 | BG50: 598.45 | BH50: 147744367 | BI50: 136622217 | BJ50: 41107 | BK50: 38085 | BL50: 300.13 | BM50: 317.7 | BN50: 617.83 | BO50: 149277839 | BP50: 145048949 | BQ50: 41448 | BR50: 38047 | BS50: 282.85 | BT50: 346.88 | BU50: 629.73 | BV50: 142117208 | BW50: 159112982 | BX50: 41871 | BY50: 38225 | BZ50: 39332 | CA50: 39334 | CB50: 39650 | CC50: 39809 | CD50: 40140 | CE50: 621.8109623 | CF50: 650.773103 | CG50: 676.6194692 | CH50: 712.4345037 | CI50: 716.4999321 | CJ50: 0.8700393412 | CK50: 0.8731922038 | CL50: 0.8844705587 | CM50: 0.8672095424 | CN50: 0.8788975013 | CO50: 0.9490427486 | CP50: 0.9217306921 | CQ50: 0.9966011523 | CR50: 0.9248741986 | CS50: 35758 | CT50: 35623 | CU50: 36313 | CV50: 36205 | CW50: 36299 | CX50: 0.939142651 | CY50: 0.945941108 | CZ50: 0.955567662 | DA50: 0.950650586 | DB50: 0.95370807 | DC50: 2012 | DD50: 38031.4 | DE50: 0.0021944308 | DF50: 686.17 | DG50: 1 | DH50: 686.17 | DI50: 716.116343 | DJ50: 1 | DK50: 686.17 | DL50: 1 | DM50: 686.17 | DN50: 1 | DO50: 0.007263 | DP50: 4.98 | DQ50: 681.19 | DR50: MADISON | DT50: ALABAMA
A51: MARENGO | B51: 1450 | C51: 2718 | D51: 12435047 | E51: 2675 | F51: 7701629 | G51: 950 | H51: 3224127 | I51: 892 | J51: 2467589 | K51: 2729 | L51: 14771666 | M51: 2695 | N51: 8566486 | O51: 999 | P51: 3029281 | Q51: 933 | R51: 2345881 | S51: 2537 | T51: 13142420 | U51: 2502 | V51: 8188152 | W51: 966 | X51: 3946119 | Y51: 891 | Z51: 2533677 | AA51: 2495 | AB51: 13644790 | AC51: 2449 | AD51: 8923976 | AE51: 1004 | AF51: 3149562 | AG51: 924 | AH51: 2510060 | AI51: 2373 | AJ51: 9718875 | AK51: 2323 | AL51: 8482876 | AM51: 1001 | AN51: 2935782 | AO51: 918 | AP51: 2608351 | AQ51: 355.76 | AR51: 237.58 | AS51: 593.34 | AT51: 15659174 | AU51: 10169218 | AV51: 3668 | AW51: 3567 | AX51: 397.91 | AY51: 250.65 | AZ51: 648.56 | BA51: 17800947 | BB51: 10912367 | BC51: 3728 | BD51: 3628 | BE51: 406.52 | BF51: 263.33 | BG51: 669.85 | BH51: 17088539 | BI51: 10721829 | BJ51: 3503 | BK51: 3393 | BL51: 399.98 | BM51: 282.49 | BN51: 682.47 | BO51: 16794352 | BP51: 11434036 | BQ51: 3499 | BR51: 3373 | BS51: 312.55 | BT51: 285.18 | BU51: 597.73 | BV51: 12654657 | BW51: 11091227 | BX51: 3374 | BY51: 3241 | BZ51: 3622 | CA51: 3680 | CB51: 3450 | CC51: 3438 | CD51: 3311 | CE51: 621.8109623 | CF51: 650.773103 | CG51: 676.6194692 | CH51: 712.4345037 | CI51: 716.4999321 | CJ51: 0.9542128331 | CK51: 0.9965992709 | CL51: 0.9899951604 | CM51: 0.9579406899 | CN51: 0.8342359479 | CO51: 0.9400543494 | CP51: 1.006959631 | CQ51: 0.9966011523 | CR51: 1.010393805 | CS51: 3906 | CT51: 4034 | CU51: 3793 | CV51: 3842 | CW51: 3691 | CX51: 0.930682583 | CY51: 0.940605684 | CZ51: 0.946310846 | DA51: 0.93353252 | DB51: 0.949728696 | DC51: 2012 | DD51: 3440.4 | DE51: 0.0034242947 | DF51: 748.7 | DG51: 1 | DH51: 748.7 | DI51: 716.116343 | DJ51: 1 | DK51: 748.7 | DL51: 1 | DM51: 748.7 | DN51: 1 | DO51: 0.008028 | DP51: 6.01 | DQ51: 742.69 | DR51: MARENGO | DT51: ALABAMA
A52: MARION | B52: 1460 | C52: 4555 | D52: 20828055 | E52: 4477 | F52: 14888162 | G52: 1397 | H52: 3803911 | I52: 1289 | J52: 3970922 | K52: 4515 | L52: 22095647 | M52: 4426 | N52: 15177009 | O52: 1413 | P52: 5226680 | Q52: 1306 | R52: 4607231 | S52: 4479 | T52: 20257466 | U52: 4372 | V52: 15119583 | W52: 1335 | X52: 4457270 | Y52: 1237 | Z52: 4098606 | AA52: 4423 | AB52: 20736231 | AC52: 4309 | AD52: 15166637 | AE52: 1343 | AF52: 4331488 | AG52: 1246 | AH52: 4202109 | AI52: 4275 | AJ52: 17127640 | AK52: 4150 | AL52: 16572520 | AM52: 1277 | AN52: 4268926 | AO52: 1178 | AP52: 4474708 | AQ52: 344.87 | AR52: 272.56 | AS52: 617.43 | AT52: 24631966 | AU52: 18859084 | AV52: 5952 | AW52: 5766 | AX52: 384.09 | AY52: 287.63 | AZ52: 671.72 | BA52: 27322327 | BB52: 19784240 | BC52: 5928 | BD52: 5732 | BE52: 354.24 | BF52: 285.53 | BG52: 639.77 | BH52: 24714736 | BI52: 19218189 | BJ52: 5814 | BK52: 5609 | BL52: 362.29 | BM52: 290.56 | BN52: 652.85 | BO52: 25067719 | BP52: 19368746 | BQ52: 5766 | BR52: 5555 | BS52: 321.15 | BT52: 329.19 | BU52: 650.34 | BV52: 21396566 | BW52: 21047228 | BX52: 5552 | BY52: 5328 | BZ52: 5868 | CA52: 5835 | CB52: 5715 | CC52: 5664 | CD52: 5446 | CE52: 621.8109623 | CF52: 650.773103 | CG52: 676.6194692 | CH52: 712.4345037 | CI52: 716.4999321 | CJ52: 0.992954511 | CK52: 1.032187712 | CL52: 0.9455388577 | CM52: 0.9163649382 | CN52: 0.9076623331 | CO52: 0.970214366 | CP52: 0.9883812319 | CQ52: 0.9966011523 | CR52: 0.9917520461 | CS52: 5639 | CT52: 5610 | CU52: 5523 | CV52: 5494 | CW52: 5322 | CX52: 0.977630994 | CY52: 0.963835727 | CZ52: 0.95983389 | DA52: 0.978574105 | DB52: 0.971222401 | DC52: 2012 | DD52: 5598 | DE52: 0.0032633548 | DF52: 735 | DG52: 1 | DH52: 735 | DI52: 716.116343 | DJ52: 1 | DK52: 735 | DL52: 1 | DM52: 735 | DN52: 1 | DO52: 0.007858 | DP52: 5.78 | DQ52: 729.22 | DR52: MARION | DT52: ALABAMA
A53: MARSHALL | B53: 1470 | C53: 12922 | D53: 52574839 | E53: 12410 | F53: 41919779 | G53: 3480 | H53: 10821986 | I53: 3181 | J53: 10393041 | K53: 13024 | L53: 52664731 | M53: 12474 | N53: 44808026 | O53: 3630 | P53: 10876577 | Q53: 3321 | R53: 12144282 | S53: 13121 | T53: 56428508 | U53: 12490 | V53: 46402070 | W53: 3739 | X53: 11998368 | Y53: 3392 | Z53: 13065586 | AA53: 12975 | AB53: 57905366 | AC53: 12284 | AD53: 48797063 | AE53: 3706 | AF53: 12382264 | AG53: 3357 | AH53: 13163940 | AI53: 12443 | AJ53: 53048273 | AK53: 11725 | AL53: 51065435 | AM53: 3653 | AN53: 11827605 | AO53: 3303 | AP53: 15426739 | AQ53: 322.1 | AR53: 279.61 | AS53: 601.71 | AT53: 63396825 | AU53: 52312820 | AV53: 16402 | AW53: 15591 | AX53: 317.95 | AY53: 300.48 | AZ53: 618.43 | BA53: 63541308 | BB53: 56952308 | BC53: 16654 | BD53: 15795 | BE53: 338.21 | BF53: 312.03 | BG53: 650.24 | BH53: 68426876 | BI53: 59467656 | BJ53: 16860 | BK53: 15882 | BL53: 351.14 | BM53: 330.12 | BN53: 681.26 | BO53: 70287630 | BP53: 61961003 | BQ53: 16681 | BR53: 15641 | BS53: 335.88 | BT53: 368.71 | BU53: 704.59 | BV53: 64875878 | BW53: 66492174 | BX53: 16096 | BY53: 15028 | BZ53: 16035 | CA53: 16245 | CB53: 16388 | CC53: 16180 | CD53: 15589 | CE53: 621.8109623 | CF53: 650.773103 | CG53: 676.6194692 | CH53: 712.4345037 | CI53: 716.4999321 | CJ53: 0.9676735157 | CK53: 0.950300492 | CL53: 0.9610128434 | CM53: 0.9562422881 | CN53: 0.9833776229 | CO53: 1.007614699 | CP53: 0.9564383621 | CQ53: 0.9966011523 | CR53: 0.959700237 | CS53: 14137 | CT53: 14549 | CU53: 14695 | CV53: 14404 | CW53: 13811 | CX53: 1.003431043 | CY53: 1.003241752 | CZ53: 1.011150021 | DA53: 1.010344327 | DB53: 1.00989529 | DC53: 2012 | DD53: 15587.4 | DE53: 0.0021901136 | DF53: 712.01 | DG53: 1 | DH53: 712.01 | DI53: 716.116343 | DJ53: 1 | DK53: 712.01 | DL53: 1 | DM53: 712.01 | DN53: 1 | DO53: 0.005438 | DP53: 3.87 | DQ53: 708.14 | DR53: MARSHALL | DT53: ALABAMA
A54: MOBILE | B54: 1480 | C54: 35992 | D54: 157905134 | E54: 34554 | F54: 109971741 | G54: 10423 | H54: 32703073 | I54: 9308 | J54: 25539915 | K54: 34369 | L54: 156813859 | M54: 32870 | N54: 108324721 | O54: 10265 | P54: 32732240 | Q54: 9076 | R54: 25619184 | S54: 33414 | T54: 152107630 | U54: 31730 | V54: 106882292 | W54: 10336 | X54: 35458791 | Y54: 9063 | Z54: 26768743 | AA54: 32238 | AB54: 153229487 | AC54: 30331 | AD54: 110392222 | AE54: 10350 | AF54: 35243650 | AG54: 9055 | AH54: 29212568 | AI54: 31319 | AJ54: 110580216 | AK54: 29195 | AL54: 114969764 | AM54: 10089 | AN54: 33491535 | AO54: 8803 | AP54: 31235654 | AQ54: 342.22 | AR54: 257.46 | AS54: 599.68 | AT54: 190608207 | AU54: 135511656 | AV54: 46415 | AW54: 43862 | AX54: 353.89 | AY54: 266.1 | AZ54: 619.99 | BA54: 189546099 | BB54: 133943905 | BC54: 44634 | BD54: 41946 | BE54: 357.27 | BF54: 273.03 | BG54: 630.3 | BH54: 187566421 | BI54: 133651035 | BJ54: 43750 | BK54: 40793 | BL54: 368.79 | BM54: 295.38 | BN54: 664.17 | BO54: 188473137 | BP54: 139604790 | BQ54: 42588 | BR54: 39386 | BS54: 289.94 | BT54: 320.64 | BU54: 610.58 | BV54: 144071751 | BW54: 146205418 | BX54: 41408 | BY54: 37998 | BZ54: 45260 | CA54: 43353 | CB54: 42324 | CC54: 41045 | CD54: 39789 | CE54: 621.8109623 | CF54: 650.773103 | CG54: 676.6194692 | CH54: 712.4345037 | CI54: 716.4999321 | CJ54: 0.9644088579 | CK54: 0.9526976409 | CL54: 0.9315428075 | CM54: 0.9322541181 | CN54: 0.8521703529 | CO54: 0.9627013811 | CP54: 0.9625152448 | CQ54: 0.9966011523 | CR54: 0.9657978445 | CS54: 41844 | CT54: 40380 | CU54: 39539 | CV54: 38100 | CW54: 36581 | CX54: 0.964979183 | CY54: 0.969107947 | CZ54: 0.962122374 | DA54: 0.956112466 | DB54: 0.960512309 | DC54: 2012 | DD54: 40797 | DE54: 0.0055990451 | DF54: 714.09 | DG54: 1 | DH54: 714.09 | DI54: 716.116343 | DJ54: 1 | DK54: 714.09 | DL54: 1 | DM54: 714.09 | DN54: 1 | DO54: 0.007843 | DP54: 5.6 | DQ54: 708.49 | DR54: MOBILE | DT54: ALABAMA
A55: MONROE | B55: 1490 | C55: 2986 | D55: 13380072 | E55: 2920 | F55: 9214979 | G55: 956 | H55: 2466365 | I55: 874 | J55: 2430893 | K55: 3008 | L55: 13262438 | M55: 2934 | N55: 9316963 | O55: 989 | P55: 2890213 | Q55: 904 | R55: 3128247 | S55: 3039 | T55: 14474053 | U55: 2950 | V55: 10142439 | W55: 1020 | X55: 3312516 | Y55: 933 | Z55: 3358942 | AA55: 2893 | AB55: 12750449 | AC55: 2790 | AD55: 10194481 | AE55: 1019 | AF55: 3120289 | AG55: 935 | AH55: 3388964 | AI55: 2701 | AJ55: 10155797 | AK55: 2601 | AL55: 10320980 | AM55: 1000 | AN55: 2603142 | AO55: 914 | AP55: 4154331 | AQ55: 334.99 | AR55: 255.8 | AS55: 590.79 | AT55: 15846437 | AU55: 11645872 | AV55: 3942 | AW55: 3794 | AX55: 336.77 | AY55: 270.22 | AZ55: 606.99 | BA55: 16152651 | BB55: 12445210 | BC55: 3997 | BD55: 3838 | BE55: 365.17 | BF55: 289.75 | BG55: 654.92 | BH55: 17786569 | BI55: 13501381 | BJ55: 4059 | BK55: 3883 | BL55: 338.08 | BM55: 303.88 | BN55: 641.96 | BO55: 15870738 | BP55: 13583445 | BQ55: 3912 | BR55: 3725 | BS55: 287.29 | BT55: 343.18 | BU55: 630.47 | BV55: 12758939 | BW55: 14475311 | BX55: 3701 | BY55: 3515 | BZ55: 3875 | CA55: 3921 | CB55: 3974 | CC55: 3822 | CD55: 3613 | CE55: 621.8109623 | CF55: 650.773103 | CG55: 676.6194692 | CH55: 712.4345037 | CI55: 716.4999321 | CJ55: 0.9501119083 | CK55: 0.9327214004 | CL55: 0.967929582 | CM55: 0.9010793225 | CN55: 0.8799302998 | CO55: 0.9148879074 | CP55: 1.012533333 | CQ55: 0.9966011523 | CR55: 1.015986517 | CS55: 3755 | CT55: 3853 | CU55: 3939 | CV55: 3794 | CW55: 3615 | CX55: 0.921110336 | CY55: 0.921613191 | CZ55: 0.909177072 | DA55: 0.920106109 | DB55: 0.902002537 | DC55: 2012 | DD55: 3751 | DE55: 0.0015923474 | DF55: 754.22 | DG55: 1 | DH55: 754.22 | DI55: 716.116343 | DJ55: 1 | DK55: 754.22 | DL55: 1 | DM55: 754.22 | DN55: 1 | DO55: 0.003169 | DP55: 2.39 | DQ55: 751.83 | DR55: MONROE | DT55: ALABAMA
A56: MONTGOMERY | B56: 1500 | C56: 23116 | D56: 87625221 | E56: 21931 | F56: 73861447 | G56: 6020 | H56: 15677255 | I56: 5351 | J56: 14487235 | K56: 22044 | L56: 89745558 | M56: 20851 | N56: 71522600 | O56: 5778 | P56: 17901921 | Q56: 5059 | R56: 14053757 | S56: 21511 | T56: 90418599 | U56: 20196 | V56: 73804924 | W56: 5673 | X56: 15741246 | Y56: 4886 | Z56: 14169706 | AA56: 19491 | AB56: 81065615 | AC56: 18045 | AD56: 68956772 | AE56: 5538 | AF56: 16637693 | AG56: 4713 | AH56: 14317127 | AI56: 18803 | AJ56: 72475244 | AK56: 17228 | AL56: 70886915 | AM56: 5537 | AN56: 14653653 | AO56: 4697 | AP56: 14368850 | AQ56: 295.46 | AR56: 269.86 | AS56: 565.32 | AT56: 103302476 | AU56: 88348682 | AV56: 29136 | AW56: 27282 | AX56: 322.43 | AY56: 275.24 | AZ56: 597.67 | BA56: 107647479 | BB56: 85576357 | BC56: 27822 | BD56: 25910 | BE56: 325.44 | BF56: 292.29 | BG56: 617.73 | BH56: 106159845 | BI56: 87974630 | BJ56: 27184 | BK56: 25082 | BL56: 325.3 | BM56: 304.93 | BN56: 630.23 | BO56: 97703308 | BP56: 83273899 | BQ56: 25029 | BR56: 22758 | BS56: 298.3 | BT56: 324.04 | BU56: 622.34 | BV56: 87128897 | BW56: 85255765 | BX56: 24340 | BY56: 21925 | BZ56: 28297 | CA56: 26911 | CB56: 26171 | CC56: 23934 | CD56: 23194 | CE56: 621.8109623 | CF56: 650.773103 | CG56: 676.6194692 | CH56: 712.4345037 | CI56: 716.4999321 | CJ56: 0.9091509064 | CK56: 0.9183999726 | CL56: 0.9129651571 | CM56: 0.8846146511 | CN56: 0.8685834738 | CO56: 0.9230316913 | CP56: 0.9736857799 | CQ56: 0.9966011523 | CR56: 0.9770064761 | CS56: 26081 | CT56: 24423 | CU56: 24171 | CV56: 21502 | CW56: 20927 | CX56: 0.92164115 | CY56: 0.918486665 | CZ56: 0.922397825 | DA56: 0.924167839 | DB56: 0.929633766 | DC56: 2012 | DD56: 24591.4 | DE56: 0.0026147651 | DF56: 724.54 | DG56: 1 | DH56: 724.54 | DI56: 716.116343 | DJ56: 1 | DK56: 724.54 | DL56: 1 | DM56: 724.54 | DN56: 1 | DO56: 0.007601 | DP56: 5.51 | DQ56: 719.03 | DR56: MONTGOMERY | DT56: ALABAMA
A57: MORGAN | B57: 1510 | C57: 15414 | D57: 57949882 | E57: 14908 | F57: 47982649 | G57: 3690 | H57: 10852274 | I57: 3349 | J57: 12605362 | K57: 15685 | L57: 64610698 | M57: 15134 | N57: 51827703 | O57: 3915 | P57: 11041438 | Q57: 3555 | R57: 13699309 | S57: 15669 | T57: 64903158 | U57: 15032 | V57: 52710569 | W57: 3966 | X57: 11612005 | Y57: 3582 | Z57: 15135439 | AA57: 15572 | AB57: 66331238 | AC57: 14842 | AD57: 55104310 | AE57: 3966 | AF57: 11839774 | AG57: 3581 | AH57: 16136656 | AI57: 15314 | AJ57: 60896498 | AK57: 14524 | AL57: 60007091 | AM57: 4034 | AN57: 12751986 | AO57: 3636 | AP57: 16997015 | AQ57: 300.12 | AR57: 276.55 | AS57: 576.67 | AT57: 68802156 | AU57: 60588011 | AV57: 19104 | AW57: 18257 | AX57: 321.65 | AY57: 292.18 | AZ57: 613.83 | BA57: 75652136 | BB57: 65527012 | BC57: 19600 | BD57: 18689 | BE57: 324.74 | BF57: 303.74 | BG57: 628.48 | BH57: 76515163 | BI57: 67846008 | BJ57: 19635 | BK57: 18614 | BL57: 333.41 | BM57: 322.25 | BN57: 655.66 | BO57: 78171012 | BP57: 71240966 | BQ57: 19538 | BR57: 18423 | BS57: 317.21 | BT57: 353.36 | BU57: 670.57 | BV57: 73648484 | BW57: 77004106 | BX57: 19348 | BY57: 18160 | BZ57: 18721 | CA57: 19166 | CB57: 19142 | CC57: 19001 | CD57: 18784 | CE57: 621.8109623 | CF57: 650.773103 | CG57: 676.6194692 | CH57: 712.4345037 | CI57: 716.4999321 | CJ57: 0.9274040423 | CK57: 0.9432319762 | CL57: 0.9288529647 | CM57: 0.9203091604 | CN57: 0.9358968089 | CO57: 0.9885020843 | CP57: 0.9419696785 | CQ57: 0.9966011523 | CR57: 0.9451822088 | CS57: 17001 | CT57: 17517 | CU57: 17428 | CV57: 17245 | CW57: 16890 | CX57: 0.982529687 | CY57: 0.981913274 | CZ57: 0.987549527 | DA57: 0.990159301 | DB57: 1.000637986 | DC57: 2012 | DD57: 18428.6 | DE57: 0.0016710563 | DF57: 701.61 | DG57: 1 | DH57: 701.61 | DI57: 716.116343 | DJ57: 1 | DK57: 701.61 | DL57: 1 | DM57: 701.61 | DN57: 1 | DO57: 0.005207 | DP57: 3.65 | DQ57: 697.96 | DR57: MORGAN | DT57: ALABAMA
A58: PERRY | B58: 1520 | C58: 1479 | D58: 7368819 | E58: 1442 | F58: 4587322 | G58: 512 | H58: 1762016 | I58: 478 | J58: 1269137 | K58: 1443 | L58: 6847466 | M58: 1406 | N58: 5066642 | O58: 525 | P58: 1151707 | Q58: 489 | R58: 1115103 | S58: 1361 | T58: 6491235 | U58: 1315 | V58: 4951571 | W58: 519 | X58: 1095918 | Y58: 482 | Z58: 1187890 | AA58: 1292 | AB58: 7280128 | AC58: 1238 | AD58: 5021212 | AE58: 555 | AF58: 1359450 | AG58: 517 | AH58: 1418372 | AI58: 1275 | AJ58: 6011180 | AK58: 1218 | AL58: 5125760 | AM58: 571 | AN58: 1384982 | AO58: 529 | AP58: 1464751 | AQ58: 382.17 | AR58: 254.19 | AS58: 636.36 | AT58: 9130835 | AU58: 5856459 | AV58: 1991 | AW58: 1920 | AX58: 338.72 | AY58: 271.84 | AZ58: 610.56 | BA58: 7999173 | BB58: 6181745 | BC58: 1968 | BD58: 1895 | BE58: 336.31 | BF58: 284.71 | BG58: 621.02 | BH58: 7587153 | BI58: 6139461 | BJ58: 1880 | BK58: 1797 | BL58: 389.8 | BM58: 305.77 | BN58: 695.57 | BO58: 8639578 | BP58: 6439584 | BQ58: 1847 | BR58: 1755 | BS58: 333.88 | BT58: 314.37 | BU58: 648.25 | BV58: 7396162 | BW58: 6590511 | BX58: 1846 | BY58: 1747 | BZ58: 1959 | CA58: 1933 | CB58: 1840 | CC58: 1803 | CD58: 1799 | CE58: 621.8109623 | CF58: 650.773103 | CG58: 676.6194692 | CH58: 712.4345037 | CI58: 716.4999321 | CJ58: 1.023397847 | CK58: 0.9382071834 | CL58: 0.9178275652 | CM58: 0.976328345 | CN58: 0.9047453754 | CO58: 1.005910558 | CP58: 0.9465068796 | CQ58: 0.9966011523 | CR58: 0.9497348838 | CS58: 2063 | CT58: 2008 | CU58: 1962 | CV58: 1931 | CW58: 1892 | CX58: 1.027321444 | CY58: 1.032574519 | CZ58: 1.003021615 | DA58: 0.996145721 | DB58: 0.967227742 | DC58: 2012 | DD58: 1822.8 | DE58: 0.0051893214 | DF58: 702.5 | DG58: 1 | DH58: 702.5 | DI58: 716.116343 | DJ58: 1 | DK58: 702.5 | DL58: 1 | DM58: 702.5 | DN58: 1 | DO58: 0.012361 | DP58: 8.68 | DQ58: 693.82 | DR58: PERRY | DT58: ALABAMA
A59: PICKENS | B59: 1530 | C59: 3062 | D59: 13597881 | E59: 3037 | F59: 10548768 | G59: 1055 | H59: 2937489 | I59: 985 | J59: 2623708 | K59: 3061 | L59: 14342678 | M59: 3027 | N59: 10663615 | O59: 1108 | P59: 3392762 | Q59: 1027 | R59: 2930106 | S59: 3025 | T59: 13166428 | U59: 2969 | V59: 10723711 | W59: 1164 | X59: 3869186 | Y59: 1067 | Z59: 3331282 | AA59: 2892 | AB59: 13917685 | AC59: 2825 | AD59: 10965028 | AE59: 1181 | AF59: 4524585 | AG59: 1082 | AH59: 3509973 | AI59: 2775 | AJ59: 13041995 | AK59: 2699 | AL59: 11964366 | AM59: 1190 | AN59: 4764272 | AO59: 1081 | AP59: 3905057 | AQ59: 334.7 | AR59: 272.93 | AS59: 607.63 | AT59: 16535370 | AU59: 13172476 | AV59: 4117 | AW59: 4022 | AX59: 354.51 | AY59: 279.43 | AZ59: 633.94 | BA59: 17735440 | BB59: 13593721 | BC59: 4169 | BD59: 4054 | BE59: 338.9 | BF59: 290.2 | BG59: 629.1 | BH59: 17035614 | BI59: 14054993 | BJ59: 4189 | BK59: 4036 | BL59: 377.33 | BM59: 308.74 | BN59: 686.07 | BO59: 18442270 | BP59: 14475001 | BQ59: 4073 | BR59: 3907 | BS59: 374.24 | BT59: 349.86 | BU59: 724.1 | BV59: 17806267 | BW59: 15869423 | BX59: 3965 | BY59: 3780 | BZ59: 4074 | CA59: 4114 | CB59: 4115 | CC59: 3993 | CD59: 3877 | CE59: 621.8109623 | CF59: 650.773103 | CG59: 676.6194692 | CH59: 712.4345037 | CI59: 716.4999321 | CJ59: 0.9771940941 | CK59: 0.9741336836 | CL59: 0.9297692848 | CM59: 0.9629937859 | CN59: 1.010607214 | CO59: 0.9441503926 | CP59: 1.02837389 | CQ59: 0.9966011523 | CR59: 1.031881097 | CS59: 3884 | CT59: 3952 | CU59: 3954 | CV59: 3819 | CW59: 3740 | CX59: 0.958578569 | CY59: 0.938840461 | CZ59: 0.931990662 | DA59: 0.923996162 | DB59: 0.968213065 | DC59: 2012 | DD59: 3959.8 | DE59: 0.0025758538 | DF59: 765.27 | DG59: 1 | DH59: 765.27 | DI59: 716.116343 | DJ59: 1 | DK59: 765.27 | DL59: 1 | DM59: 765.27 | DN59: 1 | DO59: 0.007698 | DP59: 5.89 | DQ59: 759.38 | DR59: PICKENS | DT59: ALABAMA
A60: PIKE | B60: 1540 | C60: 3942 | D60: 17769267 | E60: 3835 | F60: 11729232 | G60: 1227 | H60: 3310146 | I60: 1135 | J60: 3166502 | K60: 3718 | L60: 16288351 | M60: 3602 | N60: 11654339 | O60: 1162 | P60: 2986200 | Q60: 1064 | R60: 2853722 | S60: 3523 | T60: 16136208 | U60: 3393 | V60: 12276192 | W60: 1111 | X60: 3026636 | Y60: 1011 | Z60: 3015513 | AA60: 3267 | AB60: 14707889 | AC60: 3124 | AD60: 11272260 | AE60: 1067 | AF60: 3259115 | AG60: 965 | AH60: 2958714 | AI60: 3148 | AJ60: 12883711 | AK60: 2994 | AL60: 11683280 | AM60: 1091 | AN60: 3062376 | AO60: 996 | AP60: 2944551 | AQ60: 339.84 | AR60: 249.76 | AS60: 589.6 | AT60: 21079413 | AU60: 14895734 | AV60: 5169 | AW60: 4970 | AX60: 329.14 | AY60: 259.11 | AZ60: 588.25 | BA60: 19274551 | BB60: 14508061 | BC60: 4880 | BD60: 4666 | BE60: 344.61 | BF60: 289.35 | BG60: 633.96 | BH60: 19162844 | BI60: 15291705 | BJ60: 4634 | BK60: 4404 | BL60: 345.47 | BM60: 290.03 | BN60: 635.5 | BO60: 17967004 | BP60: 14230974 | BQ60: 4334 | BR60: 4089 | BS60: 313.48 | BT60: 305.51 | BU60: 618.99 | BV60: 15946087 | BW60: 14627831 | BX60: 4239 | BY60: 3990 | BZ60: 5079 | CA60: 4778 | CB60: 4523 | CC60: 4216 | CD60: 4121 | CE60: 621.8109623 | CF60: 650.773103 | CG60: 676.6194692 | CH60: 712.4345037 | CI60: 716.4999321 | CJ60: 0.9481981434 | CK60: 0.9039248815 | CL60: 0.9369520518 | CM60: 0.8920118224 | CN60: 0.8639079675 | CO60: 0.9386149856 | CP60: 0.9684471133 | CQ60: 0.9966011523 | CR60: 0.9717499433 | CS60: 4533 | CT60: 4189 | CU60: 4036 | CV60: 3725 | CW60: 3700 | CX60: 0.963201188 | CY60: 0.949214874 | CZ60: 0.924372084 | DA60: 0.920947706 | DB60: 0.929815737 | DC60: 2012 | DD60: 4423.8 | DE60: 0.0018872204 | DF60: 721.17 | DG60: 1 | DH60: 721.17 | DI60: 716.116343 | DJ60: 1 | DK60: 721.17 | DL60: 1 | DM60: 721.17 | DN60: 1 | DO60: 0.005824 | DP60: 4.2 | DQ60: 716.97 | DR60: PIKE | DT60: ALABAMA
A61: RANDOLPH | B61: 1550 | C61: 3383 | D61: 13211639 | E61: 3328 | F61: 9389114 | G61: 913 | H61: 2258128 | I61: 851 | J61: 2202399 | K61: 3365 | L61: 14088656 | M61: 3309 | N61: 10414619 | O61: 960 | P61: 3030941 | Q61: 890 | R61: 2672868 | S61: 3342 | T61: 14183229 | U61: 3273 | V61: 11413012 | W61: 951 | X61: 2801627 | Y61: 872 | Z61: 2876296 | AA61: 3264 | AB61: 14326412 | AC61: 3181 | AD61: 12233724 | AE61: 928 | AF61: 3276186 | AG61: 845 | AH61: 3212455 | AI61: 3181 | AJ61: 14510973 | AK61: 3093 | AL61: 12075949 | AM61: 947 | AN61: 2951232 | AO61: 867 | AP61: 3277513 | AQ61: 300.08 | AR61: 231.15 | AS61: 531.23 | AT61: 15469767 | AU61: 11591513 | AV61: 4296 | AW61: 4179 | AX61: 329.86 | AY61: 259.73 | AZ61: 589.59 | BA61: 17119597 | BB61: 13087487 | BC61: 4325 | BD61: 4199 | BE61: 329.7 | BF61: 287.28 | BG61: 616.98 | BH61: 16984856 | BI61: 14289308 | BJ61: 4293 | BK61: 4145 | BL61: 349.92 | BM61: 319.72 | BN61: 669.64 | BO61: 17602598 | BP61: 15446179 | BQ61: 4192 | BR61: 4026 | BS61: 352.52 | BT61: 323.09 | BU61: 675.61 | BV61: 17462205 | BW61: 15353462 | BX61: 4128 | BY61: 3960 | BZ61: 4243 | CA61: 4265 | CB61: 4221 | CC61: 4112 | CD61: 4048 | CE61: 621.8109623 | CF61: 650.773103 | CG61: 676.6194692 | CH61: 712.4345037 | CI61: 716.4999321 | CJ61: 0.8543271705 | CK61: 0.9059839709 | CL61: 0.9118567054 | CM61: 0.9399320169 | CN61: 0.9429310036 | CO61: 0.9674015663 | CP61: 0.9417042572 | CQ61: 0.9966011523 | CR61: 0.9449158823 | CS61: 4139 | CT61: 4186 | CU61: 4190 | CV61: 4076 | CW61: 3996 | CX61: 0.976889808 | CY61: 0.967940469 | CZ61: 0.973963689 | DA61: 0.963924714 | DB61: 0.953675009 | DC61: 2012 | DD61: 4101.8 | DE61: 0.0019148229 | DF61: 701.24 | DG61: 1 | DH61: 701.24 | DI61: 716.116343 | DJ61: 1 | DK61: 701.24 | DL61: 1 | DM61: 701.24 | DN61: 1 | DO61: 0.005757 | DP61: 4.04 | DQ61: 697.2 | DR61: RANDOLPH | DT61: ALABAMA
A62: RUSSELL | B62: 1560 | C62: 6776 | D62: 28382546 | E62: 6584 | F62: 19018776 | G62: 1954 | H62: 5158104 | I62: 1787 | J62: 4502074 | K62: 6325 | L62: 25209252 | M62: 6141 | N62: 18382693 | O62: 1847 | P62: 5050916 | Q62: 1673 | R62: 4514207 | S62: 6226 | T62: 27620007 | U62: 6008 | V62: 19569672 | W62: 1860 | X62: 5429239 | Y62: 1660 | Z62: 4983741 | AA62: 6165 | AB62: 28536876 | AC62: 5932 | AD62: 20694144 | AE62: 1874 | AF62: 5569595 | AG62: 1672 | AH62: 5335430 | AI62: 6210 | AJ62: 21725420 | AK62: 5942 | AL62: 22444443 | AM62: 1916 | AN62: 5666806 | AO62: 1713 | AP62: 6250611 | AQ62: 320.17 | AR62: 234.15 | AS62: 554.32 | AT62: 33540650 | AU62: 23520850 | AV62: 8730 | AW62: 8371 | AX62: 308.58 | AY62: 244.19 | AZ62: 552.77 | BA62: 30260168 | BB62: 22896900 | BC62: 8172 | BD62: 7814 | BE62: 340.6 | BF62: 266.84 | BG62: 607.44 | BH62: 33049246 | BI62: 24553413 | BJ62: 8086 | BK62: 7668 | BL62: 353.55 | BM62: 285.26 | BN62: 638.81 | BO62: 34106471 | BP62: 26029574 | BQ62: 8039 | BR62: 7604 | BS62: 280.91 | BT62: 312.38 | BU62: 593.29 | BV62: 27392226 | BW62: 28695054 | BX62: 8126 | BY62: 7655 | BZ62: 8568 | CA62: 8001 | CB62: 7884 | CC62: 7829 | CD62: 7902 | CE62: 621.8109623 | CF62: 650.773103 | CG62: 676.6194692 | CH62: 712.4345037 | CI62: 716.4999321 | CJ62: 0.8914606425 | CK62: 0.8494051113 | CL62: 0.8977571998 | CM62: 0.8966578635 | CN62: 0.8280391574 | CO62: 1.012223445 | CP62: 0.8621258471 | CQ62: 0.9966011523 | CR62: 0.8650660749 | CS62: 7396 | CT62: 6889 | CU62: 6846 | CV62: 6812 | CW62: 6810 | CX62: 1.004685488 | CY62: 1.017894482 | CZ62: 0.998667409 | DA62: 1.028634274 | DB62: 1.011885267 | DC62: 2012 | DD62: 7822.4 | DE62: 0.0026588012 | DF62: 641.5 | DG62: 1 | DH62: 641.5 | DI62: 716.116343 | DJ62: 1 | DK62: 641.5 | DL62: 1 | DM62: 641.5 | DN62: 1 | DO62: 0.005554 | DP62: 3.56 | DQ62: 637.94 | DR62: RUSSELL | DT62: ALABAMA
A63: ST. CLAIR | B63: 1570 | C63: 5587 | D63: 26805263 | E63: 5363 | F63: 18157478 | G63: 1749 | H63: 5906752 | I63: 1505 | J63: 4824924 | K63: 5394 | L63: 25052718 | M63: 5129 | N63: 17797198 | O63: 1675 | P63: 3893320 | Q63: 1421 | R63: 4445917 | S63: 5433 | T63: 25291688 | U63: 5116 | V63: 18140570 | W63: 1695 | X63: 4830848 | Y63: 1417 | Z63: 4720862 | AA63: 5332 | AB63: 24639790 | AC63: 4977 | AD63: 19204617 | AE63: 1731 | AF63: 5246577 | AG63: 1453 | AH63: 5066705 | AI63: 5246 | AJ63: 22064864 | AK63: 4875 | AL63: 19951068 | AM63: 1701 | AN63: 5202215 | AO63: 1408 | AP63: 5575493 | AQ63: 371.59 | AR63: 278.86 | AS63: 650.45 | AT63: 32712015 | AU63: 22982402 | AV63: 7336 | AW63: 6868 | AX63: 341.23 | AY63: 282.99 | AZ63: 624.22 | BA63: 28946038 | BB63: 22243115 | BC63: 7069 | BD63: 6550 | BE63: 352.16 | BF63: 291.61 | BG63: 643.77 | BH63: 30122536 | BI63: 22861432 | BJ63: 7128 | BK63: 6533 | BL63: 352.62 | BM63: 314.56 | BN63: 667.18 | BO63: 29886367 | BP63: 24271322 | BQ63: 7063 | BR63: 6430 | BS63: 327.08 | BT63: 338.57 | BU63: 665.65 | BV63: 27267079 | BW63: 25526561 | BX63: 6947 | BY63: 6283 | BZ63: 7124 | CA63: 6822 | CB63: 6841 | CC63: 6758 | CD63: 6632 | CE63: 621.8109623 | CF63: 650.773103 | CG63: 676.6194692 | CH63: 712.4345037 | CI63: 716.4999321 | CJ63: 1.046057467 | CK63: 0.9591976022 | CL63: 0.9514506 | CM63: 0.9364790679 | CN63: 0.9290300951 | CO63: 0.9413516093 | CP63: 1.024530002 | CQ63: 0.9966011523 | CR63: 1.0280241 | CS63: 7469 | CT63: 7097 | CU63: 7228 | CV63: 7031 | CW63: 6915 | CX63: 0.962338205 | CY63: 0.949051223 | CZ63: 0.930272892 | DA63: 0.933783809 | DB63: 0.930056328 | DC63: 2012 | DD63: 6532.8 | DE63: 0.0079055429 | DF63: 758.33 | DG63: 1 | DH63: 758.33 | DI63: 716.116343 | DJ63: 1 | DK63: 758.33 | DL63: 1 | DM63: 758.33 | DN63: 1 | DO63: 0.012038 | DP63: 9.13 | DQ63: 749.2 | DR63: ST. CLAIR | DT63: ALABAMA
A64: SHELBY | B64: 1580 | C64: 8778 | D64: 38055178 | E64: 8337 | F64: 28132030 | G64: 2090 | H64: 7236537 | I64: 1765 | J64: 5989330 | K64: 8671 | L64: 37851034 | M64: 8183 | N64: 28312342 | O64: 2059 | P64: 6859268 | Q64: 1703 | R64: 5697856 | S64: 8709 | T64: 40038555 | U64: 8143 | V64: 30433068 | W64: 2085 | X64: 7360832 | Y64: 1711 | Z64: 5909723 | AA64: 8687 | AB64: 36777243 | AC64: 8030 | AD64: 31948982 | AE64: 2103 | AF64: 7015530 | AG64: 1700 | AH64: 6205746 | AI64: 8579 | AJ64: 32766351 | AK64: 7841 | AL64: 33254877 | AM64: 2081 | AN64: 5828342 | AO64: 1662 | AP64: 6395801 | AQ64: 347.29 | AR64: 281.47 | AS64: 628.76 | AT64: 45291715 | AU64: 34121360 | AV64: 10868 | AW64: 10102 | AX64: 347.24 | AY64: 286.69 | AZ64: 633.93 | BA64: 44710302 | BB64: 34010198 | BC64: 10730 | BD64: 9886 | BE64: 365.94 | BF64: 307.34 | BG64: 673.28 | BH64: 47399387 | BI64: 36342791 | BJ64: 10794 | BK64: 9854 | BL64: 338.22 | BM64: 326.78 | BN64: 665 | BO64: 43792773 | BP64: 38154728 | BQ64: 10790 | BR64: 9730 | BS64: 301.71 | BT64: 347.7 | BU64: 649.41 | BV64: 38594693 | BW64: 39650678 | BX64: 10660 | BY64: 9503 | BZ64: 10521 | CA64: 10328 | CB64: 10341 | CC64: 10279 | CD64: 10111 | CE64: 621.8109623 | CF64: 650.773103 | CG64: 676.6194692 | CH64: 712.4345037 | CI64: 716.4999321 | CJ64: 1.011175483 | CK64: 0.9741183172 | CL64: 0.9950644795 | CM64: 0.9334191375 | CN64: 0.9063643567 | CO64: 0.9127009299 | CP64: 1.05623685 | CQ64: 0.9966011523 | CR64: 1.059839081 | CS64: 12810 | CT64: 12928 | CU64: 13418 | CV64: 13460 | CW64: 13247 | CX64: 0.915424727 | CY64: 0.923344726 | CZ64: 0.905492881 | DA64: 0.921435481 | DB64: 0.898105603 | DC64: 2012 | DD64: 9815 | DE64: 0.0033102782 | DF64: 785.42 | DG64: 1 | DH64: 785.42 | DI64: 716.116343 | DJ64: 1 | DK64: 785.42 | DL64: 1 | DM64: 785.42 | DN64: 1 | DO64: 0.006582 | DP64: 5.17 | DQ64: 780.25 | DR64: SHELBY | DT64: ALABAMA
A65: SUMTER | B65: 1590 | C65: 1835 | D65: 6994174 | E65: 1849 | F65: 4935440 | G65: 684 | H65: 1305345 | I65: 650 | J65: 1292913 | K65: 1820 | L65: 8881111 | M65: 1832 | N65: 5271403 | O65: 743 | P65: 1980519 | Q65: 696 | R65: 1500597 | S65: 1508 | T65: 7738871 | U65: 1510 | V65: 4626744 | W65: 645 | X65: 2084800 | Y65: 601 | Z65: 1569250 | AA65: 1462 | AB65: 7464358 | AC65: 1456 | AD65: 4977282 | AE65: 658 | AF65: 1639251 | AG65: 612 | AH65: 1808717 | AI65: 1444 | AJ65: 5553708 | AK65: 1430 | AL65: 5395888 | AM65: 675 | AN65: 1726091 | AO65: 627 | AP65: 1775363 | AQ65: 274.56 | AR65: 207.69 | AS65: 482.25 | AT65: 8299519 | AU65: 6228353 | AV65: 2519 | AW65: 2499 | AX65: 353.15 | AY65: 223.23 | AZ65: 576.38 | BA65: 10861630 | BB65: 6772000 | BC65: 2563 | BD65: 2528 | BE65: 380.23 | BF65: 244.59 | BG65: 624.82 | BH65: 9823671 | BI65: 6195994 | BJ65: 2153 | BK65: 2111 | BL65: 357.85 | BM65: 273.45 | BN65: 631.3 | BO65: 9103609 | BP65: 6785999 | BQ65: 2120 | BR65: 2068 | BS65: 286.29 | BT65: 290.52 | BU65: 576.81 | BV65: 7279799 | BW65: 7171251 | BX65: 2119 | BY65: 2057 | BZ65: 2510 | CA65: 2546 | CB65: 2133 | CC65: 2095 | CD65: 2090 | CE65: 621.8109623 | CF65: 650.773103 | CG65: 676.6194692 | CH65: 712.4345037 | CI65: 716.4999321 | CJ65: 0.7755572501 | CK65: 0.8856850373 | CL65: 0.9234437205 | CM65: 0.8861165436 | CN65: 0.8050384573 | CO65: 0.9385974234 | CP65: 0.9111128802 | CQ65: 0.9966011523 | CR65: 0.9142201753 | CS65: 2320 | CT65: 2357 | CU65: 1963 | CV65: 1965 | CW65: 2000 | CX65: 0.959709542 | CY65: 0.935313966 | CZ65: 0.912096622 | DA65: 0.947236212 | DB65: 0.935499847 | DC65: 2012 | DD65: 2252.6 | DE65: 0.0019790167 | DF65: 678.41 | DG65: 1 | DH65: 678.41 | DI65: 716.116343 | DJ65: 1 | DK65: 678.41 | DL65: 1 | DM65: 678.41 | DN65: 1 | DO65: 0.005357 | DP65: 3.63 | DQ65: 674.78 | DR65: SUMTER | DT65: ALABAMA
A66: TALLADEGA | B66: 1600 | C66: 9609 | D66: 45886498 | E66: 9409 | F66: 28988722 | G66: 4275 | H66: 12158699 | I66: 3858 | J66: 10788010 | K66: 9291 | L66: 46716722 | M66: 9079 | N66: 30292612 | O66: 4186 | P66: 12610790 | Q66: 3742 | R66: 11320478 | S66: 9333 | T66: 45527271 | U66: 9079 | V66: 30888079 | W66: 4217 | X66: 12832197 | Y66: 3712 | Z66: 11675097 | AA66: 9093 | AB66: 46846144 | AC66: 8775 | AD66: 31585688 | AE66: 4108 | AF66: 12978344 | AG66: 3599 | AH66: 11645562 | AI66: 8703 | AJ66: 37543528 | AK66: 8377 | AL66: 33098120 | AM66: 3961 | AN66: 12136278 | AO66: 3440 | AP66: 11857884 | AQ66: 348.39 | AR66: 249.85 | AS66: 598.24 | AT66: 58045197 | AU66: 39776732 | AV66: 13884 | AW66: 13267 | AX66: 366.84 | AY66: 270.47 | AZ66: 637.31 | BA66: 59327512 | BB66: 41613090 | BC66: 13477 | BD66: 12821 | BE66: 358.91 | BF66: 277.3 | BG66: 636.21 | BH66: 58359468 | BI66: 42563176 | BJ66: 13550 | BK66: 12791 | BL66: 377.65 | BM66: 291.14 | BN66: 668.79 | BO66: 59824488 | BP66: 43231250 | BQ66: 13201 | BR66: 12374 | BS66: 326.91 | BT66: 317.03 | BU66: 643.94 | BV66: 49679806 | BW66: 44956004 | BX66: 12664 | BY66: 11817 | BZ66: 13605 | CA66: 13164 | CB66: 13184 | CC66: 12802 | CD66: 12262 | CE66: 621.8109623 | CF66: 650.773103 | CG66: 676.6194692 | CH66: 712.4345037 | CI66: 716.4999321 | CJ66: 0.9620930416 | CK66: 0.9793121397 | CL66: 0.9402774069 | CM66: 0.9387389247 | CN66: 0.8987300224 | CO66: 0.9762092069 | CP66: 0.9668320073 | CQ66: 0.9966011523 | CR66: 0.9701293291 | CS66: 12989 | CT66: 12682 | CU66: 12419 | CV66: 12039 | CW66: 11503 | CX66: 0.961811571 | CY66: 0.983713319 | CZ66: 0.981543513 | DA66: 0.973150887 | DB66: 0.981635279 | DC66: 2012 | DD66: 12614 | DE66: 0.0041356338 | DF66: 718.35 | DG66: 1 | DH66: 718.35 | DI66: 716.116343 | DJ66: 1 | DK66: 718.35 | DL66: 1 | DM66: 718.35 | DN66: 1 | DO66: 0.007998 | DP66: 5.75 | DQ66: 712.6 | DR66: TALLADEGA | DT66: ALABAMA
A67: TALLAPOOSA | B67: 1610 | C67: 5831 | D67: 23382712 | E67: 5648 | F67: 18955799 | G67: 1951 | H67: 5091118 | I67: 1788 | J67: 5596647 | K67: 5905 | L67: 24534653 | M67: 5712 | N67: 21396140 | O67: 2020 | P67: 5366935 | Q67: 1842 | R67: 6549037 | S67: 5990 | T67: 23498768 | U67: 5784 | V67: 22600406 | W67: 2114 | X67: 5469403 | Y67: 1915 | Z67: 6813415 | AA67: 5931 | AB67: 25784851 | AC67: 5708 | AD67: 23894431 | AE67: 2112 | AF67: 6117686 | AG67: 1920 | AH67: 7430672 | AI67: 5707 | AJ67: 21795897 | AK67: 5480 | AL67: 25439648 | AM67: 2119 | AN67: 5454285 | AO67: 1925 | AP67: 7967528 | AQ67: 304.91 | AR67: 275.15 | AS67: 580.06 | AT67: 28473830 | AU67: 24552446 | AV67: 7782 | AW67: 7436 | AX67: 314.42 | AY67: 308.28 | AZ67: 622.7 | BA67: 29901588 | BB67: 27945177 | BC67: 7925 | BD67: 7554 | BE67: 297.88 | BF67: 318.37 | BG67: 616.25 | BH67: 28968171 | BI67: 29413821 | BJ67: 8104 | BK67: 7699 | BL67: 330.54 | BM67: 342.22 | BN67: 672.76 | BO67: 31902537 | BP67: 31325103 | BQ67: 8043 | BR67: 7628 | BS67: 290.17 | BT67: 375.95 | BU67: 666.12 | BV67: 27250182 | BW67: 33407176 | BX67: 7826 | BY67: 7405 | BZ67: 7625 | CA67: 7748 | CB67: 7908 | CC67: 7843 | CD67: 7626 | CE67: 621.8109623 | CF67: 650.773103 | CG67: 676.6194692 | CH67: 712.4345037 | CI67: 716.4999321 | CJ67: 0.93285586 | CK67: 0.9568619187 | CL67: 0.9107778124 | CM67: 0.9443113668 | CN67: 0.9296860616 | CO67: 1.016160432 | CP67: 0.920030513 | CQ67: 0.9966011523 | CR67: 0.9231682211 | CS67: 7554 | CT67: 7703 | CU67: 7833 | CV67: 7700 | CW67: 7460 | CX67: 1.011738218 | CY67: 1.004460643 | CZ67: 1.029229535 | DA67: 1.021081231 | DB67: 1.013917598 | DC67: 2012 | DD67: 7544.4 | DE67: 0.0016808588 | DF67: 685.26 | DG67: 1 | DH67: 685.26 | DI67: 716.116343 | DJ67: 1 | DK67: 685.26 | DL67: 1 | DM67: 685.26 | DN67: 1 | DO67: 0.004027 | DP67: 2.76 | DQ67: 682.5 | DR67: TALLAPOOSA | DT67: ALABAMA
A68: TUSCALOOSA | B68: 1620 | C68: 17790 | D68: 80667626 | E68: 17207 | F68: 55482207 | G68: 6161 | H68: 19965981 | I68: 5590 | J68: 16520546 | K68: 17961 | L68: 88138401 | M68: 17313 | N68: 58250383 | O68: 6535 | P68: 23352514 | Q68: 5905 | R68: 18372125 | S68: 17718 | T68: 88184575 | U68: 17008 | V68: 61367378 | W68: 6556 | X68: 23848079 | Y68: 5868 | Z68: 19059278 | AA68: 16521 | AB68: 84218201 | AC68: 15716 | AD68: 60798319 | AE68: 6405 | AF68: 24305175 | AG68: 5696 | AH68: 19867856 | AI68: 15808 | AJ68: 75880884 | AK68: 14926 | AL68: 63005542 | AM68: 6492 | AN68: 25361685 | AO68: 5762 | AP68: 22168225 | AQ68: 350.14 | AR68: 263.2 | AS68: 613.34 | AT68: 100633607 | AU68: 72002753 | AV68: 23951 | AW68: 22797 | AX68: 379.28 | AY68: 275.01 | AZ68: 654.29 | BA68: 111490915 | BB68: 76622508 | BC68: 24496 | BD68: 23218 | BE68: 384.61 | BF68: 292.98 | BG68: 677.59 | BH68: 112032654 | BI68: 80426656 | BJ68: 24274 | BK68: 22876 | BL68: 394.47 | BM68: 313.94 | BN68: 708.41 | BO68: 108523376 | BP68: 80666175 | BQ68: 22926 | BR68: 21412 | BS68: 378.34 | BT68: 343.09 | BU68: 721.43 | BV68: 101242569 | BW68: 85173767 | BX68: 22300 | BY68: 20688 | BZ68: 23429 | CA68: 23887 | CB68: 23599 | CC68: 22196 | CD68: 21535 | CE68: 621.8109623 | CF68: 650.773103 | CG68: 676.6194692 | CH68: 712.4345037 | CI68: 716.4999321 | CJ68: 0.9863769492 | CK68: 1.005404183 | CL68: 1.001434382 | CM68: 0.9943510544 | CN68: 1.006880765 | CO68: 0.9726524042 | CP68: 1.026974757 | CQ68: 0.9966011523 | CR68: 1.030477192 | CS68: 22873 | CT68: 23563 | CU68: 23122 | CV68: 21490 | CW68: 20729 | CX68: 0.978470854 | CY68: 0.971745521 | CZ68: 0.963816853 | DA68: 0.967751637 | DB68: 0.982199251 | DC68: 2012 | DD68: 22198.2 | DE68: 0.0049802513 | DF68: 762.39 | DG68: 1 | DH68: 762.39 | DI68: 716.116343 | DJ68: 1 | DK68: 762.39 | DL68: 1 | DM68: 762.39 | DN68: 1 | DO68: 0.013601 | DP68: 10.37 | DQ68: 752.02 | DR68: TUSCALOOSA | DT68: ALABAMA
A69: WALKER | B69: 1630 | C69: 9423 | D69: 47122708 | E69: 9208 | F69: 35242434 | G69: 3563 | H69: 12397171 | I69: 3231 | J69: 11458234 | K69: 8976 | L69: 47400421 | M69: 8727 | N69: 35109075 | O69: 3444 | P69: 12548909 | Q69: 3101 | R69: 11455541 | S69: 8894 | T69: 50013414 | U69: 8614 | V69: 36625924 | W69: 3465 | X69: 12056786 | Y69: 3101 | Z69: 11434129 | AA69: 8695 | AB69: 48917980 | AC69: 8381 | AD69: 36876731 | AE69: 3451 | AF69: 12885643 | AG69: 3069 | AH69: 11594017 | AI69: 8442 | AJ69: 36149723 | AK69: 8116 | AL69: 37041473 | AM69: 3367 | AN69: 11879944 | AO69: 2988 | AP69: 12584854 | AQ69: 381.95 | AR69: 312.86 | AS69: 694.81 | AT69: 59519879 | AU69: 46700668 | AV69: 12986 | AW69: 12439 | AX69: 402.24 | AY69: 328.07 | AZ69: 730.31 | BA69: 59949330 | BB69: 46564616 | BC69: 12420 | BD69: 11828 | BE69: 418.52 | BF69: 341.87 | BG69: 760.39 | BH69: 62070200 | BI69: 48060053 | BJ69: 12359 | BK69: 11715 | BL69: 424.03 | BM69: 352.77 | BN69: 776.8 | BO69: 61803623 | BP69: 48470748 | BQ69: 12146 | BR69: 11450 | BS69: 338.93 | BT69: 372.44 | BU69: 711.37 | BV69: 48029667 | BW69: 49626327 | BX69: 11809 | BY69: 11104 | BZ69: 12738 | CA69: 12138 | CB69: 12048 | CC69: 11811 | CD69: 11474 | CE69: 621.8109623 | CF69: 650.773103 | CG69: 676.6194692 | CH69: 712.4345037 | CI69: 716.4999321 | CJ69: 1.117397476 | CK69: 1.122219091 | CL69: 1.12380745 | CM69: 1.090345844 | CN69: 0.9928402895 | CO69: 1.049555428 | CP69: 1.037888997 | CQ69: 0.9966011523 | CR69: 1.041428654 | CS69: 11149 | CT69: 10549 | CU69: 10646 | CV69: 10267 | CW69: 9972 | CX69: 1.056018532 | CY69: 1.032625352 | CZ69: 1.029504395 | DA69: 1.052782103 | DB69: 1.078323301 | DC69: 2012 | DD69: 11707.2 | DE69: 0.0071841732 | DF69: 768.78 | DG69: 1 | DH69: 768.78 | DI69: 716.116343 | DJ69: 1 | DK69: 768.78 | DL69: 1 | DM69: 768.78 | DN69: 1 | DO69: 0.012269 | DP69: 9.43 | DQ69: 759.35 | DR69: WALKER | DT69: ALABAMA
A70: WASHINGTON | B70: 1640 | C70: 2210 | D70: 9863126 | E70: 2181 | F70: 6253331 | G70: 807 | H70: 1926479 | I70: 751 | J70: 1899094 | K70: 2132 | L70: 10499409 | M70: 2100 | N70: 6642243 | O70: 773 | P70: 1925557 | Q70: 714 | R70: 1818197 | S70: 2151 | T70: 9753409 | U70: 2112 | V70: 7155929 | W70: 771 | X70: 1742707 | Y70: 709 | Z70: 2036343 | AA70: 2190 | AB70: 9999727 | AC70: 2143 | AD70: 8256008 | AE70: 793 | AF70: 2223743 | AG70: 725 | AH70: 2352821 | AI70: 2134 | AJ70: 8301009 | AK70: 2083 | AL70: 8327423 | AM70: 787 | AN70: 2277061 | AO70: 720 | AP70: 2422942 | AQ70: 325.64 | AR70: 231.71 | AS70: 557.35 | AT70: 11789605 | AU70: 8152425 | AV70: 3017 | AW70: 2932 | AX70: 356.42 | AY70: 250.55 | AZ70: 606.97 | BA70: 12424966 | BB70: 8460440 | BC70: 2905 | BD70: 2814 | BE70: 327.86 | BF70: 271.54 | BG70: 599.4 | BH70: 11496116 | BI70: 9192272 | BJ70: 2922 | BK70: 2821 | BL70: 341.48 | BM70: 308.25 | BN70: 649.73 | BO70: 12223470 | BP70: 10608829 | BQ70: 2983 | BR70: 2868 | BS70: 301.78 | BT70: 319.61 | BU70: 621.39 | BV70: 10578070 | BW70: 10750365 | BX70: 2921 | BY70: 2803 | BZ70: 2979 | CA70: 2862 | CB70: 2873 | CC70: 2928 | CD70: 2865 | CE70: 621.8109623 | CF70: 650.773103 | CG70: 676.6194692 | CH70: 712.4345037 | CI70: 716.4999321 | CJ70: 0.8963335061 | CK70: 0.9326906677 | CL70: 0.8858745976 | CM70: 0.9119855883 | CN70: 0.867257584 | CO70: 0.8891053735 | CP70: 1.010935729 | CQ70: 0.9966011523 | CR70: 1.014383464 | CS70: 2819 | CT70: 2740 | CU70: 2792 | CV70: 2788 | CW70: 2754 | CX70: 0.883347782 | CY70: 0.894046677 | CZ70: 0.901131686 | DA70: 0.896681733 | DB70: 0.870220524 | DC70: 2012 | DD70: 2847.6 | DE70: 0.0025196979 | DF70: 752.33 | DG70: 1 | DH70: 752.33 | DI70: 716.116343 | DJ70: 1 | DK70: 752.33 | DL70: 1 | DM70: 752.33 | DN70: 1 | DO70: 0.003517 | DP70: 2.65 | DQ70: 749.68 | DR70: WASHINGTON | DT70: ALABAMA
A71: WILCOX | B71: 1650 | C71: 1628 | D71: 6327841 | E71: 1612 | F71: 4547818 | G71: 822 | H71: 1890231 | I71: 779 | J71: 1575752 | K71: 1576 | L71: 7469823 | M71: 1561 | N71: 4879129 | O71: 857 | P71: 2003057 | Q71: 811 | R71: 2384358 | S71: 1528 | T71: 7485792 | U71: 1504 | V71: 4707715 | W71: 844 | X71: 2619157 | Y71: 798 | Z71: 2156483 | AA71: 1509 | AB71: 6725685 | AC71: 1478 | AD71: 4720472 | AE71: 832 | AF71: 2062054 | AG71: 781 | AH71: 2290397 | AI71: 1466 | AJ71: 5382516 | AK71: 1426 | AL71: 4702469 | AM71: 819 | AN71: 1526747 | AO71: 766 | AP71: 3083310 | AQ71: 279.53 | AR71: 213.42 | AS71: 492.95 | AT71: 8218072 | AU71: 6123570 | AV71: 2450 | AW71: 2391 | AX71: 324.46 | AY71: 255.18 | AZ71: 579.64 | BA71: 9472880 | BB71: 7263487 | BC71: 2433 | BD71: 2372 | BE71: 355.01 | BF71: 248.49 | BG71: 603.5 | BH71: 10104949 | BI71: 6864198 | BJ71: 2372 | BK71: 2302 | BL71: 312.82 | BM71: 258.63 | BN71: 571.45 | BO71: 8787739 | BP71: 7010869 | BQ71: 2341 | BR71: 2259 | BS71: 251.98 | BT71: 295.99 | BU71: 547.97 | BV71: 6909263 | BW71: 7785779 | BX71: 2285 | BY71: 2192 | BZ71: 2423 | CA71: 2404 | CB71: 2338 | CC71: 2301 | CD71: 2241 | CE71: 621.8109623 | CF71: 650.773103 | CG71: 676.6194692 | CH71: 712.4345037 | CI71: 716.4999321 | CJ71: 0.7927650522 | CK71: 0.8906944637 | CL71: 0.8919341335 | CM71: 0.8021088212 | CN71: 0.7647872323 | CO71: 0.9066412754 | CP71: 0.9137659658 | CQ71: 0.9966011523 | CR71: 0.9168823091 | CS71: 2353 | CT71: 2308 | CU71: 2188 | CV71: 2190 | CW71: 2154 | CX71: 0.915360063 | CY71: 0.934347136 | CZ71: 0.900879414 | DA71: 0.892049468 | DB71: 0.888118795 | DC71: 2012 | DD71: 2303.2 | DE71: 0.0042542726 | DF71: 678.84 | DG71: 1 | DH71: 678.84 | DI71: 716.116343 | DJ71: 1 | DK71: 678.84 | DL71: 1 | DM71: 678.84 | DN71: 1 | DO71: 0.009848 | DP71: 6.69 | DQ71: 672.15 | DR71: WILCOX | DT71: ALABAMA
A72: WINSTON | B72: 1660 | C72: 3618 | D72: 19214972 | E72: 3522 | F72: 12511849 | G72: 1214 | H72: 4847827 | I72: 1137 | J72: 4231658 | K72: 3615 | L72: 20125002 | M72: 3512 | N72: 12958155 | O72: 1220 | P72: 5323354 | Q72: 1141 | R72: 4398141 | S72: 3647 | T72: 19746623 | U72: 3536 | V72: 13585985 | W72: 1245 | X72: 5564821 | Y72: 1169 | Z72: 4545853 | AA72: 3604 | AB72: 21458548 | AC72: 3484 | AD72: 13859386 | AE72: 1218 | AF72: 5056523 | AG72: 1139 | AH72: 4530149 | AI72: 3473 | AJ72: 17334533 | AK72: 3342 | AL72: 14557396 | AM72: 1181 | AN72: 4187445 | AO72: 1099 | AP72: 4927188 | AQ72: 414.99 | AR72: 299.48 | AS72: 714.47 | AT72: 24062799 | AU72: 16743507 | AV72: 4832 | AW72: 4659 | AX72: 438.61 | AY72: 310.84 | AZ72: 749.45 | BA72: 25448356 | BB72: 17356296 | BC72: 4835 | BD72: 4653 | BE72: 431.17 | BF72: 321.14 | BG72: 752.31 | BH72: 25311444 | BI72: 18131838 | BJ72: 4892 | BK72: 4705 | BL72: 458.23 | BM72: 331.49 | BN72: 789.72 | BO72: 26515071 | BP72: 18389535 | BQ72: 4822 | BR72: 4623 | BS72: 385.37 | BT72: 365.62 | BU72: 750.99 | BV72: 21521978 | BW72: 19484584 | BX72: 4654 | BY72: 4441 | BZ72: 4754 | CA72: 4748 | CB72: 4802 | CC72: 4726 | CD72: 4553 | CE72: 621.8109623 | CF72: 650.773103 | CG72: 676.6194692 | CH72: 712.4345037 | CI72: 716.4999321 | CJ72: 1.149014802 | CK72: 1.151630263 | CL72: 1.11186573 | CM72: 1.108480844 | CN72: 1.048136875 | CO72: 1.028048892 | CP72: 1.083436509 | CQ72: 0.9966011523 | CR72: 1.087131503 | CS72: 4313 | CT72: 4372 | CU72: 4457 | CV72: 4368 | CW72: 4211 | CX72: 1.006875367 | CY72: 1.035939931 | CZ72: 1.033021739 | DA72: 1.027938307 | DB72: 1.036393906 | DC72: 2012 | DD72: 4616.2 | DE72: 0.0036772169 | DF72: 805.35 | DG72: 1 | DH72: 805.35 | DI72: 716.116343 | DJ72: 1 | DK72: 805.35 | DL72: 1 | DM72: 805.35 | DN72: 1 | DO72: 0.007584 | DP72: 6.11 | DQ72: 799.24 | DR72: WINSTON | DT72: ALABAMA
A73: ALEUTIANS EAST | B73: 2013 | C73: 188 | D73: 722008 | E73: 139 | F73: 541593 | G73: 33 | H73: 123042 | I73: 27 | J73: 120586 | K73: 196 | L73: 507386 | M73: 140 | N73: 450084 | O73: 31 | P73: 290031 | Q73: 28 | R73: 76075 | S73: 203 | T73: 771713 | U73: 148 | V73: 458975 | W73: 37 | X73: 125089 | Y73: 33 | Z73: 100515 | AA73: 220 | AB73: 715284 | AC73: 155 | AD73: 454236 | AE73: 40 | AF73: 157407 | AG73: 37 | AH73: 93473 | AI73: 232 | AJ73: 564255 | AK73: 164 | AL73: 468183 | AM73: 35 | AN73: 147698 | AO73: 30 | AP73: 106871 | AQ73: 318.65 | AR73: 332.42 | AS73: 651.07 | AT73: 845050 | AU73: 662179 | AV73: 221 | AW73: 166 | AX73: 292.74 | AY73: 260.99 | AZ73: 553.73 | BA73: 797417 | BB73: 526159 | BC73: 227 | BD73: 168 | BE73: 311.39 | BF73: 257.59 | BG73: 568.98 | BH73: 896802 | BI73: 559490 | BJ73: 240 | BK73: 181 | BL73: 279.71 | BM73: 237.72 | BN73: 517.43 | BO73: 872691 | BP73: 547709 | BQ73: 260 | BR73: 192 | BS73: 222.21 | BT73: 247.02 | BU73: 469.23 | BV73: 711953 | BW73: 575054 | BX73: 267 | BY73: 194 | BZ73: 196 | CA73: 199 | CB73: 212 | CC73: 227 | CD73: 232 | CE73: 621.8109623 | CF73: 650.773103 | CG73: 676.6194692 | CH73: 712.4345037 | CI73: 716.4999321 | CJ73: 1.047054554 | CK73: 0.8508802798 | CL73: 0.8409157967 | CM73: 0.7262843072 | CN73: 0.6548918974 | CO73: 0.8410290501 | CP73: 0.9797585077 | CQ73: 0.9966011523 | CR73: 0.9830999145 | CS73: 166 | CT73: 155 | CU73: 166 | CV73: 173 | CW73: 185 | CX73: 0.910741861 | CY73: 0.972153917 | CZ73: 0.818940909 | DA73: 0.808887953 | DB73: 0.718490457 | DC73: 2012 | DD73: 180.2 | DE73: 0.0011692037 | DF73: 730.12 | DG73: 1 | DH73: 730.12 | DI73: 744.6126197 | DJ73: 0.4244997055 | DK73: 738.4605069 | DL73: 1.042759477 | DM73: 770.0366918 | DN73: 1 | DO73: 0.004436 | DP73: 3.42 | DQ73: 766.62 | DR73: ALEUTIANS EAST | DT73: ALASKA
A74: ALEUTIANS WEST | B74: 2016 | C74: 188 | D74: 722008 | E74: 139 | F74: 541593 | G74: 33 | H74: 123042 | I74: 27 | J74: 120586 | K74: 196 | L74: 507386 | M74: 140 | N74: 450084 | O74: 31 | P74: 290031 | Q74: 28 | R74: 76075 | S74: 203 | T74: 771713 | U74: 148 | V74: 458975 | W74: 37 | X74: 125089 | Y74: 33 | Z74: 100515 | AA74: 220 | AB74: 715284 | AC74: 155 | AD74: 454236 | AE74: 40 | AF74: 157407 | AG74: 37 | AH74: 93473 | AI74: 232 | AJ74: 564255 | AK74: 164 | AL74: 468183 | AM74: 35 | AN74: 147698 | AO74: 30 | AP74: 106871 | AQ74: 318.65 | AR74: 332.42 | AS74: 651.07 | AT74: 845050 | AU74: 662179 | AV74: 221 | AW74: 166 | AX74: 292.74 | AY74: 260.99 | AZ74: 553.73 | BA74: 797417 | BB74: 526159 | BC74: 227 | BD74: 168 | BE74: 311.39 | BF74: 257.59 | BG74: 568.98 | BH74: 896802 | BI74: 559490 | BJ74: 240 | BK74: 181 | BL74: 279.71 | BM74: 237.72 | BN74: 517.43 | BO74: 872691 | BP74: 547709 | BQ74: 260 | BR74: 192 | BS74: 222.21 | BT74: 247.02 | BU74: 469.23 | BV74: 711953 | BW74: 575054 | BX74: 267 | BY74: 194 | BZ74: 196 | CA74: 199 | CB74: 212 | CC74: 227 | CD74: 232 | CE74: 621.8109623 | CF74: 650.773103 | CG74: 676.6194692 | CH74: 712.4345037 | CI74: 716.4999321 | CJ74: 1.047054554 | CK74: 0.8508802798 | CL74: 0.8409157967 | CM74: 0.7262843072 | CN74: 0.6548918974 | CO74: 0.8410290501 | CP74: 0.9797585077 | CQ74: 0.9966011523 | CR74: 0.9830999145 | CS74: 166 | CT74: 155 | CU74: 166 | CV74: 173 | CW74: 185 | CX74: 0.910741861 | CY74: 0.972153917 | CZ74: 0.818940909 | DA74: 0.808887953 | DB74: 0.718490457 | DC74: 2012 | DD74: 180.2 | DE74: 0.0011692037 | DF74: 730.12 | DG74: 1 | DH74: 730.12 | DI74: 744.6126197 | DJ74: 0.4244997055 | DK74: 738.4605069 | DL74: 1.042759477 | DM74: 770.0366918 | DN74: 1 | DO74: 0.004436 | DP74: 3.42 | DQ74: 766.62 | DR74: ALEUTIANS WEST | DT74: ALASKA
A75: ANCHORAGE | B75: 2020 | C75: 16460 | D75: 52149699 | E75: 15347 | F75: 53019260 | G75: 4070 | H75: 11985956 | I75: 3651 | J75: 14283379 | K75: 17170 | L75: 56262789 | M75: 15896 | N75: 44222709 | O75: 4348 | P75: 13639994 | Q75: 3886 | R75: 12702037 | S75: 17983 | T75: 62449736 | U75: 16456 | V75: 45894717 | W75: 4498 | X75: 16028322 | Y75: 4030 | Z75: 14058633 | AA75: 18973 | AB75: 67079236 | AC75: 17188 | AD75: 50757400 | AE75: 4634 | AF75: 17558851 | AG75: 4139 | AH75: 15012721 | AI75: 19840 | AJ75: 67377881 | AK75: 17743 | AL75: 59937174 | AM75: 4765 | AN75: 17673415 | AO75: 4225 | AP75: 18059439 | AQ75: 260.33 | AR75: 295.22 | AS75: 555.55 | AT75: 64135655 | AU75: 67302639 | AV75: 20530 | AW75: 18998 | AX75: 270.71 | AY75: 239.8 | AZ75: 510.51 | BA75: 69902783 | BB75: 56924746 | BC75: 21518 | BD75: 19782 | BE75: 290.91 | BF75: 243.88 | BG75: 534.79 | BH75: 78478058 | BI75: 59953350 | BJ75: 22481 | BK75: 20486 | BL75: 298.77 | BM75: 256.99 | BN75: 555.76 | BO75: 84638087 | BP75: 65770121 | BQ75: 23607 | BR75: 21327 | BS75: 288.06 | BT75: 295.87 | BU75: 583.93 | BV75: 85051296 | BW75: 77996613 | BX75: 24605 | BY75: 21968 | BZ75: 19837 | CA75: 20691 | CB75: 21520 | CC75: 22508 | CD75: 23353 | CE75: 621.8109623 | CF75: 650.773103 | CG75: 676.6194692 | CH75: 712.4345037 | CI75: 716.4999321 | CJ75: 0.8934387357 | CK75: 0.7844669634 | CL75: 0.7903851786 | CM75: 0.7800857441 | CN75: 0.814975653 | CO75: 0.8663336844 | CP75: 0.93805709 | CQ75: 0.9966011523 | CR75: 0.9412562767 | CS75: 18339 | CT75: 19288 | CU75: 20045 | CV75: 20734 | CW75: 21204 | CX75: 0.864520089 | CY75: 0.87255644 | CZ75: 0.867001818 | DA75: 0.870591709 | DB75: 0.857446512 | DC75: 2012 | DD75: 20512.2 | DE75: 0.0030966213 | DF75: 697.69 | DG75: 1 | DH75: 697.69 | DI75: 744.6126197 | DJ75: 1 | DK75: 697.69 | DL75: 1 | DM75: 697.69 | DN75: 1 | DO75: 0.009554 | DP75: 6.67 | DQ75: 691.02 | DR75: ANCHORAGE | DT75: ALASKA
A76: BETHEL | B76: 2050 | C76: 609 | D76: 2600133 | E76: 540 | F76: 2296378 | G76: 93 | H76: 315735 | I76: 83 | J76: 285370 | K76: 632 | L76: 3372296 | M76: 550 | N76: 1776437 | O76: 83 | P76: 250378 | Q76: 75 | R76: 198191 | S76: 633 | T76: 2947954 | U76: 545 | V76: 1853666 | W76: 86 | X76: 181500 | Y76: 78 | Z76: 181540 | AA76: 648 | AB76: 2227986 | AC76: 555 | AD76: 1428631 | AE76: 87 | AF76: 486033 | AG76: 78 | AH76: 277246 | AI76: 686 | AJ76: 3246089 | AK76: 581 | AL76: 1848539 | AM76: 86 | AN76: 730757 | AO76: 77 | AP76: 247081 | AQ76: 346.14 | AR76: 345.34 | AS76: 691.48 | AT76: 2915868 | AU76: 2581748 | AV76: 702 | AW76: 623 | AX76: 422.22 | AY76: 263.28 | AZ76: 685.5 | BA76: 3622674 | BB76: 1974628 | BC76: 715 | BD76: 625 | BE76: 362.71 | BF76: 272.23 | BG76: 634.94 | BH76: 3129454 | BI76: 2035206 | BJ76: 719 | BK76: 623 | BL76: 307.71 | BM76: 224.58 | BN76: 532.29 | BO76: 2714019 | BP76: 1705877 | BQ76: 735 | BR76: 633 | BS76: 429.28 | BT76: 265.4 | BU76: 694.68 | BV76: 3976846 | BW76: 2095620 | BX76: 772 | BY76: 658 | BZ76: 666 | CA76: 672 | CB76: 673 | CC76: 686 | CD76: 718 | CE76: 621.8109623 | CF76: 650.773103 | CG76: 676.6194692 | CH76: 712.4345037 | CI76: 716.4999321 | CJ76: 1.112042151 | CK76: 1.053362527 | CL76: 0.9384004287 | CM76: 0.7471423649 | CN76: 0.9695464981 | CO76: 0.8499653132 | CP76: 1.134280163 | CQ76: 0.9966011523 | CR76: 1.138148556 | CS76: 817 | CT76: 843 | CU76: 857 | CV76: 864 | CW76: 906 | CX76: 0.879503336 | CY76: 0.879016559 | CZ76: 0.830758927 | DA76: 0.840742342 | DB76: 0.823260849 | DC76: 2012 | DD76: 632.4 | DE76: 0.0003581049 | DF76: 845.96 | DG76: 1 | DH76: 845.96 | DI76: 744.6126197 | DJ76: 0.7952358141 | DK76: 825.2076862 | DL76: 1.042759477 | DM76: 860.493135 | DN76: 1 | DO76: 0.001958 | DP76: 1.68 | DQ76: 858.81 | DR76: BETHEL | DT76: ALASKA
A77: BRISTOL BAY BOROUGH | B77: 2060 | C77: 454 | D77: 1463640 | E77: 415 | F77: 1331327 | G77: 115 | H77: 614575 | I77: 98 | J77: 398260 | K77: 512 | L77: 1645350 | M77: 468 | N77: 1291592 | O77: 119 | P77: 407872 | Q77: 101 | R77: 208587 | S77: 539 | T77: 1806659 | U77: 491 | V77: 1308661 | W77: 111 | X77: 461615 | Y77: 92 | Z77: 242632 | AA77: 543 | AB77: 1771063 | AC77: 499 | AD77: 1384984 | AE77: 104 | AF77: 211676 | AG77: 86 | AH77: 188141 | AI77: 548 | AJ77: 1814441 | AK77: 497 | AL77: 1641095 | AM77: 111 | AN77: 591983 | AO77: 93 | AP77: 295952 | AQ77: 304.37 | AR77: 280.96 | AS77: 585.33 | AT77: 2078215 | AU77: 1729587 | AV77: 569 | AW77: 513 | AX77: 271.16 | AY77: 219.71 | AZ77: 490.87 | BA77: 2053222 | BB77: 1500179 | BC77: 631 | BD77: 569 | BE77: 290.8 | BF77: 221.74 | BG77: 512.54 | BH77: 2268274 | BI77: 1551293 | BJ77: 650 | BK77: 583 | BL77: 255.38 | BM77: 224.09 | BN77: 479.47 | BO77: 1982739 | BP77: 1573125 | BQ77: 647 | BR77: 585 | BS77: 304.3 | BT77: 273.59 | BU77: 577.89 | BV77: 2406424 | BW77: 1937047 | BX77: 659 | BY77: 590 | BZ77: 544 | CA77: 601 | CB77: 618 | CC77: 617 | CD77: 626 | CE77: 621.8109623 | CF77: 650.773103 | CG77: 676.6194692 | CH77: 712.4345037 | CI77: 716.4999321 | CJ77: 0.9413311046 | CK77: 0.754287474 | CL77: 0.7575011115 | CM77: 0.6730022163 | CN77: 0.8065457848 | CO77: 0.8399938868 | CP77: 0.9363562648 | CQ77: 0.9966011523 | CR77: 0.9395496509 | CS77: 94 | CT77: 88 | CU77: 85 | CV77: 84 | CW77: 87 | CX77: 0.923261101 | CY77: 1.008777879 | CZ77: 0.78182998 | DA77: 0.759958535 | DB77: 0.713405291 | DC77: 2012 | DD77: 568 | DE77: 0.0020685945 | DF77: 697.15 | DG77: 1 | DH77: 697.15 | DI77: 744.6126197 | DJ77: 0.7536577473 | DK77: 708.8420487 | DL77: 1.042759477 | DM77: 739.1517637 | DN77: 1 | DO77: 0.009406 | DP77: 6.95 | DQ77: 732.2 | DR77: BRISTOL BAY BOROUGH | DT77: ALASKA
A78: DENALI | B78: 2068 | C78: 386 | D78: 1418266 | E78: 350 | F78: 1163701 | G78: 48 | H78: 42445 | I78: 43 | J78: 76710 | K78: 408 | L78: 963162 | M78: 367 | N78: 988096 | O78: 47 | P78: 216033 | Q78: 42 | R78: 117375 | S78: 418 | T78: 1782588 | U78: 379 | V78: 1058773 | W78: 58 | X78: 49033 | Y78: 50 | Z78: 96190 | AA78: 422 | AB78: 1814634 | AC78: 387 | AD78: 1301367 | AE78: 64 | AF78: 171123 | AG78: 56 | AH78: 186193 | AI78: 447 | AJ78: 1354223 | AK78: 408 | AL78: 1323129 | AM78: 62 | AN78: 247815 | AO78: 55 | AP78: 293865 | AQ78: 280.47 | AR78: 263.02 | AS78: 543.49 | AT78: 1460711 | AU78: 1240411 | AV78: 434 | AW78: 393 | AX78: 215.97 | AY78: 225.24 | AZ78: 441.21 | BA78: 1179195 | BB78: 1105471 | BC78: 455 | BD78: 409 | BE78: 320.66 | BF78: 224.35 | BG78: 545.01 | BH78: 1831621 | BI78: 1154963 | BJ78: 476 | BK78: 429 | BL78: 340.49 | BM78: 279.83 | BN78: 620.32 | BO78: 1985757 | BP78: 1487560 | BQ78: 486 | BR78: 443 | BS78: 262.29 | BT78: 291.04 | BU78: 553.33 | BV78: 1602038 | BW78: 1616994 | BX78: 509 | BY78: 463 | BZ78: 415 | CA78: 433 | CB78: 453 | CC78: 465 | CD78: 487 | CE78: 621.8109623 | CF78: 650.773103 | CG78: 676.6194692 | CH78: 712.4345037 | CI78: 716.4999321 | CJ78: 0.8740437737 | CK78: 0.6779782354 | CL78: 0.8054896804 | CM78: 0.8707046005 | CN78: 0.7722680425 | CO78: 0.822848516 | CP78: 0.972350136 | CQ78: 0.9966011523 | CR78: 0.9756662771 | CS78: 617 | CT78: 626 | CU78: 640 | CV78: 658 | CW78: 661 | CX78: 0.860972756 | CY78: 0.842830757 | CZ78: 0.843645122 | DA78: 0.828114645 | DB78: 0.742959742 | DC78: 2012 | DD78: 427.4 | DE78: 0.0010452296 | DF78: 724.69 | DG78: 1 | DH78: 724.69 | DI78: 744.6126197 | DJ78: 0.6537583651 | DK78: 731.5880404 | DL78: 1.042759477 | DM78: 762.8703622 | DN78: 1 | DO78: 0.003885 | DP78: 2.96 | DQ78: 759.91 | DR78: DENALI | DT78: ALASKA
A79: DILLINGHAM | B79: 2070 | C79: 353 | D79: 1025521 | E79: 303 | F79: 1065741 | G79: 40 | H79: 76326 | I79: 39 | J79: 141286 | K79: 377 | L79: 2364615 | M79: 317 | N79: 930679 | O79: 41 | P79: 107388 | Q79: 40 | R79: 118590 | S79: 385 | T79: 2649894 | U79: 316 | V79: 956834 | W79: 40 | X79: 220773 | Y79: 39 | Z79: 161322 | AA79: 395 | AB79: 2681010 | AC79: 320 | AD79: 1110723 | AE79: 44 | AF79: 307988 | AG79: 42 | AH79: 185571 | AI79: 397 | AJ79: 1743556 | AK79: 326 | AL79: 1001480 | AM79: 41 | AN79: 555715 | AO79: 37 | AP79: 149588 | AQ79: 233.64 | AR79: 294.11 | AS79: 527.75 | AT79: 1101847 | AU79: 1207027 | AV79: 393 | AW79: 342 | AX79: 492.82 | AY79: 244.93 | AZ79: 737.75 | BA79: 2472003 | BB79: 1049269 | BC79: 418 | BD79: 357 | BE79: 562.88 | BF79: 262.48 | BG79: 825.36 | BH79: 2870667 | BI79: 1118156 | BJ79: 425 | BK79: 355 | BL79: 567.39 | BM79: 298.41 | BN79: 865.8 | BO79: 2988998 | BP79: 1296294 | BQ79: 439 | BR79: 362 | BS79: 437.46 | BT79: 264.25 | BU79: 701.71 | BV79: 2299271 | BW79: 1151068 | BX79: 438 | BY79: 363 | BZ79: 370 | CA79: 389 | CB79: 391 | CC79: 402 | CD79: 402 | CE79: 621.8109623 | CF79: 650.773103 | CG79: 676.6194692 | CH79: 712.4345037 | CI79: 716.4999321 | CJ79: 0.8487306143 | CK79: 1.133651647 | CL79: 1.219828925 | CM79: 1.215269608 | CN79: 0.9793580831 | CO79: 0.8372623722 | CP79: 1.289163124 | CQ79: 0.9966011523 | CR79: 1.293559737 | CS79: 378 | CT79: 392 | CU79: 409 | CV79: 417 | CW79: 424 | CX79: 0.838008806 | CY79: 0.855705999 | CZ79: 0.859128258 | DA79: 0.82118363 | DB79: 0.814266227 | DC79: 2012 | DD79: 355.8 | DE79: 0.0010152325 | DF79: 960.84 | DG79: 1 | DH79: 960.84 | DI79: 744.6126197 | DJ79: 0.5964897317 | DK79: 873.5900317 | DL79: 1.042759477 | DM79: 910.9442844 | DN79: 1 | DO79: 0.002412 | DP79: 2.2 | DQ79: 908.74 | DR79: DILLINGHAM | DT79: ALASKA
A80: FAIRBANKS NORTH STAR | B80: 2090 | C80: 4437 | D80: 15100708 | E80: 4193 | F80: 15048641 | G80: 979 | H80: 2086446 | I80: 874 | J80: 2348502 | K80: 4572 | L80: 17505024 | M80: 4305 | N80: 12646606 | O80: 997 | P80: 3087290 | Q80: 888 | R80: 2322035 | S80: 4796 | T80: 16059999 | U80: 4481 | V80: 12535733 | W80: 1040 | X80: 2532499 | Y80: 925 | Z80: 2479098 | AA80: 5121 | AB80: 16088765 | AC80: 4750 | AD80: 13983233 | AE80: 1120 | AF80: 2964727 | AG80: 985 | AH80: 2783180 | AI80: 5362 | AJ80: 21593946 | AK80: 4951 | AL80: 17601463 | AM80: 1142 | AN80: 4022323 | AO80: 984 | AP80: 3520611 | AQ80: 264.45 | AR80: 286.12 | AS80: 550.57 | AT80: 17187154 | AU80: 17397143 | AV80: 5416 | AW80: 5067 | AX80: 308.14 | AY80: 240.21 | AZ80: 548.35 | BA80: 20592314 | BB80: 14968641 | BC80: 5569 | BD80: 5193 | BE80: 265.49 | BF80: 231.45 | BG80: 496.94 | BH80: 18592498 | BI80: 15014831 | BJ80: 5836 | BK80: 5406 | BL80: 254.41 | BM80: 243.63 | BN80: 498.04 | BO80: 19053492 | BP80: 16766413 | BQ80: 6241 | BR80: 5735 | BS80: 328.21 | BT80: 296.58 | BU80: 624.79 | BV80: 25616269 | BW80: 21122074 | BX80: 6504 | BY80: 5935 | BZ80: 5258 | CA80: 5390 | CB80: 5629 | CC80: 5997 | CD80: 6234 | CE80: 621.8109623 | CF80: 650.773103 | CG80: 676.6194692 | CH80: 712.4345037 | CI80: 716.4999321 | CJ80: 0.8854298708 | CK80: 0.8426131895 | CL80: 0.7344453162 | CM80: 0.6990677703 | CN80: 0.872002874 | CO80: 0.8415177535 | CP80: 0.958639079 | CQ80: 0.9966011523 | CR80: 0.9619084593 | CS80: 5291 | CT80: 5616 | CU80: 5847 | CV80: 6157 | CW80: 6350 | CX80: 0.865058475 | CY80: 0.865698872 | CZ80: 0.844870478 | DA80: 0.832551111 | DB80: 0.806123914 | DC80: 2012 | DD80: 5467.2 | DE80: 0.0015934125 | DF80: 714.08 | DG80: 1 | DH80: 714.08 | DI80: 744.6126197 | DJ80: 1 | DK80: 714.08 | DL80: 1 | DM80: 714.08 | DN80: 1 | DO80: 0.005906 | DP80: 4.22 | DQ80: 709.86 | DR80: FAIRBANKS NORTH STAR | DT80: ALASKA
A81: HAINES | B81: 2100 | C81: 296 | D81: 1038197 | E81: 283 | F81: 1354114 | G81: 39 | H81: 77378 | I81: 34 | J81: 187129 | K81: 299 | L81: 1164082 | M81: 285 | N81: 1251849 | O81: 49 | P81: 186419 | Q81: 46 | R81: 154106 | S81: 302 | T81: 793831 | U81: 286 | V81: 1082170 | W81: 55 | X81: 99791 | Y81: 51 | Z81: 281281 | AA81: 317 | AB81: 849327 | AC81: 301 | AD81: 1098371 | AE81: 50 | AF81: 422622 | AG81: 45 | AH81: 418949 | AI81: 328 | AJ81: 965794 | AK81: 312 | AL81: 1213557 | AM81: 52 | AN81: 151002 | AO81: 47 | AP81: 236193 | AQ81: 277.51 | AR81: 405.16 | AS81: 682.67 | AT81: 1115575 | AU81: 1541243 | AV81: 335 | AW81: 317 | AX81: 323.4 | AY81: 353.97 | AZ81: 677.37 | BA81: 1350501 | BB81: 1405955 | BC81: 348 | BD81: 331 | BE81: 208.6 | BF81: 337.15 | BG81: 545.75 | BH81: 893622 | BI81: 1363451 | BJ81: 357 | BK81: 337 | BL81: 288.82 | BM81: 365.44 | BN81: 654.26 | BO81: 1271949 | BP81: 1517320 | BQ81: 367 | BR81: 346 | BS81: 244.91 | BT81: 336.53 | BU81: 581.44 | BV81: 1116796 | BW81: 1449750 | BX81: 380 | BY81: 359 | BZ81: 327 | CA81: 340 | CB81: 347 | CC81: 357 | CD81: 370 | CE81: 621.8109623 | CF81: 650.773103 | CG81: 676.6194692 | CH81: 712.4345037 | CI81: 716.4999321 | CJ81: 1.097873858 | CK81: 1.040869693 | CL81: 0.8065833527 | CM81: 0.9183440675 | CN81: 0.8115004259 | CO81: 0.8503615612 | CP81: 1.099572608 | CQ81: 0.9966011523 | CR81: 1.103322633 | CS81: 320 | CT81: 325 | CU81: 339 | CV81: 348 | CW81: 368 | CX81: 0.881901464 | CY81: 0.847250146 | CZ81: 0.889822381 | DA81: 0.825982384 | DB81: 0.812386498 | DC81: 2012 | DD81: 338 | DE81: 0.0033300676 | DF81: 817.63 | DG81: 1 | DH81: 817.63 | DI81: 744.6126197 | DJ81: 0.5813776741 | DK81: 787.0632944 | DL81: 1.042759477 | DM81: 820.7177091 | DN81: 1 | DO81: 0.014258 | DP81: 11.7 | DQ81: 809.02 | DR81: HAINES | DT81: ALASKA
A82: HOONAH-ANGOON | B82: 2105 | C82: 271 | D82: 1079342 | E82: 248 | F82: 998648 | G82: 46 | H82: 217026 | I82: 43 | J82: 147732 | K82: 284 | L82: 1236507 | M82: 262 | N82: 726687 | O82: 48 | P82: 133037 | Q82: 46 | R82: 126973 | S82: 308 | T82: 1055755 | U82: 284 | V82: 766922 | W82: 41 | X82: 302000 | Y82: 40 | Z82: 238062 | AA82: 325 | AB82: 1122420 | AC82: 301 | AD82: 740985 | AE82: 42 | AF82: 192223 | AG82: 39 | AH82: 160822 | AI82: 430 | AJ82: 1610544 | AK82: 391 | AL82: 1075204 | AM82: 50 | AN82: 112164 | AO82: 48 | AP82: 139886 | AQ82: 340.79 | AR82: 328.29 | AS82: 669.08 | AT82: 1296368 | AU82: 1146380 | AV82: 317 | AW82: 291 | AX82: 343.76 | AY82: 230.97 | AZ82: 574.73 | BA82: 1369544 | BB82: 853660 | BC82: 332 | BD82: 308 | BE82: 324.2 | BF82: 258.48 | BG82: 582.68 | BH82: 1357755 | BI82: 1004984 | BJ82: 349 | BK82: 324 | BL82: 298.51 | BM82: 221.03 | BN82: 519.54 | BO82: 1314643 | BP82: 901807 | BQ82: 367 | BR82: 340 | BS82: 299.08 | BT82: 230.65 | BU82: 529.73 | BV82: 1722708 | BW82: 1215090 | BX82: 480 | BY82: 439 | BZ82: 305 | CA82: 321 | CB82: 337 | CC82: 354 | CD82: 461 | CE82: 621.8109623 | CF82: 650.773103 | CG82: 676.6194692 | CH82: 712.4345037 | CI82: 716.4999321 | CJ82: 1.076018341 | CK82: 0.8831495914 | CL82: 0.8611635144 | CM82: 0.729245983 | CN82: 0.7393301469 | CO82: 0.8341489476 | CP82: 1.028331352 | CQ82: 0.9966011523 | CR82: 1.031838414 | CS82: 356 | CT82: 369 | CU82: 392 | CV82: 428 | CW82: 425 | CX82: 0.791258628 | CY82: 0.918282978 | CZ82: 0.829118613 | DA82: 0.836240335 | DB82: 0.799561357 | DC82: 2012 | DD82: 340.4 | DE82: 0.0028131143 | DF82: 765.05 | DG82: 1 | DH82: 765.05 | DI82: 744.6126197 | DJ82: 0.5834380858 | DK82: 756.5365657 | DL82: 1.042759477 | DM82: 788.8856734 | DN82: 1 | DO82: 0.012313 | DP82: 9.71 | DQ82: 779.18 | DR82: HOONAH-ANGOON | DT82: ALASKA
A83: JUNEAU | B83: 2110 | C83: 2498 | D83: 8181649 | E83: 2324 | F83: 8542060 | G83: 534 | H83: 2210727 | I83: 490 | J83: 2075004 | K83: 2567 | L83: 8066954 | M83: 2375 | N83: 6952881 | O83: 534 | P83: 2288601 | Q83: 485 | R83: 1786768 | S83: 2646 | T83: 9209308 | U83: 2427 | V83: 7749794 | W83: 564 | X83: 2355893 | Y83: 510 | Z83: 1949656 | AA83: 2766 | AB83: 10783791 | AC83: 2526 | AD83: 8125183 | AE83: 561 | AF83: 2260609 | AG83: 500 | AH83: 2002303 | AI83: 2854 | AJ83: 9570755 | AK83: 2592 | AL83: 9105652 | AM83: 572 | AN83: 2911637 | AO83: 505 | AP83: 2440706 | AQ83: 285.63 | AR83: 314.41 | AS83: 600.04 | AT83: 10392376 | AU83: 10617064 | AV83: 3032 | AW83: 2814 | AX83: 278.29 | AY83: 254.65 | AZ83: 532.94 | BA83: 10355555 | BB83: 8739649 | BC83: 3101 | BD83: 2860 | BE83: 300.24 | BF83: 275.21 | BG83: 575.45 | BH83: 11565201 | BI83: 9699450 | BJ83: 3210 | BK83: 2937 | BL83: 326.73 | BM83: 278.9 | BN83: 605.63 | BO83: 13044400 | BP83: 10127486 | BQ83: 3327 | BR83: 3026 | BS83: 303.62 | BT83: 310.69 | BU83: 614.31 | BV83: 12482392 | BW83: 11546358 | BX83: 3426 | BY83: 3097 | BZ83: 2933 | CA83: 2986 | CB83: 3078 | CC83: 3182 | CD83: 3270 | CE83: 621.8109623 | CF83: 650.773103 | CG83: 676.6194692 | CH83: 712.4345037 | CI83: 716.4999321 | CJ83: 0.964987812 | CK83: 0.8189336614 | CL83: 0.85047804 | CM83: 0.8500851612 | CN83: 0.8573762153 | CO83: 0.8824164217 | CP83: 0.9840843355 | CQ83: 0.9966011523 | CR83: 0.9874404954 | CS83: 2396 | CT83: 2485 | CU83: 2579 | CV83: 2631 | CW83: 2715 | CX83: 0.92295449 | CY83: 0.908185298 | CZ83: 0.888989553 | DA83: 0.868124944 | DB83: 0.830660953 | DC83: 2012 | DD83: 2946.8 | DE83: 0.0028411366 | DF83: 732.12 | DG83: 1 | DH83: 732.12 | DI83: 744.6126197 | DJ83: 1 | DK83: 732.12 | DL83: 1 | DM83: 732.12 | DN83: 1 | DO83: 0.011808 | DP83: 8.64 | DQ83: 723.48 | DR83: JUNEAU | DT83: ALASKA
A84: KENAI PENINSULA | B84: 2122 | C84: 4157 | D84: 14413187 | E84: 3990 | F84: 13292892 | G84: 1000 | H84: 3429760 | I84: 897 | J84: 3655221 | K84: 4405 | L84: 15786475 | M84: 4210 | N84: 12465401 | O84: 1034 | P84: 3402698 | Q84: 926 | R84: 3171822 | S84: 4672 | T84: 18247191 | U84: 4430 | V84: 13625171 | W84: 1087 | X84: 3189787 | Y84: 962 | Z84: 3326310 | AA84: 4995 | AB84: 19190027 | AC84: 4697 | AD84: 15604545 | AE84: 1147 | AF84: 4281896 | AG84: 1030 | AH84: 4075784 | AI84: 5279 | AJ84: 21786298 | AK84: 4934 | AL84: 19312758 | AM84: 1172 | AN84: 5511381 | AO84: 1055 | AP84: 4739962 | AQ84: 288.33 | AR84: 289 | AS84: 577.33 | AT84: 17842947 | AU84: 16948113 | AV84: 5157 | AW84: 4887 | AX84: 294.01 | AY84: 253.72 | AZ84: 547.73 | BA84: 19189173 | BB84: 15637223 | BC84: 5439 | BD84: 5136 | BE84: 310.2 | BF84: 261.99 | BG84: 572.19 | BH84: 21436978 | BI84: 16951481 | BJ84: 5759 | BK84: 5392 | BL84: 318.46 | BM84: 286.37 | BN84: 604.83 | BO84: 23471923 | BP84: 19680329 | BQ84: 6142 | BR84: 5727 | BS84: 352.63 | BT84: 334.68 | BU84: 687.31 | BV84: 27297679 | BW84: 24052720 | BX84: 6451 | BY84: 5989 | BZ84: 5035 | CA84: 5295 | CB84: 5582 | CC84: 5942 | CD84: 6232 | CE84: 621.8109623 | CF84: 650.773103 | CG84: 676.6194692 | CH84: 712.4345037 | CI84: 716.4999321 | CJ84: 0.9284654581 | CK84: 0.8416604765 | CL84: 0.8456599699 | CM84: 0.848962251 | CN84: 0.959260384 | CO84: 0.8577664824 | CP84: 1.031518165 | CQ84: 0.9966011523 | CR84: 1.035036095 | CS84: 5149 | CT84: 5546 | CU84: 5809 | CV84: 6226 | CW84: 6453 | CX84: 0.865655658 | CY84: 0.875434257 | CZ84: 0.862824807 | DA84: 0.858783778 | DB84: 0.830752019 | DC84: 2012 | DD84: 5426.2 | DE84: 0.0016286817 | DF84: 768.34 | DG84: 1 | DH84: 768.34 | DI84: 744.6126197 | DJ84: 1 | DK84: 768.34 | DL84: 1 | DM84: 768.34 | DN84: 1 | DO84: 0.00617 | DP84: 4.74 | DQ84: 763.6 | DR84: KENAI PENINSULA | DT84: ALASKA
A85: KETCHIKAN GATEWAY | B85: 2130 | C85: 1201 | D85: 4734488 | E85: 1138 | F85: 3912803 | G85: 232 | H85: 1218887 | I85: 212 | J85: 802609 | K85: 1258 | L85: 5373787 | M85: 1196 | N85: 3981181 | O85: 247 | P85: 962275 | Q85: 224 | R85: 826487 | S85: 1275 | T85: 5609344 | U85: 1215 | V85: 4895008 | W85: 253 | X85: 1007551 | Y85: 232 | Z85: 1026383 | AA85: 1318 | AB85: 6437718 | AC85: 1241 | AD85: 5639254 | AE85: 252 | AF85: 1013041 | AG85: 228 | AH85: 1188543 | AI85: 1375 | AJ85: 6085052 | AK85: 1278 | AL85: 6072346 | AM85: 255 | AN85: 874484 | AO85: 226 | AP85: 1462100 | AQ85: 346.21 | AR85: 291.07 | AS85: 637.28 | AT85: 5953375 | AU85: 4715412 | AV85: 1433 | AW85: 1350 | AX85: 350.83 | AY85: 282.14 | AZ85: 632.97 | BA85: 6336062 | BB85: 4807668 | BC85: 1505 | BD85: 1420 | BE85: 360.87 | BF85: 341.02 | BG85: 701.89 | BH85: 6616895 | BI85: 5921391 | BJ85: 1528 | BK85: 1447 | BL85: 395.48 | BM85: 387.33 | BN85: 782.81 | BO85: 7450759 | BP85: 6827797 | BQ85: 1570 | BR85: 1469 | BS85: 355.8 | BT85: 417.47 | BU85: 773.27 | BV85: 6959536 | BW85: 7534446 | BX85: 1630 | BY85: 1504 | BZ85: 1395 | CA85: 1464 | CB85: 1489 | CC85: 1521 | CD85: 1570 | CE85: 621.8109623 | CF85: 650.773103 | CG85: 676.6194692 | CH85: 712.4345037 | CI85: 716.4999321 | CJ85: 1.024877396 | CK85: 0.9726431487 | CL85: 1.037348217 | CM85: 1.098781707 | CN85: 1.079232482 | CO85: 0.9464609657 | CP85: 1.101552655 | CQ85: 0.9966011523 | CR85: 1.105309434 | CS85: 1350 | CT85: 1394 | CU85: 1439 | CV85: 1485 | CW85: 1481 | CX85: 0.939869082 | CY85: 0.970696636 | CZ85: 0.94542979 | DA85: 0.943156023 | DB85: 0.933973606 | DC85: 2012 | DD85: 1438 | DE85: 0.004107403 | DF85: 818.47 | DG85: 1 | DH85: 818.47 | DI85: 744.6126197 | DJ85: 1 | DK85: 818.47 | DL85: 1 | DM85: 818.47 | DN85: 1 | DO85: 0.017671 | DP85: 14.46 | DQ85: 804.01 | DR85: KETCHIKAN GATEWAY | DT85: ALASKA
A86: KODIAK ISLAND BOROUGH | B86: 2150 | C86: 389 | D86: 1998872 | E86: 349 | F86: 1592977 | G86: 44 | H86: 47681 | I86: 39 | J86: 103776 | K86: 388 | L86: 2663115 | M86: 345 | N86: 1131300 | O86: 56 | P86: 125333 | Q86: 49 | R86: 119663 | S86: 415 | T86: 2258153 | U86: 364 | V86: 1313864 | W86: 59 | X86: 344296 | Y86: 51 | Z86: 186986 | AA86: 461 | AB86: 1870538 | AC86: 400 | AD86: 1214502 | AE86: 67 | AF86: 710493 | AG86: 57 | AH86: 273749 | AI86: 513 | AJ86: 2131231 | AK86: 447 | AL86: 1626784 | AM86: 70 | AN86: 253278 | AO86: 59 | AP86: 242917 | AQ86: 393.87 | AR86: 364.42 | AS86: 758.29 | AT86: 2046553 | AU86: 1696753 | AV86: 433 | AW86: 388 | AX86: 523.36 | AY86: 264.59 | AZ86: 787.95 | BA86: 2788448 | BB86: 1250963 | BC86: 444 | BD86: 394 | BE86: 457.53 | BF86: 301.38 | BG86: 758.91 | BH86: 2602449 | BI86: 1500850 | BJ86: 474 | BK86: 415 | BL86: 407.36 | BM86: 271.38 | BN86: 678.74 | BO86: 2581031 | BP86: 1488251 | BQ86: 528 | BR86: 457 | BS86: 340.84 | BT86: 307.92 | BU86: 648.76 | BV86: 2384509 | BW86: 1869701 | BX86: 583 | BY86: 506 | BZ86: 413 | CA86: 420 | CB86: 446 | CC86: 494 | CD86: 546 | CE86: 621.8109623 | CF86: 650.773103 | CG86: 676.6194692 | CH86: 712.4345037 | CI86: 716.4999321 | CJ86: 1.219486381 | CK86: 1.210790668 | CL86: 1.121620105 | CM86: 0.9527051209 | CN86: 0.9054571689 | CO86: 0.8283136632 | CP86: 1.306282797 | CQ86: 0.9966011523 | CR86: 1.310737795 | CS86: 754 | CT86: 766 | CU86: 795 | CV86: 837 | CW86: 882 | CX86: 0.850410335 | CY86: 0.831909499 | CZ86: 0.815465859 | DA86: 0.847922156 | DB86: 0.799273295 | DC86: 2012 | DD86: 432 | DE86: 0.0012544096 | DF86: 973.36 | DG86: 1 | DH86: 973.36 | DI86: 744.6126197 | DJ86: 0.657267069 | DK86: 894.9607399 | DL86: 1.042759477 | DM86: 933.2287928 | DN86: 1 | DO86: 0.004409 | DP86: 4.11 | DQ86: 929.12 | DR86: KODIAK ISLAND BOROUGH | DT86: ALASKA
A87: LAKE AND PENINSULA | B87: 2164 | C87: 353 | D87: 1025521 | E87: 303 | F87: 1065741 | G87: 40 | H87: 76326 | I87: 39 | J87: 141286 | K87: 377 | L87: 2364615 | M87: 317 | N87: 930679 | O87: 41 | P87: 107388 | Q87: 40 | R87: 118590 | S87: 385 | T87: 2649894 | U87: 316 | V87: 956834 | W87: 40 | X87: 220773 | Y87: 39 | Z87: 161322 | AA87: 395 | AB87: 2681010 | AC87: 320 | AD87: 1110723 | AE87: 44 | AF87: 307988 | AG87: 42 | AH87: 185571 | AI87: 397 | AJ87: 1743556 | AK87: 326 | AL87: 1001480 | AM87: 41 | AN87: 555715 | AO87: 37 | AP87: 149588 | AQ87: 233.64 | AR87: 294.11 | AS87: 527.75 | AT87: 1101847 | AU87: 1207027 | AV87: 393 | AW87: 342 | AX87: 492.82 | AY87: 244.93 | AZ87: 737.75 | BA87: 2472003 | BB87: 1049269 | BC87: 418 | BD87: 357 | BE87: 562.88 | BF87: 262.48 | BG87: 825.36 | BH87: 2870667 | BI87: 1118156 | BJ87: 425 | BK87: 355 | BL87: 567.39 | BM87: 298.41 | BN87: 865.8 | BO87: 2988998 | BP87: 1296294 | BQ87: 439 | BR87: 362 | BS87: 437.46 | BT87: 264.25 | BU87: 701.71 | BV87: 2299271 | BW87: 1151068 | BX87: 438 | BY87: 363 | BZ87: 370 | CA87: 389 | CB87: 391 | CC87: 402 | CD87: 402 | CE87: 621.8109623 | CF87: 650.773103 | CG87: 676.6194692 | CH87: 712.4345037 | CI87: 716.4999321 | CJ87: 0.8487306143 | CK87: 1.133651647 | CL87: 1.219828925 | CM87: 1.215269608 | CN87: 0.9793580831 | CO87: 0.8372623722 | CP87: 1.289163124 | CQ87: 0.9966011523 | CR87: 1.293559737 | CS87: 378 | CT87: 392 | CU87: 409 | CV87: 417 | CW87: 424 | CX87: 0.838008806 | CY87: 0.855705999 | CZ87: 0.859128258 | DA87: 0.82118363 | DB87: 0.814266227 | DC87: 2012 | DD87: 355.8 | DE87: 0.0010152325 | DF87: 960.84 | DG87: 1 | DH87: 960.84 | DI87: 744.6126197 | DJ87: 0.5964897317 | DK87: 873.5900317 | DL87: 1.042759477 | DM87: 910.9442844 | DN87: 1 | DO87: 0.002412 | DP87: 2.2 | DQ87: 908.74 | DR87: LAKE AND PENINSULA | DT87: ALASKA
A88: MATANUSKA-SUSITNA | B88: 2170 | C88: 4528 | D88: 15196535 | E88: 4310 | F88: 15457279 | G88: 1159 | H88: 2727779 | I88: 1043 | J88: 4232613 | K88: 4776 | L88: 18120584 | M88: 4499 | N88: 13409980 | O88: 1210 | P88: 3171095 | Q88: 1079 | R88: 3319395 | S88: 5081 | T88: 17360621 | U88: 4743 | V88: 13892850 | W88: 1295 | X88: 3896608 | Y88: 1162 | Z88: 3950460 | AA88: 5461 | AB88: 22668541 | AC88: 5068 | AD88: 15611112 | AE88: 1337 | AF88: 5493504 | AG88: 1201 | AH88: 4656311 | AI88: 5805 | AJ88: 23796330 | AK88: 5373 | AL88: 18471145 | AM88: 1384 | AN88: 4986368 | AO88: 1229 | AP88: 5148814 | AQ88: 262.65 | AR88: 306.52 | AS88: 569.17 | AT88: 17924314 | AU88: 19689892 | AV88: 5687 | AW88: 5353 | AX88: 296.41 | AY88: 249.93 | AZ88: 546.34 | BA88: 21291679 | BB88: 16729375 | BC88: 5986 | BD88: 5578 | BE88: 277.83 | BF88: 251.81 | BG88: 529.64 | BH88: 21257229 | BI88: 17843310 | BJ88: 6376 | BK88: 5905 | BL88: 345.22 | BM88: 269.41 | BN88: 614.63 | BO88: 28162045 | BP88: 20267423 | BQ88: 6798 | BR88: 6269 | BS88: 333.64 | BT88: 298.14 | BU88: 631.78 | BV88: 28782698 | BW88: 23619959 | BX88: 7189 | BY88: 6602 | BZ88: 5536 | CA88: 5792 | CB88: 6149 | CC88: 6543 | CD88: 6910 | CE88: 621.8109623 | CF88: 650.773103 | CG88: 676.6194692 | CH88: 712.4345037 | CI88: 716.4999321 | CJ88: 0.9153424988 | CK88: 0.8395245554 | CL88: 0.7827738102 | CM88: 0.8627179015 | CN88: 0.8817586321 | CO88: 0.8927568048 | CP88: 0.9593021022 | CQ88: 0.9966011523 | CR88: 0.9625737438 | CS88: 5537 | CT88: 5922 | CU88: 6269 | CV88: 6724 | CW88: 7091 | CX88: 0.906299272 | CY88: 0.894121631 | CZ88: 0.891145512 | DA88: 0.886551661 | DB88: 0.888350859 | DC88: 2012 | DD88: 5941.4 | DE88: 0.001341605 | DF88: 714.75 | DG88: 1 | DH88: 714.75 | DI88: 744.6126197 | DJ88: 1 | DK88: 714.75 | DL88: 1 | DM88: 714.75 | DN88: 1 | DO88: 0.005166 | DP88: 3.69 | DQ88: 711.06 | DR88: MATANUSKA-SUSITNA | DT88: ALASKA
A89: NOME | B89: 2180 | C89: 505 | D89: 1804360 | E89: 438 | F89: 1462474 | G89: 74 | H89: 161729 | I89: 65 | J89: 142558 | K89: 529 | L89: 3171515 | M89: 457 | N89: 1545095 | O89: 72 | P89: 332336 | Q89: 63 | R89: 196746 | S89: 538 | T89: 2551954 | U89: 464 | V89: 1655637 | W89: 76 | X89: 199390 | Y89: 67 | Z89: 186214 | AA89: 548 | AB89: 3732645 | AC89: 462 | AD89: 1759201 | AE89: 79 | AF89: 575231 | AG89: 67 | AH89: 296832 | AI89: 559 | AJ89: 2968182 | AK89: 461 | AL89: 1697815 | AM89: 81 | AN89: 129318 | AO89: 69 | AP89: 187765 | AQ89: 282.97 | AR89: 265.91 | AS89: 548.88 | AT89: 1966089 | AU89: 1605032 | AV89: 579 | AW89: 503 | AX89: 485.84 | AY89: 279.14 | AZ89: 764.98 | BA89: 3503851 | BB89: 1741841 | BC89: 601 | BD89: 520 | BE89: 373.42 | BF89: 289.05 | BG89: 662.47 | BH89: 2751344 | BI89: 1841851 | BJ89: 614 | BK89: 531 | BL89: 572.55 | BM89: 323.89 | BN89: 896.44 | BO89: 4307876 | BP89: 2056033 | BQ89: 627 | BR89: 529 | BS89: 403.32 | BT89: 296.47 | BU89: 699.79 | BV89: 3097500 | BW89: 1885580 | BX89: 640 | BY89: 530 | BZ89: 545 | CA89: 562 | CB89: 574 | CC89: 580 | CD89: 588 | CE89: 621.8109623 | CF89: 650.773103 | CG89: 676.6194692 | CH89: 712.4345037 | CI89: 716.4999321 | CJ89: 0.882712003 | CK89: 1.175494188 | CL89: 0.9790879957 | CM89: 1.25827707 | CN89: 0.9766783899 | CO89: 0.853307953 | CP89: 1.235720264 | CQ89: 0.9966011523 | CR89: 1.239934613 | CS89: 512 | CT89: 551 | CU89: 541 | CV89: 554 | CW89: 547 | CX89: 0.870472319 | CY89: 0.851799498 | CZ89: 0.855207273 | DA89: 0.846684554 | DB89: 0.843591014 | DC89: 2012 | DD89: 522.6 | DE89: 0.000454417 | DF89: 921.52 | DG89: 1 | DH89: 921.52 | DI89: 744.6126197 | DJ89: 0.7229107829 | DK89: 872.5008725 | DL89: 1.042759477 | DM89: 909.8085532 | DN89: 1 | DO89: 0.001541 | DP89: 1.4 | DQ89: 908.41 | DR89: NOME | DT89: ALASKA
A90: NORTH SLOPE | B90: 2185 | C90: 286 | D90: 879482 | E90: 250 | F90: 759854 | G90: 59 | H90: 103525 | I90: 53 | J90: 245203 | K90: 311 | L90: 1630437 | M90: 268 | N90: 1015141 | O90: 61 | P90: 122711 | Q90: 54 | R90: 191112 | S90: 310 | T90: 1890347 | U90: 266 | V90: 1015710 | W90: 64 | X90: 399109 | Y90: 54 | Z90: 205062 | AA90: 313 | AB90: 1543597 | AC90: 266 | AD90: 1039730 | AE90: 62 | AF90: 243605 | AG90: 54 | AH90: 225748 | AI90: 310 | AJ90: 2153570 | AK90: 259 | AL90: 1436227 | AM90: 65 | AN90: 698715 | AO90: 57 | AP90: 385861 | AQ90: 237.44 | AR90: 276.42 | AS90: 513.86 | AT90: 983007 | AU90: 1005057 | AV90: 345 | AW90: 303 | AX90: 392.73 | AY90: 312.18 | AZ90: 704.91 | BA90: 1753148 | BB90: 1206253 | BC90: 372 | BD90: 322 | BE90: 510.13 | BF90: 317.91 | BG90: 828.04 | BH90: 2289456 | BI90: 1220772 | BJ90: 374 | BK90: 320 | BL90: 397.16 | BM90: 329.55 | BN90: 726.71 | BO90: 1787202 | BP90: 1265478 | BQ90: 375 | BR90: 320 | BS90: 633.84 | BT90: 480.51 | BU90: 1114.35 | BV90: 2852285 | BW90: 1822088 | BX90: 375 | BY90: 316 | BZ90: 326 | CA90: 348 | CB90: 348 | CC90: 348 | CD90: 347 | CE90: 621.8109623 | CF90: 650.773103 | CG90: 676.6194692 | CH90: 712.4345037 | CI90: 716.4999321 | CJ90: 0.8263926356 | CK90: 1.08318859 | CL90: 1.223789793 | CM90: 1.020037626 | CN90: 1.555268815 | CO90: 0.8375593566 | CP90: 1.363169646 | CQ90: 0.9966011523 | CR90: 1.367818654 | CS90: 324 | CT90: 335 | CU90: 342 | CV90: 329 | CW90: 328 | CX90: 0.785594569 | CY90: 0.85102508 | CZ90: 0.869318073 | DA90: 0.859585205 | DB90: 0.819930054 | DC90: 2012 | DD90: 316.2 | DE90: 0.0004023542 | DF90: 1016.62 | DG90: 1 | DH90: 1016.62 | DI90: 744.6126197 | DJ90: 0.5623166368 | DK90: 897.566895 | DL90: 1.042759477 | DM90: 935.9463857 | DN90: 1 | DO90: 0.001083 | DP90: 1.01 | DQ90: 934.94 | DR90: NORTH SLOPE | DT90: ALASKA
A91: NORTHWEST ARCTIC | B91: 2188 | C91: 350 | D91: 1090671 | E91: 282 | F91: 1083708 | G91: 49 | H91: 218170 | I91: 39 | J91: 209160 | K91: 363 | L91: 1872333 | M91: 289 | N91: 973528 | O91: 51 | P91: 282112 | Q91: 42 | R91: 80314 | S91: 371 | T91: 2251923 | U91: 296 | V91: 1315222 | W91: 54 | X91: 478657 | Y91: 45 | Z91: 157357 | AA91: 376 | AB91: 2485767 | AC91: 297 | AD91: 1598210 | AE91: 55 | AF91: 298339 | AG91: 46 | AH91: 262125 | AI91: 382 | AJ91: 2862632 | AK91: 292 | AL91: 2660421 | AM91: 60 | AN91: 357724 | AO91: 49 | AP91: 403352 | AQ91: 273.36 | AR91: 335.64 | AS91: 609 | AT91: 1308841 | AU91: 1292868 | AV91: 399 | AW91: 321 | AX91: 433.66 | AY91: 265.32 | AZ91: 698.98 | BA91: 2154445 | BB91: 1053842 | BC91: 414 | BD91: 331 | BE91: 535.41 | BF91: 359.87 | BG91: 895.28 | BH91: 2730580 | BI91: 1472579 | BJ91: 425 | BK91: 341 | BL91: 538.3 | BM91: 451.98 | BN91: 990.28 | BO91: 2784106 | BP91: 1860335 | BQ91: 431 | BR91: 343 | BS91: 607.16 | BT91: 748.72 | BU91: 1355.88 | BV91: 3220356 | BW91: 3063773 | BX91: 442 | BY91: 341 | BZ91: 364 | CA91: 374 | CB91: 385 | CC91: 389 | CD91: 394 | CE91: 621.8109623 | CF91: 650.773103 | CG91: 676.6194692 | CH91: 712.4345037 | CI91: 716.4999321 | CJ91: 0.979397336 | CK91: 1.074076351 | CL91: 1.323166182 | CM91: 1.389994441 | CN91: 1.892365846 | CO91: 0.8586580024 | CP91: 1.551025004 | CQ91: 0.9966011523 | CR91: 1.55631468 | CS91: 345 | CT91: 344 | CU91: 364 | CV91: 362 | CW91: 357 | CX91: 0.907928802 | CY91: 0.837941078 | CZ91: 0.744896932 | DA91: 0.853746448 | DB91: 0.951977914 | DC91: 2012 | DD91: 335.4 | DE91: 0.0003107671 | DF91: 1156.82 | DG91: 1 | DH91: 1156.82 | DI91: 744.6126197 | DJ91: 0.5791372894 | DK91: 983.3372846 | DL91: 1.042759477 | DM91: 1025.384272 | DN91: 1 | DO91: 0.001242 | DP91: 1.27 | DQ91: 1024.11 | DR91: NORTHWEST ARCTIC | DT91: ALASKA
A92: PETERSBURG | B92: 2195 | C92: 641 | D92: 3652047 | E92: 611 | F92: 2678566 | G92: 93 | H92: 491218 | I92: 86 | J92: 485497 | K92: 672 | L92: 3512403 | M92: 640 | N92: 2685598 | O92: 95 | P92: 632311 | Q92: 85 | R92: 363291 | S92: 686 | T92: 3173336 | U92: 655 | V92: 2530836 | W92: 98 | X92: 411899 | Y92: 86 | Z92: 392498 | AA92: 704 | AB92: 3018789 | AC92: 677 | AD92: 2947040 | AE92: 93 | AF92: 427841 | AG92: 81 | AH92: 479909 | AI92: 728 | AJ92: 3786588 | AK92: 692 | AL92: 3504452 | AM92: 98 | AN92: 345955 | AO92: 83 | AP92: 532815 | AQ92: 470.4 | AR92: 378.3 | AS92: 848.7 | AT92: 4143265 | AU92: 3164063 | AV92: 734 | AW92: 697 | AX92: 450.32 | AY92: 350.45 | AZ92: 800.77 | BA92: 4144714 | BB92: 3048889 | BC92: 767 | BD92: 725 | BE92: 381.08 | BF92: 328.76 | BG92: 709.84 | BH92: 3585235 | BI92: 2923334 | BJ92: 784 | BK92: 741 | BL92: 360.38 | BM92: 376.75 | BN92: 737.13 | BO92: 3446630 | BP92: 3426949 | BQ92: 797 | BR92: 758 | BS92: 416.92 | BT92: 434.11 | BU92: 851.03 | BV92: 4132543 | BW92: 4037267 | BX92: 826 | BY92: 775 | BZ92: 717 | CA92: 747 | CB92: 763 | CC92: 778 | CD92: 802 | CE92: 621.8109623 | CF92: 650.773103 | CG92: 676.6194692 | CH92: 712.4345037 | CI92: 716.4999321 | CJ92: 1.364884268 | CK92: 1.230490314 | CL92: 1.049097805 | CM92: 1.034663532 | CN92: 1.187760057 | CO92: 0.917964461 | CP92: 1.278240329 | CQ92: 0.9966011523 | CR92: 1.28259969 | CS92: 715 | CT92: 744 | CU92: 773 | CV92: 787 | CW92: 811 | CX92: 0.989893974 | CY92: 0.936746736 | CZ92: 0.894235298 | DA92: 0.908187641 | DB92: 0.86942363 | DC92: 2012 | DD92: 739.2 | DE92: 0.0032153595 | DF92: 950.6 | DG92: 1 | DH92: 950.6 | DI92: 744.6126197 | DJ92: 0.8597674104 | DK92: 921.7138562 | DL92: 1.042759477 | DM92: 961.1258584 | DN92: 1 | DO92: 0.01402 | DP92: 13.48 | DQ92: 947.65 | DR92: PETERSBURG | DT92: ALASKA
A93: PRINCE OF WALES-HYDER | B93: 2198 | C93: 169 | D93: 515396 | E93: 151 | F93: 396152 | G93: 35 | H93: 57591 | I93: 31 | J93: 72662 | K93: 175 | L93: 1028514 | M93: 155 | N93: 434464 | O93: 39 | P93: 66445 | Q93: 36 | R93: 70633 | S93: 177 | T93: 760466 | U93: 153 | V93: 570120 | W93: 37 | X93: 62598 | Y93: 34 | Z93: 81479 | AA93: 179 | AB93: 814145 | AC93: 156 | AD93: 549845 | AE93: 39 | AF93: 296042 | AG93: 35 | AH93: 192063 | AI93: 185 | AJ93: 651249 | AK93: 157 | AL93: 605800 | AM93: 41 | AN93: 157758 | AO93: 36 | AP93: 134515 | AQ93: 234.06 | AR93: 214.66 | AS93: 448.72 | AT93: 572987 | AU93: 468814 | AV93: 204 | AW93: 182 | AX93: 426.39 | AY93: 220.37 | AZ93: 646.76 | BA93: 1094959 | BB93: 505097 | BC93: 214 | BD93: 191 | BE93: 320.51 | BF93: 290.37 | BG93: 610.88 | BH93: 823064 | BI93: 651599 | BJ93: 214 | BK93: 187 | BL93: 424.38 | BM93: 323.69 | BN93: 748.07 | BO93: 1110187 | BP93: 741908 | BQ93: 218 | BR93: 191 | BS93: 298.31 | BT93: 319.65 | BU93: 617.96 | BV93: 809007 | BW93: 740315 | BX93: 226 | BY93: 193 | BZ93: 194 | CA93: 203 | CB93: 201 | CC93: 205 | CD93: 210 | CE93: 621.8109623 | CF93: 650.773103 | CG93: 676.6194692 | CH93: 712.4345037 | CI93: 716.4999321 | CJ93: 0.7216341094 | CK93: 0.9938333299 | CL93: 0.9028412982 | CM93: 1.05001933 | CN93: 0.8624704237 | CO93: 0.9361654239 | CP93: 0.9679482654 | CQ93: 0.9966011523 | CR93: 0.9712493941 | CS93: 449 | CT93: 496 | CU93: 528 | CV93: 542 | CW93: 561 | CX93: 0.984456922 | CY93: 0.926253831 | CZ93: 0.940861913 | DA93: 0.951953588 | DB93: 0.886604526 | DC93: 2012 | DD93: 188.8 | DE93: 0.0028789813 | DF93: 720.08 | DG93: 1 | DH93: 720.08 | DI93: 744.6126197 | DJ93: 0.4345112196 | DK93: 733.9529212 | DL93: 1.042759477 | DM93: 765.336364 | DN93: 1 | DO93: 0.016572 | DP93: 12.68 | DQ93: 752.66 | DR93: PRINCE OF WALES-HYDER | DT93: ALASKA
A94: SITKA BOROUGH | B94: 2220 | C94: 790 | D94: 4720480 | E94: 721 | F94: 3450504 | G94: 98 | H94: 274870 | I94: 91 | J94: 539748 | K94: 824 | L94: 3792745 | M94: 744 | N94: 3439746 | O94: 107 | P94: 575695 | Q94: 101 | R94: 486573 | S94: 846 | T94: 4516310 | U94: 763 | V94: 3577955 | W94: 108 | X94: 407304 | Y94: 104 | Z94: 487275 | AA94: 857 | AB94: 5010115 | AC94: 769 | AD94: 3596078 | AE94: 104 | AF94: 260533 | AG94: 99 | AH94: 486066 | AI94: 887 | AJ94: 3721685 | AK94: 785 | AL94: 4285609 | AM94: 124 | AN94: 418834 | AO94: 114 | AP94: 646045 | AQ94: 468.78 | AR94: 409.51 | AS94: 878.29 | AT94: 4995350 | AU94: 3990252 | AV94: 888 | AW94: 812 | AX94: 391.02 | AY94: 387.21 | AZ94: 778.23 | BA94: 4368440 | BB94: 3926319 | BC94: 931 | BD94: 845 | BE94: 430.09 | BF94: 390.74 | BG94: 820.83 | BH94: 4923614 | BI94: 4065230 | BJ94: 954 | BK94: 867 | BL94: 457.05 | BM94: 391.91 | BN94: 848.96 | BO94: 5270648 | BP94: 4082144 | BQ94: 961 | BR94: 868 | BS94: 341.29 | BT94: 457.14 | BU94: 798.43 | BV94: 4140519 | BW94: 4931654 | BX94: 1011 | BY94: 899 | BZ94: 854 | CA94: 890 | CB94: 912 | CC94: 916 | CD94: 958 | CE94: 621.8109623 | CF94: 650.773103 | CG94: 676.6194692 | CH94: 712.4345037 | CI94: 716.4999321 | CJ94: 1.412471078 | CK94: 1.195854587 | CL94: 1.213133877 | CM94: 1.191632347 | CN94: 1.114347628 | CO94: 0.9421180352 | CP94: 1.300779581 | CQ94: 0.9966011523 | CR94: 1.305215811 | CS94: 807 | CT94: 836 | CU94: 864 | CV94: 864 | CW94: 869 | CX94: 0.941183869 | CY94: 0.946775276 | CZ94: 0.929260427 | DA94: 0.937324533 | DB94: 0.956054719 | DC94: 2012 | DD94: 858.2 | DE94: 0.0021792775 | DF94: 968.37 | DG94: 1 | DH94: 968.37 | DI94: 744.6126197 | DJ94: 0.9263908462 | DK94: 951.8994086 | DL94: 1.042759477 | DM94: 992.6021292 | DN94: 1 | DO94: 0.008477 | DP94: 8.41 | DQ94: 984.19 | DR94: SITKA BOROUGH | DT94: ALASKA
A95: SKAGWAY-YAKUTAT | B95: 2230 | C95: 271 | D95: 1079342 | E95: 248 | F95: 998648 | G95: 46 | H95: 217026 | I95: 43 | J95: 147732 | K95: 284 | L95: 1236507 | M95: 262 | N95: 726687 | O95: 48 | P95: 133037 | Q95: 46 | R95: 126973 | S95: 308 | T95: 1055755 | U95: 284 | V95: 766922 | W95: 41 | X95: 302000 | Y95: 40 | Z95: 238062 | AA95: 325 | AB95: 1122420 | AC95: 301 | AD95: 740985 | AE95: 42 | AF95: 192223 | AG95: 39 | AH95: 160822 | AI95: 430 | AJ95: 1610544 | AK95: 391 | AL95: 1075204 | AM95: 50 | AN95: 112164 | AO95: 48 | AP95: 139886 | AQ95: 340.79 | AR95: 328.29 | AS95: 669.08 | AT95: 1296368 | AU95: 1146380 | AV95: 317 | AW95: 291 | AX95: 343.76 | AY95: 230.97 | AZ95: 574.73 | BA95: 1369544 | BB95: 853660 | BC95: 332 | BD95: 308 | BE95: 324.2 | BF95: 258.48 | BG95: 582.68 | BH95: 1357755 | BI95: 1004984 | BJ95: 349 | BK95: 324 | BL95: 298.51 | BM95: 221.03 | BN95: 519.54 | BO95: 1314643 | BP95: 901807 | BQ95: 367 | BR95: 340 | BS95: 299.08 | BT95: 230.65 | BU95: 529.73 | BV95: 1722708 | BW95: 1215090 | BX95: 480 | BY95: 439 | BZ95: 305 | CA95: 321 | CB95: 337 | CC95: 354 | CD95: 461 | CE95: 621.8109623 | CF95: 650.773103 | CG95: 676.6194692 | CH95: 712.4345037 | CI95: 716.4999321 | CJ95: 1.076018341 | CK95: 0.8831495914 | CL95: 0.8611635144 | CM95: 0.729245983 | CN95: 0.7393301469 | CO95: 0.8341489476 | CP95: 1.028331352 | CQ95: 0.9966011523 | CR95: 1.031838414 | CS95: 356 | CT95: 369 | CU95: 392 | CV95: 428 | CW95: 425 | CX95: 0.791258628 | CY95: 0.918282978 | CZ95: 0.829118613 | DA95: 0.836240335 | DB95: 0.799561357 | DC95: 2012 | DD95: 340.4 | DE95: 0.0028131143 | DF95: 765.05 | DG95: 1 | DH95: 765.05 | DI95: 744.6126197 | DJ95: 0.5834380858 | DK95: 756.5365657 | DL95: 1.042759477 | DM95: 788.8856734 | DN95: 1 | DO95: 0.012313 | DP95: 9.71 | DQ95: 779.18 | DR95: SKAGWAY-YAKUTAT | DT95: ALASKA
A96: SOUTHEAST FAIRBANKS | B96: 2240 | C96: 467 | D96: 1262602 | E96: 445 | F96: 1317598 | G96: 79 | H96: 193725 | I96: 71 | J96: 353489 | K96: 504 | L96: 1336511 | M96: 473 | N96: 1230182 | O96: 80 | P96: 141452 | Q96: 70 | R96: 352630 | S96: 511 | T96: 1712637 | U96: 478 | V96: 1195934 | W96: 73 | X96: 342045 | Y96: 65 | Z96: 293215 | AA96: 508 | AB96: 1936537 | AC96: 477 | AD96: 1407190 | AE96: 73 | AF96: 212271 | AG96: 64 | AH96: 263378 | AI96: 506 | AJ96: 2005340 | AK96: 475 | AL96: 1681021 | AM96: 70 | AN96: 873027 | AO96: 61 | AP96: 438201 | AQ96: 222.27 | AR96: 269.88 | AS96: 492.15 | AT96: 1456327 | AU96: 1671087 | AV96: 546 | AW96: 516 | AX96: 210.9 | AY96: 242.91 | AZ96: 453.81 | BA96: 1477963 | BB96: 1582812 | BC96: 584 | BD96: 543 | BE96: 293.19 | BF96: 228.54 | BG96: 521.73 | BH96: 2054682 | BI96: 1489149 | BJ96: 584 | BK96: 543 | BL96: 308.21 | BM96: 257.33 | BN96: 565.54 | BO96: 2148808 | BP96: 1670568 | BQ96: 581 | BR96: 541 | BS96: 416.43 | BT96: 329.48 | BU96: 745.91 | BV96: 2878367 | BW96: 2119222 | BX96: 576 | BY96: 536 | BZ96: 532 | CA96: 564 | CB96: 564 | CC96: 562 | CD96: 557 | CE96: 621.8109623 | CF96: 650.773103 | CG96: 676.6194692 | CH96: 712.4345037 | CI96: 716.4999321 | CJ96: 0.7914784876 | CK96: 0.6973398223 | CL96: 0.7710833396 | CM96: 0.7938133218 | CN96: 1.041046854 | CO96: 0.8063229384 | CP96: 1.015662988 | CQ96: 0.9966011523 | CR96: 1.019126845 | CS96: 593 | CT96: 658 | CU96: 691 | CV96: 715 | CW96: 730 | CX96: 0.80351006 | CY96: 0.785691289 | CZ96: 0.836350752 | DA96: 0.816913647 | DB96: 0.788407988 | DC96: 2012 | DD96: 535.8 | DE96: 0.0015358253 | DF96: 756.6 | DG96: 1 | DH96: 756.6 | DI96: 744.6126197 | DJ96: 0.7319836064 | DK96: 753.3871856 | DL96: 1.042759477 | DM96: 785.6016274 | DN96: 1 | DO96: 0.005248 | DP96: 4.12 | DQ96: 781.48 | DR96: SOUTHEAST FAIRBANKS | DT96: ALASKA
A97: VALDEZ-CORDOVA | B97: 2261 | C97: 524 | D97: 3644251 | E97: 482 | F97: 1441368 | G97: 112 | H97: 341819 | I97: 104 | J97: 286524 | K97: 562 | L97: 3112837 | M97: 506 | N97: 1285235 | O97: 113 | P97: 461739 | Q97: 107 | R97: 376906 | S97: 617 | T97: 3455213 | U97: 553 | V97: 1628657 | W97: 119 | X97: 925512 | Y97: 107 | Z97: 401185 | AA97: 652 | AB97: 4242694 | AC97: 579 | AD97: 1800258 | AE97: 147 | AF97: 375121 | AG97: 129 | AH97: 308203 | AI97: 712 | AJ97: 2886034 | AK97: 630 | AL97: 2226643 | AM97: 148 | AN97: 302347 | AO97: 133 | AP97: 466133 | AQ97: 522.28 | AR97: 245.72 | AS97: 768 | AT97: 3986070 | AU97: 1727892 | AV97: 636 | AW97: 586 | AX97: 441.31 | AY97: 225.96 | AZ97: 667.27 | BA97: 3574576 | BB97: 1662141 | BC97: 675 | BD97: 613 | BE97: 496.01 | BF97: 256.29 | BG97: 752.3 | BH97: 4380725 | BI97: 2029842 | BJ97: 736 | BK97: 660 | BL97: 481.62 | BM97: 248.17 | BN97: 729.79 | BO97: 4617815 | BP97: 2108461 | BQ97: 799 | BR97: 708 | BS97: 308.95 | BT97: 294.1 | BU97: 603.05 | BV97: 3188381 | BW97: 2692776 | BX97: 860 | BY97: 763 | BZ97: 613 | CA97: 645 | CB97: 699 | CC97: 755 | CD97: 814 | CE97: 621.8109623 | CF97: 650.773103 | CG97: 676.6194692 | CH97: 712.4345037 | CI97: 716.4999321 | CJ97: 1.235102059 | CK97: 1.025349691 | CL97: 1.111850951 | CM97: 1.024360831 | CN97: 0.8416609312 | CO97: 0.7942988045 | CP97: 1.318980825 | CQ97: 0.9966011523 | CR97: 1.323479129 | CS97: 765 | CT97: 793 | CU97: 825 | CV97: 853 | CW97: 878 | CX97: 0.778643879 | CY97: 0.815723888 | CZ97: 0.773598373 | DA97: 0.811851875 | DB97: 0.790985608 | DC97: 2012 | DD97: 666 | DE97: 0.0015712738 | DF97: 982.51 | DG97: 1 | DH97: 982.51 | DI97: 744.6126197 | DJ97: 0.8160882305 | DK97: 938.7578718 | DL97: 1.042759477 | DM97: 978.8986672 | DN97: 1 | DO97: 0.00541 | DP97: 5.3 | DQ97: 973.6 | DR97: VALDEZ-CORDOVA | DT97: ALASKA
A98: WADE HAMPTON | B98: 2270 | C98: 375 | D98: 2200201 | E98: 344 | F98: 1672801 | G98: 58 | H98: 43978 | I98: 52 | J98: 133894 | K98: 392 | L98: 2088035 | M98: 363 | N98: 1448271 | O98: 60 | P98: 174914 | Q98: 52 | R98: 131618 | S98: 394 | T98: 1620222 | U98: 359 | V98: 1419847 | W98: 60 | X98: 134223 | Y98: 55 | Z98: 110140 | AA98: 384 | AB98: 2311925 | AC98: 352 | AD98: 1330030 | AE98: 61 | AF98: 144092 | AG98: 57 | AH98: 113298 | AI98: 388 | AJ98: 2313468 | AK98: 346 | AL98: 1337624 | AM98: 58 | AN98: 203137 | AO98: 53 | AP98: 103619 | AQ98: 431.91 | AR98: 380.2 | AS98: 812.11 | AT98: 2244179 | AU98: 1806695 | AV98: 433 | AW98: 396 | AX98: 417.21 | AY98: 317.25 | AZ98: 734.46 | BA98: 2262949 | BB98: 1579889 | BC98: 452 | BD98: 415 | BE98: 322.03 | BF98: 307.97 | BG98: 630 | BH98: 1754445 | BI98: 1529987 | BJ98: 454 | BK98: 414 | BL98: 459.93 | BM98: 294.08 | BN98: 754.01 | BO98: 2456017 | BP98: 1443328 | BQ98: 445 | BR98: 409 | BS98: 470.22 | BT98: 301.01 | BU98: 771.23 | BV98: 2516605 | BW98: 1441243 | BX98: 446 | BY98: 399 | BZ98: 416 | CA98: 434 | CB98: 435 | CC98: 428 | CD98: 424 | CE98: 621.8109623 | CF98: 650.773103 | CG98: 676.6194692 | CH98: 712.4345037 | CI98: 716.4999321 | CJ98: 1.306040017 | CK98: 1.128596121 | CL98: 0.9310994269 | CM98: 1.058356938 | CN98: 1.076385308 | CO98: 0.9350770478 | CP98: 1.176475847 | CQ98: 0.9966011523 | CR98: 1.180488147 | CS98: 406 | CT98: 424 | CU98: 429 | CV98: 422 | CW98: 419 | CX98: 0.973566611 | CY98: 0.978254999 | CZ98: 0.969395401 | DA98: 0.855412879 | DB98: 0.89918562 | DC98: 2012 | DD98: 406.6 | DE98: 0.0001958988 | DF98: 877.57 | DG98: 1 | DH98: 877.57 | DI98: 744.6126197 | DJ98: 0.6376519427 | DK98: 829.3931515 | DL98: 1.042759477 | DM98: 864.8575687 | DN98: 1 | DO98: 0.000362 | DP98: 0.31 | DQ98: 864.55 | DR98: WADE HAMPTON | DT98: ALASKA
A99: WRANGELL | B99: 2275 | C99: 641 | D99: 3652047 | E99: 611 | F99: 2678566 | G99: 93 | H99: 491218 | I99: 86 | J99: 485497 | K99: 672 | L99: 3512403 | M99: 640 | N99: 2685598 | O99: 95 | P99: 632311 | Q99: 85 | R99: 363291 | S99: 686 | T99: 3173336 | U99: 655 | V99: 2530836 | W99: 98 | X99: 411899 | Y99: 86 | Z99: 392498 | AA99: 704 | AB99: 3018789 | AC99: 677 | AD99: 2947040 | AE99: 93 | AF99: 427841 | AG99: 81 | AH99: 479909 | AI99: 728 | AJ99: 3786588 | AK99: 692 | AL99: 3504452 | AM99: 98 | AN99: 345955 | AO99: 83 | AP99: 532815 | AQ99: 470.4 | AR99: 378.3 | AS99: 848.7 | AT99: 4143265 | AU99: 3164063 | AV99: 734 | AW99: 697 | AX99: 450.32 | AY99: 350.45 | AZ99: 800.77 | BA99: 4144714 | BB99: 3048889 | BC99: 767 | BD99: 725 | BE99: 381.08 | BF99: 328.76 | BG99: 709.84 | BH99: 3585235 | BI99: 2923334 | BJ99: 784 | BK99: 741 | BL99: 360.38 | BM99: 376.75 | BN99: 737.13 | BO99: 3446630 | BP99: 3426949 | BQ99: 797 | BR99: 758 | BS99: 416.92 | BT99: 434.11 | BU99: 851.03 | BV99: 4132543 | BW99: 4037267 | BX99: 826 | BY99: 775 | BZ99: 717 | CA99: 747 | CB99: 763 | CC99: 778 | CD99: 802 | CE99: 621.8109623 | CF99: 650.773103 | CG99: 676.6194692 | CH99: 712.4345037 | CI99: 716.4999321 | CJ99: 1.364884268 | CK99: 1.230490314 | CL99: 1.049097805 | CM99: 1.034663532 | CN99: 1.187760057 | CO99: 0.917964461 | CP99: 1.278240329 | CQ99: 0.9966011523 | CR99: 1.28259969 | CS99: 715 | CT99: 744 | CU99: 773 | CV99: 787 | CW99: 811 | CX99: 0.989893974 | CY99: 0.936746736 | CZ99: 0.894235298 | DA99: 0.908187641 | DB99: 0.86942363 | DC99: 2012 | DD99: 739.2 | DE99: 0.0032153595 | DF99: 950.6 | DG99: 1 | DH99: 950.6 | DI99: 744.6126197 | DJ99: 0.8597674104 | DK99: 921.7138562 | DL99: 1.042759477 | DM99: 961.1258584 | DN99: 1 | DO99: 0.01402 | DP99: 13.48 | DQ99: 947.65 | DR99: WRANGELL | DT99: ALASKA
A100: YAKUTAT | B100: 2282 | C100: 271 | D100: 1079342 | E100: 248 | F100: 998648 | G100: 46 | H100: 217026 | I100: 43 | J100: 147732 | K100: 284 | L100: 1236507 | M100: 262 | N100: 726687 | O100: 48 | P100: 133037 | Q100: 46 | R100: 126973 | S100: 308 | T100: 1055755 | U100: 284 | V100: 766922 | W100: 41 | X100: 302000 | Y100: 40 | Z100: 238062 | AA100: 325 | AB100: 1122420 | AC100: 301 | AD100: 740985 | AE100: 42 | AF100: 192223 | AG100: 39 | AH100: 160822 | AI100: 430 | AJ100: 1610544 | AK100: 391 | AL100: 1075204 | AM100: 50 | AN100: 112164 | AO100: 48 | AP100: 139886 | AQ100: 340.79 | AR100: 328.29 | AS100: 669.08 | AT100: 1296368 | AU100: 1146380 | AV100: 317 | AW100: 291 | AX100: 343.76 | AY100: 230.97 | AZ100: 574.73 | BA100: 1369544 | BB100: 853660 | BC100: 332 | BD100: 308 | BE100: 324.2 | BF100: 258.48 | BG100: 582.68 | BH100: 1357755 | BI100: 1004984 | BJ100: 349 | BK100: 324 | BL100: 298.51 | BM100: 221.03 | BN100: 519.54 | BO100: 1314643 | BP100: 901807 | BQ100: 367 | BR100: 340 | BS100: 299.08 | BT100: 230.65 | BU100: 529.73 | BV100: 1722708 | BW100: 1215090 | BX100: 480 | BY100: 439 | BZ100: 305 | CA100: 321 | CB100: 337 | CC100: 354 | CD100: 461 | CE100: 621.8109623 | CF100: 650.773103 | CG100: 676.6194692 | CH100: 712.4345037 | CI100: 716.4999321 | CJ100: 1.076018341 | CK100: 0.8831495914 | CL100: 0.8611635144 | CM100: 0.729245983 | CN100: 0.7393301469 | CO100: 0.8341489476 | CP100: 1.028331352 | CQ100: 0.9966011523 | CR100: 1.031838414 | CS100: 356 | CT100: 369 | CU100: 392 | CV100: 428 | CW100: 425 | CX100: 0.791258628 | CY100: 0.918282978 | CZ100: 0.829118613 | DA100: 0.836240335 | DB100: 0.799561357 | DC100: 2012 | DD100: 340.4 | DE100: 0.0028131143 | DF100: 765.05 | DG100: 1 | DH100: 765.05 | DI100: 744.6126197 | DJ100: 0.5834380858 | DK100: 756.5365657 | DL100: 1.042759477 | DM100: 788.8856734 | DN100: 1 | DO100: 0.012313 | DP100: 9.71 | DQ100: 779.18 | DR100: YAKUTAT | DT100: ALASKA
A101: YUKON-KOYUKUK | B101: 2290 | C101: 386 | D101: 1418266 | E101: 350 | F101: 1163701 | G101: 48 | H101: 42445 | I101: 43 | J101: 76710 | K101: 408 | L101: 963162 | M101: 367 | N101: 988096 | O101: 47 | P101: 216033 | Q101: 42 | R101: 117375 | S101: 418 | T101: 1782588 | U101: 379 | V101: 1058773 | W101: 58 | X101: 49033 | Y101: 50 | Z101: 96190 | AA101: 422 | AB101: 1814634 | AC101: 387 | AD101: 1301367 | AE101: 64 | AF101: 171123 | AG101: 56 | AH101: 186193 | AI101: 447 | AJ101: 1354223 | AK101: 408 | AL101: 1323129 | AM101: 62 | AN101: 247815 | AO101: 55 | AP101: 293865 | AQ101: 280.47 | AR101: 263.02 | AS101: 543.49 | AT101: 1460711 | AU101: 1240411 | AV101: 434 | AW101: 393 | AX101: 215.97 | AY101: 225.24 | AZ101: 441.21 | BA101: 1179195 | BB101: 1105471 | BC101: 455 | BD101: 409 | BE101: 320.66 | BF101: 224.35 | BG101: 545.01 | BH101: 1831621 | BI101: 1154963 | BJ101: 476 | BK101: 429 | BL101: 340.49 | BM101: 279.83 | BN101: 620.32 | BO101: 1985757 | BP101: 1487560 | BQ101: 486 | BR101: 443 | BS101: 262.29 | BT101: 291.04 | BU101: 553.33 | BV101: 1602038 | BW101: 1616994 | BX101: 509 | BY101: 463 | BZ101: 415 | CA101: 433 | CB101: 453 | CC101: 465 | CD101: 487 | CE101: 621.8109623 | CF101: 650.773103 | CG101: 676.6194692 | CH101: 712.4345037 | CI101: 716.4999321 | CJ101: 0.8740437737 | CK101: 0.6779782354 | CL101: 0.8054896804 | CM101: 0.8707046005 | CN101: 0.7722680425 | CO101: 0.822848516 | CP101: 0.972350136 | CQ101: 0.9966011523 | CR101: 0.9756662771 | CS101: 617 | CT101: 626 | CU101: 640 | CV101: 658 | CW101: 661 | CX101: 0.860972756 | CY101: 0.842830757 | CZ101: 0.843645122 | DA101: 0.828114645 | DB101: 0.742959742 | DC101: 2012 | DD101: 427.4 | DE101: 0.0010452296 | DF101: 724.69 | DG101: 1 | DH101: 724.69 | DI101: 744.6126197 | DJ101: 0.6537583651 | DK101: 731.5880404 | DL101: 1.042759477 | DM101: 762.8703622 | DN101: 1 | DO101: 0.003885 | DP101: 2.96 | DQ101: 759.91 | DR101: YUKON-KOYUKUK | DT101: ALASKA
A102: APACHE | B102: 3000 | C102: 5737 | D102: 21320014 | E102: 5670 | F102: 15991025 | G102: 1248 | H102: 4026669 | I102: 1098 | J102: 3104139 | K102: 5475 | L102: 20711816 | M102: 5353 | N102: 14633375 | O102: 1220 | P102: 3831252 | Q102: 1067 | R102: 2850952 | S102: 5803 | T102: 21482751 | U102: 5626 | V102: 16498330 | W102: 1306 | X102: 4167892 | Y102: 1144 | Z102: 3458545 | AA102: 5996 | AB102: 23504280 | AC102: 5759 | AD102: 18987103 | AE102: 1336 | AF102: 4098967 | AG102: 1160 | AH102: 3662139 | AI102: 6181 | AJ102: 24250769 | AK102: 5889 | AL102: 20421637 | AM102: 1362 | AN102: 4644187 | AO102: 1177 | AP102: 3907782 | AQ102: 302.39 | AR102: 235.12 | AS102: 537.51 | AT102: 25346683 | AU102: 19095164 | AV102: 6985 | AW102: 6768 | AX102: 305.49 | AY102: 226.95 | AZ102: 532.44 | BA102: 24543068 | BB102: 17484327 | BC102: 6695 | BD102: 6420 | BE102: 300.68 | BF102: 245.65 | BG102: 546.33 | BH102: 25650643 | BI102: 19956875 | BJ102: 7109 | BK102: 6770 | BL102: 313.73 | BM102: 272.79 | BN102: 586.52 | BO102: 27603247 | BP102: 22649242 | BQ102: 7332 | BR102: 6919 | BS102: 319.22 | BT102: 286.93 | BU102: 606.15 | BV102: 28894956 | BW102: 24329419 | BX102: 7543 | BY102: 7066 | BZ102: 6887 | CA102: 6564 | CB102: 6945 | CC102: 7133 | CD102: 7317 | CE102: 621.8109623 | CF102: 650.773103 | CG102: 676.6194692 | CH102: 712.4345037 | CI102: 716.4999321 | CJ102: 0.8644267029 | CK102: 0.8181653445 | CL102: 0.8074405554 | CM102: 0.8232616429 | CN102: 0.8459875191 | CO102: 0.9177449752 | CP102: 0.9064134105 | CQ102: 0.9966011523 | CR102: 0.9095046783 | CS102: 6160 | CT102: 5833 | CU102: 6392 | CV102: 6541 | CW102: 6752 | CX102: 0.930094939 | CY102: 0.926709589 | CZ102: 0.915595819 | DA102: 0.917052359 | DB102: 0.901438909 | DC102: 2012 | DD102: 6788.6 | DE102: 0.003790882 | DF102: 673.69 | DG102: 1 | DH102: 673.69 | DI102: 734.5994309 | DJ102: 1 | DK102: 673.69 | DL102: 1 | DM102: 673.69 | DN102: 1 | DO102: 0.012721 | DP102: 8.57 | DQ102: 665.12 | DR102: APACHE | DT102: ARIZONA
A103: COCHISE | B103: 3010 | C103: 16819 | D103: 53492091 | E103: 16201 | F103: 47562983 | G103: 2892 | H103: 7602072 | I103: 2530 | J103: 6591444 | K103: 15106 | L103: 50385760 | M103: 14412 | N103: 44407130 | O103: 2491 | P103: 6775933 | Q103: 2100 | R103: 5777192 | S103: 15304 | T103: 53704250 | U103: 14525 | V103: 47398226 | W103: 2562 | X103: 7486683 | Y103: 2144 | Z103: 6326811 | AA103: 15326 | AB103: 53653249 | AC103: 14435 | AD103: 48884038 | AE103: 2501 | AF103: 6963459 | AG103: 2083 | AH103: 6612115 | AI103: 15603 | AJ103: 60915930 | AK103: 14576 | AL103: 52579560 | AM103: 2513 | AN103: 8734861 | AO103: 2094 | AP103: 7741127 | AQ103: 258.29 | AR103: 240.93 | AS103: 499.22 | AT103: 61094163 | AU103: 54154427 | AV103: 19711 | AW103: 18731 | AX103: 270.7 | AY103: 253.27 | AZ103: 523.97 | BA103: 57161693 | BB103: 50184322 | BC103: 17597 | BD103: 16512 | BE103: 285.42 | BF103: 268.59 | BG103: 554.01 | BH103: 61190933 | BI103: 53725037 | BJ103: 17866 | BK103: 16669 | BL103: 283.36 | BM103: 279.98 | BN103: 563.34 | BO103: 60616708 | BP103: 55496153 | BQ103: 17827 | BR103: 16518 | BS103: 320.39 | BT103: 301.54 | BU103: 621.93 | BV103: 69650791 | BW103: 60320687 | BX103: 18116 | BY103: 16670 | BZ103: 19268 | CA103: 17080 | CB103: 17289 | CC103: 17196 | CD103: 17430 | CE103: 621.8109623 | CF103: 650.773103 | CG103: 676.6194692 | CH103: 712.4345037 | CI103: 716.4999321 | CJ103: 0.8028485026 | CK103: 0.8051500555 | CL103: 0.8187911008 | CM103: 0.7907253187 | CN103: 0.8680112477 | CO103: 0.9117880195 | CP103: 0.8961570317 | CQ103: 0.9966011523 | CR103: 0.8992133208 | CS103: 18369 | CT103: 15825 | CU103: 16290 | CV103: 16175 | CW103: 16295 | CX103: 0.911468044 | CY103: 0.915630178 | CZ103: 0.91180959 | DA103: 0.908134537 | DB103: 0.912022396 | DC103: 2012 | DD103: 17020 | DE103: 0.0050477273 | DF103: 665.23 | DG103: 1 | DH103: 665.23 | DI103: 734.5994309 | DJ103: 1 | DK103: 665.23 | DL103: 1 | DM103: 665.23 | DN103: 1 | DO103: 0.016596 | DP103: 11.04 | DQ103: 654.19 | DR103: COCHISE | DT103: ARIZONA
A104: COCONINO | B104: 3020 | C104: 12025 | D104: 39856885 | E104: 11679 | F104: 35046956 | G104: 2291 | H104: 6398345 | I104: 2036 | J104: 5658433 | K104: 11255 | L104: 41208494 | M104: 10863 | N104: 34962526 | O104: 2028 | P104: 6104729 | Q104: 1756 | R104: 5045130 | S104: 11644 | T104: 44071117 | U104: 11167 | V104: 36629022 | W104: 2094 | X104: 6825135 | Y104: 1819 | Z104: 6013323 | AA104: 11788 | AB104: 46039886 | AC104: 11220 | AD104: 37518804 | AE104: 2066 | AF104: 6385747 | AG104: 1773 | AH104: 6116524 | AI104: 12077 | AJ104: 45718816 | AK104: 11408 | AL104: 40623014 | AM104: 2078 | AN104: 6739469 | AO104: 1773 | AP104: 6681545 | AQ104: 269.25 | AR104: 247.33 | AS104: 516.58 | AT104: 46255230 | AU104: 40705389 | AV104: 14316 | AW104: 13715 | AX104: 296.83 | AY104: 264.2 | AZ104: 561.03 | BA104: 47313223 | BB104: 40007656 | BC104: 13283 | BD104: 12619 | BE104: 308.73 | BF104: 273.64 | BG104: 582.37 | BH104: 50896252 | BI104: 42642345 | BJ104: 13738 | BK104: 12986 | BL104: 315.35 | BM104: 279.86 | BN104: 595.21 | BO104: 52425633 | BP104: 43635328 | BQ104: 13854 | BR104: 12993 | BS104: 308.83 | BT104: 299.07 | BU104: 607.9 | BV104: 52458285 | BW104: 47304559 | BX104: 14155 | BY104: 13181 | BZ104: 14044 | CA104: 12967 | CB104: 13375 | CC104: 13439 | CD104: 13693 | CE104: 621.8109623 | CF104: 650.773103 | CG104: 676.6194692 | CH104: 712.4345037 | CI104: 716.4999321 | CJ104: 0.8307669554 | CK104: 0.8620977072 | CL104: 0.8607053543 | CM104: 0.8354592554 | CN104: 0.8484299478 | CO104: 0.8896537068 | CP104: 0.9526086808 | CQ104: 0.9966011523 | CR104: 0.9558574948 | CS104: 10054 | CT104: 9064 | CU104: 9594 | CV104: 9631 | CW104: 9703 | CX104: 0.895367555 | CY104: 0.887551947 | CZ104: 0.899159037 | DA104: 0.890307798 | DB104: 0.875648722 | DC104: 2012 | DD104: 13098.8 | DE104: 0.0019150495 | DF104: 709.36 | DG104: 1 | DH104: 709.36 | DI104: 734.5994309 | DJ104: 1 | DK104: 709.36 | DL104: 1 | DM104: 709.36 | DN104: 1 | DO104: 0.006121 | DP104: 4.34 | DQ104: 705.02 | DR104: COCONINO | DT104: ARIZONA
A105: GILA | B105: 3030 | C105: 9645 | D105: 40189026 | E105: 9362 | F105: 29633105 | G105: 1744 | H105: 5770359 | I105: 1556 | J105: 5045228 | K105: 8937 | L105: 41607402 | M105: 8602 | N105: 29185846 | O105: 1710 | P105: 6744659 | Q105: 1507 | R105: 4924341 | S105: 9325 | T105: 44639830 | U105: 8956 | V105: 31205112 | W105: 1743 | X105: 7095739 | Y105: 1552 | Z105: 5385499 | AA105: 9381 | AB105: 45448566 | AC105: 8947 | AD105: 33529905 | AE105: 1708 | AF105: 7246369 | AG105: 1530 | AH105: 6118111 | AI105: 9510 | AJ105: 47891652 | AK105: 9008 | AL105: 37140726 | AM105: 1703 | AN105: 5950700 | AO105: 1526 | AP105: 5836972 | AQ105: 336.28 | AR105: 264.69 | AS105: 600.97 | AT105: 45959385 | AU105: 34678333 | AV105: 11389 | AW105: 10918 | AX105: 378.45 | AY105: 281.19 | AZ105: 659.64 | BA105: 48352061 | BB105: 34110187 | BC105: 10647 | BD105: 10109 | BE105: 389.53 | BF105: 290.18 | BG105: 679.71 | BH105: 51735569 | BI105: 36590611 | BJ105: 11068 | BK105: 10508 | BL105: 396 | BM105: 315.36 | BN105: 711.36 | BO105: 52694935 | BP105: 39648016 | BQ105: 11089 | BR105: 10477 | BS105: 400.15 | BT105: 339.99 | BU105: 740.14 | BV105: 53842352 | BW105: 42977698 | BX105: 11213 | BY105: 10534 | BZ105: 11176 | CA105: 10391 | CB105: 10798 | CC105: 10794 | CD105: 10891 | CE105: 621.8109623 | CF105: 650.773103 | CG105: 676.6194692 | CH105: 712.4345037 | CI105: 716.4999321 | CJ105: 0.9664834434 | CK105: 1.013625174 | CL105: 1.004567605 | CM105: 0.9984917859 | CN105: 1.032993817 | CO105: 0.9450545749 | CP105: 1.061560244 | CQ105: 0.9966011523 | CR105: 1.065180631 | CS105: 10746 | CT105: 9822 | CU105: 10391 | CV105: 10349 | CW105: 10402 | CX105: 0.946830628 | CY105: 0.953751387 | CZ105: 0.942714871 | DA105: 0.937677526 | DB105: 0.944684587 | DC105: 2012 | DD105: 10509.2 | DE105: 0.0048960557 | DF105: 788.13 | DG105: 1 | DH105: 788.13 | DI105: 734.5994309 | DJ105: 1 | DK105: 788.13 | DL105: 1 | DM105: 788.13 | DN105: 0.9888479921 | DO105: 0.018203 | DP105: 14.19 | DQ105: 773.94 | DR105: GILA | DT105: ARIZONA
A106: GRAHAM | B106: 3040 | C106: 3652 | D106: 11737779 | E106: 3559 | F106: 9760593 | G106: 721 | H106: 1954147 | I106: 642 | J106: 1852891 | K106: 2961 | L106: 9703234 | M106: 2859 | N106: 8235156 | O106: 635 | P106: 1091660 | Q106: 551 | R106: 1443133 | S106: 2945 | T106: 10329010 | U106: 2835 | V106: 8254267 | W106: 665 | X106: 1573243 | Y106: 581 | Z106: 1858099 | AA106: 2894 | AB106: 11635466 | AC106: 2772 | AD106: 9297529 | AE106: 659 | AF106: 1573757 | AG106: 569 | AH106: 2076651 | AI106: 2831 | AJ106: 11158329 | AK106: 2699 | AL106: 9301389 | AM106: 640 | AN106: 1962160 | AO106: 555 | AP106: 2450734 | AQ106: 260.92 | AR106: 230.37 | AS106: 491.29 | AT106: 13691926 | AU106: 11613484 | AV106: 4373 | AW106: 4201 | AX106: 250.16 | AY106: 236.52 | AZ106: 486.68 | BA106: 10794894 | BB106: 9678289 | BC106: 3596 | BD106: 3410 | BE106: 274.75 | BF106: 246.69 | BG106: 521.44 | BH106: 11902253 | BI106: 10112366 | BJ106: 3610 | BK106: 3416 | BL106: 309.81 | BM106: 283.7 | BN106: 593.51 | BO106: 13209223 | BP106: 11374180 | BQ106: 3553 | BR106: 3341 | BS106: 315 | BT106: 300.97 | BU106: 615.97 | BV106: 13120489 | BW106: 11752123 | BX106: 3471 | BY106: 3254 | BZ106: 4295 | CA106: 3507 | CB106: 3516 | CC106: 3451 | CD106: 3368 | CE106: 621.8109623 | CF106: 650.773103 | CG106: 676.6194692 | CH106: 712.4345037 | CI106: 716.4999321 | CJ106: 0.7900954306 | CK106: 0.747848978 | CL106: 0.7706547383 | CM106: 0.8330730711 | CN106: 0.8596930334 | CO106: 0.887111209 | CP106: 0.9021113048 | CQ106: 0.9966011523 | CR106: 0.9051879005 | CS106: 3973 | CT106: 3219 | CU106: 3270 | CV106: 3208 | CW106: 3127 | CX106: 0.891400309 | CY106: 0.882948442 | CZ106: 0.898706633 | DA106: 0.877519079 | DB106: 0.883661855 | DC106: 2012 | DD106: 3524.4 | DE106: 0.0043944767 | DF106: 670.09 | DG106: 1 | DH106: 670.09 | DI106: 734.5994309 | DJ106: 1 | DK106: 670.09 | DL106: 1 | DM106: 670.09 | DN106: 1 | DO106: 0.010895 | DP106: 7.3 | DQ106: 662.79 | DR106: GRAHAM | DT106: ARIZONA
A107: GREENLEE | B107: 3050 | C107: 860 | D107: 2457536 | E107: 834 | F107: 2288164 | G107: 199 | H107: 626258 | I107: 178 | J107: 474878 | K107: 745 | L107: 2755723 | M107: 719 | N107: 2181899 | O107: 174 | P107: 335815 | Q107: 152 | R107: 337343 | S107: 714 | T107: 2816184 | U107: 688 | V107: 1865755 | W107: 177 | X107: 453507 | Y107: 151 | Z107: 398324 | AA107: 705 | AB107: 2698916 | AC107: 675 | AD107: 2123801 | AE107: 164 | AF107: 344042 | AG107: 135 | AH107: 369748 | AI107: 722 | AJ107: 3179142 | AK107: 692 | AL107: 2750777 | AM107: 159 | AN107: 531854 | AO107: 135 | AP107: 433474 | AQ107: 242.67 | AR107: 227.52 | AS107: 470.19 | AT107: 3083794 | AU107: 2763042 | AV107: 1059 | AW107: 1012 | AX107: 280.34 | AY107: 241.03 | AZ107: 521.37 | BA107: 3091538 | BB107: 2519242 | BC107: 919 | BD107: 871 | BE107: 305.81 | BF107: 224.88 | BG107: 530.69 | BH107: 3269691 | BI107: 2264079 | BJ107: 891 | BK107: 839 | BL107: 291.81 | BM107: 256.54 | BN107: 548.35 | BO107: 3042958 | BP107: 2493549 | BQ107: 869 | BR107: 810 | BS107: 351.02 | BT107: 320.86 | BU107: 671.88 | BV107: 3710996 | BW107: 3184251 | BX107: 881 | BY107: 827 | BZ107: 1038 | CA107: 896 | CB107: 866 | CC107: 841 | CD107: 855 | CE107: 621.8109623 | CF107: 650.773103 | CG107: 676.6194692 | CH107: 712.4345037 | CI107: 716.4999321 | CJ107: 0.7561622881 | CK107: 0.8011548074 | CL107: 0.7843256426 | CM107: 0.769684788 | CN107: 0.9377251412 | CO107: 0.8175010478 | CP107: 0.9905926551 | CQ107: 0.9966011523 | CR107: 0.9939710112 | CS107: 942 | CT107: 814 | CU107: 803 | CV107: 785 | CW107: 785 | CX107: 0.8514093 | CY107: 0.7856605 | CZ107: 0.808742948 | DA107: 0.814572398 | DB107: 0.82171554 | DC107: 2012 | DD107: 871.8 | DE107: 0.0048773176 | DF107: 735.45 | DG107: 1 | DH107: 735.45 | DI107: 734.5994309 | DJ107: 0.933702308 | DK107: 735.3936092 | DL107: 1.000076681 | DM107: 735.45 | DN107: 1 | DO107: 0.013227 | DP107: 9.73 | DQ107: 725.72 | DR107: GREENLEE | DT107: ARIZONA
A108: LAPAZ | B108: 3055 | C108: 18785 | D108: 69295712 | E108: 18308 | F108: 56481950 | G108: 2575 | H108: 8009477 | I108: 2330 | J108: 6775039 | K108: 17455 | L108: 64814968 | M108: 16895 | N108: 53341681 | O108: 2323 | P108: 6197253 | Q108: 2030 | R108: 5733553 | S108: 18013 | T108: 67909063 | U108: 17368 | V108: 57443576 | W108: 2491 | X108: 6235606 | Y108: 2188 | Z108: 6429003 | AA108: 18287 | AB108: 73389012 | AC108: 17516 | AD108: 61270399 | AE108: 2396 | AF108: 7117608 | AG108: 2094 | AH108: 6936015 | AI108: 18564 | AJ108: 69726120 | AK108: 17662 | AL108: 63821549 | AM108: 2403 | AN108: 7338436 | AO108: 2094 | AP108: 7450771 | AQ108: 301.6 | AR108: 255.42 | AS108: 557.02 | AT108: 77305189 | AU108: 63256989 | AV108: 21360 | AW108: 20638 | AX108: 299.21 | AY108: 260.13 | AZ108: 559.34 | BA108: 71012221 | BB108: 59075234 | BC108: 19778 | BD108: 18925 | BE108: 301.34 | BF108: 272.18 | BG108: 573.52 | BH108: 74144669 | BI108: 63872579 | BJ108: 20504 | BK108: 19556 | BL108: 324.37 | BM108: 289.85 | BN108: 614.22 | BO108: 80506620 | BP108: 68206414 | BQ108: 20683 | BR108: 19610 | BS108: 306.29 | BT108: 300.64 | BU108: 606.93 | BV108: 77064556 | BW108: 71272320 | BX108: 20967 | BY108: 19756 | BZ108: 21033 | CA108: 19371 | CB108: 20046 | CC108: 20166 | CD108: 20392 | CE108: 621.8109623 | CF108: 650.773103 | CG108: 676.6194692 | CH108: 712.4345037 | CI108: 716.4999321 | CJ108: 0.8958027982 | CK108: 0.8595007959 | CL108: 0.8476256243 | CM108: 0.86214241 | CN108: 0.8470761445 | CO108: 0.9905831695 | CP108: 0.8706281119 | CQ108: 0.9966011523 | CR108: 0.8735973362 | CS108: 23462 | CT108: 21511 | CU108: 22167 | CV108: 22163 | CW108: 22389 | CX108: 0.990959926 | CY108: 0.988463541 | CZ108: 0.987374789 | DA108: 0.991177902 | DB108: 0.994812701 | DC108: 2012 | DD108: 19697 | DE108: 0.0015287492 | DF108: 648.56 | DG108: 1 | DH108: 648.56 | DI108: 734.5994309 | DJ108: 1 | DK108: 648.56 | DL108: 1 | DM108: 648.56 | DN108: 1 | DO108: 0.005065 | DP108: 3.28 | DQ108: 645.28 | DR108: LAPAZ | DT108: ARIZONA
A109: MARICOPA | B109: 3060 | C109: 223288 | D109: 935657100 | E109: 210449 | F109: 707947039 | G109: 45061 | H109: 144631009 | I109: 36614 | J109: 108895584 | K109: 211753 | L109: 941059800 | M109: 197656 | N109: 695740739 | O109: 36550 | P109: 114736421 | Q109: 27617 | R109: 81446643 | S109: 216517 | T109: 994651974 | U109: 200138 | V109: 733535647 | W109: 38619 | X109: 125924893 | Y109: 29365 | Z109: 97480402 | AA109: 221660 | AB109: 1050905475 | AC109: 202620 | AD109: 795203281 | AE109: 38668 | AF109: 132535523 | AG109: 29120 | AH109: 104461772 | AI109: 227834 | AJ109: 831010031 | AK109: 206666 | AL109: 870490569 | AM109: 38937 | AN109: 142909926 | AO109: 29351 | AP109: 119717705 | AQ109: 335.47 | AR109: 275.52 | AS109: 610.99 | AT109: 1080288109 | AU109: 816842623 | AV109: 268349 | AW109: 247063 | AX109: 354.34 | AY109: 287.5 | AZ109: 641.84 | BA109: 1055796221 | BB109: 777187382 | BC109: 248303 | BD109: 225273 | BE109: 366.01 | BF109: 301.74 | BG109: 667.75 | BH109: 1120576867 | BI109: 831016049 | BJ109: 255136 | BK109: 229503 | BL109: 378.83 | BM109: 323.52 | BN109: 702.35 | BO109: 1183440998 | BP109: 899665053 | BQ109: 260328 | BR109: 231740 | BS109: 304.23 | BT109: 349.62 | BU109: 653.85 | BV109: 973919957 | BW109: 990208274 | BX109: 266771 | BY109: 236017 | BZ109: 258717 | CA109: 237327 | CB109: 242786 | CC109: 246549 | CD109: 252172 | CE109: 621.8109623 | CF109: 650.773103 | CG109: 676.6194692 | CH109: 712.4345037 | CI109: 716.4999321 | CJ109: 0.9825976656 | CK109: 0.9862730912 | CL109: 0.9868914957 | CM109: 0.9858450093 | CN109: 0.9125611472 | CO109: 0.9278707717 | CP109: 1.046302687 | CQ109: 0.9966011523 | CR109: 1.049871039 | CS109: 236673 | CT109: 215353 | CU109: 220534 | CV109: 222012 | CW109: 225638 | CX109: 0.949222349 | CY109: 0.922123399 | CZ109: 0.920232726 | DA109: 0.922409461 | DB109: 0.923799194 | DC109: 2012 | DD109: 233919.2 | DE109: 0.004712127 | DF109: 776.94 | DG109: 0.9999922566 | DH109: 776.9339838 | DI109: 734.5994309 | DJ109: 1 | DK109: 776.9339838 | DL109: 1 | DM109: 776.9339838 | DN109: 1 | DO109: 0.013693 | DP109: 10.64 | DQ109: 766.29 | DR109: MARICOPA | DT109: ARIZONA
A110: MOHAVE | B110: 3070 | C110: 33282 | D110: 121861811 | E110: 32197 | F110: 101430572 | G110: 5926 | H110: 18467362 | I110: 5267 | J110: 15410795 | K110: 31297 | L110: 122129654 | M110: 30101 | N110: 99980835 | O110: 5268 | P110: 15543406 | Q110: 4563 | R110: 13219584 | S110: 31331 | T110: 128517466 | U110: 30010 | V110: 104137603 | W110: 5347 | X110: 17292028 | Y110: 4617 | Z110: 15129562 | AA110: 31396 | AB110: 126127431 | AC110: 29948 | AD110: 106397278 | AE110: 5259 | AF110: 18298279 | AG110: 4522 | AH110: 15388793 | AI110: 31713 | AJ110: 128328910 | AK110: 30123 | AL110: 113744584 | AM110: 5347 | AN110: 18394358 | AO110: 4596 | AP110: 16735215 | AQ110: 298.26 | AR110: 259.9 | AS110: 558.16 | AT110: 140329173 | AU110: 116841367 | AV110: 39208 | AW110: 37464 | AX110: 313.76 | AY110: 272.14 | AZ110: 585.9 | BA110: 137673060 | BB110: 113200419 | BC110: 36565 | BD110: 34664 | BE110: 331.28 | BF110: 287.03 | BG110: 618.31 | BH110: 145809494 | BI110: 119267165 | BJ110: 36678 | BK110: 34627 | BL110: 328.34 | BM110: 294.43 | BN110: 622.77 | BO110: 144425710 | BP110: 121786071 | BQ110: 36655 | BR110: 34470 | BS110: 329.92 | BT110: 313.18 | BU110: 643.1 | BV110: 146723268 | BW110: 130479799 | BX110: 37060 | BY110: 34719 | BZ110: 38419 | CA110: 35659 | CB110: 35688 | CC110: 35602 | CD110: 35949 | CE110: 621.8109623 | CF110: 650.773103 | CG110: 676.6194692 | CH110: 712.4345037 | CI110: 716.4999321 | CJ110: 0.8976361528 | CK110: 0.9003137918 | CL110: 0.9138223597 | CM110: 0.8741435132 | CN110: 0.8975576566 | CO110: 0.9348532524 | CP110: 0.9591823022 | CQ110: 0.9966011523 | CR110: 0.9624535351 | CS110: 37549 | CT110: 33973 | CU110: 34485 | CV110: 34347 | CW110: 34593 | CX110: 0.926015187 | CY110: 0.924395134 | CZ110: 0.927778943 | DA110: 0.947826314 | DB110: 0.948888635 | DC110: 2012 | DD110: 35188.8 | DE110: 0.0035460372 | DF110: 713.09 | DG110: 1 | DH110: 713.09 | DI110: 734.5994309 | DJ110: 1 | DK110: 713.09 | DL110: 1 | DM110: 713.09 | DN110: 1 | DO110: 0.0096 | DP110: 6.85 | DQ110: 706.24 | DR110: MOHAVE | DT110: ARIZONA
A111: NAVAJO | B111: 3080 | C111: 10430 | D111: 36048123 | E111: 10166 | F111: 29896309 | G111: 2325 | H111: 6176837 | I111: 2048 | J111: 5708577 | K111: 9745 | L111: 35535619 | M111: 9420 | N111: 27534276 | O111: 2119 | P111: 5972631 | Q111: 1836 | R111: 5278682 | S111: 10388 | T111: 42048572 | U111: 9989 | V111: 33037075 | W111: 2307 | X111: 6587429 | Y111: 2000 | Z111: 6641713 | AA111: 10594 | AB111: 40807541 | AC111: 10137 | AD111: 34673929 | AE111: 2311 | AF111: 7890007 | AG111: 1994 | AH111: 7165956 | AI111: 10766 | AJ111: 44488552 | AK111: 10273 | AL111: 38181777 | AM111: 2292 | AN111: 7191970 | AO111: 1981 | AP111: 7313172 | AQ111: 275.87 | AR111: 242.92 | AS111: 518.79 | AT111: 42224960 | AU111: 35604886 | AV111: 12755 | AW111: 12214 | AX111: 291.56 | AY111: 242.93 | AZ111: 534.49 | BA111: 41508250 | BB111: 32812958 | BC111: 11864 | BD111: 11256 | BE111: 319.26 | BF111: 275.8 | BG111: 595.06 | BH111: 48636001 | BI111: 39678788 | BJ111: 12695 | BK111: 11989 | BL111: 314.46 | BM111: 287.42 | BN111: 601.88 | BO111: 48697548 | BP111: 41839885 | BQ111: 12905 | BR111: 12131 | BS111: 329.81 | BT111: 309.39 | BU111: 639.2 | BV111: 51680522 | BW111: 45494949 | BX111: 13058 | BY111: 12254 | BZ111: 12510 | CA111: 11574 | CB111: 12354 | CC111: 12532 | CD111: 12676 | CE111: 621.8109623 | CF111: 650.773103 | CG111: 676.6194692 | CH111: 712.4345037 | CI111: 716.4999321 | CJ111: 0.8343210902 | CK111: 0.8213154439 | CL111: 0.8794603571 | CM111: 0.8448215195 | CN111: 0.8921145298 | CO111: 0.8973017739 | CP111: 0.9521953628 | CQ111: 0.9966011523 | CR111: 0.9554427672 | CS111: 11800 | CT111: 10796 | CU111: 11705 | CV111: 11783 | CW111: 11764 | CX111: 0.907360966 | CY111: 0.901147823 | CZ111: 0.896234404 | DA111: 0.900212518 | DB111: 0.881828793 | DC111: 2012 | DD111: 11968.8 | DE111: 0.0033139758 | DF111: 708.06 | DG111: 1 | DH111: 708.06 | DI111: 734.5994309 | DJ111: 1 | DK111: 708.06 | DL111: 1 | DM111: 708.06 | DN111: 1 | DO111: 0.009795 | DP111: 6.94 | DQ111: 701.12 | DR111: NAVAJO | DT111: ARIZONA
A112: PIMA | B112: 3090 | C112: 77209 | D112: 268833451 | E112: 72632 | F112: 226238810 | G112: 15502 | H112: 49410847 | I112: 12700 | J112: 36649069 | K112: 73908 | L112: 267178839 | M112: 68859 | N112: 221719734 | O112: 12988 | P112: 40911676 | Q112: 10085 | R112: 29222371 | S112: 75462 | T112: 286138760 | U112: 69691 | V112: 238341440 | W112: 13453 | X112: 45882704 | Y112: 10468 | Z112: 33785660 | AA112: 76537 | AB112: 314608802 | AC112: 69969 | AD112: 253963511 | AE112: 13188 | AF112: 45627543 | AG112: 10141 | AH112: 34483693 | AI112: 77884 | AJ112: 263842270 | AK112: 70549 | AL112: 271482424 | AM112: 12880 | AN112: 44982809 | AO112: 9850 | AP112: 36587312 | AQ112: 286.05 | AR112: 256.73 | AS112: 542.78 | AT112: 318244298 | AU112: 262887879 | AV112: 92711 | AW112: 85332 | AX112: 295.46 | AY112: 264.89 | AZ112: 560.35 | BA112: 308090515 | BB112: 250942105 | BC112: 86896 | BD112: 78944 | BE112: 311.18 | BF112: 282.9 | BG112: 594.08 | BH112: 332021464 | BI112: 272127100 | BJ112: 88915 | BK112: 80159 | BL112: 334.57 | BM112: 300.05 | BN112: 634.62 | BO112: 360236345 | BP112: 288447204 | BQ112: 89725 | BR112: 80110 | BS112: 283.54 | BT112: 319.31 | BU112: 602.85 | BV112: 308825079 | BW112: 308069736 | BX112: 90764 | BY112: 80399 | BZ112: 89372 | CA112: 83106 | CB112: 84696 | CC112: 85091 | CD112: 85844 | CE112: 621.8109623 | CF112: 650.773103 | CG112: 676.6194692 | CH112: 712.4345037 | CI112: 716.4999321 | CJ112: 0.8729019475 | CK112: 0.8610527961 | CL112: 0.8780119802 | CM112: 0.8907766211 | CN112: 0.8413817964 | CO112: 0.9231732572 | CP112: 0.9411288959 | CQ112: 0.9966011523 | CR112: 0.9443385588 | CS112: 79027 | CT112: 72251 | CU112: 74327 | CV112: 73931 | CW112: 73982 | CX112: 0.944295696 | CY112: 0.92862337 | CZ112: 0.918429691 | DA112: 0.907436169 | DB112: 0.915779765 | DC112: 2012 | DD112: 80988.8 | DE112: 0.0061656524 | DF112: 697.82 | DG112: 1 | DH112: 697.82 | DI112: 734.5994309 | DJ112: 1 | DK112: 697.82 | DL112: 1 | DM112: 697.82 | DN112: 1 | DO112: 0.01572 | DP112: 10.97 | DQ112: 686.85 | DR112: PIMA | DT112: ARIZONA
A113: PINAL | B113: 3100 | C113: 17255 | D113: 70122896 | E113: 16435 | F113: 53757869 | G113: 4239 | H113: 14254824 | I113: 3510 | J113: 11639714 | K113: 16381 | L113: 72443440 | M113: 15411 | N113: 52672118 | O113: 3812 | P113: 12435677 | Q113: 2976 | R113: 9699917 | S113: 17478 | T113: 76395395 | U113: 16343 | V113: 58270460 | W113: 4260 | X113: 14306530 | Y113: 3337 | Z113: 11632469 | AA113: 18346 | AB113: 80548454 | AC113: 16948 | AD113: 64778512 | AE113: 4490 | AF113: 16599902 | AG113: 3535 | AH113: 14163213 | AI113: 19376 | AJ113: 73476836 | AK113: 17734 | AL113: 73571867 | AM113: 4647 | AN113: 16185218 | AO113: 3676 | AP113: 15997922 | AQ113: 327.14 | AR113: 273.24 | AS113: 600.38 | AT113: 84377720 | AU113: 65397583 | AV113: 21494 | AW113: 19945 | AX113: 350.28 | AY113: 282.68 | AZ113: 632.96 | BA113: 84879117 | BB113: 62372035 | BC113: 20193 | BD113: 18387 | BE113: 347.71 | BF113: 296 | BG113: 643.71 | BH113: 90701925 | BI113: 69902929 | BJ113: 21738 | BK113: 19680 | BL113: 354.51 | BM113: 321.17 | BN113: 675.68 | BO113: 97148356 | BP113: 78941725 | BQ113: 22836 | BR113: 20483 | BS113: 311.03 | BT113: 348.63 | BU113: 659.66 | BV113: 89662054 | BW113: 89569789 | BX113: 24023 | BY113: 21410 | BZ113: 20793 | CA113: 19332 | CB113: 20746 | CC113: 21702 | CD113: 22783 | CE113: 621.8109623 | CF113: 650.773103 | CG113: 676.6194692 | CH113: 712.4345037 | CI113: 716.4999321 | CJ113: 0.965534602 | CK113: 0.9726277824 | CL113: 0.9513619239 | CM113: 0.9484099892 | CN113: 0.9206700105 | CO113: 0.8953990146 | CP113: 1.062901395 | CQ113: 0.9966011523 | CR113: 1.066526355 | CS113: 21737 | CT113: 20214 | CU113: 22258 | CV113: 23549 | CW113: 24632 | CX113: 0.890119285 | CY113: 0.893972043 | CZ113: 0.892067149 | DA113: 0.89940301 | DB113: 0.900412041 | DC113: 2012 | DD113: 19981 | DE113: 0.0028717248 | DF113: 790.73 | DG113: 1 | DH113: 790.73 | DI113: 734.5994309 | DJ113: 1 | DK113: 790.73 | DL113: 1 | DM113: 790.73 | DN113: 1 | DO113: 0.007449 | DP113: 5.89 | DQ113: 784.84 | DR113: PINAL | DT113: ARIZONA
A114: SANTA CRUZ | B114: 3110 | C114: 3200 | D114: 7913616 | E114: 3159 | F114: 7003257 | G114: 466 | H114: 1109422 | I114: 396 | J114: 892381 | K114: 2793 | L114: 7185879 | M114: 2709 | N114: 6588947 | O114: 426 | P114: 1050226 | Q114: 350 | R114: 830418 | S114: 2892 | T114: 7744121 | U114: 2747 | V114: 7140069 | W114: 434 | X114: 642513 | Y114: 358 | Z114: 971530 | AA114: 2989 | AB114: 8570725 | AC114: 2783 | AD114: 7579107 | AE114: 422 | AF114: 907479 | AG114: 344 | AH114: 932460 | AI114: 3124 | AJ114: 8234976 | AK114: 2850 | AL114: 8893859 | AM114: 446 | AN114: 1364629 | AO114: 362 | AP114: 1199854 | AQ114: 205.11 | AR114: 185.08 | AS114: 390.19 | AT114: 9023038 | AU114: 7895638 | AV114: 3666 | AW114: 3555 | AX114: 213.22 | AY114: 202.12 | AZ114: 415.34 | BA114: 8236105 | BB114: 7419365 | BC114: 3219 | BD114: 3059 | BE114: 210.13 | BF114: 217.7 | BG114: 427.83 | BH114: 8386634 | BI114: 8111599 | BJ114: 3326 | BK114: 3105 | BL114: 231.56 | BM114: 226.83 | BN114: 458.39 | BO114: 9478204 | BP114: 8511567 | BQ114: 3411 | BR114: 3127 | BS114: 224.08 | BT114: 261.88 | BU114: 485.96 | BV114: 9599605 | BW114: 10093713 | BX114: 3570 | BY114: 3212 | BZ114: 3616 | CA114: 3143 | CB114: 3219 | CC114: 3274 | CD114: 3400 | CE114: 621.8109623 | CF114: 650.773103 | CG114: 676.6194692 | CH114: 712.4345037 | CI114: 716.4999321 | CJ114: 0.6275058236 | CK114: 0.6382255168 | CL114: 0.632305187 | CM114: 0.6434135315 | CN114: 0.6782415158 | CO114: 0.8101666494 | CP114: 0.7948220473 | CQ114: 0.9966011523 | CR114: 0.7975327396 | CS114: 3151 | CT114: 2642 | CU114: 2764 | CV114: 2762 | CW114: 2823 | CX114: 0.857249646 | CY114: 0.810495294 | CZ114: 0.812551771 | DA114: 0.774641996 | DB114: 0.789727335 | DC114: 2012 | DD114: 3211.6 | DE114: 0.0056957102 | DF114: 589.62 | DG114: 1 | DH114: 589.62 | DI114: 734.5994309 | DJ114: 1 | DK114: 589.62 | DL114: 1 | DM114: 589.62 | DN114: 1 | DO114: 0.014558 | DP114: 8.58 | DQ114: 581.04 | DR114: SANTA CRUZ | DT114: ARIZONA
A115: YAVAPAI | B115: 3120 | C115: 35728 | D115: 105473663 | E115: 34391 | F115: 98096588 | G115: 5830 | H115: 12884385 | I115: 4996 | J115: 13381516 | K115: 32872 | L115: 106503925 | M115: 31423 | N115: 92783245 | O115: 5295 | P115: 12127861 | Q115: 4336 | R115: 12362670 | S115: 33597 | T115: 120929736 | U115: 31981 | V115: 100073240 | W115: 5449 | X115: 14246179 | Y115: 4440 | Z115: 14251968 | AA115: 33957 | AB115: 122329740 | AC115: 32144 | AD115: 104962181 | AE115: 5331 | AF115: 14129404 | AG115: 4323 | AH115: 13975313 | AI115: 34584 | AJ115: 114331567 | AK115: 32548 | AL115: 114827666 | AM115: 5413 | AN115: 14947995 | AO115: 4365 | AP115: 15575370 | AQ115: 237.34 | AR115: 235.86 | AS115: 473.2 | AT115: 118358048 | AU115: 111478104 | AV115: 41558 | AW115: 39387 | AX115: 259.02 | AY115: 245.03 | AZ115: 504.05 | BA115: 118631786 | BB115: 105145915 | BC115: 38167 | BD115: 35759 | BE115: 288.5 | BF115: 261.58 | BG115: 550.08 | BH115: 135175915 | BI115: 114325208 | BJ115: 39046 | BK115: 36421 | BL115: 289.44 | BM115: 271.79 | BN115: 561.23 | BO115: 136459144 | BP115: 118937494 | BQ115: 39288 | BR115: 36467 | BS115: 269.35 | BT115: 294.39 | BU115: 563.74 | BV115: 129279562 | BW115: 130403036 | BX115: 39997 | BY115: 36913 | BZ115: 40576 | CA115: 37019 | CB115: 37780 | CC115: 37928 | CD115: 38533 | CE115: 621.8109623 | CF115: 650.773103 | CG115: 676.6194692 | CH115: 712.4345037 | CI115: 716.4999321 | CJ115: 0.7610029875 | CK115: 0.7745403085 | CL115: 0.8129828138 | CM115: 0.7877636429 | CN115: 0.7867970041 | CO115: 0.895496197 | CP115: 0.8761816678 | CQ115: 0.9966011523 | CR115: 0.8791698321 | CS115: 41753 | CT115: 37601 | CU115: 38757 | CV115: 38698 | CW115: 38833 | CX115: 0.890782914 | CY115: 0.893825423 | CZ115: 0.887596709 | DA115: 0.903421279 | DB115: 0.902168154 | DC115: 2012 | DD115: 36989.4 | DE115: 0.0020217696 | DF115: 652.38 | DG115: 1 | DH115: 652.38 | DI115: 734.5994309 | DJ115: 1 | DK115: 652.38 | DL115: 1 | DM115: 652.38 | DN115: 1 | DO115: 0.006149 | DP115: 4.01 | DQ115: 648.37 | DR115: YAVAPAI | DT115: ARIZONA
A116: YUMA | B116: 3130 | C116: 18785 | D116: 69295712 | E116: 18308 | F116: 56481950 | G116: 2575 | H116: 8009477 | I116: 2330 | J116: 6775039 | K116: 17455 | L116: 64814968 | M116: 16895 | N116: 53341681 | O116: 2323 | P116: 6197253 | Q116: 2030 | R116: 5733553 | S116: 18013 | T116: 67909063 | U116: 17368 | V116: 57443576 | W116: 2491 | X116: 6235606 | Y116: 2188 | Z116: 6429003 | AA116: 18287 | AB116: 73389012 | AC116: 17516 | AD116: 61270399 | AE116: 2396 | AF116: 7117608 | AG116: 2094 | AH116: 6936015 | AI116: 18564 | AJ116: 69726120 | AK116: 17662 | AL116: 63821549 | AM116: 2403 | AN116: 7338436 | AO116: 2094 | AP116: 7450771 | AQ116: 301.6 | AR116: 255.42 | AS116: 557.02 | AT116: 77305189 | AU116: 63256989 | AV116: 21360 | AW116: 20638 | AX116: 299.21 | AY116: 260.13 | AZ116: 559.34 | BA116: 71012221 | BB116: 59075234 | BC116: 19778 | BD116: 18925 | BE116: 301.34 | BF116: 272.18 | BG116: 573.52 | BH116: 74144669 | BI116: 63872579 | BJ116: 20504 | BK116: 19556 | BL116: 324.37 | BM116: 289.85 | BN116: 614.22 | BO116: 80506620 | BP116: 68206414 | BQ116: 20683 | BR116: 19610 | BS116: 306.29 | BT116: 300.64 | BU116: 606.93 | BV116: 77064556 | BW116: 71272320 | BX116: 20967 | BY116: 19756 | BZ116: 21033 | CA116: 19371 | CB116: 20046 | CC116: 20166 | CD116: 20392 | CE116: 621.8109623 | CF116: 650.773103 | CG116: 676.6194692 | CH116: 712.4345037 | CI116: 716.4999321 | CJ116: 0.8958027982 | CK116: 0.8595007959 | CL116: 0.8476256243 | CM116: 0.86214241 | CN116: 0.8470761445 | CO116: 0.9905831695 | CP116: 0.8706281119 | CQ116: 0.9966011523 | CR116: 0.8735973362 | CS116: 23462 | CT116: 21511 | CU116: 22167 | CV116: 22163 | CW116: 22389 | CX116: 0.990959926 | CY116: 0.988463541 | CZ116: 0.987374789 | DA116: 0.991177902 | DB116: 0.994812701 | DC116: 2012 | DD116: 19697 | DE116: 0.0015287492 | DF116: 648.56 | DG116: 1 | DH116: 648.56 | DI116: 734.5994309 | DJ116: 1 | DK116: 648.56 | DL116: 1 | DM116: 648.56 | DN116: 1 | DO116: 0.005065 | DP116: 3.28 | DQ116: 645.28 | DR116: YUMA | DT116: ARIZONA
A117: ARKANSAS | B117: 4000 | C117: 3121 | D117: 11914030 | E117: 3009 | F117: 8989171 | G117: 683 | H117: 2395009 | I117: 627 | J117: 2305266 | K117: 3128 | L117: 12232460 | M117: 3006 | N117: 9784378 | O117: 716 | P117: 2344442 | Q117: 655 | R117: 2301577 | S117: 3014 | T117: 13363823 | U117: 2873 | V117: 10695329 | W117: 717 | X117: 2128470 | Y117: 648 | Z117: 2251052 | AA117: 2970 | AB117: 13188765 | AC117: 2812 | AD117: 10962105 | AE117: 713 | AF117: 2414292 | AG117: 645 | AH117: 2338600 | AI117: 2936 | AJ117: 11668165 | AK117: 2757 | AL117: 11535423 | AM117: 726 | AN117: 2217387 | AO117: 660 | AP117: 2136462 | AQ117: 313.46 | AR117: 258.86 | AS117: 572.32 | AT117: 14309039 | AU117: 11294437 | AV117: 3804 | AW117: 3636 | AX117: 316.01 | AY117: 275.11 | AZ117: 591.12 | BA117: 14576902 | BB117: 12085955 | BC117: 3844 | BD117: 3661 | BE117: 346.03 | BF117: 306.41 | BG117: 652.44 | BH117: 15492293 | BI117: 12946381 | BJ117: 3731 | BK117: 3521 | BL117: 353.04 | BM117: 320.62 | BN117: 673.66 | BO117: 15603057 | BP117: 13300705 | BQ117: 3683 | BR117: 3457 | BS117: 315.98 | BT117: 333.43 | BU117: 649.41 | BV117: 13885552 | BW117: 13671885 | BX117: 3662 | BY117: 3417 | BZ117: 3728 | CA117: 3757 | CB117: 3630 | CC117: 3574 | CD117: 3546 | CE117: 621.8109623 | CF117: 650.773103 | CG117: 676.6194692 | CH117: 712.4345037 | CI117: 716.4999321 | CJ117: 0.9204083471 | CK117: 0.9083350207 | CL117: 0.9642643017 | CM117: 0.9455746408 | CN117: 0.9063643567 | CO117: 0.9614957721 | CP117: 0.9661918027 | CQ117: 0.9966011523 | CR117: 0.9694869411 | CS117: 3415 | CT117: 3490 | CU117: 3395 | CV117: 3343 | CW117: 3316 | CX117: 0.948454537 | CY117: 0.969699624 | CZ117: 0.962537446 | DA117: 0.960143423 | DB117: 0.966588895 | DC117: 2012 | DD117: 3538.4 | DE117: 0.0023919376 | DF117: 719.13 | DG117: 1 | DH117: 719.13 | DI117: 677.5147417 | DJ117: 1 | DK117: 719.13 | DL117: 1 | DM117: 719.13 | DN117: 1 | DO117: 0.005784 | DP117: 4.16 | DQ117: 714.97 | DR117: ARKANSAS | DT117: ARKANSAS
A118: ASHLEY | B118: 4010 | C118: 3254 | D118: 13352008 | E118: 3178 | F118: 11010201 | G118: 906 | H118: 2654372 | I118: 842 | J118: 2487043 | K118: 3283 | L118: 14698475 | M118: 3199 | N118: 11318011 | O118: 960 | P118: 2263294 | Q118: 894 | R118: 2909355 | S118: 3155 | T118: 15713605 | U118: 3069 | V118: 10867389 | W118: 944 | X118: 3753969 | Y118: 872 | Z118: 3132416 | AA118: 3186 | AB118: 15571267 | AC118: 3088 | AD118: 11556183 | AE118: 953 | AF118: 2500590 | AG118: 872 | AH118: 2784340 | AI118: 3198 | AJ118: 14349800 | AK118: 3083 | AL118: 12498317 | AM118: 931 | AN118: 3041317 | AO118: 852 | AP118: 3268661 | AQ118: 320.64 | AR118: 279.79 | AS118: 600.43 | AT118: 16006380 | AU118: 13497244 | AV118: 4160 | AW118: 4020 | AX118: 333.13 | AY118: 289.67 | AZ118: 622.8 | BA118: 16961769 | BB118: 14227366 | BC118: 4243 | BD118: 4093 | BE118: 395.78 | BF118: 296.03 | BG118: 691.81 | BH118: 19467574 | BI118: 13999805 | BJ118: 4099 | BK118: 3941 | BL118: 363.85 | BM118: 301.78 | BN118: 665.63 | BO118: 18071857 | BP118: 14340523 | BQ118: 4139 | BR118: 3960 | BS118: 351 | BT118: 333.9 | BU118: 684.9 | BV118: 17391117 | BW118: 15766978 | BX118: 4129 | BY118: 3935 | BZ118: 4097 | CA118: 4172 | CB118: 4023 | CC118: 4053 | CD118: 4037 | CE118: 621.8109623 | CF118: 650.773103 | CG118: 676.6194692 | CH118: 712.4345037 | CI118: 716.4999321 | CJ118: 0.9656150123 | CK118: 0.9570155821 | CL118: 1.022450626 | CM118: 0.9343034293 | CN118: 0.9558968108 | CO118: 0.9292605311 | CP118: 1.040672943 | CQ118: 0.9966011523 | CR118: 1.044222095 | CS118: 3970 | CT118: 4056 | CU118: 3797 | CV118: 3974 | CW118: 3956 | CX118: 0.916133814 | CY118: 0.940551434 | CZ118: 0.920403851 | DA118: 0.937638297 | DB118: 0.930942214 | DC118: 2012 | DD118: 3989.8 | DE118: 0.0021067533 | DF118: 774.79 | DG118: 1 | DH118: 774.79 | DI118: 677.5147417 | DJ118: 1 | DK118: 774.79 | DL118: 1 | DM118: 774.79 | DN118: 1 | DO118: 0.004993 | DP118: 3.87 | DQ118: 770.92 | DR118: ASHLEY | DT118: ARKANSAS
A119: BAXTER | B119: 4020 | C119: 10262 | D119: 36193351 | E119: 10082 | F119: 28918855 | G119: 1799 | H119: 4004220 | I119: 1665 | J119: 4854216 | K119: 9902 | L119: 35439786 | M119: 9711 | N119: 30888366 | O119: 1748 | P119: 4889718 | Q119: 1593 | R119: 5561574 | S119: 9476 | T119: 33258118 | U119: 9254 | V119: 30084709 | W119: 1721 | X119: 4835335 | Y119: 1569 | Z119: 5436367 | AA119: 9380 | AB119: 35543663 | AC119: 9120 | AD119: 31079401 | AE119: 1741 | AF119: 4442146 | AG119: 1597 | AH119: 5992469 | AI119: 9155 | AJ119: 30920912 | AK119: 8879 | AL119: 31135140 | AM119: 1752 | AN119: 4879721 | AO119: 1600 | AP119: 6451433 | AQ119: 277.74 | AR119: 239.59 | AS119: 517.33 | AT119: 40197571 | AU119: 33773071 | AV119: 12061 | AW119: 11747 | AX119: 288.48 | AY119: 268.71 | AZ119: 557.19 | BA119: 40329504 | BB119: 36449940 | BC119: 11650 | BD119: 11304 | BE119: 283.51 | BF119: 273.5 | BG119: 557.01 | BH119: 38093453 | BI119: 35521076 | BJ119: 11197 | BK119: 10823 | BL119: 299.63 | BM119: 288.26 | BN119: 587.89 | BO119: 39985809 | BP119: 37071870 | BQ119: 11121 | BR119: 10717 | BS119: 273.53 | BT119: 298.9 | BU119: 572.43 | BV119: 35800633 | BW119: 37586573 | BX119: 10907 | BY119: 10479 | BZ119: 11919 | CA119: 11485 | CB119: 11016 | CC119: 10926 | CD119: 10704 | CE119: 621.8109623 | CF119: 650.773103 | CG119: 676.6194692 | CH119: 712.4345037 | CI119: 716.4999321 | CJ119: 0.8319731098 | CK119: 0.8561970331 | CL119: 0.8232249075 | CM119: 0.8251846267 | CN119: 0.7989254072 | CO119: 0.9508890421 | CP119: 0.8698186437 | CQ119: 0.9966011523 | CR119: 0.8727851073 | CS119: 11573 | CT119: 10976 | CU119: 10665 | CV119: 10629 | CW119: 10406 | CX119: 0.917876844 | CY119: 0.954399455 | CZ119: 0.94555349 | DA119: 0.962697115 | DB119: 0.977307986 | DC119: 2012 | DD119: 11014 | DE119: 0.001301189 | DF119: 648.11 | DG119: 1 | DH119: 648.11 | DI119: 677.5147417 | DJ119: 1 | DK119: 648.11 | DL119: 1 | DM119: 648.11 | DN119: 1 | DO119: 0.003877 | DP119: 2.51 | DQ119: 645.6 | DR119: BAXTER | DT119: ARKANSAS
A120: BENTON | B120: 4030 | C120: 21797 | D120: 69042656 | E120: 20995 | F120: 55399921 | G120: 3636 | H120: 8364139 | I120: 3219 | J120: 7692745 | K120: 20061 | L120: 66935259 | M120: 19233 | N120: 53253678 | O120: 3450 | P120: 9363400 | Q120: 2989 | R120: 7735569 | S120: 18890 | T120: 70094902 | U120: 17941 | V120: 53495795 | W120: 3382 | X120: 7457577 | Y120: 2884 | Z120: 7171569 | AA120: 18521 | AB120: 71286413 | AC120: 17449 | AD120: 53505442 | AE120: 3342 | AF120: 9533726 | AG120: 2816 | AH120: 7838102 | AI120: 18293 | AJ120: 73367040 | AK120: 17092 | AL120: 59089984 | AM120: 3248 | AN120: 9134001 | AO120: 2728 | AP120: 8902327 | AQ120: 253.63 | AR120: 217.14 | AS120: 470.77 | AT120: 77406795 | AU120: 63092666 | AV120: 25433 | AW120: 24214 | AX120: 270.44 | AY120: 228.71 | AZ120: 499.15 | BA120: 76298659 | BB120: 60989247 | BC120: 23511 | BD120: 22222 | BE120: 290.17 | BF120: 242.77 | BG120: 532.94 | BH120: 77552479 | BI120: 60667364 | BJ120: 22272 | BK120: 20825 | BL120: 308.06 | BM120: 252.26 | BN120: 560.32 | BO120: 80820139 | BP120: 61343544 | BQ120: 21863 | BR120: 20265 | BS120: 319.16 | BT120: 285.87 | BU120: 605.03 | BV120: 82501041 | BW120: 67992311 | BX120: 21541 | BY120: 19820 | BZ120: 24881 | CA120: 22897 | CB120: 21574 | CC120: 21093 | CD120: 20724 | CE120: 621.8109623 | CF120: 650.773103 | CG120: 676.6194692 | CH120: 712.4345037 | CI120: 716.4999321 | CJ120: 0.7570950474 | CK120: 0.7670108025 | CL120: 0.7876509977 | CM120: 0.7864863325 | CN120: 0.8444243648 | CO120: 0.9038266123 | CP120: 0.872438915 | CQ120: 0.9966011523 | CR120: 0.8754143149 | CS120: 24609 | CT120: 22129 | CU120: 21299 | CV120: 20862 | CW120: 20601 | CX120: 0.871142887 | CY120: 0.906264438 | CZ120: 0.901909975 | DA120: 0.917466511 | DB120: 0.928419304 | DC120: 2012 | DD120: 21469.2 | DE120: 0.0016482968 | DF120: 649.83 | DG120: 1 | DH120: 649.83 | DI120: 677.5147417 | DJ120: 1 | DK120: 649.83 | DL120: 1 | DM120: 649.83 | DN120: 1 | DO120: 0.00522 | DP120: 3.39 | DQ120: 646.44 | DR120: BENTON | DT120: ARKANSAS
A121: BOONE | B121: 4040 | C121: 6143 | D121: 20534125 | E121: 5965 | F121: 16659149 | G121: 1717 | H121: 4572828 | I121: 1529 | J121: 4244750 | K121: 5918 | L121: 21841966 | M121: 5704 | N121: 16586359 | O121: 1655 | P121: 3691183 | Q121: 1458 | R121: 4041117 | S121: 5768 | T121: 20450842 | U121: 5534 | V121: 16674322 | W121: 1638 | X121: 3855380 | Y121: 1424 | Z121: 4406542 | AA121: 5788 | AB121: 21565934 | AC121: 5532 | AD121: 16978252 | AE121: 1574 | AF121: 4351613 | AG121: 1365 | AH121: 4275473 | AI121: 5853 | AJ121: 19471822 | AK121: 5574 | AL121: 18845174 | AM121: 1588 | AN121: 4169636 | AO121: 1367 | AP121: 4455213 | AQ121: 266.19 | AR121: 232.45 | AS121: 498.64 | AT121: 25106953 | AU121: 20903899 | AV121: 7860 | AW121: 7494 | AX121: 280.97 | AY121: 240.01 | AZ121: 520.98 | BA121: 25533149 | BB121: 20627476 | BC121: 7573 | BD121: 7162 | BE121: 273.5 | BF121: 252.48 | BG121: 525.98 | BH121: 24306222 | BI121: 21080864 | BJ121: 7406 | BK121: 6958 | BL121: 293.37 | BM121: 256.8 | BN121: 550.17 | BO121: 25917547 | BP121: 21253725 | BQ121: 7362 | BR121: 6897 | BS121: 264.77 | BT121: 279.74 | BU121: 544.51 | BV121: 23641458 | BW121: 23300387 | BX121: 7441 | BY121: 6941 | BZ121: 7694 | CA121: 7377 | CB121: 7190 | CC121: 7138 | CD121: 7204 | CE121: 621.8109623 | CF121: 650.773103 | CG121: 676.6194692 | CH121: 712.4345037 | CI121: 716.4999321 | CJ121: 0.8019157433 | CK121: 0.8005555202 | CL121: 0.7773645659 | CM121: 0.7722394088 | CN121: 0.7599582018 | CO121: 0.9488212968 | CP121: 0.8246091131 | CQ121: 0.9966011523 | CR121: 0.8274213923 | CS121: 7030 | CT121: 6567 | CU121: 6435 | CV121: 6480 | CW121: 6452 | CX121: 0.949244654 | CY121: 0.975713829 | CZ121: 0.9635155 | DA121: 0.932895186 | DB121: 0.92232789 | DC121: 2012 | DD121: 7090.4 | DE121: 0.0014936742 | DF121: 614.3 | DG121: 1 | DH121: 614.3 | DI121: 677.5147417 | DJ121: 1 | DK121: 614.3 | DL121: 1 | DM121: 614.3 | DN121: 1 | DO121: 0.005137 | DP121: 3.16 | DQ121: 611.14 | DR121: BOONE | DT121: ARKANSAS
A122: BRADLEY | B122: 4050 | C122: 1889 | D122: 8613498 | E122: 1846 | F122: 6522922 | G122: 465 | H122: 1145643 | I122: 438 | J122: 1375534 | K122: 1889 | L122: 8920044 | M122: 1842 | N122: 7471098 | O122: 464 | P122: 1815643 | Q122: 442 | R122: 1492489 | S122: 1786 | T122: 8158700 | U122: 1741 | V122: 7574458 | W122: 449 | X122: 1471385 | Y122: 427 | Z122: 1471074 | AA122: 1782 | AB122: 8226710 | AC122: 1738 | AD122: 7989653 | AE122: 498 | AF122: 1460687 | AG122: 461 | AH122: 1544233 | AI122: 1779 | AJ122: 9373533 | AK122: 1727 | AL122: 8659185 | AM122: 495 | AN122: 2025154 | AO122: 468 | AP122: 1746270 | AQ122: 345.48 | AR122: 288.18 | AS122: 633.66 | AT122: 9759141 | AU122: 7898456 | AV122: 2354 | AW122: 2284 | AX122: 380.21 | AY122: 327.04 | AZ122: 707.25 | BA122: 10735687 | BB122: 8963587 | BC122: 2353 | BD122: 2284 | BE122: 359.06 | BF122: 347.69 | BG122: 706.75 | BH122: 9630085 | BI122: 9045532 | BJ122: 2235 | BK122: 2168 | BL122: 354.07 | BM122: 361.3 | BN122: 715.37 | BO122: 9687397 | BP122: 9533886 | BQ122: 2280 | BR122: 2199 | BS122: 417.72 | BT122: 395.04 | BU122: 812.76 | BV122: 11398687 | BW122: 10405455 | BX122: 2274 | BY122: 2195 | BZ122: 2322 | CA122: 2320 | CB122: 2203 | CC122: 2241 | CD122: 2236 | CE122: 621.8109623 | CF122: 650.773103 | CG122: 676.6194692 | CH122: 712.4345037 | CI122: 716.4999321 | CJ122: 1.019055691 | CK122: 1.086784313 | CL122: 1.044530984 | CM122: 1.004120373 | CN122: 1.13434763 | CO122: 1.006067641 | CP122: 1.051388351 | CQ122: 0.9966011523 | CR122: 1.054974048 | CS122: 2235 | CT122: 2250 | CU122: 2127 | CV122: 2191 | CW122: 2229 | CX122: 0.986052147 | CY122: 0.99379944 | CZ122: 1.028275288 | DA122: 1.024291451 | DB122: 0.999416249 | DC122: 2012 | DD122: 2226 | DE122: 0.0021196623 | DF122: 782.75 | DG122: 1 | DH122: 782.75 | DI122: 677.5147417 | DJ122: 1 | DK122: 782.75 | DL122: 1 | DM122: 782.75 | DN122: 1 | DO122: 0.004618 | DP122: 3.61 | DQ122: 779.14 | DR122: BRADLEY | DT122: ARKANSAS
A123: CALHOUN | B123: 4060 | C123: 699 | D123: 2677178 | E123: 679 | F123: 2323595 | G123: 192 | H123: 607557 | I123: 174 | J123: 694999 | K123: 711 | L123: 2365727 | M123: 692 | N123: 2647867 | O123: 189 | P123: 470241 | Q123: 171 | R123: 507445 | S123: 713 | T123: 3365729 | U123: 692 | V123: 2779799 | W123: 193 | X123: 576017 | Y123: 173 | Z123: 548130 | AA123: 686 | AB123: 3088596 | AC123: 662 | AD123: 2581238 | AE123: 202 | AF123: 282751 | AG123: 186 | AH123: 512650 | AI123: 693 | AJ123: 3098966 | AK123: 668 | AL123: 2739923 | AM123: 211 | AN123: 417420 | AO123: 192 | AP123: 617179 | AQ123: 307.21 | AR123: 294.9 | AS123: 602.11 | AT123: 3284735 | AU123: 3018594 | AV123: 891 | AW123: 853 | AX123: 262.59 | AY123: 304.68 | AZ123: 567.27 | BA123: 2835968 | BB123: 3155312 | BC123: 900 | BD123: 863 | BE123: 362.56 | BF123: 320.61 | BG123: 683.17 | BH123: 3941746 | BI123: 3327929 | BJ123: 906 | BK123: 865 | BL123: 316.38 | BM123: 304.04 | BN123: 620.42 | BO123: 3371347 | BP123: 3093888 | BQ123: 888 | BR123: 848 | BS123: 324.15 | BT123: 325.3 | BU123: 649.45 | BV123: 3516386 | BW123: 3357102 | BX123: 904 | BY123: 860 | BZ123: 874 | CA123: 882 | CB123: 886 | CC123: 869 | CD123: 883 | CE123: 621.8109623 | CF123: 650.773103 | CG123: 676.6194692 | CH123: 712.4345037 | CI123: 716.4999321 | CJ123: 0.968316798 | CK123: 0.8716863026 | CL123: 1.009681263 | CM123: 0.8708449643 | CN123: 0.9064201836 | CO123: 0.9973085908 | CP123: 0.9278872264 | CQ123: 0.9966011523 | CR123: 0.9310517294 | CS123: 1003 | CT123: 1007 | CU123: 1034 | CV123: 995 | CW123: 1004 | CX123: 1.022418446 | CY123: 1.022512747 | CZ123: 1.025317139 | DA123: 0.972326058 | DB123: 0.942857407 | DC123: 2012 | DD123: 857.8 | DE123: 0.0027136122 | DF123: 690.4 | DG123: 1 | DH123: 690.4 | DI123: 677.5147417 | DJ123: 0.9261749295 | DK123: 689.4487449 | DL123: 1.001379733 | DM123: 690.4 | DN123: 1 | DO123: 0.006555 | DP123: 4.53 | DQ123: 685.87 | DR123: CALHOUN | DT123: ARKANSAS
A124: CARROLL | B124: 4070 | C124: 3946 | D124: 10870856 | E124: 3799 | F124: 9480002 | G124: 835 | H124: 2033289 | I124: 762 | J124: 1812138 | K124: 3818 | L124: 11190444 | M124: 3666 | N124: 9540738 | O124: 820 | P124: 1982913 | Q124: 731 | R124: 2082438 | S124: 3675 | T124: 12117724 | U124: 3503 | V124: 10328312 | W124: 826 | X124: 1596888 | Y124: 740 | Z124: 2147434 | AA124: 3643 | AB124: 10741798 | AC124: 3441 | AD124: 9623551 | AE124: 833 | AF124: 2062729 | AG124: 735 | AH124: 2209459 | AI124: 3612 | AJ124: 10075144 | AK124: 3391 | AL124: 10476746 | AM124: 812 | AN124: 1939007 | AO124: 719 | AP124: 2237866 | AQ124: 224.92 | AR124: 206.32 | AS124: 431.24 | AT124: 12904145 | AU124: 11292140 | AV124: 4781 | AW124: 4561 | AX124: 236.69 | AY124: 220.29 | AZ124: 456.98 | BA124: 13173357 | BB124: 11623176 | BC124: 4638 | BD124: 4397 | BE124: 253.92 | BF124: 245.03 | BG124: 498.95 | BH124: 13714612 | BI124: 12475746 | BJ124: 4501 | BK124: 4243 | BL124: 238.39 | BM124: 236.13 | BN124: 474.52 | BO124: 12804527 | BP124: 11833010 | BQ124: 4476 | BR124: 4176 | BS124: 226.31 | BT124: 257.8 | BU124: 484.11 | BV124: 12014151 | BW124: 12714612 | BX124: 4424 | BY124: 4110 | BZ124: 4681 | CA124: 4523 | CB124: 4377 | CC124: 4331 | CD124: 4275 | CE124: 621.8109623 | CF124: 650.773103 | CG124: 676.6194692 | CH124: 712.4345037 | CI124: 716.4999321 | CJ124: 0.6935226719 | CK124: 0.7022109517 | CL124: 0.7374159667 | CM124: 0.6660542092 | CN124: 0.6756595197 | CO124: 0.8730894144 | CP124: 0.7959925437 | CQ124: 0.9966011523 | CR124: 0.7987072279 | CS124: 4663 | CT124: 4454 | CU124: 4349 | CV124: 4320 | CW124: 4286 | CX124: 0.87186449 | CY124: 0.871057688 | CZ124: 0.878322646 | DA124: 0.878723248 | DB124: 0.865544768 | DC124: 2012 | DD124: 4297.4 | DE124: 0.0015467588 | DF124: 592.95 | DG124: 1 | DH124: 592.95 | DI124: 677.5147417 | DJ124: 1 | DK124: 592.95 | DL124: 1 | DM124: 592.95 | DN124: 1 | DO124: 0.006122 | DP124: 3.63 | DQ124: 589.32 | DR124: CARROLL | DT124: ARKANSAS
A125: CHICOT | B125: 4080 | C125: 2034 | D125: 9143414 | E125: 1964 | F125: 6345850 | G125: 548 | H125: 1812054 | I125: 521 | J125: 1398149 | K125: 2037 | L125: 8719506 | M125: 1961 | N125: 6819675 | O125: 556 | P125: 1872559 | Q125: 527 | R125: 1600018 | S125: 1974 | T125: 9747271 | U125: 1886 | V125: 6904483 | W125: 549 | X125: 1862466 | Y125: 522 | Z125: 1598093 | AA125: 2010 | AB125: 10155951 | AC125: 1916 | AD125: 7493191 | AE125: 557 | AF125: 1813191 | AG125: 530 | AH125: 1584240 | AI125: 2007 | AJ125: 10306771 | AK125: 1910 | AL125: 7507073 | AM125: 562 | AN125: 1445824 | AO125: 535 | AP125: 1604235 | AQ125: 353.58 | AR125: 259.69 | AS125: 613.27 | AT125: 10955468 | AU125: 7743999 | AV125: 2582 | AW125: 2485 | AX125: 340.41 | AY125: 282.01 | AZ125: 622.42 | BA125: 10592065 | BB125: 8419693 | BC125: 2593 | BD125: 2488 | BE125: 383.46 | BF125: 294.25 | BG125: 677.71 | BH125: 11609737 | BI125: 8502576 | BJ125: 2523 | BK125: 2408 | BL125: 388.56 | BM125: 309.26 | BN125: 697.82 | BO125: 11969142 | BP125: 9077431 | BQ125: 2567 | BR125: 2446 | BS125: 381.23 | BT125: 310.54 | BU125: 691.77 | BV125: 11752595 | BW125: 9111308 | BX125: 2569 | BY125: 2445 | BZ125: 2538 | CA125: 2543 | CB125: 2467 | CC125: 2509 | CD125: 2510 | CE125: 621.8109623 | CF125: 650.773103 | CG125: 676.6194692 | CH125: 712.4345037 | CI125: 716.4999321 | CJ125: 0.9862643748 | CK125: 0.9564316612 | CL125: 1.001611734 | CM125: 0.9794865301 | CN125: 0.965485088 | CO125: 0.9678365244 | CP125: 1.01035232 | CQ125: 0.9966011523 | CR125: 1.013798065 | CS125: 2365 | CT125: 2395 | CU125: 2265 | CV125: 2395 | CW125: 2394 | CX125: 0.945459374 | CY125: 0.98083711 | CZ125: 0.96410174 | DA125: 0.996161256 | DB125: 0.952133564 | DC125: 2012 | DD125: 2454.4 | DE125: 0.0024531049 | DF125: 751.95 | DG125: 1 | DH125: 751.95 | DI125: 677.5147417 | DJ125: 1 | DK125: 751.95 | DL125: 1 | DM125: 751.95 | DN125: 1 | DO125: 0.00518 | DP125: 3.9 | DQ125: 748.05 | DR125: CHICOT | DT125: ARKANSAS
A126: CLARK | B126: 4090 | C126: 3318 | D126: 10365117 | E126: 3218 | F126: 9047270 | G126: 659 | H126: 1590115 | I126: 611 | J126: 1829893 | K126: 3155 | L126: 11920498 | M126: 3042 | N126: 9380264 | O126: 640 | P126: 1529225 | Q126: 585 | R126: 1765402 | S126: 3041 | T126: 11284795 | U126: 2917 | V126: 9459063 | W126: 642 | X126: 1861370 | Y126: 579 | Z126: 1831166 | AA126: 2999 | AB126: 10430957 | AC126: 2869 | AD126: 9237425 | AE126: 670 | AF126: 2413346 | AG126: 606 | AH126: 2028859 | AI126: 2977 | AJ126: 10587640 | AK126: 2837 | AL126: 9816996 | AM126: 687 | AN126: 1642816 | AO126: 631 | AP126: 2240591 | AQ126: 250.51 | AR126: 236.73 | AS126: 487.24 | AT126: 11955232 | AU126: 10877163 | AV126: 3977 | AW126: 3829 | AX126: 295.34 | AY126: 256.08 | AZ126: 551.42 | BA126: 13449723 | BB126: 11145666 | BC126: 3795 | BD126: 3627 | BE126: 297.45 | BF126: 269.12 | BG126: 566.57 | BH126: 13146165 | BI126: 11290229 | BJ126: 3683 | BK126: 3496 | BL126: 291.73 | BM126: 270.17 | BN126: 561.9 | BO126: 12844303 | BP126: 11266284 | BQ126: 3669 | BR126: 3475 | BS126: 278.17 | BT126: 289.73 | BU126: 567.9 | BV126: 12230456 | BW126: 12057587 | BX126: 3664 | BY126: 3468 | BZ126: 3910 | CA126: 3715 | CB126: 3593 | CC126: 3575 | CD126: 3571 | CE126: 621.8109623 | CF126: 650.773103 | CG126: 676.6194692 | CH126: 712.4345037 | CI126: 716.4999321 | CJ126: 0.7835821971 | CK126: 0.8473306556 | CL126: 0.8373539719 | CM126: 0.7887040802 | CN126: 0.7926030061 | CO126: 0.9289481233 | CP126: 0.8718622298 | CQ126: 0.9966011523 | CR126: 0.874835663 | CS126: 3549 | CT126: 3335 | CU126: 3271 | CV126: 3239 | CW126: 3310 | CX126: 0.898811983 | CY126: 0.933241431 | CZ126: 0.94220243 | DA126: 0.950811024 | DB126: 0.922442446 | DC126: 2012 | DD126: 3579 | DE126: 0.0014163564 | DF126: 649.55 | DG126: 1 | DH126: 649.55 | DI126: 677.5147417 | DJ126: 1 | DK126: 649.55 | DL126: 1 | DM126: 649.55 | DN126: 1 | DO126: 0.003566 | DP126: 2.32 | DQ126: 647.23 | DR126: CLARK | DT126: ARKANSAS
A127: CLAY | B127: 4100 | C127: 3164 | D127: 12761706 | E127: 3076 | F127: 10051414 | G127: 743 | H127: 2120482 | I127: 670 | J127: 2026217 | K127: 3068 | L127: 14355820 | M127: 2970 | N127: 9815342 | O127: 738 | P127: 1818329 | Q127: 662 | R127: 2471092 | S127: 2947 | T127: 12880933 | U127: 2838 | V127: 10334895 | W127: 733 | X127: 2069408 | Y127: 656 | Z127: 2196896 | AA127: 2862 | AB127: 13377508 | AC127: 2753 | AD127: 10896199 | AE127: 743 | AF127: 1929688 | AG127: 669 | AH127: 2111373 | AI127: 2843 | AJ127: 12279463 | AK127: 2727 | AL127: 10319639 | AM127: 730 | AN127: 2063561 | AO127: 661 | AP127: 2327592 | AQ127: 317.43 | AR127: 268.68 | AS127: 586.11 | AT127: 14882188 | AU127: 12077631 | AV127: 3907 | AW127: 3746 | AX127: 354.14 | AY127: 281.9 | AZ127: 636.04 | BA127: 16174149 | BB127: 12286434 | BC127: 3806 | BD127: 3632 | BE127: 338.55 | BF127: 298.89 | BG127: 637.44 | BH127: 14950341 | BI127: 12531791 | BJ127: 3680 | BK127: 3494 | BL127: 353.84 | BM127: 316.76 | BN127: 670.6 | BO127: 15307196 | BP127: 13007572 | BQ127: 3605 | BR127: 3422 | BS127: 334.52 | BT127: 311.08 | BU127: 645.6 | BV127: 14343024 | BW127: 12647231 | BX127: 3573 | BY127: 3388 | BZ127: 3834 | CA127: 3723 | CB127: 3590 | CC127: 3517 | CD127: 3485 | CE127: 621.8109623 | CF127: 650.773103 | CG127: 676.6194692 | CH127: 712.4345037 | CI127: 716.4999321 | CJ127: 0.9425855051 | CK127: 0.9773606147 | CL127: 0.9420952677 | CM127: 0.9412795092 | CN127: 0.9010468405 | CO127: 0.9378851657 | CP127: 1.003186298 | CQ127: 0.9966011523 | CR127: 1.006607604 | CS127: 3680 | CT127: 3532 | CU127: 3492 | CV127: 3409 | CW127: 3381 | CX127: 0.911979777 | CY127: 0.96091825 | CZ127: 0.943493361 | DA127: 0.941881241 | DB127: 0.93219825 | DC127: 2012 | DD127: 3536.4 | DE127: 0.0019241857 | DF127: 747.01 | DG127: 1 | DH127: 747.01 | DI127: 677.5147417 | DJ127: 1 | DK127: 747.01 | DL127: 1 | DM127: 747.01 | DN127: 1 | DO127: 0.005883 | DP127: 4.39 | DQ127: 742.62 | DR127: CLAY | DT127: ARKANSAS
A128: CLEBURNE | B128: 4110 | C128: 5106 | D128: 18153142 | E128: 4990 | F128: 15477112 | G128: 966 | H128: 2458182 | I128: 901 | J128: 2709238 | K128: 5171 | L128: 18681425 | M128: 5050 | N128: 16290299 | O128: 1004 | P128: 2336611 | Q128: 930 | R128: 2529102 | S128: 5102 | T128: 18430124 | U128: 4967 | V128: 16755193 | W128: 1045 | X128: 2364386 | Y128: 960 | Z128: 2789598 | AA128: 5128 | AB128: 19128869 | AC128: 4977 | AD128: 17262049 | AE128: 1054 | AF128: 2941736 | AG128: 957 | AH128: 3005920 | AI128: 5111 | AJ128: 18307322 | AK128: 4950 | AL128: 18525716 | AM128: 1068 | AN128: 2852100 | AO128: 968 | AP128: 3422956 | AQ128: 282.87 | AR128: 257.26 | AS128: 540.13 | AT128: 20611324 | AU128: 18186350 | AV128: 6072 | AW128: 5891 | AX128: 283.64 | AY128: 262.25 | AZ128: 545.89 | BA128: 21018036 | BB128: 18819401 | BC128: 6175 | BD128: 5980 | BE128: 281.91 | BF128: 274.8 | BG128: 556.71 | BH128: 20794510 | BI128: 19544791 | BJ128: 6147 | BK128: 5927 | BL128: 297.51 | BM128: 284.63 | BN128: 582.14 | BO128: 22070605 | BP128: 20267969 | BQ128: 6182 | BR128: 5934 | BS128: 285.37 | BT128: 309.07 | BU128: 594.44 | BV128: 21159422 | BW128: 21948672 | BX128: 6179 | BY128: 5918 | BZ128: 5990 | CA128: 6082 | CB128: 6041 | CC128: 6062 | CD128: 6055 | CE128: 621.8109623 | CF128: 650.773103 | CG128: 676.6194692 | CH128: 712.4345037 | CI128: 716.4999321 | CJ128: 0.8686402022 | CK128: 0.8388330702 | CL128: 0.8227815269 | CM128: 0.8171137093 | CN128: 0.8296441819 | CO128: 0.924007879 | CP128: 0.9041075916 | CQ128: 0.9966011523 | CR128: 0.9071909956 | CS128: 5930 | CT128: 6117 | CU128: 6102 | CV128: 6127 | CW128: 6140 | CX128: 0.918086801 | CY128: 0.93221955 | CZ128: 0.923538457 | DA128: 0.922972839 | DB128: 0.923044899 | DC128: 2012 | DD128: 5930 | DE128: 0.0015754589 | DF128: 673.47 | DG128: 1 | DH128: 673.47 | DI128: 677.5147417 | DJ128: 1 | DK128: 673.47 | DL128: 1 | DM128: 673.47 | DN128: 1 | DO128: 0.003721 | DP128: 2.51 | DQ128: 670.96 | DR128: CLEBURNE | DT128: ARKANSAS
A129: CLEVELAND | B129: 4120 | C129: 1206 | D129: 4384473 | E129: 1166 | F129: 3630783 | G129: 296 | H129: 1070293 | I129: 277 | J129: 817397 | K129: 1215 | L129: 4933713 | M129: 1175 | N129: 3990112 | O129: 318 | P129: 701789 | Q129: 300 | R129: 713406 | S129: 1190 | T129: 4601251 | U129: 1145 | V129: 4117708 | W129: 333 | X129: 808583 | Y129: 312 | Z129: 898431 | AA129: 1174 | AB129: 5678425 | AC129: 1131 | AD129: 3971838 | AE129: 348 | AF129: 1000082 | AG129: 323 | AH129: 978099 | AI129: 1169 | AJ129: 4858766 | AK129: 1124 | AL129: 4412236 | AM129: 342 | AN129: 784990 | AO129: 320 | AP129: 1175721 | AQ129: 302.64 | AR129: 256.88 | AS129: 559.52 | AT129: 5454766 | AU129: 4448180 | AV129: 1502 | AW129: 1443 | AX129: 306.34 | AY129: 265.74 | AZ129: 572.08 | BA129: 5635502 | BB129: 4703518 | BC129: 1533 | BD129: 1475 | BE129: 296.01 | BF129: 286.9 | BG129: 582.91 | BH129: 5409834 | BI129: 5016139 | BJ129: 1523 | BK129: 1457 | BL129: 365.67 | BM129: 283.7 | BN129: 649.37 | BO129: 6678507 | BP129: 4949937 | BQ129: 1522 | BR129: 1454 | BS129: 311.26 | BT129: 322.48 | BU129: 633.74 | BV129: 5643756 | BW129: 5587957 | BX129: 1511 | BY129: 1444 | BZ129: 1475 | CA129: 1505 | CB129: 1491 | CC129: 1489 | CD129: 1479 | CE129: 621.8109623 | CF129: 650.773103 | CG129: 676.6194692 | CH129: 712.4345037 | CI129: 716.4999321 | CJ129: 0.8998233127 | CK129: 0.8790775116 | CL129: 0.8615034395 | CM129: 0.9114802787 | CN129: 0.8844941522 | CO129: 0.9386280552 | CP129: 0.9452900263 | CQ129: 0.9966011523 | CR129: 0.9485138804 | CS129: 1477 | CT129: 1514 | CU129: 1508 | CV129: 1512 | CW129: 1521 | CX129: 0.951990046 | CY129: 0.96828078 | CZ129: 0.929707327 | DA129: 0.933536344 | DB129: 0.910042414 | DC129: 2012 | DD129: 1454.6 | DE129: 0.0053661912 | DF129: 701.47 | DG129: 1 | DH129: 701.47 | DI129: 677.5147417 | DJ129: 1 | DK129: 701.47 | DL129: 1 | DM129: 701.47 | DN129: 1 | DO129: 0.01051 | DP129: 7.37 | DQ129: 694.1 | DR129: CLEVELAND | DT129: ARKANSAS
A130: COLUMBIA | B130: 4130 | C130: 3903 | D130: 16577840 | E130: 3824 | F130: 10594389 | G130: 987 | H130: 2603408 | I130: 922 | J130: 1927959 | K130: 3893 | L130: 17558916 | M130: 3800 | N130: 11567607 | O130: 1026 | P130: 3348029 | Q130: 955 | R130: 2371550 | S130: 3724 | T130: 18872532 | U130: 3627 | V130: 12929889 | W130: 1056 | X130: 3438090 | Y130: 987 | Z130: 2632219 | AA130: 3513 | AB130: 17837173 | AC130: 3408 | AD130: 12359560 | AE130: 1040 | AF130: 2879078 | AG130: 972 | AH130: 2871613 | AI130: 3496 | AJ130: 15077943 | AK130: 3380 | AL130: 12655275 | AM130: 1025 | AN130: 3193756 | AO130: 962 | AP130: 3115346 | AQ130: 326.88 | AR130: 219.88 | AS130: 546.76 | AT130: 19181248 | AU130: 12522348 | AV130: 4890 | AW130: 4746 | AX130: 354.19 | AY130: 244.29 | AZ130: 598.48 | BA130: 20906945 | BB130: 13939157 | BC130: 4919 | BD130: 4755 | BE130: 388.96 | BF130: 281.07 | BG130: 670.03 | BH130: 22310622 | BI130: 15562108 | BJ130: 4780 | BK130: 4614 | BL130: 379.17 | BM130: 289.79 | BN130: 668.96 | BO130: 20716251 | BP130: 15231173 | BQ130: 4553 | BR130: 4380 | BS130: 336.79 | BT130: 302.68 | BU130: 639.47 | BV130: 18271699 | BW130: 15770621 | BX130: 4521 | BY130: 4342 | BZ130: 4825 | CA130: 4841 | CB130: 4700 | CC130: 4470 | CD130: 4436 | CE130: 621.8109623 | CF130: 650.773103 | CG130: 676.6194692 | CH130: 712.4345037 | CI130: 716.4999321 | CJ130: 0.8793026066 | CK130: 0.9196446461 | CL130: 0.9902611889 | CM130: 0.9389775432 | CN130: 0.8924913617 | CO130: 0.9542639598 | CP130: 0.9684275088 | CQ130: 0.9966011523 | CR130: 0.9717302719 | CS130: 4553 | CT130: 4621 | CU130: 4469 | CV130: 4240 | CW130: 4244 | CX130: 0.944858234 | CY130: 0.957154355 | CZ130: 0.953732051 | DA130: 0.958772652 | DB130: 0.957263017 | DC130: 2012 | DD130: 4567.4 | DE130: 0.0015446972 | DF130: 721.4 | DG130: 1 | DH130: 721.4 | DI130: 677.5147417 | DJ130: 1 | DK130: 721.4 | DL130: 1 | DM130: 721.4 | DN130: 1 | DO130: 0.004611 | DP130: 3.33 | DQ130: 718.07 | DR130: COLUMBIA | DT130: ARKANSAS
A131: CONWAY | B131: 4140 | C131: 3629 | D131: 14617814 | E131: 3519 | F131: 10121413 | G131: 1190 | H131: 2362819 | I131: 1100 | J131: 3241715 | K131: 3373 | L131: 11913305 | M131: 3263 | N131: 9733088 | O131: 1138 | P131: 1989689 | Q131: 1037 | R131: 3044135 | S131: 3170 | T131: 13125622 | U131: 3057 | V131: 9861956 | W131: 1078 | X131: 2523971 | Y131: 982 | Z131: 3434935 | AA131: 3069 | AB131: 11375605 | AC131: 2942 | AD131: 9749824 | AE131: 1046 | AF131: 3017583 | AG131: 956 | AH131: 3333414 | AI131: 3065 | AJ131: 9700922 | AK131: 2934 | AL131: 9891099 | AM131: 1046 | AN131: 2261438 | AO131: 954 | AP131: 3619934 | AQ131: 293.64 | AR131: 241.09 | AS131: 534.73 | AT131: 16980633 | AU131: 13363128 | AV131: 4819 | AW131: 4619 | AX131: 256.84 | AY131: 247.62 | AZ131: 504.46 | BA131: 13902994 | BB131: 12777223 | BC131: 4511 | BD131: 4300 | BE131: 307 | BF131: 274.34 | BG131: 581.34 | BH131: 15649593 | BI131: 13296891 | BJ131: 4248 | BK131: 4039 | BL131: 291.48 | BM131: 279.7 | BN131: 571.18 | BO131: 14393188 | BP131: 13083238 | BQ131: 4115 | BR131: 3898 | BS131: 242.49 | BT131: 289.59 | BU131: 532.08 | BV131: 11962360 | BW131: 13511033 | BX131: 4111 | BY131: 3888 | BZ131: 4729 | CA131: 4410 | CB131: 4147 | CC131: 4010 | CD131: 4005 | CE131: 621.8109623 | CF131: 650.773103 | CG131: 676.6194692 | CH131: 712.4345037 | CI131: 716.4999321 | CJ131: 0.8599558908 | CK131: 0.7751703284 | CL131: 0.8591830806 | CM131: 0.801729839 | CN131: 0.7426099797 | CO131: 0.9386396124 | CP131: 0.860532427 | CQ131: 0.9966011523 | CR131: 0.8634672205 | CS131: 3925 | CT131: 3678 | CU131: 3547 | CV131: 3453 | CW131: 3500 | CX131: 0.94254346 | CY131: 0.950654081 | CZ131: 0.940830603 | DA131: 0.930035063 | DB131: 0.927904826 | DC131: 2012 | DD131: 4148.8 | DE131: 0.0020366645 | DF131: 640.71 | DG131: 1 | DH131: 640.71 | DI131: 677.5147417 | DJ131: 1 | DK131: 640.71 | DL131: 1 | DM131: 640.71 | DN131: 1 | DO131: 0.004889 | DP131: 3.13 | DQ131: 637.58 | DR131: CONWAY | DT131: ARKANSAS
A132: CRAIGHEAD | B132: 4150 | C132: 9942 | D132: 38454831 | E132: 9637 | F132: 29729049 | G132: 2798 | H132: 7854101 | I132: 2579 | J132: 7632788 | K132: 10092 | L132: 38546056 | M132: 9739 | N132: 30955812 | O132: 3060 | P132: 8487841 | Q132: 2804 | R132: 8550777 | S132: 9969 | T132: 37865095 | U132: 9569 | V132: 30543723 | W132: 3179 | X132: 8866296 | Y132: 2902 | Z132: 9727176 | AA132: 10078 | AB132: 38953903 | AC132: 9625 | AD132: 32385411 | AE132: 3281 | AF132: 11199436 | AG132: 3008 | AH132: 10376780 | AI132: 10276 | AJ132: 42198670 | AK132: 9781 | AL132: 33864358 | AM132: 3453 | AN132: 11626004 | AO132: 3161 | AP132: 11226097 | AQ132: 302.91 | AR132: 254.87 | AS132: 557.78 | AT132: 46308932 | AU132: 37361837 | AV132: 12740 | AW132: 12216 | AX132: 298.01 | AY132: 262.47 | AZ132: 560.48 | BA132: 47033897 | BB132: 39506589 | BC132: 13152 | BD132: 12543 | BE132: 296.19 | BF132: 269.1 | BG132: 565.29 | BH132: 46731391 | BI132: 40270899 | BJ132: 13148 | BK132: 12471 | BL132: 312.86 | BM132: 282.08 | BN132: 594.94 | BO132: 50153339 | BP132: 42762191 | BQ132: 13359 | BR132: 12633 | BS132: 326.71 | BT132: 290.34 | BU132: 617.05 | BV132: 53824674 | BW132: 45090455 | BX132: 13729 | BY132: 12942 | BZ132: 12503 | CA132: 12862 | CB132: 12821 | CC132: 13009 | CD132: 13355 | CE132: 621.8109623 | CF132: 650.773103 | CG132: 676.6194692 | CH132: 712.4345037 | CI132: 716.4999321 | CJ132: 0.8970250346 | CK132: 0.8612525585 | CL132: 0.8354622143 | CM132: 0.8350802732 | CN132: 0.8612003608 | CO132: 0.9405236281 | CP132: 0.91226213 | CQ132: 0.9966011523 | CR132: 0.9153733446 | CS132: 11784 | CT132: 12184 | CU132: 12028 | CV132: 12199 | CW132: 12357 | CX132: 0.931847274 | CY132: 0.962026451 | CZ132: 0.936082534 | DA132: 0.933780736 | DB132: 0.938575403 | DC132: 2012 | DD132: 12561 | DE132: 0.0028485547 | DF132: 678.68 | DG132: 1 | DH132: 678.68 | DI132: 677.5147417 | DJ132: 1 | DK132: 678.68 | DL132: 1 | DM132: 678.68 | DN132: 1 | DO132: 0.007606 | DP132: 5.16 | DQ132: 673.52 | DR132: CRAIGHEAD | DT132: ARKANSAS
A133: CRAWFORD | B133: 4160 | C133: 6639 | D133: 25561668 | E133: 6431 | F133: 17856347 | G133: 2539 | H133: 6420520 | I133: 2312 | J133: 6219825 | K133: 6245 | L133: 23817694 | M133: 5982 | N133: 17832135 | O133: 2433 | P133: 5939889 | Q133: 2185 | R133: 6053296 | S133: 5719 | T133: 22027803 | U133: 5435 | V133: 16719920 | W133: 2298 | X133: 5978618 | Y133: 2027 | Z133: 5724561 | AA133: 5519 | AB133: 23609206 | AC133: 5187 | AD133: 17818775 | AE133: 2151 | AF133: 5490911 | AG133: 1870 | AH133: 5513318 | AI133: 5432 | AJ133: 22441227 | AK133: 5051 | AL133: 18873807 | AM133: 1992 | AN133: 4778199 | AO133: 1723 | AP133: 5295607 | AQ133: 290.39 | AR133: 229.48 | AS133: 519.87 | AT133: 31982188 | AU133: 24076172 | AV133: 9178 | AW133: 8743 | AX133: 285.76 | AY133: 243.72 | AZ133: 529.48 | BA133: 29757583 | BB133: 23885431 | BC133: 8678 | BD133: 8167 | BE133: 291.11 | BF133: 250.65 | BG133: 541.76 | BH133: 28006421 | BI133: 22444481 | BJ133: 8017 | BK133: 7462 | BL133: 316.17 | BM133: 275.52 | BN133: 591.69 | BO133: 29100117 | BP133: 23332093 | BQ133: 7670 | BR133: 7057 | BS133: 305.53 | BT133: 297.33 | BU133: 602.86 | BV133: 27219426 | BW133: 24169414 | BX133: 7424 | BY133: 6774 | BZ133: 8981 | CA133: 8434 | CB133: 7749 | CC133: 7375 | CD133: 7115 | CE133: 621.8109623 | CF133: 650.773103 | CG133: 676.6194692 | CH133: 712.4345037 | CI133: 716.4999321 | CJ133: 0.8360579525 | CK133: 0.8136169082 | CL133: 0.8006863897 | CM133: 0.8305184503 | CN133: 0.8413957532 | CO133: 0.9409432331 | CP133: 0.8762006694 | CQ133: 0.9966011523 | CR133: 0.8791888986 | CS133: 8512 | CT133: 7807 | CU133: 7297 | CV133: 6980 | CW133: 6693 | CX133: 0.938822002 | CY133: 0.964371469 | CZ133: 0.930615987 | DA133: 0.932004937 | DB133: 0.936894063 | DC133: 2012 | DD133: 7640.6 | DE133: 0.0013281456 | DF133: 652.84 | DG133: 1 | DH133: 652.84 | DI133: 677.5147417 | DJ133: 1 | DK133: 652.84 | DL133: 1 | DM133: 652.84 | DN133: 1 | DO133: 0.005294 | DP133: 3.46 | DQ133: 649.38 | DR133: CRAWFORD | DT133: ARKANSAS
A134: CRITTENDEN | B134: 4170 | C134: 4714 | D134: 19057477 | E134: 4520 | F134: 12770312 | G134: 1636 | H134: 5218598 | I134: 1507 | J134: 3966625 | K134: 4745 | L134: 21419572 | M134: 4515 | N134: 13416329 | O134: 1689 | P134: 6635683 | Q134: 1551 | R134: 4407465 | S134: 4398 | T134: 22432435 | U134: 4137 | V134: 13687597 | W134: 1606 | X134: 5374431 | Y134: 1448 | Z134: 4205508 | AA134: 4429 | AB134: 21786556 | AC134: 4142 | AD134: 14116563 | AE134: 1625 | AF134: 7248989 | AG134: 1470 | AH134: 4706858 | AI134: 4483 | AJ134: 21780479 | AK134: 4181 | AL134: 15133276 | AM134: 1680 | AN134: 6114104 | AO134: 1517 | AP134: 5268609 | AQ134: 318.58 | AR134: 231.42 | AS134: 550 | AT134: 24276075 | AU134: 16736937 | AV134: 6350 | AW134: 6027 | AX134: 363.37 | AY134: 244.86 | AZ134: 608.23 | BA134: 28055255 | BB134: 17823794 | BC134: 6434 | BD134: 6066 | BE134: 385.95 | BF134: 266.98 | BG134: 652.93 | BH134: 27806866 | BI134: 17893105 | BJ134: 6004 | BK134: 5585 | BL134: 399.67 | BM134: 279.51 | BN134: 679.18 | BO134: 29035545 | BP134: 18823421 | BQ134: 6054 | BR134: 5612 | BS134: 377.18 | BT134: 298.38 | BU134: 675.56 | BV134: 27894583 | BW134: 20401885 | BX134: 6163 | BY134: 5698 | BZ134: 6204 | CA134: 6259 | CB134: 5802 | CC134: 5841 | CD134: 5942 | CE134: 621.8109623 | CF134: 650.773103 | CG134: 676.6194692 | CH134: 712.4345037 | CI134: 716.4999321 | CJ134: 0.8845131935 | CK134: 0.9346268264 | CL134: 0.9649884901 | CM134: 0.9533227215 | CN134: 0.9428612199 | CO134: 0.9943787139 | CP134: 0.9413541111 | CQ134: 0.9966011523 | CR134: 0.9445645421 | CS134: 5937 | CT134: 6089 | CU134: 5646 | CV134: 5679 | CW134: 5730 | CX134: 0.975017703 | CY134: 0.993089561 | CZ134: 1.005658367 | DA134: 1.003744036 | DB134: 0.995412813 | DC134: 2012 | DD134: 5797.6 | DE134: 0.0098287428 | DF134: 695.42 | DG134: 1 | DH134: 695.42 | DI134: 677.5147417 | DJ134: 1 | DK134: 695.42 | DL134: 1 | DM134: 695.42 | DN134: 0.9073037956 | DO134: 0.019839 | DP134: 12.52 | DQ134: 682.9 | DR134: CRITTENDEN | DT134: ARKANSAS
A135: CROSS | B135: 4180 | C135: 2429 | D135: 10310081 | E135: 2367 | F135: 7370927 | G135: 650 | H135: 2181543 | I135: 609 | J135: 1805928 | K135: 2425 | L135: 10283085 | M135: 2355 | N135: 7892585 | O135: 662 | P135: 2128774 | Q135: 620 | R135: 1944370 | S135: 2296 | T135: 9299281 | U135: 2221 | V135: 7526514 | W135: 622 | X135: 1953929 | Y135: 567 | Z135: 1797242 | AA135: 2206 | AB135: 9117534 | AC135: 2131 | AD135: 7112205 | AE135: 620 | AF135: 1718719 | AG135: 560 | AH135: 1899967 | AI135: 2255 | AJ135: 8329183 | AK135: 2171 | AL135: 7789537 | AM135: 638 | AN135: 1879125 | AO135: 569 | AP135: 2004678 | AQ135: 338.09 | AR135: 256.97 | AS135: 595.06 | AT135: 12491624 | AU135: 9176855 | AV135: 3079 | AW135: 2976 | AX135: 335.06 | AY135: 275.54 | AZ135: 610.6 | BA135: 12411859 | BB135: 9836955 | BC135: 3087 | BD135: 2975 | BE135: 321.37 | BF135: 278.69 | BG135: 600.06 | BH135: 11253210 | BI135: 9323756 | BJ135: 2918 | BK135: 2788 | BL135: 319.54 | BM135: 279.08 | BN135: 598.62 | BO135: 10836253 | BP135: 9012172 | BQ135: 2826 | BR135: 2691 | BS135: 294.05 | BT135: 297.88 | BU135: 591.93 | BV135: 10208308 | BW135: 9794215 | BX135: 2893 | BY135: 2740 | BZ135: 3032 | CA135: 3034 | CB135: 2855 | CC135: 2761 | CD135: 2820 | CE135: 621.8109623 | CF135: 650.773103 | CG135: 676.6194692 | CH135: 712.4345037 | CI135: 716.4999321 | CJ135: 0.9569789471 | CK135: 0.9382686487 | CL135: 0.886850035 | CM135: 0.8402456603 | CN135: 0.8261410413 | CO135: 0.949002116 | CP135: 0.9375077794 | CQ135: 0.9966011523 | CR135: 0.9407050928 | CS135: 2975 | CT135: 3003 | CU135: 2776 | CV135: 2736 | CW135: 2769 | CX135: 0.94047904 | CY135: 0.974532142 | CZ135: 0.955420755 | DA135: 0.950834276 | DB135: 0.922226584 | DC135: 2012 | DD135: 2834 | DE135: 0.0033058251 | DF135: 697.14 | DG135: 1 | DH135: 697.14 | DI135: 677.5147417 | DJ135: 1 | DK135: 697.14 | DL135: 1 | DM135: 697.14 | DN135: 1 | DO135: 0.008502 | DP135: 5.93 | DQ135: 691.21 | DR135: CROSS | DT135: ARKANSAS
A136: DALLAS | B136: 4190 | C136: 1348 | D136: 5901052 | E136: 1317 | F136: 4429350 | G136: 325 | H136: 605735 | I136: 305 | J136: 778399 | K136: 1310 | L136: 5298672 | M136: 1275 | N136: 4539821 | O136: 337 | P136: 1086675 | Q136: 317 | R136: 977732 | S136: 1235 | T136: 5563255 | U136: 1207 | V136: 4459691 | W136: 334 | X136: 984069 | Y136: 310 | Z136: 984393 | AA136: 1189 | AB136: 4911135 | AC136: 1153 | AD136: 4453845 | AE136: 336 | AF136: 787620 | AG136: 310 | AH136: 1019844 | AI136: 1174 | AJ136: 4261699 | AK136: 1138 | AL136: 4468225 | AM136: 347 | AN136: 953213 | AO136: 324 | AP136: 1158934 | AQ136: 324.11 | AR136: 267.56 | AS136: 591.67 | AT136: 6506787 | AU136: 5207749 | AV136: 1673 | AW136: 1622 | AX136: 323.08 | AY136: 288.82 | AZ136: 611.9 | BA136: 6385347 | BB136: 5517553 | BC136: 1647 | BD136: 1592 | BE136: 347.74 | BF136: 299.06 | BG136: 646.8 | BH136: 6547324 | BI136: 5444084 | BJ136: 1569 | BK136: 1517 | BL136: 311.41 | BM136: 311.78 | BN136: 623.19 | BO136: 5698755 | BP136: 5473689 | BQ136: 1525 | BR136: 1463 | BS136: 285.72 | BT136: 320.75 | BU136: 606.47 | BV136: 5214912 | BW136: 5627159 | BX136: 1521 | BY136: 1462 | BZ136: 1650 | CA136: 1621 | CB136: 1544 | CC136: 1495 | CD136: 1493 | CE136: 621.8109623 | CF136: 650.773103 | CG136: 676.6194692 | CH136: 712.4345037 | CI136: 716.4999321 | CJ136: 0.9515271294 | CK136: 0.9402662728 | CL136: 0.9559287449 | CM136: 0.874733041 | CN136: 0.8464341347 | CO136: 0.9894439245 | CP136: 0.923526682 | CQ136: 0.9966011523 | CR136: 0.9266763136 | CS136: 1593 | CT136: 1572 | CU136: 1486 | CV136: 1433 | CW136: 1464 | CX136: 1.023532363 | CY136: 0.990421974 | CZ136: 0.986611922 | DA136: 0.980086641 | DB136: 0.963335295 | DC136: 2012 | DD136: 1531.2 | DE136: 0.0025884295 | DF136: 687.24 | DG136: 1 | DH136: 687.24 | DI136: 677.5147417 | DJ136: 1 | DK136: 687.24 | DL136: 1 | DM136: 687.24 | DN136: 1 | DO136: 0.005212 | DP136: 3.58 | DQ136: 683.66 | DR136: DALLAS | DT136: ARKANSAS
A137: DESHA | B137: 4200 | C137: 1951 | D137: 9352190 | E137: 1885 | F137: 6493957 | G137: 495 | H137: 1386492 | I137: 465 | J137: 1328057 | K137: 1932 | L137: 9526876 | M137: 1855 | N137: 6456542 | O137: 524 | P137: 1952736 | Q137: 493 | R137: 1636490 | S137: 1837 | T137: 10155718 | U137: 1755 | V137: 6694270 | W137: 516 | X137: 1668592 | Y137: 483 | Z137: 1608726 | AA137: 1829 | AB137: 9956125 | AC137: 1742 | AD137: 6827486 | AE137: 532 | AF137: 1631889 | AG137: 490 | AH137: 1768981 | AI137: 1820 | AJ137: 10108436 | AK137: 1733 | AL137: 7666321 | AM137: 544 | AN137: 2387776 | AO137: 502 | AP137: 2117688 | AQ137: 365.86 | AR137: 277.38 | AS137: 643.24 | AT137: 10738682 | AU137: 7822014 | AV137: 2446 | AW137: 2350 | AX137: 389.51 | AY137: 287.23 | AZ137: 676.74 | BA137: 11479612 | BB137: 8093032 | BC137: 2456 | BD137: 2348 | BE137: 418.77 | BF137: 309.17 | BG137: 727.94 | BH137: 11824310 | BI137: 8302996 | BJ137: 2353 | BK137: 2238 | BL137: 409.01 | BM137: 320.96 | BN137: 729.97 | BO137: 11588014 | BP137: 8596467 | BQ137: 2361 | BR137: 2232 | BS137: 440.5 | BT137: 364.8 | BU137: 805.3 | BV137: 12496212 | BW137: 9784009 | BX137: 2364 | BY137: 2235 | BZ137: 2403 | CA137: 2405 | CB137: 2297 | CC137: 2299 | CD137: 2303 | CE137: 621.8109623 | CF137: 650.773103 | CG137: 676.6194692 | CH137: 712.4345037 | CI137: 716.4999321 | CJ137: 1.034462303 | CK137: 1.039901614 | CL137: 1.075848439 | CM137: 1.024613485 | CN137: 1.123935906 | CO137: 0.9756346063 | CP137: 1.086218491 | CQ137: 0.9966011523 | CR137: 1.089922973 | CS137: 2318 | CT137: 2369 | CU137: 2288 | CV137: 2293 | CW137: 2286 | CX137: 0.952885814 | CY137: 1.003886152 | CZ137: 0.980170255 | DA137: 0.970800221 | DB137: 0.969734112 | DC137: 2012 | DD137: 2280.6 | DE137: 0.0036335442 | DF137: 807.46 | DG137: 1 | DH137: 807.46 | DI137: 677.5147417 | DJ137: 1 | DK137: 807.46 | DL137: 1 | DM137: 807.46 | DN137: 1 | DO137: 0.007801 | DP137: 6.3 | DQ137: 801.16 | DR137: DESHA | DT137: ARKANSAS
A138: DREW | B138: 4210 | C138: 2167 | D138: 9971270 | E138: 2114 | F138: 7075407 | G138: 591 | H138: 1965555 | I138: 557 | J138: 1699784 | K138: 2226 | L138: 9576939 | M138: 2159 | N138: 7584973 | O138: 597 | P138: 2251075 | Q138: 567 | R138: 1814679 | S138: 2177 | T138: 10993019 | U138: 2101 | V138: 7839628 | W138: 617 | X138: 2598794 | Y138: 590 | Z138: 2241026 | AA138: 2162 | AB138: 9936190 | AC138: 2083 | AD138: 8069881 | AE138: 626 | AF138: 2323256 | AG138: 591 | AH138: 2346412 | AI138: 2200 | AJ138: 10796380 | AK138: 2113 | AL138: 8726278 | AM138: 645 | AN138: 1827331 | AO138: 611 | AP138: 2431553 | AQ138: 360.67 | AR138: 273.78 | AS138: 634.45 | AT138: 11936825 | AU138: 8775191 | AV138: 2758 | AW138: 2671 | AX138: 349.16 | AY138: 287.35 | AZ138: 636.51 | BA138: 11828014 | BB138: 9399652 | BC138: 2823 | BD138: 2726 | BE138: 405.39 | BF138: 312.17 | BG138: 717.56 | BH138: 13591813 | BI138: 10080654 | BJ138: 2794 | BK138: 2691 | BL138: 366.43 | BM138: 324.62 | BN138: 691.05 | BO138: 12259446 | BP138: 10416293 | BQ138: 2788 | BR138: 2674 | BS138: 369.76 | BT138: 341.34 | BU138: 711.1 | BV138: 12623711 | BW138: 11157831 | BX138: 2845 | BY138: 2724 | BZ138: 2719 | CA138: 2777 | CB138: 2744 | CC138: 2733 | CD138: 2788 | CE138: 621.8109623 | CF138: 650.773103 | CG138: 676.6194692 | CH138: 712.4345037 | CI138: 716.4999321 | CJ138: 1.020326174 | CK138: 0.9780828326 | CL138: 1.060507468 | CM138: 0.9699839022 | CN138: 0.9924634577 | CO138: 0.9979893372 | CP138: 1.006296089 | CQ138: 0.9966011523 | CR138: 1.009728001 | CS138: 2731 | CT138: 2813 | CU138: 2738 | CV138: 2785 | CW138: 2832 | CX138: 0.961953514 | CY138: 1.028100828 | CZ138: 1.010832856 | DA138: 1.016065345 | DB138: 0.97263728 | DC138: 2012 | DD138: 2697.2 | DE138: 0.0032608714 | DF138: 748.32 | DG138: 1 | DH138: 748.32 | DI138: 677.5147417 | DJ138: 1 | DK138: 748.32 | DL138: 1 | DM138: 748.32 | DN138: 1 | DO138: 0.007047 | DP138: 5.27 | DQ138: 743.05 | DR138: DREW | DT138: ARKANSAS
A139: FAULKNER | B139: 4220 | C139: 9185 | D139: 33318096 | E139: 8840 | F139: 26617958 | G139: 2327 | H139: 5531123 | I139: 2060 | J139: 5521040 | K139: 9440 | L139: 33147333 | M139: 9070 | N139: 28445123 | O139: 2503 | P139: 5763108 | Q139: 2200 | R139: 6240142 | S139: 9607 | T139: 34223351 | U139: 9175 | V139: 30174454 | W139: 2604 | X139: 5837292 | Y139: 2274 | Z139: 7261510 | AA139: 9818 | AB139: 36873970 | AC139: 9325 | AD139: 31245865 | AE139: 2704 | AF139: 7253222 | AG139: 2352 | AH139: 7346510 | AI139: 10119 | AJ139: 32768501 | AK139: 9568 | AL139: 35286968 | AM139: 2841 | AN139: 7324834 | AO139: 2472 | AP139: 8605766 | AQ139: 281.22 | AR139: 245.71 | AS139: 526.93 | AT139: 38849219 | AU139: 32138998 | AV139: 11512 | AW139: 10900 | AX139: 271.5 | AY139: 256.47 | AZ139: 527.97 | BA139: 38910441 | BB139: 34685265 | BC139: 11943 | BD139: 11270 | BE139: 273.39 | BF139: 272.48 | BG139: 545.87 | BH139: 40060643 | BI139: 37435964 | BJ139: 12211 | BK139: 11449 | BL139: 293.66 | BM139: 275.42 | BN139: 569.08 | BO139: 44127192 | BP139: 38592375 | BQ139: 12522 | BR139: 11677 | BS139: 257.8 | BT139: 303.8 | BU139: 561.6 | BV139: 40093335 | BW139: 43892734 | BX139: 12960 | BY139: 12040 | BZ139: 11235 | CA139: 11622 | CB139: 11843 | CC139: 12115 | CD139: 12523 | CE139: 621.8109623 | CF139: 650.773103 | CG139: 676.6194692 | CH139: 712.4345037 | CI139: 716.4999321 | CJ139: 0.8474118855 | CK139: 0.811296591 | CL139: 0.806760705 | CM139: 0.7987821996 | CN139: 0.7838102627 | CO139: 0.9041120224 | CP139: 0.8954778929 | CQ139: 0.9966011523 | CR139: 0.8985318658 | CS139: 10458 | CT139: 10917 | CU139: 11238 | CV139: 11512 | CW139: 11738 | CX139: 0.915221305 | CY139: 0.911522662 | CZ139: 0.902350122 | DA139: 0.894540562 | DB139: 0.898395892 | DC139: 2012 | DD139: 11467.2 | DE139: 0.0026238099 | DF139: 666.34 | DG139: 1 | DH139: 666.34 | DI139: 677.5147417 | DJ139: 1 | DK139: 666.34 | DL139: 1 | DM139: 666.34 | DN139: 1 | DO139: 0.005488 | DP139: 3.66 | DQ139: 662.68 | DR139: FAULKNER | DT139: ARKANSAS
A140: FRANKLIN | B140: 4230 | C140: 2531 | D140: 8904831 | E140: 2461 | F140: 6629297 | G140: 801 | H140: 1499764 | I140: 725 | J140: 1657487 | K140: 2455 | L140: 8541259 | M140: 2370 | N140: 6500965 | O140: 773 | P140: 1493219 | Q140: 686 | R140: 1600165 | S140: 2325 | T140: 7737377 | U140: 2238 | V140: 6658722 | W140: 740 | X140: 1405988 | Y140: 664 | Z140: 1434507 | AA140: 2246 | AB140: 7783138 | AC140: 2142 | AD140: 6646812 | AE140: 698 | AF140: 1429922 | AG140: 622 | AH140: 1680594 | AI140: 2179 | AJ140: 8035652 | AK140: 2074 | AL140: 7258348 | AM140: 648 | AN140: 1316230 | AO140: 579 | AP140: 1590051 | AQ140: 260.22 | AR140: 216.75 | AS140: 476.97 | AT140: 10404595 | AU140: 8286784 | AV140: 3332 | AW140: 3186 | AX140: 259.05 | AY140: 220.91 | AZ140: 479.96 | BA140: 10034478 | BB140: 8101130 | BC140: 3228 | BD140: 3056 | BE140: 248.6 | BF140: 232.4 | BG140: 481 | BH140: 9143365 | BI140: 8093229 | BJ140: 3065 | BK140: 2902 | BL140: 260.79 | BM140: 251.07 | BN140: 511.86 | BO140: 9213060 | BP140: 8327406 | BQ140: 2944 | BR140: 2764 | BS140: 275.67 | BT140: 277.94 | BU140: 553.61 | BV140: 9351882 | BW140: 8848399 | BX140: 2827 | BY140: 2653 | BZ140: 3266 | CA140: 3146 | CB140: 2986 | CC140: 2857 | CD140: 2744 | CE140: 621.8109623 | CF140: 650.773103 | CG140: 676.6194692 | CH140: 712.4345037 | CI140: 716.4999321 | CJ140: 0.7670659234 | CK140: 0.7375227983 | CL140: 0.7108870227 | CM140: 0.7184660447 | CN140: 0.7726588311 | CO140: 0.9296225634 | CP140: 0.7974420515 | CQ140: 0.9966011523 | CR140: 0.8001616791 | CS140: 3242 | CT140: 3046 | CU140: 2944 | CV140: 2826 | CW140: 2737 | CX140: 0.936969611 | CY140: 0.9379684 | CZ140: 0.92201775 | DA140: 0.932417654 | DB140: 0.916925851 | DC140: 2012 | DD140: 2912.2 | DE140: 0.0013165735 | DF140: 594.17 | DG140: 1 | DH140: 594.17 | DI140: 677.5147417 | DJ140: 1 | DK140: 594.17 | DL140: 1 | DM140: 594.17 | DN140: 1 | DO140: 0.004372 | DP140: 2.6 | DQ140: 591.57 | DR140: FRANKLIN | DT140: ARKANSAS
A141: FULTON | B141: 4240 | C141: 2309 | D141: 8214642 | E141: 2240 | F141: 6290352 | G141: 719 | H141: 1526154 | I141: 654 | J141: 1583487 | K141: 2245 | L141: 7081597 | M141: 2177 | N141: 6501960 | O141: 735 | P141: 1295873 | Q141: 668 | R141: 1752376 | S141: 2139 | T141: 8074589 | U141: 2067 | V141: 6889097 | W141: 686 | X141: 1612435 | Y141: 620 | Z141: 2023494 | AA141: 2105 | AB141: 8280502 | AC141: 2035 | AD141: 7043029 | AE141: 636 | AF141: 1468287 | AG141: 571 | AH141: 2089893 | AI141: 2039 | AJ141: 7614121 | AK141: 1962 | AL141: 7832290 | AM141: 622 | AN141: 1449308 | AO141: 555 | AP141: 2006524 | AQ141: 268.08 | AR141: 226.73 | AS141: 494.81 | AT141: 9740796 | AU141: 7873839 | AV141: 3028 | AW141: 2894 | AX141: 234.27 | AY141: 241.78 | AZ141: 476.05 | BA141: 8377470 | BB141: 8254336 | BC141: 2980 | BD141: 2845 | BE141: 285.75 | BF141: 276.41 | BG141: 562.16 | BH141: 9687024 | BI141: 8912591 | BJ141: 2825 | BK141: 2687 | BL141: 296.39 | BM141: 292.05 | BN141: 588.44 | BO141: 9748789 | BP141: 9132922 | BQ141: 2741 | BR141: 2606 | BS141: 283.84 | BT141: 325.75 | BU141: 609.59 | BV141: 9063429 | BW141: 9838814 | BX141: 2661 | BY141: 2517 | BZ141: 2967 | CA141: 2916 | CB141: 2758 | CC141: 2676 | CD141: 2593 | CE141: 621.8109623 | CF141: 650.773103 | CG141: 676.6194692 | CH141: 712.4345037 | CI141: 716.4999321 | CJ141: 0.795756315 | CK141: 0.7315145598 | CL141: 0.8308362759 | CM141: 0.8259566275 | CN141: 0.8507886361 | CO141: 0.950851987 | CP141: 0.8486814918 | CQ141: 0.9966011523 | CR141: 0.8515758685 | CS141: 2619 | CT141: 2616 | CU141: 2509 | CV141: 2478 | CW141: 2412 | CX141: 0.926849519 | CY141: 0.946530211 | CZ141: 0.954883891 | DA141: 0.953693554 | DB141: 0.974488297 | DC141: 2012 | DD141: 2709.8 | DE141: 0.0010380557 | DF141: 632.52 | DG141: 1 | DH141: 632.52 | DI141: 677.5147417 | DJ141: 1 | DK141: 632.52 | DL141: 1 | DM141: 632.52 | DN141: 1 | DO141: 0.002792 | DP141: 1.77 | DQ141: 630.75 | DR141: FULTON | DT141: ARKANSAS
A142: GARLAND | B142: 4250 | C142: 20721 | D142: 71729907 | E142: 20186 | F142: 64328845 | G142: 3368 | H142: 11894140 | I142: 3116 | J142: 10345472 | K142: 21113 | L142: 77389836 | M142: 20518 | N142: 68985485 | O142: 3574 | P142: 13852410 | Q142: 3273 | R142: 11517754 | S142: 20804 | T142: 80882019 | U142: 20132 | V142: 70206586 | W142: 3628 | X142: 12971355 | Y142: 3323 | Z142: 11962935 | AA142: 20626 | AB142: 81539868 | AC142: 19904 | AD142: 71264719 | AE142: 3514 | AF142: 13358713 | AG142: 3201 | AH142: 12000180 | AI142: 20338 | AJ142: 76955305 | AK142: 19544 | AL142: 76414824 | AM142: 3577 | AN142: 12271017 | AO142: 3229 | AP142: 13030553 | AQ142: 289.29 | AR142: 267.05 | AS142: 556.34 | AT142: 83624047 | AU142: 74674317 | AV142: 24089 | AW142: 23302 | AX142: 308 | AY142: 281.98 | AZ142: 589.98 | BA142: 91242246 | BB142: 80503239 | BC142: 24687 | BD142: 23791 | BE142: 320.12 | BF142: 291.94 | BG142: 612.06 | BH142: 93853374 | BI142: 82169521 | BJ142: 24432 | BK142: 23455 | BL142: 327.6 | BM142: 300.31 | BN142: 627.91 | BO142: 94898581 | BP142: 83264899 | BQ142: 24140 | BR142: 23105 | BS142: 310.91 | BT142: 327.31 | BU142: 638.22 | BV142: 89226322 | BW142: 89445377 | BX142: 23915 | BY142: 22773 | BZ142: 23733 | CA142: 24260 | CB142: 23960 | CC142: 23641 | CD142: 23373 | CE142: 621.8109623 | CF142: 650.773103 | CG142: 676.6194692 | CH142: 712.4345037 | CI142: 716.4999321 | CJ142: 0.8947092183 | CK142: 0.9065832581 | CL142: 0.9045852622 | CM142: 0.8813582114 | CN142: 0.8907467697 | CO142: 0.976719534 | CP142: 0.9169434139 | CQ142: 0.9966011523 | CR142: 0.9200705937 | CS142: 20694 | CT142: 21189 | CU142: 20798 | CV142: 20291 | CW142: 19872 | CX142: 0.977320108 | CY142: 0.982863975 | CZ142: 0.980567389 | DA142: 0.975988334 | DB142: 0.966261918 | DC142: 2012 | DD142: 23285.2 | DE142: 0.0011559657 | DF142: 683.32 | DG142: 1 | DH142: 683.32 | DI142: 677.5147417 | DJ142: 1 | DK142: 683.32 | DL142: 1 | DM142: 683.32 | DN142: 1 | DO142: 0.002787 | DP142: 1.9 | DQ142: 681.42 | DR142: GARLAND | DT142: ARKANSAS
A143: GRANT | B143: 4260 | C143: 2032 | D143: 7990692 | E143: 1957 | F143: 6409215 | G143: 469 | H143: 1113900 | I143: 419 | J143: 1129379 | K143: 2070 | L143: 8292582 | M143: 1997 | N143: 6617597 | O143: 505 | P143: 1550936 | Q143: 449 | R143: 1439676 | S143: 2058 | T143: 10346259 | U143: 1979 | V143: 7210874 | W143: 527 | X143: 1615263 | Y143: 466 | Z143: 1599479 | AA143: 2092 | AB143: 9084622 | AC143: 2002 | AD143: 7193170 | AE143: 532 | AF143: 1683632 | AG143: 469 | AH143: 1700552 | AI143: 2108 | AJ143: 9418810 | AK143: 2001 | AL143: 7938949 | AM143: 539 | AN143: 2037126 | AO143: 474 | AP143: 1872651 | AQ143: 303.37 | AR143: 264.4 | AS143: 567.77 | AT143: 9104592 | AU143: 7538594 | AV143: 2501 | AW143: 2376 | AX143: 318.56 | AY143: 274.51 | AZ143: 593.07 | BA143: 9843518 | BB143: 8057273 | BC143: 2575 | BD143: 2446 | BE143: 385.61 | BF143: 300.28 | BG143: 685.89 | BH143: 11961522 | BI143: 8810353 | BJ143: 2585 | BK143: 2445 | BL143: 341.98 | BM143: 299.94 | BN143: 641.92 | BO143: 10768254 | BP143: 8893722 | BQ143: 2624 | BR143: 2471 | BS143: 360.66 | BT143: 330.36 | BU143: 691.02 | BV143: 11455936 | BW143: 9811600 | BX143: 2647 | BY143: 2475 | BZ143: 2444 | CA143: 2514 | CB143: 2517 | CC143: 2550 | CD143: 2565 | CE143: 621.8109623 | CF143: 650.773103 | CG143: 676.6194692 | CH143: 712.4345037 | CI143: 716.4999321 | CJ143: 0.9130910106 | CK143: 0.9113314568 | CL143: 1.013701247 | CM143: 0.901023177 | CN143: 0.9644383329 | CO143: 0.9630228712 | CP143: 0.9768376983 | CQ143: 0.9966011523 | CR143: 0.9801691439 | CS143: 2424 | CT143: 2499 | CU143: 2527 | CV143: 2571 | CW143: 2574 | CX143: 0.971322731 | CY143: 0.964451864 | CZ143: 0.94771911 | DA143: 0.95980446 | DB143: 0.972058313 | DC143: 2012 | DD143: 2442.6 | DE143: 0.0032704328 | DF143: 726.41 | DG143: 1 | DH143: 726.41 | DI143: 677.5147417 | DJ143: 1 | DK143: 726.41 | DL143: 1 | DM143: 726.41 | DN143: 1 | DO143: 0.006249 | DP143: 4.54 | DQ143: 721.87 | DR143: GRANT | DT143: ARKANSAS
A144: GREENE | B144: 4270 | C144: 5268 | D144: 20700787 | E144: 5149 | F144: 14539316 | G144: 1587 | H144: 4838620 | I144: 1447 | J144: 4305864 | K144: 5109 | L144: 22418852 | M144: 4972 | N144: 14572301 | O144: 1643 | P144: 4499576 | Q144: 1494 | R144: 4395622 | S144: 4913 | T144: 21712173 | U144: 4750 | V144: 14677633 | W144: 1653 | X144: 4749653 | Y144: 1500 | Z144: 5174181 | AA144: 4874 | AB144: 22653915 | AC144: 4698 | AD144: 15350974 | AE144: 1707 | AF144: 5175281 | AG144: 1541 | AH144: 5478412 | AI144: 4880 | AJ144: 24573653 | AK144: 4686 | AL144: 16225337 | AM144: 1717 | AN144: 5748658 | AO144: 1559 | AP144: 5364189 | AQ144: 310.47 | AR144: 238.09 | AS144: 548.56 | AT144: 25539407 | AU144: 18845180 | AV144: 6855 | AW144: 6596 | AX144: 332.23 | AY144: 244.46 | AZ144: 576.69 | BA144: 26918428 | BB144: 18967923 | BC144: 6752 | BD144: 6466 | BE144: 335.84 | BF144: 264.69 | BG144: 600.53 | BH144: 26461826 | BI144: 19851814 | BJ144: 6566 | BK144: 6250 | BL144: 352.39 | BM144: 278.21 | BN144: 630.6 | BO144: 27829196 | BP144: 20829386 | BQ144: 6581 | BR144: 6239 | BS144: 383.03 | BT144: 288.09 | BU144: 671.12 | BV144: 30322311 | BW144: 21589526 | BX144: 6597 | BY144: 6245 | BZ144: 6738 | CA144: 6616 | CB144: 6413 | CC144: 6416 | CD144: 6430 | CE144: 621.8109623 | CF144: 650.773103 | CG144: 676.6194692 | CH144: 712.4345037 | CI144: 716.4999321 | CJ144: 0.8821973771 | CK144: 0.8861613938 | CL144: 0.8875446648 | CM144: 0.8851339971 | CN144: 0.9366644293 | CO144: 0.9621678577 | CP144: 0.9307527426 | CQ144: 0.9966011523 | CR144: 0.9339270183 | CS144: 6659 | CT144: 6478 | CU144: 6434 | CV144: 6413 | CW144: 6434 | CX144: 0.947196252 | CY144: 0.983186948 | CZ144: 0.952479637 | DA144: 0.962293169 | DB144: 0.966063513 | DC144: 2012 | DD144: 6359.2 | DE144: 0.0021244334 | DF144: 692.94 | DG144: 1 | DH144: 692.94 | DI144: 677.5147417 | DJ144: 1 | DK144: 692.94 | DL144: 1 | DM144: 692.94 | DN144: 1 | DO144: 0.005643 | DP144: 3.91 | DQ144: 689.03 | DR144: GREENE | DT144: ARKANSAS
A145: HEMPSTEAD | B145: 4280 | C145: 2798 | D145: 11049307 | E145: 2693 | F145: 7411491 | G145: 696 | H145: 1799440 | I145: 657 | J145: 1643479 | K145: 2803 | L145: 13211637 | M145: 2696 | N145: 8000343 | O145: 712 | P145: 2588451 | Q145: 663 | R145: 1776992 | S145: 2575 | T145: 12651866 | U145: 2468 | V145: 7872862 | W145: 695 | X145: 2592142 | Y145: 645 | Z145: 1902456 | AA145: 2532 | AB145: 11237103 | AC145: 2426 | AD145: 7662364 | AE145: 686 | AF145: 2325440 | AG145: 631 | AH145: 1952993 | AI145: 2550 | AJ145: 12452138 | AK145: 2434 | AL145: 8951937 | AM145: 681 | AN145: 2730205 | AO145: 628 | AP145: 1883134 | AQ145: 306.45 | AR145: 225.25 | AS145: 531.7 | AT145: 12848747 | AU145: 9054970 | AV145: 3494 | AW145: 3350 | AX145: 374.59 | AY145: 242.57 | AZ145: 617.16 | BA145: 15800088 | BB145: 9777335 | BC145: 3515 | BD145: 3359 | BE145: 388.48 | BF145: 261.68 | BG145: 650.16 | BH145: 15244008 | BI145: 9775318 | BJ145: 3270 | BK145: 3113 | BL145: 351.22 | BM145: 262.11 | BN145: 613.33 | BO145: 13562543 | BP145: 9615357 | BQ145: 3218 | BR145: 3057 | BS145: 391.58 | BT145: 294.88 | BU145: 686.46 | BV145: 15182343 | BW145: 10835071 | BX145: 3231 | BY145: 3062 | BZ145: 3429 | CA145: 3441 | CB145: 3194 | CC145: 3140 | CD145: 3151 | CE145: 621.8109623 | CF145: 650.773103 | CG145: 676.6194692 | CH145: 712.4345037 | CI145: 716.4999321 | CJ145: 0.8550830272 | CK145: 0.948348967 | CL145: 0.9608946085 | CM145: 0.8608931723 | CN145: 0.9580740615 | CO145: 0.9831191072 | CP145: 0.9323984862 | CQ145: 0.9966011523 | CR145: 0.9355783745 | CS145: 3492 | CT145: 3550 | CU145: 3319 | CV145: 3273 | CW145: 3267 | CX145: 0.977525418 | CY145: 0.966367721 | CZ145: 1.000774781 | DA145: 0.989457994 | DB145: 0.983013269 | DC145: 2012 | DD145: 3188.2 | DE145: 0.0019755081 | DF145: 694.27 | DG145: 1 | DH145: 694.27 | DI145: 677.5147417 | DJ145: 1 | DK145: 694.27 | DL145: 1 | DM145: 694.27 | DN145: 1 | DO145: 0.004867 | DP145: 3.38 | DQ145: 690.89 | DR145: HEMPSTEAD | DT145: ARKANSAS
A146: HOT SPRING | B146: 4290 | C146: 4347 | D146: 19894123 | E146: 4239 | F146: 13334262 | G146: 1158 | H146: 3486429 | I146: 1060 | J146: 2629391 | K146: 4384 | L146: 18699387 | M146: 4258 | N146: 14265215 | O146: 1225 | P146: 3706323 | Q146: 1112 | R146: 3356563 | S146: 4349 | T146: 19362113 | U146: 4213 | V146: 14842783 | W146: 1220 | X146: 4648647 | Y146: 1109 | Z146: 3703840 | AA146: 4274 | AB146: 18518812 | AC146: 4129 | AD146: 14904831 | AE146: 1202 | AF146: 2867158 | AG146: 1092 | AH146: 3337630 | AI146: 4249 | AJ146: 19186992 | AK146: 4098 | AL146: 15324917 | AM146: 1202 | AN146: 4490785 | AO146: 1096 | AP146: 3825224 | AQ146: 353.93 | AR146: 251.05 | AS146: 604.98 | AT146: 23380552 | AU146: 15963653 | AV146: 5505 | AW146: 5299 | AX146: 332.88 | AY146: 273.46 | AZ146: 606.34 | BA146: 22405710 | BB146: 17621778 | BC146: 5609 | BD146: 5370 | BE146: 359.29 | BF146: 290.41 | BG146: 649.7 | BH146: 24010760 | BI146: 18546623 | BJ146: 5569 | BK146: 5322 | BL146: 325.45 | BM146: 291.17 | BN146: 616.62 | BO146: 21385970 | BP146: 18242461 | BQ146: 5476 | BR146: 5221 | BS146: 361.98 | BT146: 307.25 | BU146: 669.23 | BV146: 23677777 | BW146: 19150141 | BX146: 5451 | BY146: 5194 | BZ146: 5412 | CA146: 5495 | CB146: 5450 | CC146: 5353 | CD146: 5329 | CE146: 621.8109623 | CF146: 650.773103 | CG146: 676.6194692 | CH146: 712.4345037 | CI146: 716.4999321 | CJ146: 0.9729323487 | CK146: 0.9317225884 | CL146: 0.9602147581 | CM146: 0.8655111407 | CN146: 0.9340266063 | CO146: 0.9763248187 | CP146: 0.9555031999 | CQ146: 0.9966011523 | CR146: 0.9587618855 | CS146: 5448 | CT146: 5584 | CU146: 5575 | CV146: 5499 | CW146: 5454 | CX146: 0.968970341 | CY146: 0.970482471 | CZ146: 0.993800803 | DA146: 0.988841624 | DB146: 0.959169032 | DC146: 2012 | DD146: 5281.2 | DE146: 0.0013009979 | DF146: 711.95 | DG146: 1 | DH146: 711.95 | DI146: 677.5147417 | DJ146: 1 | DK146: 711.95 | DL146: 1 | DM146: 711.95 | DN146: 1 | DO146: 0.003115 | DP146: 2.22 | DQ146: 709.73 | DR146: HOT SPRING | DT146: ARKANSAS
A147: HOWARD | B147: 4300 | C147: 2120 | D147: 8766728 | E147: 2066 | F147: 6443663 | G147: 495 | H147: 1212985 | I147: 459 | J147: 1135423 | K147: 2129 | L147: 8703915 | M147: 2063 | N147: 6363720 | O147: 524 | P147: 895475 | Q147: 488 | R147: 1305237 | S147: 2008 | T147: 8542122 | U147: 1927 | V147: 6524537 | W147: 513 | X147: 1287277 | Y147: 470 | Z147: 1462755 | AA147: 1994 | AB147: 7501874 | AC147: 1899 | AD147: 6747511 | AE147: 539 | AF147: 1410632 | AG147: 487 | AH147: 1509541 | AI147: 2000 | AJ147: 8778850 | AK147: 1900 | AL147: 7848667 | AM147: 554 | AN147: 980935 | AO147: 511 | AP147: 1618623 | AQ147: 318.03 | AR147: 250.13 | AS147: 568.16 | AT147: 9979713 | AU147: 7579086 | AV147: 2615 | AW147: 2525 | AX147: 301.53 | AY147: 250.52 | AZ147: 552.05 | BA147: 9599390 | BB147: 7668957 | BC147: 2653 | BD147: 2551 | BE147: 324.92 | BF147: 277.68 | BG147: 602.6 | BH147: 9829399 | BI147: 7987292 | BJ147: 2521 | BK147: 2397 | BL147: 293.21 | BM147: 288.39 | BN147: 581.6 | BO147: 8912506 | BP147: 8257052 | BQ147: 2533 | BR147: 2386 | BS147: 318.45 | BT147: 327.23 | BU147: 645.68 | BV147: 9759785 | BW147: 9467290 | BX147: 2554 | BY147: 2411 | BZ147: 2574 | CA147: 2604 | CB147: 2461 | CC147: 2462 | CD147: 2486 | CE147: 621.8109623 | CF147: 650.773103 | CG147: 676.6194692 | CH147: 712.4345037 | CI147: 716.4999321 | CJ147: 0.9137182109 | CK147: 0.8482987349 | CL147: 0.8906039915 | CM147: 0.8163557449 | CN147: 0.9011584944 | CO147: 0.9543420865 | CP147: 0.9158424926 | CQ147: 0.9966011523 | CR147: 0.9189659177 | CS147: 2307 | CT147: 2347 | CU147: 2220 | CV147: 2215 | CW147: 2257 | CX147: 0.959697494 | CY147: 0.936627778 | CZ147: 0.964428217 | DA147: 0.972908229 | DB147: 0.939147289 | DC147: 2012 | DD147: 2454 | DE147: 0.0016384797 | DF147: 682.17 | DG147: 1 | DH147: 682.17 | DI147: 677.5147417 | DJ147: 1 | DK147: 682.17 | DL147: 1 | DM147: 682.17 | DN147: 1 | DO147: 0.004337 | DP147: 2.96 | DQ147: 679.21 | DR147: HOWARD | DT147: ARKANSAS
A148: INDEPENDENCE | B148: 4310 | C148: 5101 | D148: 20023358 | E148: 4950 | F148: 15241576 | G148: 1524 | H148: 4257469 | I148: 1400 | J148: 4108750 | K148: 5129 | L148: 21823217 | M148: 4961 | N148: 16766883 | O148: 1571 | P148: 5222472 | Q148: 1443 | R148: 4698218 | S148: 5155 | T148: 23697614 | U148: 4972 | V148: 17969936 | W148: 1663 | X148: 5267167 | Y148: 1529 | Z148: 5192255 | AA148: 5162 | AB148: 24648660 | AC148: 4954 | AD148: 17855577 | AE148: 1680 | AF148: 5575263 | AG148: 1540 | AH148: 5462543 | AI148: 5213 | AJ148: 24909255 | AK148: 4983 | AL148: 20199189 | AM148: 1713 | AN148: 6054552 | AO148: 1565 | AP148: 6183140 | AQ148: 305.42 | AR148: 253.94 | AS148: 559.36 | AT148: 24280827 | AU148: 19350326 | AV148: 6625 | AW148: 6350 | AX148: 336.39 | AY148: 279.32 | AZ148: 615.71 | BA148: 27045689 | BB148: 21465101 | BC148: 6700 | BD148: 6404 | BE148: 354.02 | BF148: 296.91 | BG148: 650.93 | BH148: 28964781 | BI148: 23162191 | BJ148: 6818 | BK148: 6501 | BL148: 368.12 | BM148: 299.23 | BN148: 667.35 | BO148: 30223923 | BP148: 23318120 | BQ148: 6842 | BR148: 6494 | BS148: 372.56 | BT148: 335.76 | BU148: 708.32 | BV148: 30963807 | BW148: 26382329 | BX148: 6926 | BY148: 6548 | BZ148: 6501 | CA148: 6559 | CB148: 6665 | CC148: 6674 | CD148: 6747 | CE148: 621.8109623 | CF148: 650.773103 | CG148: 676.6194692 | CH148: 712.4345037 | CI148: 716.4999321 | CJ148: 0.8995659998 | CK148: 0.9461208479 | CL148: 0.9620326189 | CM148: 0.9367176863 | CN148: 0.9885834852 | CO148: 0.9783497773 | CP148: 0.9675518405 | CQ148: 0.9966011523 | CR148: 0.9708516172 | CS148: 6267 | CT148: 6415 | CU148: 6512 | CV148: 6460 | CW148: 6404 | CX148: 0.967969487 | CY148: 0.979443673 | CZ148: 0.982439573 | DA148: 0.985908083 | DB148: 0.975629061 | DC148: 2012 | DD148: 6459.4 | DE148: 0.0014168409 | DF148: 720.84 | DG148: 1 | DH148: 720.84 | DI148: 677.5147417 | DJ148: 1 | DK148: 720.84 | DL148: 1 | DM148: 720.84 | DN148: 1 | DO148: 0.003423 | DP148: 2.47 | DQ148: 718.37 | DR148: INDEPENDENCE | DT148: ARKANSAS
A149: IZARD | B149: 4320 | C149: 2654 | D149: 8975446 | E149: 2576 | F149: 7719525 | G149: 692 | H149: 1625090 | I149: 652 | J149: 1925429 | K149: 2540 | L149: 8802658 | M149: 2458 | N149: 8026775 | O149: 686 | P149: 1272311 | Q149: 641 | R149: 2134518 | S149: 2451 | T149: 9663347 | U149: 2362 | V149: 8085978 | W149: 672 | X149: 1527369 | Y149: 625 | Z149: 1987225 | AA149: 2409 | AB149: 10839407 | AC149: 2310 | AD149: 8174345 | AE149: 691 | AF149: 1957089 | AG149: 635 | AH149: 2032258 | AI149: 2378 | AJ149: 8747928 | AK149: 2272 | AL149: 8695455 | AM149: 696 | AN149: 1533204 | AO149: 629 | AP149: 2166729 | AQ149: 264.01 | AR149: 248.99 | AS149: 513 | AT149: 10600536 | AU149: 9644954 | AV149: 3346 | AW149: 3228 | AX149: 260.25 | AY149: 273.24 | AZ149: 533.49 | BA149: 10074969 | BB149: 10161293 | BC149: 3226 | BD149: 3099 | BE149: 298.61 | BF149: 281.03 | BG149: 579.64 | BH149: 11190716 | BI149: 10073203 | BJ149: 3123 | BK149: 2987 | BL149: 343.99 | BM149: 288.81 | BN149: 632.8 | BO149: 12796496 | BP149: 10206603 | BQ149: 3100 | BR149: 2945 | BS149: 278.71 | BT149: 312.02 | BU149: 590.73 | BV149: 10281132 | BW149: 10862184 | BX149: 3074 | BY149: 2901 | BZ149: 3293 | CA149: 3165 | CB149: 3057 | CC149: 3025 | CD149: 2992 | CE149: 621.8109623 | CF149: 650.773103 | CG149: 676.6194692 | CH149: 712.4345037 | CI149: 716.4999321 | CJ149: 0.8250095786 | CK149: 0.8197788101 | CL149: 0.8566705901 | CM149: 0.8882220003 | CN149: 0.8244662331 | CO149: 0.9311325541 | CP149: 0.9051659066 | CQ149: 0.9966011523 | CR149: 0.9082529199 | CS149: 3263 | CT149: 3172 | CU149: 3112 | CV149: 3092 | CW149: 3041 | CX149: 0.916533881 | CY149: 0.942067512 | CZ149: 0.937891126 | DA149: 0.925763545 | DB149: 0.933933634 | DC149: 2012 | DD149: 3032 | DE149: 0.0013661927 | DF149: 674.4 | DG149: 1 | DH149: 674.4 | DI149: 677.5147417 | DJ149: 1 | DK149: 674.4 | DL149: 1 | DM149: 674.4 | DN149: 1 | DO149: 0.003835 | DP149: 2.59 | DQ149: 671.81 | DR149: IZARD | DT149: ARKANSAS
A150: JACKSON | B150: 4330 | C150: 3292 | D150: 19614420 | E150: 3197 | F150: 10901670 | G150: 900 | H150: 3700212 | I150: 846 | J150: 2947258 | K150: 3171 | L150: 17727107 | M150: 3067 | N150: 10639614 | O150: 894 | P150: 3587535 | Q150: 838 | R150: 2909318 | S150: 3005 | T150: 15837172 | U150: 2901 | V150: 10098350 | W150: 884 | X150: 3882982 | Y150: 829 | Z150: 3096508 | AA150: 2906 | AB150: 15535956 | AC150: 2807 | AD150: 10382616 | AE150: 895 | AF150: 3470850 | AG150: 839 | AH150: 3116382 | AI150: 2819 | AJ150: 15008629 | AK150: 2714 | AL150: 10408567 | AM150: 875 | AN150: 3824146 | AO150: 825 | AP150: 3322441 | AQ150: 463.47 | AR150: 285.45 | AS150: 748.92 | AT150: 23314632 | AU150: 13848928 | AV150: 4192 | AW150: 4043 | AX150: 436.95 | AY150: 289.14 | AZ150: 726.09 | BA150: 21314642 | BB150: 13548932 | BC150: 4065 | BD150: 3905 | BE150: 422.56 | BF150: 294.79 | BG150: 717.35 | BH150: 19720154 | BI150: 13194858 | BJ150: 3889 | BK150: 3730 | BL150: 416.71 | BM150: 308.53 | BN150: 725.24 | BO150: 19006806 | BP150: 13498998 | BQ150: 3801 | BR150: 3646 | BS150: 424.85 | BT150: 323.33 | BU150: 748.18 | BV150: 18832775 | BW150: 13731008 | BX150: 3694 | BY150: 3539 | BZ150: 4125 | CA150: 3989 | CB150: 3812 | CC150: 3726 | CD150: 3620 | CE150: 621.8109623 | CF150: 650.773103 | CG150: 676.6194692 | CH150: 712.4345037 | CI150: 716.4999321 | CJ150: 1.204417492 | CK150: 1.115734496 | CL150: 1.060197101 | CM150: 1.017974279 | CN150: 1.044215033 | CO150: 1.063122684 | CP150: 1.023877767 | CQ150: 0.9966011523 | CR150: 1.02736964 | CS150: 3294 | CT150: 3336 | CU150: 3325 | CV150: 3319 | CW150: 3319 | CX150: 1.082549404 | CY150: 1.07457184 | CZ150: 1.065358349 | DA150: 1.034290249 | DB150: 1.058927223 | DC150: 2012 | DD150: 3772.6 | DE150: 0.0028387747 | DF150: 761.72 | DG150: 1 | DH150: 761.72 | DI150: 677.5147417 | DJ150: 1 | DK150: 761.72 | DL150: 1 | DM150: 761.72 | DN150: 1 | DO150: 0.005952 | DP150: 4.53 | DQ150: 757.19 | DR150: JACKSON | DT150: ARKANSAS
A151: JEFFERSON | B151: 4340 | C151: 9777 | D151: 35518387 | E151: 9334 | F151: 26822224 | G151: 2811 | H151: 7757723 | I151: 2540 | J151: 6580273 | K151: 9151 | L151: 35159225 | M151: 8672 | N151: 25537096 | O151: 2826 | P151: 7444094 | Q151: 2539 | R151: 6996193 | S151: 8370 | T151: 34810598 | U151: 7866 | V151: 24553947 | W151: 2759 | X151: 7449700 | Y151: 2445 | Z151: 7305168 | AA151: 8260 | AB151: 34156499 | AC151: 7685 | AD151: 23800144 | AE151: 2769 | AF151: 8932009 | AG151: 2438 | AH151: 6950647 | AI151: 8321 | AJ151: 32178892 | AK151: 7717 | AL151: 25862023 | AM151: 2890 | AN151: 7704574 | AO151: 2558 | AP151: 7732715 | AQ151: 286.49 | AR151: 234.42 | AS151: 520.91 | AT151: 43276110 | AU151: 33402497 | AV151: 12588 | AW151: 11874 | AX151: 296.42 | AY151: 241.83 | AZ151: 538.25 | BA151: 42603319 | BB151: 32533289 | BC151: 11977 | BD151: 11211 | BE151: 316.44 | BF151: 257.48 | BG151: 573.92 | BH151: 42260298 | BI151: 31859115 | BJ151: 11129 | BK151: 10311 | BL151: 325.57 | BM151: 253.14 | BN151: 578.71 | BO151: 43088508 | BP151: 30750791 | BQ151: 11029 | BR151: 10123 | BS151: 296.46 | BT151: 272.46 | BU151: 568.92 | BV151: 39883466 | BW151: 33594738 | BX151: 11211 | BY151: 10275 | BZ151: 12265 | CA151: 11612 | CB151: 10735 | CC151: 10592 | CD151: 10767 | CE151: 621.8109623 | CF151: 650.773103 | CG151: 676.6194692 | CH151: 712.4345037 | CI151: 716.4999321 | CJ151: 0.8377304866 | CK151: 0.8270931873 | CL151: 0.8482167985 | CM151: 0.8122992317 | CN151: 0.7940265931 | CO151: 0.9706443653 | CP151: 0.8487900295 | CQ151: 0.9966011523 | CR151: 0.8516847763 | CS151: 11747 | CT151: 10940 | CU151: 9993 | CV151: 9853 | CW151: 9885 | CX151: 0.976915078 | CY151: 0.979984217 | CZ151: 0.963888141 | DA151: 0.973843628 | DB151: 0.956496927 | DC151: 2012 | DD151: 10758.8 | DE151: 0.007729708 | DF151: 628.37 | DG151: 1 | DH151: 628.37 | DI151: 677.5147417 | DJ151: 1 | DK151: 628.37 | DL151: 1 | DM151: 628.37 | DN151: 1 | DO151: 0.014024 | DP151: 8.81 | DQ151: 619.56 | DR151: JEFFERSON | DT151: ARKANSAS
A152: JOHNSON | B152: 4350 | C152: 3146 | D152: 11020859 | E152: 3031 | F152: 7673131 | G152: 986 | H152: 2524978 | I152: 893 | J152: 2258439 | K152: 3050 | L152: 11168162 | M152: 2925 | N152: 7521125 | O152: 994 | P152: 2495340 | Q152: 889 | R152: 2567575 | S152: 2934 | T152: 10150711 | U152: 2793 | V152: 7945989 | W152: 984 | X152: 2052027 | Y152: 881 | Z152: 2247507 | AA152: 2835 | AB152: 11500362 | AC152: 2672 | AD152: 8013251 | AE152: 982 | AF152: 2289980 | AG152: 882 | AH152: 2222006 | AI152: 2768 | AJ152: 8791796 | AK152: 2597 | AL152: 7616851 | AM152: 942 | AN152: 1963551 | AO152: 846 | AP152: 2239128 | AQ152: 273.19 | AR152: 210.92 | AS152: 484.11 | AT152: 13545837 | AU152: 9931570 | AV152: 4132 | AW152: 3924 | AX152: 281.56 | AY152: 220.43 | AZ152: 501.99 | BA152: 13663502 | BB152: 10088700 | BC152: 4044 | BD152: 3814 | BE152: 259.54 | BF152: 231.21 | BG152: 490.75 | BH152: 12202738 | BI152: 10193496 | BJ152: 3918 | BK152: 3674 | BL152: 301.07 | BM152: 239.99 | BN152: 541.06 | BO152: 13790342 | BP152: 10235257 | BQ152: 3817 | BR152: 3554 | BS152: 241.58 | BT152: 238.55 | BU152: 480.13 | BV152: 10755347 | BW152: 9855979 | BX152: 3710 | BY152: 3443 | BZ152: 4038 | CA152: 3934 | CB152: 3800 | CC152: 3690 | CD152: 3583 | CE152: 621.8109623 | CF152: 650.773103 | CG152: 676.6194692 | CH152: 712.4345037 | CI152: 716.4999321 | CJ152: 0.7785485129 | CK152: 0.7713748427 | CL152: 0.7252968948 | CM152: 0.7594522685 | CN152: 0.670104739 | CO152: 0.9283976329 | CP152: 0.7981014011 | CQ152: 0.9966011523 | CR152: 0.8008232774 | CS152: 3934 | CT152: 3772 | CU152: 3689 | CV152: 3601 | CW152: 3520 | CX152: 0.954042842 | CY152: 0.952271958 | CZ152: 0.927080838 | DA152: 0.901285755 | DB152: 0.903268463 | DC152: 2012 | DD152: 3681.8 | DE152: 0.0016339793 | DF152: 594.47 | DG152: 1 | DH152: 594.47 | DI152: 677.5147417 | DJ152: 1 | DK152: 594.47 | DL152: 1 | DM152: 594.47 | DN152: 1 | DO152: 0.004901 | DP152: 2.91 | DQ152: 591.56 | DR152: JOHNSON | DT152: ARKANSAS
A153: LAFAYETTE | B153: 4360 | C153: 1195 | D153: 5434401 | E153: 1154 | F153: 3567961 | G153: 345 | H153: 1189113 | I153: 322 | J153: 844175 | K153: 1189 | L153: 5987896 | M153: 1146 | N153: 3648072 | O153: 346 | P153: 1275217 | Q153: 323 | R153: 874942 | S153: 1122 | T153: 5117159 | U153: 1080 | V153: 3656384 | W153: 327 | X153: 1037832 | Y153: 303 | Z153: 950325 | AA153: 1082 | AB153: 5806400 | AC153: 1033 | AD153: 3679238 | AE153: 324 | AF153: 1185014 | AG153: 299 | AH153: 850700 | AI153: 1080 | AJ153: 6498362 | AK153: 1037 | AL153: 4237092 | AM153: 318 | AN153: 790044 | AO153: 294 | AP153: 832450 | AQ153: 358.42 | AR153: 249.1 | AS153: 607.52 | AT153: 6623514 | AU153: 4412136 | AV153: 1540 | AW153: 1476 | AX153: 394.31 | AY153: 256.58 | AZ153: 650.89 | BA153: 7263113 | BB153: 4523014 | BC153: 1535 | BD153: 1469 | BE153: 353.98 | BF153: 277.58 | BG153: 631.56 | BH153: 6154991 | BI153: 4606709 | BJ153: 1449 | BK153: 1383 | BL153: 414.38 | BM153: 283.4 | BN153: 697.78 | BO153: 6991414 | BP153: 4529938 | BQ153: 1406 | BR153: 1332 | BS153: 434.45 | BT153: 317.4 | BU153: 751.85 | BV153: 7288406 | BW153: 5069542 | BX153: 1398 | BY153: 1331 | BZ153: 1511 | CA153: 1504 | CB153: 1417 | CC153: 1370 | CD153: 1366 | CE153: 621.8109623 | CF153: 650.773103 | CG153: 676.6194692 | CH153: 712.4345037 | CI153: 716.4999321 | CJ153: 0.9770171914 | CK153: 1.000179628 | CL153: 0.9334050064 | CM153: 0.9794303846 | CN153: 1.049337155 | CO153: 0.9875533467 | CP153: 1.000324566 | CQ153: 0.9966011523 | CR153: 1.003736112 | CS153: 1544 | CT153: 1546 | CU153: 1454 | CV153: 1427 | CW153: 1437 | CX153: 0.999382879 | CY153: 1.020746622 | CZ153: 0.986728351 | DA153: 0.960565257 | DB153: 0.966766949 | DC153: 2012 | DD153: 1398.2 | DE153: 0.001919312 | DF153: 744.89 | DG153: 1 | DH153: 744.89 | DI153: 677.5147417 | DJ153: 1 | DK153: 744.89 | DL153: 1 | DM153: 744.89 | DN153: 1 | DO153: 0.005635 | DP153: 4.2 | DQ153: 740.69 | DR153: LAFAYETTE | DT153: ARKANSAS
A154: LAWRENCE | B154: 4370 | C154: 3199 | D154: 11113623 | E154: 3133 | F154: 9730287 | G154: 931 | H154: 2456206 | I154: 865 | J154: 2444040 | K154: 3140 | L154: 11902852 | M154: 3060 | N154: 10091807 | O154: 955 | P154: 2318259 | Q154: 886 | R154: 2710899 | S154: 3014 | T154: 12253680 | U154: 2931 | V154: 9922718 | W154: 978 | X154: 2619353 | Y154: 908 | Z154: 2882850 | AA154: 3007 | AB154: 12479975 | AC154: 2917 | AD154: 10813690 | AE154: 981 | AF154: 2836453 | AG154: 903 | AH154: 3323578 | AI154: 2996 | AJ154: 13195603 | AK154: 2898 | AL154: 10428900 | AM154: 985 | AN154: 2965744 | AO154: 912 | AP154: 3494098 | AQ154: 273.81 | AR154: 253.76 | AS154: 527.57 | AT154: 13569829 | AU154: 12174327 | AV154: 4130 | AW154: 3998 | AX154: 289.4 | AY154: 270.37 | AZ154: 559.77 | BA154: 14221111 | BB154: 12802706 | BC154: 4095 | BD154: 3946 | BE154: 310.48 | BF154: 277.97 | BG154: 588.45 | BH154: 14873033 | BI154: 12805568 | BJ154: 3992 | BK154: 3839 | BL154: 320.05 | BM154: 308.4 | BN154: 628.45 | BO154: 15316428 | BP154: 14137268 | BQ154: 3988 | BR154: 3820 | BS154: 338.3 | BT154: 304.53 | BU154: 642.83 | BV154: 16161347 | BW154: 13922998 | BX154: 3981 | BY154: 3810 | BZ154: 4070 | CA154: 4024 | CB154: 3918 | CC154: 3907 | CD154: 3900 | CE154: 621.8109623 | CF154: 650.773103 | CG154: 676.6194692 | CH154: 712.4345037 | CI154: 716.4999321 | CJ154: 0.8484411372 | CK154: 0.8601615485 | CL154: 0.8696912028 | CM154: 0.8821161759 | CN154: 0.8971808248 | CO154: 0.9423939714 | CP154: 0.9247917583 | CQ154: 0.9966011523 | CR154: 0.9279457044 | CS154: 3676 | CT154: 3608 | CU154: 3500 | CV154: 3492 | CW154: 3491 | CX154: 0.950035035 | CY154: 0.932881581 | CZ154: 0.93711882 | DA154: 0.93885464 | DB154: 0.953008274 | DC154: 2012 | DD154: 3882.6 | DE154: 0.0022936806 | DF154: 688.38 | DG154: 1 | DH154: 688.38 | DI154: 677.5147417 | DJ154: 1 | DK154: 688.38 | DL154: 1 | DM154: 688.38 | DN154: 1 | DO154: 0.006486 | DP154: 4.46 | DQ154: 683.92 | DR154: LAWRENCE | DT154: ARKANSAS
A155: LEE | B155: 4380 | C155: 1421 | D155: 4837113 | E155: 1366 | F155: 3659959 | G155: 393 | H155: 1347043 | I155: 366 | J155: 999182 | K155: 1242 | L155: 4425647 | M155: 1177 | N155: 3391417 | O155: 375 | P155: 956083 | Q155: 352 | R155: 797259 | S155: 1072 | T155: 4829669 | U155: 1002 | V155: 3606563 | W155: 341 | X155: 1014669 | Y155: 318 | Z155: 919671 | AA155: 1038 | AB155: 4421774 | AC155: 966 | AD155: 3533068 | AE155: 341 | AF155: 818144 | AG155: 317 | AH155: 943121 | AI155: 1030 | AJ155: 4457774 | AK155: 957 | AL155: 3734314 | AM155: 331 | AN155: 944965 | AO155: 304 | AP155: 966955 | AQ155: 284.09 | AR155: 224.17 | AS155: 508.26 | AT155: 6184156 | AU155: 4659141 | AV155: 1814 | AW155: 1732 | AX155: 277.35 | AY155: 228.29 | AZ155: 505.64 | BA155: 5381730 | BB155: 4188676 | BC155: 1617 | BD155: 1529 | BE155: 344.68 | BF155: 285.75 | BG155: 630.43 | BH155: 5844338 | BI155: 4526234 | BJ155: 1413 | BK155: 1320 | BL155: 316.65 | BM155: 290.74 | BN155: 607.39 | BO155: 5239918 | BP155: 4476189 | BQ155: 1379 | BR155: 1283 | BS155: 330.81 | BT155: 310.68 | BU155: 641.49 | BV155: 5402739 | BW155: 4701269 | BX155: 1361 | BY155: 1261 | BZ155: 1777 | CA155: 1575 | CB155: 1368 | CC155: 1333 | CD155: 1314 | CE155: 621.8109623 | CF155: 650.773103 | CG155: 676.6194692 | CH155: 712.4345037 | CI155: 716.4999321 | CJ155: 0.8173866831 | CK155: 0.7769835564 | CL155: 0.9317349392 | CM155: 0.8525555638 | CN155: 0.8953106222 | CO155: 0.9865828345 | CP155: 0.8664191622 | CQ155: 0.9966011523 | CR155: 0.8693740321 | CS155: 1813 | CT155: 1571 | CU155: 1398 | CV155: 1341 | CW155: 1347 | CX155: 0.962550564 | CY155: 0.995933629 | CZ155: 1.002491216 | DA155: 0.989723912 | DB155: 0.988385586 | DC155: 2012 | DD155: 1425 | DE155: 0.004324447 | DF155: 643.62 | DG155: 1 | DH155: 643.62 | DI155: 677.5147417 | DJ155: 1 | DK155: 643.62 | DL155: 1 | DM155: 643.62 | DN155: 1 | DO155: 0.010163 | DP155: 6.54 | DQ155: 637.08 | DR155: LEE | DT155: ARKANSAS
